Workbook

Sheet Controllo_UPLOAD
A1: ID_ATO | B1: ID_Aeeg_Gestore | D1: SONO PRESENTI ATO E GESTORE ? | E1: il file può essere caricato ?
A2: =idato -> 1203 | B2: =Codice_ARERA -> 25320 | D2: =IF(A2*B2>0,"SI","NO") -> SI | E2: SI
D3: PRECOMPILATO
D4: 0
D5: 1 = precompilato; 0 = deve fornire tutti i dati
D7: Tipo_file
D8: RDT
D10: SI
D13: Versione_file
D14: Tool

Sheet Menu
B1: RACCOLTA DATI TARIFFARI | F1: Per la compilazione seguire l'ordine dei fogli | K1: RACCOLTA DATI "Qualità tecnica e contrattuale, PdI e POS"
B2: ATO | E2: GESTORE
B3: ID_ATO | C3: ATO | D3: campo_vuoto | E3: ID_Aeeg_Gestore | F3: Gestore | H3: DATA CALCOLO
B4: 1203 | C4: ATO 3 - LAZIO CENTRALE RIETI | E4: 25320 | F4: Acqua Pubblica Sabina S.P.A. | H4: Preview_RDT2022
F6: Indicare la natura dei dati forniti per l'anno 2021
F7: dati preconsuntivi
B8: Sono presenti Errori | C8: elenco schede: | G8: foglio | I8: nomi delle tabelle | K8: Sono presenti Errori | L8: elenco schede: | P8: foglio | R8: nomi delle tabelle
C9: Dati tecnici | G9: Dati_tecnici | H9: scrittura | L9: QT-Acquedotto | P9: QT-Acquedotto | Q9: lettura/scrittura
C10: Dati di conto economico | G10: Dati_conto_economico | H10: scrittura | L10: QT-Fognatura | P10: QT-Fognatura | Q10: lettura/scrittura
C11: Altri dati economico finanziari | G11: Altri_dati_eco_fin | H11: scrittura | L11: QT-Depurazione | P11: QT-Depurazione | Q11: lettura/scrittura
C12: Finanziamenti | G12: finanziamenti | H12: scrittura | I12: finanziamenti | L12: QT-Altri dati | P12: QT-Altri dati | Q12: lettura/scrittura
C13: Elenco soggetti proprietari | G13: soggetti_proprietari | H13: lettura/scrittura | I13: Elenco_Proprietari | L13: Riepilogo RQTI | P13: Riepilogo_RQTI | Q13: lettura/scrittura
C14: Corrispettivi su infrastrutture di terzi | G14: Corrispettivi_proprietari | H14: lettura/scrittura | I14: Corrispettivi_Proprietari | L14: Programma degli Interventi: legenda | P14: PdI-legenda | Q14: lettura
C15: Servizi all'ingrosso: soggetti | G15: Soggetti_Scambio | H15: scrittura | I15: Soggetti_Elenco | L15: Programma degli Interventi: cronoprogramma_investimenti | P15: PdI-crono_inv | Q15: lettura/scrittura | R15: crono_investimenti
C16: Servizi all'ingrosso: vendita | G16: Vendita_Servizi_ingrosso | H16: scrittura | I16: Vendita_Servizi | L16: Programma degli Interventi: POS - Piano Opere Strategiche | P16: POS-Piano_Opere_Strategiche | Q16: lettura/scrittura | R16: crono_pos
C17: Servizi all'ingrosso: acquisto | G17: Acquisto_Servizi_ingrosso | H17: scrittura | I17: Acquisto_Servizi | L17: Programma degli Interventi: cronoprogramma_gestionale | P17: PdI-crono_ges | Q17: lettura/scrittura | R17: crono_gestionale
C18: Nuovi investimenti | G18: Nuovi_Investimenti | H18: scrittura | I18: Nuovi_Investimenti | L18: Programma degli Interventi: riepilogo | P18: PdI-riepilogo | Q18: lettura
C19: Dismissioni | G19: Dismissioni | H19: scrittura | I19: Dismissioni | L19: Riepilogo RQSII | P19: Riepilogo_RQSII | Q19: lettura/scrittura
C20: Ammortamento finanziario | G20: Ammortamento_Finanziario | H20: lettura/scrittura
C21: Informazioni su aggregazioni (anche ai fini dello schema di convergenza) | G21: Info_eventuali_aggregazioni | H21: scrittura | I21: Info_Soggetti_Aggregati
C22: Elenco Bacini Tariffari | G22: Elenco_Bacini_Tariffari | H22: scrittura | I22: BaciniTariffariElenco
C23: Bacini Tariffari e Comuni per Bacino Tariffario | G23: Bacini_Tariffari_Comuni | H23: scrittura | I23: Bacini_Tariffari_Comuni
C24: Struttura dei corrispettivi | G24: Struttura_corrispettivi | H24: scrittura
C25: Ricavi tariffari - Collettamento e depurazione reflui industriali | G25: Ricavi_Coll_Dep | H25: lettura/scrittura
C26: Ricavi tariffari totali per Bacino Tariffario | G26: Ricavi_bacini_tariffari | H26: lettura/scrittura | I26: Bacini_Tariffari_Ricavi
C28: Informazioni per completamento proposta tariffaria | G28: Input_per_calcoli_finali | H28: lettura/scrittura
C29: Ulteriori specificazioni del VRG | G29: VRG_ult_spec | H29: lettura/scrittura
C30: Dati anni precedenti | G30: Dati_Anni_precedenti | H30: lettura
C31: Vite utili anni precedenti | G31: vite_utili_precedenti
C32: Immobilizzazioni ante 2019 | G32: IMN_cespiti_ante2019 | H32: lettura | I32: IMN_cespiti_ante2019
C33: Conferma investimenti 2019 | G33: Conferma_investimenti_2019 | H33: lettura/scrittura | I33: Investimenti2019
C34: Immobilizzazioni dei proprietari | G34: IMN_Proprietari | H34: lettura | I34: cespiti_proprietari
C35: DCUIT | G35: dcuit | H35: calcolo
C36: Storico Piano Tariffario | G36: Storico_Piano_tariffario | H36: lettura
G37: Storico_Ambiti_Tariffari_Comuni | H37: lettura/scrittura | I37: Storico_Ambiti_Tariffari_Comuni
G38: Storico_Articolaz tariff QV | H38: lettura/scrittura
G39: Storico_Articolaz tariff QF | H39: lettura/scrittura
G40: Storico_Ricavi_ambiti_tariffari | H40: lettura/scrittura | I40: Storico_Ambiti_Tariffari_Ricavi
G41: Storico_Piano_Tariffario | H41: lettura
C42: Ricostruzione immobilizzazioni del gestore | G42: IMN_consolidamento | H42: lettura
C43: Calcolo IMN gestore | G43: IMN_gestore | H43: lettura
C44: Riepilogo valore delle immobilizzazioni del gestore | G44: IMN_riepilogo | H44: lettura
C45: FRAMEWORK SCHEMI | G45: framework_schemi | H45: calcolo
C46: VRG TETA | G46: vrg_teta | H46: calcolo
C47: CAPEX | G47: capex | H47: calcolo
C48: FoNI | G48: FoNI | H48: calcolo
C49: OPEX | G49: opex | H49: calcolo
C50: ERC | G50: erc | H50: calcolo
C51: RC | G51: rc | H51: calcolo
C52: Schema di convergenza | G52: Schema di convergenza | H52: calcolo
C53: PEF - Piano tariffario | G53: piano_tariffario | H53: lettura/scrittura
C54: PEF - Conto economico | G54: conto_economico | H54: scrittura
C55: PEF - Stato patrimoniale | G55: Stato_patrimoniale | H55: scrittura
C56: PEF - Rendiconto finanziario | G56: rendiconto_finanziario | H56: scrittura
C57: Elenco Gestori | G57: TT_Gestori | H57: fogli di supporto
C58: Tabelle di supporto anagrafica territorio | G58: TT_Comuni_ATO | H58: fogli di supporto
C59: Tabelle di riferimento (per i menu) | G59: TT_Tabelle_Riferimento | H59: fogli di supporto
C60: Parametri | G60: TT_parametri | H60: sola lettura
C61: QT-Acquedotto | G61: QT-Acquedotto | H61: lettura/scrittura
C62: QT-Fognatura | G62: QT-Fognatura | H62: lettura/scrittura
C63: QT-Depurazione | G63: QT-Depurazione | H63: lettura/scrittura
C64: QT-Altri dati | G64: QT-Altri dati | H64: lettura/scrittura
C65: Riepilogo RQTI | G65: Riepilogo_RQTI | H65: lettura/scrittura
C66: Programma degli Interventi: legenda | G66: PdI-legenda | H66: lettura
C67: Programma degli Interventi: cronoprogramma_investimenti | G67: PdI-crono_inv | H67: lettura/scrittura | I67: crono_investimenti
C68: Programma degli Interventi: POS - Piano Opere Strategiche | G68: POS-Piano_Opere_Strategiche | H68: lettura/scrittura | I68: crono_pos
C69: Programma degli Interventi: cronoprogramma_gestionale | G69: PdI-crono_ges | H69: lettura/scrittura | I69: crono_gestionale
C70: Programma degli Interventi: riepilogo | G70: PdI-riepilogo | H70: lettura
C71: Riepilogo RQSII | G71: Riepilogo_RQSII | H71: lettura/scrittura

Sheet Dati_tecnici
B1: DATI TECNICI
B2: FORNITURA ELETTRICA | E2: ANNO 2020 | F2: ANNO 2021 | G2: ANNO 2019 | M2: Errore compilazione | N2: Errore dati EE | O2: Errore dati pop | P2: Sono presenti errori
C3: Consumo di energia elettrica | D3: kWh | E3: 34458217.8 | F3: 35650495.33 | G3: 29420176.63 | M3: =+COUNTA(E3:F3,E5:F5,E7:F7,E9:F9,E32,E33,E34,E35,E36,E37,G3,G5,G9)<>17 -> TRUE | N3: =+MIN(E3:F3,E5:F5,E7:F7,G3,G5)<=0 -> FALSE | O3: =+OR(COUNT(E12,E20,E26)=0,COUNT(F12,F20,F26)=0) -> FALSE | P3: =+OR(M3:O3) -> TRUE
C4: di cui, in salvaguardia | D4: kWh
C5: Costo energia elettrica a bilancio | D5: Euro | E5: 5846870.397 | F5: 8585708.791 | G5: 4650548.754
C6: di cui, in salvaguardia | D6: Euro
C7: Costo medio della fornitura elettrica | D7: Euro/kWh | E7: 0.16968 | F7: 0.24083
C8: Costo medio della fornitura elettrica per l'acquisto in regime di salvaguardia | D8: Euro/kWh
C9: Si esclude di avere acquistato energia elettrica in regime di salvaguardia per almeno 4 mesi | D9: SI/NO
B10: SERVIZIO ACQUEDOTTO
C11: Numero di comuni serviti (ComA) | D11: N | E11: 70 | F11: 70
C12: Popolazione residente servita (PRA) | D12: N | E12: 177258 | F12: 177258
C13: Volume di acqua fatturato (A20) | D13: m3 | E13: 13033554.47 | F13: 13063854.6
C14: Utenze totali (UtT) | D14: N | E14: 126862 | F14: 126862
C15: Popolazione fluttuante (PFA) | D15: N | E15: 99972 | F15: 99972
C16: Superficie (SUA) | D16: km2 | E16: 2755.09 | F16: 2755.09
C17: Lunghezza rete (L) | D17: km | E17: 3432.087 | F17: 3432
B18: SERVIZIO FOGNATURA
C19: Numero di comuni serviti (ComF) | D19: N | E19: 70 | F19: 70
C20: Popolazione residente servita (PRF) | D20: N | E20: 150056.57 | F20: 150056.57
C21: Lunghezza rete fognaria (LL) | D21: km | E21: 1185.672 | F21: 1186
C22: Popolazione fluttuante (PFF) | D22: N | E22: 84630.62549 | F22: 84630.62549
C23: Superficie (SUF) | D23: km2 | E23: 3013.380079 | F23: 3013.380079
B24: SERVIZIO DEPURAZIONE
C25: Numero di comuni serviti (ComD) | D25: N | E25: 70 | F25: 70
C26: Popolazione residente servita (PRD) | D26: N | E26: 147117.4959 | F26: 147117.4959
C27: Popolazione fluttuante (PFD) | D27: N | E27: 82973.01281 | F27: 82973.01281
C28: Superficie (SUD) | D28: km2 | E28: 2755.09 | F28: 2755.09
C29: Abitanti Equivalenti serviti da depurazione | D29: A.E. | E29: 277301 | F29: 277301
B31: TERRITORIO GESTITO E AFFIDAMENTO
C32: Tipo affidamento | D32: - | E32: Affidamento del SII
C33: Data inizio affidamento | D33: gg/mm/aaaa | E33: 2016-01-01
C34: Data fine affidamento | D34: gg/mm/aaaa | E34: 2045-12-31
C35: Presenza Carta dei servizi | D35: SI/NO | E35: SI
C36: Presenza di un consumo minimo impegnato per la fatturazione delle utenze | D36: SI/NO | E36: NO
C37: Versamento delle componenti perequative a CSEA | D37: SI/NO | E37: SI

Sheet Dati_conto_economico
B1: DATI DI CONTO ECONOMICO | Q1: Sono presenti errori | R1: errore_voci_di_cui | S1: mancata_compilazione
C2: ANNO 2020 | I2: ANNO 2021 | Q2: =+OR(R2:S2) -> TRUE | R2: =+OR(P:P) -> TRUE | S2: =SUM(C:M)=0 -> FALSE
C3: Totale SII | D3: di cui ERC | E3: SII escluso ERC | F3: Altre attività idriche (c.d. Attività b) | G3: Attività diverse | I3: Totale SII | J3: di cui ERC | K3: SII escluso ERC | L3: Altre attività idriche (c.d. Attività b) | M3: Attività diverse | O3: n_riga | P3: errore compilazione
A4: VALORE DELLA PRODUZIONE (Euro) | C4: =C5+C7+C8+C9+C11 -> 35658364.26 | E4: =+C4-D4 -> 35658364.26 | F4: =F5+F7+F8+F9+F11 -> 1252874.24 | G4: =G5+G7+G8+G9+G11 -> 0 | I4: =I5+I7+I8+I9+I11 -> 38060831.68 | K4: =+I4-J4 -> 38060831.68 | L4: =L5+L7+L8+L9+L11 -> 1031826.68 | M4: =M5+M7+M8+M9+M11 -> 0 | O4: 0 | P4: =OR(C13>C4,F13>F4,G13>G4,I13>I4,L13>L4,M13>M4) -> FALSE
B5: A1) Ricavi delle vendite e delle prestazioni | C5: 32676931.21 | E5: =+C5-D5 -> 32676931.21 | F5: 1252874.24 | I5: 36251645.98 | K5: =+I5-J5 -> 36251645.98 | L5: 1031826.68 | O5: 1
B6: di cui da altre imprese del gruppo | C6: 0 | E6: =+C6-D6 -> 0 | I6: 0 | K6: =+I6-J6 -> 0 | O6: 2 | P6: =OR(C6>C5,F6>F5,G6>G5,I6>I5,L6>L5,M6>M5) -> FALSE
B7: A2) Variazioni rimanenze di prodotti in corso di lavorazione, semilavorati e finiti | C7: 0 | E7: 0 | I7: 0 | K7: 0 | O7: 3
B8: A3) Variazioni dei lavori in corso su ordinazione | C8: 0 | E8: 0 | I8: 0 | K8: 0 | O8: 4
B9: A4) Incrementi di immobilizzazioni per lavori interni (inclusi costi del personale) | C9: 2309384.53 | E9: 2309384.53 | I9: 1882052.47 | K9: 1882052.47 | O9: 5
B10: di cui per realizzazione allacciamenti idrici e fognari | C10: 205303.8386 | E10: 205303.8386 | I10: 252602.0817 | K10: 252602.0817 | O10: 6 | P10: =OR(C10>C9,F10>F9,G10>G9,I10>I9,L10>L9,M10>M9) -> FALSE
B11: A5) Altri ricavi e proventi | C11: 672048.5258 | E11: 672048.5258 | I11: -72866.77169 | K11: -72866.77169 | O11: 7
B12: di cui da altre imprese del gruppo | C12: 0 | E12: 0 | I12: 0 | K12: 0 | O12: 8 | P12: =OR(C12>C11,F12>F11,G12>G11,I12>I11,L12>L11,M12>M11) -> TRUE
A13: ULTERIORI SPECIFICAZIONI DEI RICAVI (Euro) | C13: =SUM(C14:C40) -> 32223788.77 | E13: =+C13-D13 -> 32223788.77 | F13: =SUM(F14:F40) -> 1252874.24 | G13: =SUM(G14:G40) -> 0 | I13: =SUM(I14:I40) -> 36110859.98 | K13: =+I13-J13 -> 36110859.98 | L13: =SUM(L14:L40) -> 1031826.68 | M13: =SUM(M14:M40) -> 0 | O13: 9
B14: Ricavi da articolazione tariffaria | C14: 31059208.45 | E14: =+C14-D14 -> 31059208.45 | I14: 34149292.13 | K14: =+I14-J14 -> 34149292.13 | O14: 10
B15: Vendita di acqua all’ingrosso | C15: 688130.4197 | E15: 688130.4197 | I15: 688700.0225 | K15: 688700.0225 | O15: 11
B16: Acquedotto (utenti non allacciati alla pubblica fognatura) | C16: 0 | E16: 0 | I16: 0 | K16: 0 | O16: 13
B17: Vendita di acqua non potabile o ad uso industriale | C17: 0 | E17: 0 | I17: 0 | K17: 0 | O17: 14
B18: Vendita di acqua forfetaria | C18: 0 | E18: 0 | I18: 0 | K18: 0 | O18: 15
B19: Fornitura bocche antincendio | C19: 0 | E19: 0 | I19: 0 | K19: 0 | O19: 16
B20: Fognatura e depurazione civile (approvvigionamento autonomo) | C20: 0 | E20: 0 | I20: 0 | K20: 0 | O20: 17
B21: Fognatura e depurazione di acque reflue industriali | C21: 0 | E21: 0 | I21: 0 | K21: 0 | O21: 18
B22: Contributi di allacciamento | C22: 205303.8386 | E22: 205303.8386 | I22: 252602.0817 | K22: 252602.0817 | O22: 19
B23: Prestazioni e servizi accessori (v. comma 1.1 All. A del. 580/2019/R/IDR) | C23: 0 | E23: 0 | I23: 0 | K23: =+I23-J23 -> 0 | O23: 20
B24: Vendita di acqua con autobotte (v. comma 1.1 All. A del. 580/2019/R/IDR) | C24: 0 | E24: 0 | I24: 0 | K24: =+I24-J24 -> 0 | O24: 22
B25: Trattamento percolati | O25: 23
B26: Trattamento bottini | O26: 24
B27: Gestione fognature bianche (v. comma 1.1 All. A del. 580/2019/R/IDR) | E27: 0 | K27: 0 | O27: 25
B28: Pulizia e manutenzione caditoie stradali (v. comma 1.1 All. A del. 580/2019/R/IDR) | E28: 0 | K28: 0 | O28: 26
B29: Installazione/gestione bocche antincendio | F29: 0 | O29: 27
B30: Vendita di servizi a terzi | F30: 0 | O30: 28
B31: Lavori conto terzi | E31: 0 | F31: 1252874.24 | K31: 0 | L31: 1031826.68 | O31: 29
B32: Spurgo pozzi neri | O32: 30
B33: Rilascio autorizzazioni allo scarico | O33: 31
B34: Lottizzazioni | O34: 32
B35: Riuso delle acque di depurazione | O35: 33
B36: Case dell’acqua | O36: 34
B37: Proventi straordinari | C37: 0 | E37: 0 | I37: 52141.84764 | K37: 52141.84764 | O37: 35
B38: Contributi in conto esercizio | C38: 266551.6129 | E38: 266551.6129 | I38: 948656.8021 | K38: 948656.8021 | O38: 36
B39: Rimborsi e indennizzi | C39: 4594.450225 | E39: 4594.450225 | I39: 19467.08676 | K39: 19467.08676 | O39: 37
B40: Ricavi da altre attività (non inclusi nelle suddette voci) | O40: 38
O41: 39
A42: COSTI DELLA PRODUZIONE (Euro) | C42: =C43+C46++C59+C62+C65+SUM(C69:C72) -> 30858749.66 | D42: =D43+D46++D59+D62+D65+SUM(D69:D72) -> 0 | E42: =+C42-D42 -> 30858749.66 | F42: =F43+F46++F59+F62+F65+SUM(F69:F72) -> 1045374.24 | G42: =G43+G46++G59+G62+G65+SUM(G69:G72) -> 0 | I42: =I43+I46++I59+I62+I65+SUM(I69:I72) -> 33323736.35 | J42: =J43+J46++J59+J62+J65+SUM(J69:J72) -> 0 | K42: =+I42-J42 -> 33323736.35 | L42: =L43+L46++L59+L62+L65+SUM(L69:L72) -> 824326.7 | M42: =M43+M46++M59+M62+M65+SUM(M69:M72) -> 0 | O42: 40 | P42: =+OR(C42<(C43+C46+C59+C62+C65+SUM(C69:C72)),D42<(D43+D46+D59+D62+D65+SUM(D69:D72)),F42<(F43+F46+F59+F62+F65+SUM(F69:F72)),G42<(G43+G46+G59+G62+G65+SUM(G69:G72)),I42<(I43+I46+I59+I62+I65+SUM(I69:I72)),J42<(J43+J46+J59+J62+J65+SUM(J69:J72)),L42<(L43+L46+L59+L62+L65+SUM(L69:L72)),M42<(M43+M46+M59+M62+M65+SUM(M69:M72))) -> FALSE
B43: B6) Per materie prime, sussidiarie, di consumo e merci | C43: 488420.5342 | E43: =+C43-D43 -> 488420.5342 | I43: 781426.2518 | K43: =+I43-J43 -> 781426.2518 | O43: 41
B44: di cui per materiali per manutenzioni | C44: 112928.0495 | E44: =+C44-D44 -> 112928.0495 | I44: 364791.662 | K44: =+I44-J44 -> 364791.662 | O44: 44
B45: di cui per reagenti | C45: 102010.4983 | E45: =+C45-D45 -> 102010.4983 | I45: 94748.31777 | K45: =+I45-J45 -> 94748.31777 | O45: 45
B46: B7) Per servizi | C46: =+SUM(C47:C58) -> 21553407.35 | D46: =+SUM(D47:D58) -> 0 | E46: =+C46-D46 -> 21553407.35 | F46: =+SUM(F47:F58) -> 1045374.24 | G46: =+SUM(G47:G58) -> 0 | I46: =+SUM(I47:I58) -> 21436565.82 | J46: =+SUM(J47:J58) -> 0 | K46: =+I46-J46 -> 21436565.82 | L46: =+SUM(L47:L58) -> 824326.7 | M46: =+SUM(M47:M58) -> 0 | O46: 46
B47: energia elettrica da altre imprese del gruppo | C47: 0 | E47: =+C47-D47 -> 0 | I47: 0 | K47: =+I47-J47 -> 0 | O47: 47
B48: energia elettrica da altre imprese | C48: 5846056.191 | E48: 5846056.191 | I48: 8586266.468 | K48: 8586266.468 | O48: 48
B49: ricerca perdite (da terzi) | C49: 0 | E49: 0 | I49: 0 | K49: 0 | O49: 49
B50: ricerca perdite (da altre imprese del gruppo) | C50: 0 | E50: 0 | I50: 0 | K50: 0 | O50: 50
B51: smaltimento rifiuti (da terzi) | C51: 9480.171118 | E51: 9480.171118 | I51: 8919.770451 | K51: 8919.770451 | O51: 51
B52: smaltimento rifiuti (da altre imprese del gruppo) | C52: 0 | E52: 0 | I52: 0 | K52: 0 | O52: 52
B53: trasporto e smaltimento fanghi (da terzi) | C53: 198461.6719 | E53: 198461.6719 | I53: 984109.5195 | K53: 984109.5195 | O53: 53
B54: trasporto e smaltimento fanghi (da altre imprese del gruppo) | C54: 0 | E54: 0 | I54: 0 | K54: 0 | O54: 54
B55: manutenzioni ordinarie (da terzi) | C55: 5218782.507 | E55: 5218782.507 | F55: 1045374.24 | I55: 2084419.118 | K55: 2084419.118 | L55: 824326.7 | O55: 55
B56: manutenzioni ordinarie (da altre imprese del gruppo) | C56: 0 | E56: 0 | I56: 0 | K56: 0 | O56: 56
B57: altri servizi da altre imprese del gruppo | C57: 0 | E57: 0 | I57: 0 | K57: 0 | O57: 57
B58: altri servizi da altre imprese | C58: 10280626.81 | E58: 10280626.81 | I58: 9772850.94 | K58: 9772850.94 | O58: 58
B59: B8) Per godimento beni di terzi | C59: 1179469.603 | E59: 1179469.603 | I59: 1693723.495 | K59: 1693723.495 | O59: 59 | P59: =OR(C59<SUM(C60:C61),D59<SUM(D60:D61),F59<SUM(F60:F61),G59<SUM(G60:G61),I59<SUM(I60:I61),J59<SUM(J60:J61),L59<SUM(L60:L61),M59<SUM(M60:M61)) -> FALSE
B60: di cui per uso impianti di altre imprese del gruppo | E60: 0 | I60: 0 | K60: 0
B61: di cui altre spese verso altre imprese del gruppo | E61: 0 | I61: 0 | K61: 0
B62: B9) Per il personale | C62: 4196345.219 | E62: 4196345.219 | I62: 5069347.429 | K62: 5069347.429 | O62: 74 | P62: =+OR(C62<(C63+C64),D62<(D63+D64),F62<(F63+F64),G62<(G63+G64),I62<(I63+I64),J62<(J63+J64),L62<(L63+L64),M62<(M63+M64)) -> FALSE
B63: di cui per salari e stipendi | C63: 3144384.276 | E63: 3144384.276 | I63: 3876209.396 | K63: 3876209.396 | O63: 75
B64: di cui per trattamento di fine rapporto (inclusa rivalutazione) | C64: 207954.7925 | E64: 207954.7925 | I64: 276067.9419 | K64: 276067.9419 | O64: 76
B65: B10) Ammortamenti e svalutazioni | C65: 2588198.763 | E65: 2588198.763 | I65: 3609614.662 | K65: 3609614.662 | O65: 77 | P65: =OR(C65<SUM(C66:C68),D65<SUM(D66:D68),F65<SUM(F66:F68),G65<SUM(G66:G68),I65<SUM(I66:I68),J65<SUM(J66:J68),L65<SUM(L66:L68),M65<SUM(M66:M68)) -> FALSE
B66: di cui per altre svalutazioni delle immobilizzazioni | C66: 0 | E66: 0 | I66: 0 | K66: 0 | O66: 78
B67: di cui per svalutazione dei crediti compresi nell'attivo circolante e delle disponibilità liquide | C67: 1674736.964 | E67: 1674736.964 | I67: 1707464.611 | K67: 1707464.611 | O67: 79
B68: di cui per Immobilizzazioni immateriali: avviamenti, capitalizzazione concessione, etc. | C68: 132293.2247 | E68: 132293.2247 | I68: 321397.1081 | K68: 321397.1081 | O68: 80
B69: B11) Variazione delle rimanenze di materie prime, sussidiarie, di consumo e merci | C69: -27600.50873 | E69: -27600.50873 | I69: -135527.6134 | K69: -135527.6134 | O69: 81
B70: B12) Accantonamenti per rischi | C70: 0 | E70: 0 | I70: 0 | K70: 0 | O70: 82
B71: B13) Altri accantonamenti | C71: 0 | E71: 0 | I71: 0 | K71: 0 | O71: 83
B72: B14) Oneri diversi di gestione | C72: 880508.6946 | E72: 880508.6946 | I72: 868586.3058 | K72: 868586.3058 | O72: 84
A73: ULTERIORI SPECIFICAZIONI DEI COSTI (Euro) | C73: =SUM(C74:C91)+C92+C96 -> 2165429.46 | D73: =SUM(D74:D91)+D92+D96 -> 0 | E73: 2165429.46 | F73: =SUM(F74:F91)+F92+F96 -> 0 | G73: =SUM(G74:G91)+G92+G96 -> 0 | I73: =SUM(I74:I91)+I92+I96 -> 1743744.076 | J73: =SUM(J74:J91)+J92+J96 -> 0 | K73: 1743744.076 | L73: =SUM(L74:L91)+L92+L96 -> 0 | M73: =SUM(M74:M91)+M92+M96 -> 0 | O73: 85
B74: Accantonamenti e rettifiche in eccesso rispetto all'applicazione di norme tributarie | C74: 0 | E74: 0 | I74: 0 | K74: 0 | O74: 86
B75: Rettifiche di valori di attività finanziarie | C75: 0 | E75: 0 | I75: 0 | K75: 0 | O75: 87
B76: Costi connessi all'erogazione di liberalità | C76: 0 | E76: 0 | I76: 0 | K76: 0 | O76: 88
B77: Costi pubblicitari e di marketing (incluse le imposte connesse) | C77: 30660.53879 | E77: 30660.53879 | I77: 3095.589063 | K77: 3095.589063 | O77: 89
B78: Oneri per sanzioni, penalità, risarcimenti automatici e simili | C78: 340390.4613 | E78: 340390.4613 | I78: 23246.86621 | K78: 23246.86621 | O78: 90
B79: Oneri straordinari | C79: 0 | E79: 0 | I79: 573302.3405 | K79: 573302.3405 | O79: 91
B80: Spese processuali in cui la parte è risultata soccombente | C80: 0 | E80: 0 | I80: 0 | K80: 0 | O80: 92
B81: Contributi associativi | C81: 13495.20176 | E81: 13495.20176 | I81: 11804.71475 | K81: 11804.71475 | O81: 93
B82: Spese di viaggio e di rappresentanza | C82: 2268.528154 | E82: 2268.528154 | I82: 9130.550242 | K82: 9130.550242 | O82: 94
B83: Spese di funzionamento Ente di governo dell'ambito | C83: 455095.7105 | E83: 455095.7105 | I83: 263917.3174 | K83: 263917.3174 | O83: 95
B84: Canoni di affitto immobili non industriali | C84: 183127.8876 | E84: 183127.8876 | I84: 216517.5875 | K84: 216517.5875 | O84: 96
B85: Costi di realizzazione degli allacciamenti idrici e fognari | C85: 258412.961 | E85: 258412.961 | I85: -284192.6184 | K85: -284192.6184 | O85: 97
B86: Gestione fognature bianche (* solo se già incluse nel SII; v. v. comma 1.1 All. A del. 580/2019/R/IDR) | C86: 0 | E86: 0 | I86: 0 | K86: 0 | O86: 98
B87: Pulizia e manutenzione caditoie stradali (* solo se già incluse nel SII; v. v. comma 1.1 All. A del. 580/2019/R/IDR) | C87: 0 | E87: 0 | I87: 0 | K87: 0 | O87: 99
B88: Perdite su crediti per la sola quota parte eccedente l'utilizzo del fondo | C88: 0 | E88: 0 | I88: 0 | K88: 0 | O88: 100
B89: Costi di strutturazione dei progetti di finanziamento (non capitalizzati) | C89: 0 | E89: 0 | I89: 0 | K89: 0 | O89: 101
B90: di cui della voce B7): lavorazioni eseguite da terzi di tipo labour intensive (ad esempio gestione call center) e consulenze | C90: 0 | E90: 0 | I90: 0 | K90: 0 | O90: 102 | P90: =OR(C90>C46,F90>F46,G90>G46,I90>I46,L90>L46,M90>M46) -> FALSE
B91: Trasporto e smaltimento fanghi non già inclusi nella voce B7) | C91: 0 | E91: 0 | I91: 0 | K91: 0 | O91: 103
B92: Uso infrastrutture di terzi | C92: =+SUM(C93:C95) -> 670065.0133 | D92: =+SUM(D93:D95) -> 0 | E92: 670065.0133 | F92: =+SUM(F93:F95) -> 0 | G92: =+SUM(G93:G95) -> 0 | I92: =+SUM(I93:I95) -> 669628.221 | J92: =+SUM(J93:J95) -> 0 | K92: 669628.221 | L92: =+SUM(L93:L95) -> 0 | M92: =+SUM(M93:M95) -> 0 | O92: 104
B93: rimborso mutui di comuni, aziende speciali, società patrimoniali | C93: 670065.0133 | E93: 670065.0133 | I93: 669628.221 | K93: =+I93-J93 -> 669628.221 | O93: 105
B94: altri corrispettivi a comuni, aziende speciali, società patrimoniali | C94: 0 | E94: 0 | I94: 0 | K94: =+I94-J94 -> 0 | O94: 106
B95: corrispettivi a gestori preesistenti, altri proprietari | C95: 0 | E95: 0 | I95: 0 | K95: =+I95-J95 -> 0 | O95: 107
B96: Oneri locali | C96: =+SUM(C97:C102) -> 211913.1576 | D96: =+SUM(D97:D102) -> 0 | E96: 211913.1576 | F96: =+SUM(F97:F102) -> 0 | G96: =+SUM(G97:G102) -> 0 | I96: =+SUM(I97:I102) -> 257293.5074 | J96: =+SUM(J97:J102) -> 0 | K96: =+I96-J96 -> 257293.5074 | L96: =+SUM(L97:L102) -> 0 | M96: =+SUM(M97:M102) -> 0 | O96: 108
B97: canoni di derivazione/sottensione idrica | C97: 102059.9954 | E97: 102059.9954 | I97: 105459.4576 | K97: =+I97-J97 -> 105459.4576 | O97: 109
B98: contributi per consorzi di bonifica | C98: 108361.6603 | E98: 108361.6603 | I98: 98615.95589 | K98: 98615.95589 | O98: 110
B99: contributi a comunità montane | C99: 0 | E99: 0 | I99: 0 | K99: 0 | O99: 111
B100: canoni per restituzione acque | C100: 0 | E100: 0 | I100: 0 | K100: 0 | O100: 112
B101: oneri per la gestione di aree di salvaguardia | C101: 0 | E101: 0 | I101: 0 | K101: 0 | O101: 113
B102: altri oneri locali (TOSAP, COSAP, TARSU) | C102: 1491.501908 | E102: 1491.501908 | I102: 53218.09384 | K102: 53218.09384 | O102: 114
A106: ULTERIORI SPECIFICAZIONI DELLE ALTRE ATTIVITÀ IDRICHE (Euro) | D106: ANNO 2020 | J106: ANNO 2021
A108: Altre attività idriche relative ai seguenti obiettivi di sostenibilità energetica ed ambientale | D108: Ricavi | F108: Costi | J108: Ricavi | L108: Costi
B110: a) efficienza energetica nelle attività e nelle infrastrutture qualora non riconducibile al servizio idrico integrato
B111: b) riduzione dell’utilizzo della plastica mediante la promozione del consumo di acqua potabile anche tramite l’installazione di fontanelle
B112: c) recupero di energia - elettrica e termica - e di materie prime mediante impianti o specifici trattamenti integrati nelle infrastrutture idriche, nonché diffusione di energia da fonti rinnovabili per l’alimentazione degli impianti del servizio idrico integrato
B113: d) riuso dell’acqua trattata (ad esempio ai fini agricoli e industriali) al fine di promuovere una maggiore razionalizzazione della risorsa in particolare in contesti caratterizzati da fenomeni di siccità
O114: 115 | P114: =+OR(SUM(D110:D113)>F4,SUM(J110:J113)>L4,SUM(F110:F113)>F42,SUM(L110:L113)>L42) -> FALSE

Sheet Altri_dati_eco_fin
B1: FONTI DI FINANZIAMENTO
E2: ANNO 2020 | F2: ANNO 2021 | M2: errore nei dati per morosità | N2: errore nei dati in valore assoluto | O2: errore nelle voci "di cui" | P2: Sono presenti errori
C3: Mezzi Propri | D3: Euro | E3: 5556499.41 | F3: 7140316.266 | M3: =+OR(E31*F31=0,E31="",F31="") -> FALSE | N3: =+OR(E17:F19="",E24:F26="",E27:F27="",E31:F32="",E48:F52="",E56:F57="",E68:F72="",E65="",F74="",E73="") -> TRUE | O3: =OR(E6>E5,F6>F5,E12>E11,F12>F11,ABS(E50)>ABS(E49),ABS(F50)>ABS(F49)) -> FALSE | P3: =+OR(M3:O3) -> TRUE
B4: MEZZI DI TERZI
C5: Finanziamenti a medio-lungo termine | D5: Euro | E5: 4900000 | F5: 4800493
C6: di cui verso società controllate e collegate e verso controllanti | D6: Euro | E6: 0 | F6: 0
C7: Tasso medio finanziamenti a medio-lungo termine | D7: % | E7: 0.013 | F7: 0.013
C8: Prestiti obbligazionari | D8: Euro | E8: 0 | F8: 0
C9: Tasso medio Prestiti obbligazionari | D9: % | E9: 0 | F9: 0
C10: Altre passitivtà consolidate | D10: Euro | E10: 0 | F10: 0
C11: Finanziamenti a breve termine | D11: Euro | E11: 2719918 | F11: 2151261
C12: di cui verso società controllate e collegate e verso controllanti | D12: Euro | E12: 0 | F12: 0
C13: Tasso medio Finanziamenti a breve termine | D13: % | E13: 0 | F13: 0
C14: Altre passività correnti | D14: Euro | E14: 0 | F14: 0
C15: Debiti tributari | D15: Euro | E15: 1049085.443 | F15: 863460.029
B16: TFR, FONDO RISCHI E ALTRI
C17: TFR | D17: Euro | E17: 1316460.863 | F17: 1471814.335
C18: Fondo di quiescenza | D18: Euro | E18: 0 | F18: 0
C19: Fondo rischi e oneri | D19: Euro | E19: 0 | F19: 0
C20: Fondo rischi su crediti | D20: Euro | E20: 0 | F20: 0
C21: Fondo svalutazione crediti | D21: Euro | E21: 4081004.29 | F21: 5563904.365
C22: Valore Deposito cauzionale | D22: Euro | E22: 0 | F22: 0
C23: Fondo imposte e tasse (anche differite) | D23: Euro | E23: 0 | F23: 0
C24: Fondo sentenza Corte Costituzionale 335/2008 | D24: Euro | E24: 0 | F24: 0
C25: Fondo per il ripristino di beni di terzi | D25: Euro | E25: 0 | F25: 0
C26: Fondo vincolato al finanziamento della spesa per investimenti comma 9.1 lett. f) MTI-3 | D26: Euro | E26: 0 | F26: 0
C27: Fondo per il finanziamento di tariffe sociali o di solidarietà | D27: Euro | E27: 0 | F27: 0
B29: ALTRI DATI ECONOMICO FINANZIARI
B30: MOROSITA' | E30: ANNO 2020 | F30: ANNO 2021
C31: Unpaid Ratio (UR) a 24 mesi effettivamente rilevato | D31: % | E31: 0.162 | F31: 0.1739
C32: Rimborsi dagli utenti finali relativi alla gestione della morosità | D32: Euro
C33: Percentuale al fatturato per COdil (comma 28.4 MTI-3) | D33: %
B34: IMPOSTE
C35: IRES | D35: Euro | E35: 1508207.885 | F35: 1629074.078
C36: IRAP | D36: Euro | E36: 421014.256 | F36: 411335.0701
C37: Imposte differite | D37: Euro | E37: 0 | F37: 0
C38: Imposte anticipate | D38: Euro | E38: -357428.6045 | F38: -534164.1596
C39: Aliquota media di tassazione, IRAP inclusa | D39: %
B40: ALTRI IMPORTI IN BOLLETTA
C41: Ui1 (importo fatturato componente Ui1) | D41: Euro | E41: 126903.2374 | F41: 113797.0525
C42: Ui2 (importo fatturato componente Ui2) | D42: Euro | E42: 285532.2465 | F42: 256043.3598
C43: Ui3 (importo fatturato componente Ui3) | D43: Euro | E43: 156694.5427 | F43: 141072.045
C44: Ui4 (importo fatturato componente Ui4) | D44: Euro | E44: 125825.078 | F44: 113797.0525
C45: Componente [(1+γOPi,j)*max{0;ΔOpex}] (importo fatturato) | D45: Euro | E45: 0 | F45: 0
C46: Altre componenti perequative | D46: Euro
B47: ALTRI DATI PER CALCOLO RC
C48: Contributo versato ad ARERA | D48: Euro | E48: 6282.51821 | F48: 8687.360066
C49: Costi per variazioni sistemiche o per eventi eccezionali | D49: Euro | E49: 1156837 | F49: 2241191.308
C50: di cui: per eventi eccezionali | D50: Euro | E50: 1156837 | F50: 2241191.308
C51: Costo delle forniture all’ingrosso transfrontaliere | D51: Euro | E51: 0 | F51: 0
C52: Rimborsi effettuati ai sensi sentenza CC 335/2008 ed eccedenti la quota riconosciuta in tariffa | D52: Euro | E52: 0 | F52: 0
C53: RCARC - comma 27-bis.1 MTI-3 | D53: Euro | E53: 0 | F53: 0
C54: Fattore correttivo del Cong - comma 27-bis.2 MTI-3 | D54: Euro | E54: 0 | F54: 0
C55: Σtarifnew,a*vscalnew,a-2 (ai fini del calcolo del ΔTG,TOT) | D55: Euro | E55: 25524981.67
C56: FONInoninv - riportare il dato in eccedenza rispetto alle componenti DCUITFoNI e AMMFoNI - comma 27.1 lett. e) MTI-3 | D56: Euro | E56: 0 | F56: 0
C57: FoNIspesa ai sensi del comma 35.3 MTI-3 | D57: Euro | E57: 0 | F57: 0
E59: ANNO 2020 | F59: ANNO 2021 | G59: ANNO 2022 | H59: ANNO 2023
C60: COVID: Rinvio di quota parte degli oneri ammissibili a riconoscimento tariffario nel 2020 e successivo recupero entro il 2023 | D60: Euro | E60: =+Dati_Anni_precedenti!E74 -> -796976.2216 | F60: =+Dati_Anni_precedenti!F75 -> 0 | G60: 0 | H60: 796976.2216 | J60: ATTENZIONE: la somma dei quattro anni deve essere nulla
B63: ALTRI DATI PER IL CALCOLO DELLA COMPONENTE CAPEX
C64: DCUIT capex (dettagliare nella relazione le motivazioni della collocazione tra i capex) | D64: Euro | G64: 0 | H64: 0
C65: Ammortamento finanziario ammissibile ai sensi del comma 10.7 lettera a) MTI-3 | D65: SI/NO | E65: NO
B66: ALTRI DATI PER IL CALCOLO DELLA COMPONENTE OPEX
C67: OpexQT effettivamente sostenuti dal gestore (al lordo degli ERC) (commi 18.8, 26.1 e 27.1 MTI-3) | D67: Euro | E67: ='PdI-riepilogo'!D39+'PdI-riepilogo'!E39+'PdI-riepilogo'!F39 -> 1409431.6 | F67: ='PdI-riepilogo'!I39+'PdI-riepilogo'!G39+'PdI-riepilogo'!H39 -> 1070286.15
C68: OpexQC effettivamente sostenuti dal gestore (commi 18.9 lett. a) e 27.1 MTI-3) | D68: Euro | E68: 1357433.442 | F68: 1051514.214
C69: OpexQC effettivamente sostenuti dal gestore (commi 18.9 lett. b) e 27.1 MTI-3) | D69: Euro
C70: Opsocial effettivamente sostenuti dal gestore (commi 18.10 e 27.1 MTI-3) | D70: Euro | E70: 26090.4382 | F70: 0
C71: Opsocial effettivamente sostenuti dal gestore (comma 7.3 lett. a) REMSI e 27.1 MTI-3) | D71: Euro
C72: Opmis effettivamente sostenuti dal gestore (commi 18.11 e 27.1 MTI-3) | D72: Euro | E72: 0 | F72: 0
C73: Opcovid effettivamente sostenuti dal gestore (commi 18.12 e 27.1 MTI-3) | D73: Euro | E73: 18843.33 | F73: .
C74: COΔfanghi (rispetto condizionalità comma 22.2 MTI-3) | D74: SI/NO | F74: NO
E76: ANNO 2020 | F76: ANNO 2021 | G76: ANNO 2022 | H76: ANNO 2023
C77: Opexqc - comma 18.9 lettera b) MTI-3 | D77: Euro | G77: 0 | H77: 0
C78: Opsocial - scostamento da destinare all'emergenza COVID (comma 27.1 MTI-3) | D78: Euro
C79: Opsocial per il mantenimento o l'introduzione di eventuali agevolazioni migliorative | D79: Euro | G79: 51190.75 | H79: 51190.75
C80: Opsocial - comma 7.3 lett. a) REMSI | D80: Euro | G80: 38379.59 | H80: 38379.59
C81: Opmis - comma 18.11 MTI-3 | D81: Euro | G81: 0 | H81: 41642
C82: Opmis - comma 18.11 MTI-3 - incentivi all'utenza | D82: Euro
C83: OpCOVID - comma 18.12 MTI-3 | D83: Euro
C84: OpexpEE - comma 20.2 MTI-3 | D84: Euro | G84: 586360.6052 | H84: 635776.531
B86: ALTRI DATI RELATIVI ALLA GESTIONE
B87: CONSISTENZA DEL PERSONALE | E87: ANNO 2020 | F87: ANNO 2021
C88: Dirigenti | D88: N. | E88: 2 | F88: 2
C89: Quadri | D89: N. | E89: 4 | F89: 5
C90: Impiegati | D90: N. | E90: 32 | F90: 39
C91: Operai | D91: N. | E91: 35 | F91: 44
C92: Collaboratori | D92: N.
B93: COSTI DEL PERSONALE | E93: ANNO 2020 | F93: ANNO 2021
C94: Dirigenti | D94: Euro | E94: 354058 | F94: 388516
C95: Quadri | D95: Euro | E95: 345799 | F95: 509563
C96: Impiegati | D96: Euro | E96: 1346600 | F96: 1820300
C97: Operai | D97: Euro | E97: 1427512 | F97: 1766267
C98: Collaboratori | D98: Euro
B99: SPESA IN RICERCA E SVILUPPO | E99: ANNO 2020 | F99: ANNO 2021
C100: Totale spesa in ricerca e sviluppo | D100: Euro

Sheet Finanziamenti
B1: Finanziamenti (capitale di terzi)
A7: n_riga | B7: Importo finanziato (€) | C7: Soggetto finanziatore | D7: Data di sottoscrizione del finanziamento (gg/mm/aaaa) | E7: Data di scadenza del finanziamento (gg/mm/aaaa) | F7: Garanzie richieste | G7: Quota capitale 2020 (€) | H7: Tasso medio d'interesse 2020 (€) | I7: Quota interessi 2020 (€) | J7: Debito residuo (€) 2020 | K7: Quota capitale 2021 (€) | L7: Tasso medio d'interesse 2021 (€) | M7: Quota interessi 2021 (€) | N7: Debito residuo (€) 2021
A8: =+ROW()-7 -> 1 | B8: 4900000 | C8: Banche | D8: 2020-11-30 | E8: 2025-11-30 | F8: nessuna | G8: 1e-11 | H8: 0.013 | I8: 5395.36 | J8: 4900000 | K8: 99507.44 | L8: 0.013 | M8: 63700.04 | N8: 4800493

Sheet Soggetti_proprietari
B1: ELENCO SOGGETTI PROPRIETARI
C3: Elenco proprietari infrastrutture per calcolo Mutui/Altri corrispettivi ed eventuale Stratificazione di terzi | O3: Sono presenti Errori
O4: =+OR(O5:Q5) -> FALSE
O5: =OR(INDEX(Elenco_Proprietari,0,15)=TRUE) -> FALSE | P5: =OR(INDEX(Elenco_Proprietari,0,16)) -> FALSE | Q5: =OR(INDEX(Elenco_Proprietari,0,17)) -> FALSE
A7: N_riga | B7: Key_Prop | C7: Soggetto Proprietario | D7: Tipologia di proprietario | E7: P. IVA Proprietario | F7: Codice Istat Comune proprietario | G7: Proprietario ai fini dei corrispettivi AC/MT | H7: Proprietario non più presente ai fini della RAB di terzi | I7: Fusione | J7: Numero Cespiti | K7: Key_Prop_bis | L7: New_Key_prop | M7: Proprietario risultante dalla fusione | N7: per costruzione | O7: Errore Proprietari duplicati | P7: Errore PIVA o CodiceISTAT | Q7: Errore tipologia
A8: =+ROW(A8)-7 -> 1 | B8: =idato & "_" & idgestore & "-" & IF($D8="Comune",$F8,"") & "-" &IF($D8="Comune","",$E8) -> 1203_25320-057001- | C8: Comune di Accumoli | D8: Comune | E8: 00113430573 | F8: 057001 | G8: SI | H8: SI | K8: =B8 -> 1203_25320-057001- | L8: =IF(I8="SI",VLOOKUP(M8,C:K,9,0),K8) -> 1203_25320-057001- | M8: Nuovo comune | N8: =+IF(H8="SI",L8,0) -> 1203_25320-057001- | O8: =IF(COUNTIF(B:B,B8)>1,IF(COUNTA(C8:H8)=0,FALSE,TRUE),FALSE) -> FALSE | P8: =IF(COUNTA(E8:F8)<1,IF(COUNTA(C8:H8)=0,FALSE,TRUE),FALSE) -> FALSE | Q8: =IF(COUNTA(D8)<1,IF(COUNTA(C8:H8)=0,FALSE,TRUE),FALSE) -> FALSE
A9: =+ROW(A9)-7 -> 2 | B9: 1203_25320-057002- | C9: Comune di Amatrice | D9: Comune | E9: 00110480571 | F9: 057002 | G9: SI | H9: NO | K9: =B9 -> 1203_25320-057002- | L9: =IF(I9="SI",VLOOKUP(M9,C:K,9,0),K9) -> 1203_25320-057002- | M9: Nuovo comune | N9: =+IF(H9="SI",L9,0) -> 0 | O9: =IF(COUNTIF(B:B,B9)>1,IF(COUNTA(C9:H9)=0,FALSE,TRUE),FALSE) -> FALSE | P9: =IF(COUNTA(E9:F9)<1,IF(COUNTA(C9:H9)=0,FALSE,TRUE),FALSE) -> FALSE | Q9: =IF(COUNTA(D9)<1,IF(COUNTA(C9:H9)=0,FALSE,TRUE),FALSE) -> FALSE
A10: 3 | B10: 1203_25320-057003- | C10: Comune di Antrodoco | D10: Comune | E10: 00103110573 | F10: 057003 | G10: SI | H10: NO | K10: 1203_25320-057003- | L10: 1203_25320-057003- | M10: Nuovo comune | N10: 0 | O10: FALSE | P10: FALSE | Q10: FALSE
A11: 4 | B11: 1203_25320-057004- | C11: Comune di Ascrea | D11: Comune | E11: 00113650576 | F11: 057004 | G11: SI | H11: NO | K11: 1203_25320-057004- | L11: 1203_25320-057004- | M11: Nuovo comune | N11: 0 | O11: FALSE | P11: FALSE | Q11: FALSE
A12: 5 | B12: 1203_25320-057005- | C12: Comune di Belmonte in Sabina | D12: Comune | E12: 00111240578 | F12: 057005 | G12: SI | H12: SI | K12: 1203_25320-057005- | L12: 1203_25320-057005- | M12: Nuovo comune | N12: 1203_25320-057005- | O12: FALSE | P12: FALSE | Q12: FALSE
A13: 6 | B13: 1203_25320-057007- | C13: Comune di Borgorose | D13: Comune | E13: 00122520570 | F13: 057007 | G13: SI | H13: NO | K13: 1203_25320-057007- | L13: 1203_25320-057007- | M13: Nuovo comune | N13: 0 | O13: FALSE | P13: FALSE | Q13: FALSE
A14: 7 | B14: 1203_25320-057008- | C14: Comune di Borgovelino | D14: Comune | E14: 00109190579 | F14: 057008 | G14: SI | H14: NO | K14: 1203_25320-057008- | L14: 1203_25320-057008- | M14: Nuovo comune | N14: 0 | O14: FALSE | P14: FALSE | Q14: FALSE
A15: 8 | B15: 1203_25320-057009- | C15: Comune di Cantalice | D15: Comune | E15: 00093840577 | F15: 057009 | G15: SI | H15: NO | K15: 1203_25320-057009- | L15: 1203_25320-057009- | M15: Nuovo comune | N15: 0 | O15: FALSE | P15: FALSE | Q15: FALSE
A16: 9 | B16: 1203_25320-057011- | C16: Comune di Casaprota | D16: Comune | E16: 00123140576 | F16: 057011 | G16: SI | H16: SI | K16: 1203_25320-057011- | L16: 1203_25320-057011- | M16: Nuovo comune | N16: 1203_25320-057011- | O16: FALSE | P16: FALSE | Q16: FALSE
A17: 10 | B17: 1203_25320-057013- | C17: Comune di Castel di Tora | D17: Comune | E17: 00113520571 | F17: 057013 | G17: SI | H17: NO | K17: 1203_25320-057013- | L17: 1203_25320-057013- | M17: Nuovo comune | N17: 0 | O17: FALSE | P17: FALSE | Q17: FALSE
A18: 11 | B18: 1203_25320-057015- | C18: Comune di Castel Sant'Angelo | D18: Comune | E18: 00109350579 | F18: 057015 | G18: SI | H18: NO | K18: 1203_25320-057015- | L18: 1203_25320-057015- | M18: Nuovo comune | N18: 0 | O18: FALSE | P18: FALSE | Q18: FALSE
A19: 12 | B19: 1203_25320-057014- | C19: Comune di Castelnuovo di Farfa | D19: Comune | E19: 00122190572 | F19: 057014 | G19: SI | H19: NO | K19: 1203_25320-057014- | L19: 1203_25320-057014- | M19: Nuovo comune | N19: 0 | O19: FALSE | P19: FALSE | Q19: FALSE
A20: 13 | B20: 1203_25320-057016- | C20: Comune di Cittaducale | D20: Comune | E20: 00113040570 | F20: 057016 | G20: SI | H20: NO | K20: 1203_25320-057016- | L20: 1203_25320-057016- | M20: Nuovo comune | N20: 0 | O20: FALSE | P20: FALSE | Q20: FALSE
A21: 14 | B21: 1203_25320-057018- | C21: Comune di Collalto Sabino | D21: Comune | E21: 00113140578 | F21: 057018 | G21: SI | H21: SI | K21: 1203_25320-057018- | L21: 1203_25320-057018- | M21: Nuovo comune | N21: 1203_25320-057018- | O21: FALSE | P21: FALSE | Q21: FALSE
A22: 15 | B22: 1203_25320-057020- | C22: Comune di Collegiove | D22: Comune | E22: 00113130579 | F22: 057020 | G22: SI | H22: SI | K22: 1203_25320-057020- | L22: 1203_25320-057020- | M22: Nuovo comune | N22: 1203_25320-057020- | O22: FALSE | P22: FALSE | Q22: FALSE
A23: 16 | B23: 1203_25320-057021- | C23: Comune di Collevecchio | D23: Comune | E23: 00109440578 | F23: 057021 | G23: SI | H23: SI | K23: 1203_25320-057021- | L23: 1203_25320-057021- | M23: Nuovo comune | N23: 1203_25320-057021- | O23: FALSE | P23: FALSE | Q23: FALSE
A24: 17 | B24: 1203_25320-057022- | C24: Comune di Colli sul Velino | D24: Comune | E24: 00108930579 | F24: 057022 | G24: SI | H24: SI | K24: 1203_25320-057022- | L24: 1203_25320-057022- | M24: Nuovo comune | N24: 1203_25320-057022- | O24: FALSE | P24: FALSE | Q24: FALSE
A25: 18 | B25: 1203_25320-057025- | C25: Comune di Contigliano | D25: Comune | E25: 00109090571 | F25: 057025 | G25: SI | H25: SI | K25: 1203_25320-057025- | L25: 1203_25320-057025- | M25: Nuovo comune | N25: 1203_25320-057025- | O25: FALSE | P25: FALSE | Q25: FALSE
A26: 19 | B26: 1203_25320-057027- | C26: Comune di Fara in Sabina | D26: Comune | E26: 00102420577 | F26: 057027 | G26: SI | H26: SI | K26: 1203_25320-057027- | L26: 1203_25320-057027- | M26: Nuovo comune | N26: 1203_25320-057027- | O26: FALSE | P26: FALSE | Q26: FALSE
A27: 20 | B27: 1203_25320-057028- | C27: Comune di Fiamignano | D27: Comune | E27: 00121280572 | F27: 057028 | G27: SI | H27: SI | K27: 1203_25320-057028- | L27: 1203_25320-057028- | M27: Nuovo comune | N27: 1203_25320-057028- | O27: FALSE | P27: FALSE | Q27: FALSE
A28: 21 | B28: 1203_25320-057029- | C28: Comune di Forano | D28: Comune | E28: 00109320572 | F28: 057029 | G28: SI | H28: SI | K28: 1203_25320-057029- | L28: 1203_25320-057029- | M28: Nuovo comune | N28: 1203_25320-057029- | O28: FALSE | P28: FALSE | Q28: FALSE
A29: 22 | B29: 1203_25320-057030- | C29: Comune di Frasso Sabino | D29: Comune | E29: 00122400575 | F29: 057030 | G29: SI | H29: SI | K29: 1203_25320-057030- | L29: 1203_25320-057030- | M29: Nuovo comune | N29: 1203_25320-057030- | O29: FALSE | P29: FALSE | Q29: FALSE
A30: 23 | B30: 1203_25320-057031- | C30: Comune di Greccio | D30: Comune | E30: 00109830570 | F30: 057031 | G30: SI | H30: SI | K30: 1203_25320-057031- | L30: 1203_25320-057031- | M30: Nuovo comune | N30: 1203_25320-057031- | O30: FALSE | P30: FALSE | Q30: FALSE
A31: 24 | B31: 1203_25320-057032- | C31: Comune di Labro | D31: Comune | E31: 00108300575 | F31: 057032 | G31: SI | H31: SI | K31: 1203_25320-057032- | L31: 1203_25320-057032- | M31: Nuovo comune | N31: 1203_25320-057032- | O31: FALSE | P31: FALSE | Q31: FALSE
A32: 25 | B32: 1203_25320-057033- | C32: Comune di Leonessa | D32: Comune | E32: 00111040572 | F32: 057033 | G32: SI | H32: SI | K32: 1203_25320-057033- | L32: 1203_25320-057033- | M32: Nuovo comune | N32: 1203_25320-057033- | O32: FALSE | P32: FALSE | Q32: FALSE
A33: 26 | B33: 1203_25320-057035- | C33: Comune di Magliano Sabina | D33: Comune | E33: 00108350570 | F33: 057035 | G33: SI | H33: SI | K33: 1203_25320-057035- | L33: 1203_25320-057035- | M33: Nuovo comune | N33: 1203_25320-057035- | O33: FALSE | P33: FALSE | Q33: FALSE
A34: 27 | B34: 1203_25320-057038- | C34: Comune di Mompeo | D34: Comune | E34: 00121720577 | F34: 057038 | G34: SI | H34: SI | K34: 1203_25320-057038- | L34: 1203_25320-057038- | M34: Nuovo comune | N34: 1203_25320-057038- | O34: FALSE | P34: FALSE | Q34: FALSE
A35: 28 | B35: 1203_25320-058061- | C35: Comune di Monteflavio | D35: Comune | E35: 86001870582 | F35: 058061 | G35: SI | H35: SI | K35: 1203_25320-058061- | L35: 1203_25320-058061- | M35: Nuovo comune | N35: 1203_25320-058061- | O35: FALSE | P35: FALSE | Q35: FALSE
A36: 29 | B36: 1203_25320-057041- | C36: Comune di Monteleone Sabino | D36: Comune | E36: 00113390579 | F36: 057041 | G36: SI | H36: SI | K36: 1203_25320-057041- | L36: 1203_25320-057041- | M36: Nuovo comune | N36: 1203_25320-057041- | O36: FALSE | P36: FALSE | Q36: FALSE
A37: 30 | B37: 1203_25320-058063- | C37: Comune di Montelibretti | D37: Comune | E37: 02457650584 | F37: 058063 | G37: SI | H37: SI | K37: 1203_25320-058063- | L37: 1203_25320-058063- | M37: Nuovo comune | N37: 1203_25320-058063- | O37: FALSE | P37: FALSE | Q37: FALSE
A38: 31 | B38: 1203_25320-057042- | C38: Comune di Montenero Sabino | D38: Comune | E38: 00121390579 | F38: 057042 | G38: SI | H38: SI | K38: 1203_25320-057042- | L38: 1203_25320-057042- | M38: Nuovo comune | N38: 1203_25320-057042- | O38: FALSE | P38: FALSE | Q38: FALSE
A39: 32 | B39: 1203_25320-057044- | C39: Comune di Montopoli In Sabina | D39: Comune | E39: 00094140571 | F39: 057044 | G39: SI | H39: SI | K39: 1203_25320-057044- | L39: 1203_25320-057044- | M39: Nuovo comune | N39: 1203_25320-057044- | O39: FALSE | P39: FALSE | Q39: FALSE
A40: 33 | B40: =idato & "_" & idgestore & "-" & IF($D40="Comune",$F40,"") & "-" &IF($D40="Comune","",$E40) -> 1203_25320-058066- | C40: Comune di Montorio Romano | D40: Comune | E40: 02146191008 | F40: 058066 | G40: SI | H40: SI | K40: 1203_25320-058066- | L40: 1203_25320-058066- | M40: Nuovo comune | N40: 1203_25320-058066- | O40: FALSE | P40: FALSE | Q40: FALSE
A41: 34 | B41: 1203_25320-058067- | C41: Comune di Moricone | D41: Comune | E41: 86000380583 | F41: 058067 | G41: SI | H41: SI | K41: 1203_25320-058067- | L41: 1203_25320-058067- | M41: Nuovo comune | N41: 1203_25320-058067- | O41: FALSE | P41: FALSE | Q41: FALSE
A42: 35 | B42: 1203_25320-057045- | C42: Comune di Morro Reatino | D42: Comune | E42: 00108310574 | F42: 057045 | G42: SI | H42: SI | K42: 1203_25320-057045- | L42: 1203_25320-057045- | M42: Nuovo comune | N42: 1203_25320-057045- | O42: FALSE | P42: FALSE | Q42: FALSE
A43: 36 | B43: 1203_25320-058071- | C43: Comune di Nerola | D43: Comune | E43: 02457750582 | F43: 058071 | G43: SI | H43: SI | K43: 1203_25320-058071- | L43: 1203_25320-058071- | M43: Nuovo comune | N43: 1203_25320-058071- | O43: FALSE | P43: FALSE | Q43: FALSE
A44: 37 | B44: 1203_25320-057046- | C44: Comune di Nespolo | D44: Comune | E44: 00113150577 | F44: 057046 | G44: SI | H44: SI | K44: 1203_25320-057046- | L44: 1203_25320-057046- | M44: Nuovo comune | N44: 1203_25320-057046- | O44: FALSE | P44: FALSE | Q44: FALSE
A45: 38 | B45: 1203_25320-057048- | C45: Comune di Paganico Sabino | D45: Comune | E45: 00113470579 | F45: 057048 | G45: SI | H45: SI | K45: 1203_25320-057048- | L45: 1203_25320-057048- | M45: Nuovo comune | N45: 1203_25320-057048- | O45: FALSE | P45: FALSE | Q45: FALSE
A46: 39 | B46: 1203_25320-058075- | C46: Comune di Palombara Sabina | D46: Comune | E46: 00998690580 | F46: 058075 | G46: SI | H46: SI | K46: 1203_25320-058075- | L46: 1203_25320-058075- | M46: Nuovo comune | N46: 1203_25320-058075- | O46: FALSE | P46: FALSE | Q46: FALSE
A47: 40 | B47: 1203_25320-057049- | C47: Comune di Pescorocchiano | D47: Comune | E47: 00122710577 | F47: 057049 | G47: SI | H47: SI | K47: 1203_25320-057049- | L47: 1203_25320-057049- | M47: Nuovo comune | N47: 1203_25320-057049- | O47: FALSE | P47: FALSE | Q47: FALSE
A48: 41 | B48: 1203_25320-057050- | C48: Comune di Petrella Salto | D48: Comune | E48: 00097310577 | F48: 057050 | G48: SI | H48: SI | K48: 1203_25320-057050- | L48: 1203_25320-057050- | M48: Nuovo comune | N48: 1203_25320-057050- | O48: FALSE | P48: FALSE | Q48: FALSE
A49: 42 | B49: 1203_25320-057053- | C49: Comune di Poggio Mirteto | D49: Comune | E49: 00094100575 | F49: 057053 | G49: SI | H49: SI | K49: 1203_25320-057053- | L49: 1203_25320-057053- | M49: Nuovo comune | N49: 1203_25320-057053- | O49: FALSE | P49: FALSE | Q49: FALSE
A50: 43 | B50: 1203_25320-057055- | C50: Comune di Poggio Nativo | D50: Comune | E50: 00122390578 | F50: 057055 | G50: SI | H50: SI | K50: 1203_25320-057055- | L50: 1203_25320-057055- | M50: Nuovo comune | N50: 1203_25320-057055- | O50: FALSE | P50: FALSE | Q50: FALSE
A51: 44 | B51: 1203_25320-057059- | C51: Comune di Rieti | D51: Comune | E51: 00100700574 | F51: 057059 | G51: SI | H51: SI | K51: 1203_25320-057059- | L51: 1203_25320-057059- | M51: Nuovo comune | N51: 1203_25320-057059- | O51: FALSE | P51: FALSE | Q51: FALSE
A52: 45 | B52: 1203_25320-057060- | C52: Comune di Rivodutri | D52: Comune | E52: 00108820572 | F52: 057060 | G52: SI | H52: SI | K52: 1203_25320-057060- | L52: 1203_25320-057060- | M52: Nuovo comune | N52: 1203_25320-057060- | O52: FALSE | P52: FALSE | Q52: FALSE
A53: 46 | B53: 1203_25320-057062- | C53: Comune di Rocca Sinibalda | D53: Comune | E53: 00082300575 | F53: 057062 | G53: SI | H53: SI | K53: 1203_25320-057062- | L53: 1203_25320-057062- | M53: Nuovo comune | N53: 1203_25320-057062- | O53: FALSE | P53: FALSE | Q53: FALSE
A54: 47 | B54: 1203_25320-057063- | C54: Comune di Salisano | D54: Comune | E54: 00142660570 | F54: 057063 | G54: SI | H54: SI | K54: 1203_25320-057063- | L54: 1203_25320-057063- | M54: Nuovo comune | N54: 1203_25320-057063- | O54: FALSE | P54: FALSE | Q54: FALSE
A55: 48 | B55: 1203_25320-057064- | C55: Comune di Scandriglia | D55: Comune | E55: 00122200579 | F55: 057064 | G55: SI | H55: SI | K55: 1203_25320-057064- | L55: 1203_25320-057064- | M55: Nuovo comune | N55: 1203_25320-057064- | O55: FALSE | P55: FALSE | Q55: FALSE
A56: 49 | B56: 1203_25320-057068- | C56: Comune di Toffia | D56: Comune | E56: 00109970574 | F56: 057068 | G56: SI | H56: SI | K56: 1203_25320-057068- | L56: 1203_25320-057068- | M56: Nuovo comune | N56: 1203_25320-057068- | O56: FALSE | P56: FALSE | Q56: FALSE
A57: 50 | B57: 1203_25320-057069- | C57: Comune di Torricella | D57: Comune | E57: 00082310574 | F57: 057069 | G57: SI | H57: SI | K57: 1203_25320-057069- | L57: 1203_25320-057069- | M57: Nuovo comune | N57: 1203_25320-057069- | O57: FALSE | P57: FALSE | Q57: FALSE
A58: 51 | B58: 1203_25320-058109- | C58: Comune di Vallinfreda | D58: Comune | E58: 86001150589 | F58: 058109 | G58: SI | H58: SI | K58: 1203_25320-058109- | L58: 1203_25320-058109- | M58: Nuovo comune | N58: 1203_25320-058109- | O58: FALSE | P58: FALSE | Q58: FALSE
A59: 52 | B59: 1203_25320-- | C59: Comuni non noti | D59: Comune | G59: SI | H59: SI | K59: 1203_25320-- | L59: 1203_25320-- | M59: Nuovo comune | N59: 1203_25320-- | O59: FALSE | P59: FALSE | Q59: FALSE

Sheet Corrispettivi_proprietari
B1: COSTI ASSOCIATI AI SOGGETTI PROPRIETARI
C3: Imputare per ciascun soggetto proprietario il valore dei Mutui MT e altri corrispettivi AC
U4: Sono presenti errori
U5: =OR(INDEX(Corrispettivi_Proprietari,0,COLUMN($U$8)-COLUMN($A$8)+1)) -> FALSE
G6: Rimborso della rata dei mutui (MT) | J6: Altri corrispettivi (AC) | O6: MT - controllo Anno deliberazione e Tipologia Proprietario | R6: AC - controllo Anno deliberazione e Tipologia Proprietario
A7: N_riga | B7: Key_Prop | C7: Soggetto Proprietario | D7: Tipologia di proprietario | E7: P. IVA Proprietario | F7: Codice Istat Comune proprietario | G7: Anno di deliberazione | H7: previsto 2022 (€) | I7: previsto 2023 (€) | J7: Anno di deliberazione | K7: Canoni connessi alla stipula di ulteriori contratti di finanziamento (tipo contratti di locazione finanziaria di opere di pubblica utilità) | L7: previsto 2022 (€) | M7: previsto 2023 (€) | O7: MT 2022 | P7: MT 2023 | R7: AC 2022 | S7: AC 2023 | U7: Errore duplicazione soggetto
A8: =+ROW(A8)-7 -> 1 | B8: =IFERROR(IF(VLOOKUP(C8,Soggetti_proprietari!C:K,9,0)=0,"",VLOOKUP(C8,Soggetti_proprietari!C:K,9,0)),"") -> 1203_25320-057001- | C8: Comune di Accumoli | D8: =IFERROR(IF(VLOOKUP(C8,Soggetti_proprietari!C:K,2,0)=0,"",VLOOKUP(C8,Soggetti_proprietari!C:K,2,0)),"") -> Comune | E8: =IFERROR(IF(VLOOKUP(C8,Soggetti_proprietari!C:K,3,0)=0,"",VLOOKUP(C8,Soggetti_proprietari!C:K,3,0)),"") -> 00113430573 | F8: =IFERROR(IF(VLOOKUP(C8,Soggetti_proprietari!C:K,4,0)=0,"",VLOOKUP(C8,Soggetti_proprietari!C:K,4,0)),"") -> 057001 | G8: 2019 | H8: 4751.6 | I8: 4751.6 | O8: =+IF(AND($G8<=2019,$G8<>"",$D8<>"Altra società privata",$B8<>""),H8,0) -> 4751.6 | P8: =+IF(AND($G8<=2019,$G8<>"",$D8<>"Altra società privata",$B8<>""),I8,0) -> 4751.6 | R8: =+IF(AND($J8<=2006,$J8<>"",$D8<>"Altra società privata",$B8<>""),L8,IF($K8="SI",L8,0)) -> 0 | S8: =+IF(AND($J8<=2006,$J8<>"",$D8<>"Altra società privata",$B8<>""),M8,IF($K8="SI",M8,0)) -> 0 | U8: =IF(COUNTIF(B:B,B8)>1,IF(AND(G8="",H8="",I8="",J8="",L8="",M8="",C8=""),FALSE,TRUE),FALSE) -> FALSE
A9: =+ROW(A9)-7 -> 2 | B9: =IFERROR(IF(VLOOKUP(C9,Soggetti_proprietari!C:K,9,0)=0,"",VLOOKUP(C9,Soggetti_proprietari!C:K,9,0)),"") -> 1203_25320-057002- | C9: Comune di Amatrice | D9: =IFERROR(IF(VLOOKUP(C9,Soggetti_proprietari!C:K,2,0)=0,"",VLOOKUP(C9,Soggetti_proprietari!C:K,2,0)),"") -> Comune | E9: =IFERROR(IF(VLOOKUP(C9,Soggetti_proprietari!C:K,3,0)=0,"",VLOOKUP(C9,Soggetti_proprietari!C:K,3,0)),"") -> 00110480571 | F9: =IFERROR(IF(VLOOKUP(C9,Soggetti_proprietari!C:K,4,0)=0,"",VLOOKUP(C9,Soggetti_proprietari!C:K,4,0)),"") -> 057002 | G9: 2019 | H9: 0 | I9: 0 | O9: =+IF(AND($G9<=2019,$G9<>"",$D9<>"Altra società privata",$B9<>""),H9,0) -> 0 | P9: =+IF(AND($G9<=2019,$G9<>"",$D9<>"Altra società privata",$B9<>""),I9,0) -> 0 | R9: =+IF(AND($J9<=2006,$J9<>"",$D9<>"Altra società privata",$B9<>""),L9,IF($K9="SI",L9,0)) -> 0 | S9: =+IF(AND($J9<=2006,$J9<>"",$D9<>"Altra società privata",$B9<>""),M9,IF($K9="SI",M9,0)) -> 0 | U9: =IF(COUNTIF(B:B,B9)>1,IF(AND(G9="",H9="",I9="",J9="",L9="",M9="",C9=""),FALSE,TRUE),FALSE) -> FALSE
A10: 3 | B10: =IFERROR(IF(VLOOKUP(C10,Soggetti_proprietari!C:K,9,0)=0,"",VLOOKUP(C10,Soggetti_proprietari!C:K,9,0)),"") -> 1203_25320-057003- | C10: Comune di Antrodoco | D10: =IFERROR(IF(VLOOKUP(C10,Soggetti_proprietari!C:K,2,0)=0,"",VLOOKUP(C10,Soggetti_proprietari!C:K,2,0)),"") -> Comune | E10: =IFERROR(IF(VLOOKUP(C10,Soggetti_proprietari!C:K,3,0)=0,"",VLOOKUP(C10,Soggetti_proprietari!C:K,3,0)),"") -> 00103110573 | F10: =IFERROR(IF(VLOOKUP(C10,Soggetti_proprietari!C:K,4,0)=0,"",VLOOKUP(C10,Soggetti_proprietari!C:K,4,0)),"") -> 057003 | G10: 2019 | H10: 0 | I10: 0 | O10: 0 | P10: 0 | R10: 0 | S10: 0 | U10: FALSE
A11: 4 | B11: =IFERROR(IF(VLOOKUP(C11,Soggetti_proprietari!C:K,9,0)=0,"",VLOOKUP(C11,Soggetti_proprietari!C:K,9,0)),"") -> 1203_25320-057004- | C11: Comune di Ascrea | D11: =IFERROR(IF(VLOOKUP(C11,Soggetti_proprietari!C:K,2,0)=0,"",VLOOKUP(C11,Soggetti_proprietari!C:K,2,0)),"") -> Comune | E11: =IFERROR(IF(VLOOKUP(C11,Soggetti_proprietari!C:K,3,0)=0,"",VLOOKUP(C11,Soggetti_proprietari!C:K,3,0)),"") -> 00113650576 | F11: =IFERROR(IF(VLOOKUP(C11,Soggetti_proprietari!C:K,4,0)=0,"",VLOOKUP(C11,Soggetti_proprietari!C:K,4,0)),"") -> 057004 | G11: 2019 | H11: 0 | I11: 0 | O11: 0 | P11: 0 | R11: 0 | S11: 0 | U11: FALSE
A12: 5 | B12: =IFERROR(IF(VLOOKUP(C12,Soggetti_proprietari!C:K,9,0)=0,"",VLOOKUP(C12,Soggetti_proprietari!C:K,9,0)),"") -> 1203_25320-057005- | C12: Comune di Belmonte in Sabina | D12: =IFERROR(IF(VLOOKUP(C12,Soggetti_proprietari!C:K,2,0)=0,"",VLOOKUP(C12,Soggetti_proprietari!C:K,2,0)),"") -> Comune | E12: =IFERROR(IF(VLOOKUP(C12,Soggetti_proprietari!C:K,3,0)=0,"",VLOOKUP(C12,Soggetti_proprietari!C:K,3,0)),"") -> 00111240578 | F12: =IFERROR(IF(VLOOKUP(C12,Soggetti_proprietari!C:K,4,0)=0,"",VLOOKUP(C12,Soggetti_proprietari!C:K,4,0)),"") -> 057005 | G12: 2019 | H12: 0 | I12: 0 | O12: 0 | P12: 0 | R12: 0 | S12: 0 | U12: FALSE
A13: 6 | B13: =IFERROR(IF(VLOOKUP(C13,Soggetti_proprietari!C:K,9,0)=0,"",VLOOKUP(C13,Soggetti_proprietari!C:K,9,0)),"") -> 1203_25320-057007- | C13: Comune di Borgorose | D13: =IFERROR(IF(VLOOKUP(C13,Soggetti_proprietari!C:K,2,0)=0,"",VLOOKUP(C13,Soggetti_proprietari!C:K,2,0)),"") -> Comune | E13: =IFERROR(IF(VLOOKUP(C13,Soggetti_proprietari!C:K,3,0)=0,"",VLOOKUP(C13,Soggetti_proprietari!C:K,3,0)),"") -> 00122520570 | F13: =IFERROR(IF(VLOOKUP(C13,Soggetti_proprietari!C:K,4,0)=0,"",VLOOKUP(C13,Soggetti_proprietari!C:K,4,0)),"") -> 057007 | G13: 2019 | H13: 15452.28 | I13: 15452.28 | O13: 15452.28 | P13: 15452.28 | R13: 0 | S13: 0 | U13: FALSE
A14: 7 | B14: =IFERROR(IF(VLOOKUP(C14,Soggetti_proprietari!C:K,9,0)=0,"",VLOOKUP(C14,Soggetti_proprietari!C:K,9,0)),"") -> 1203_25320-057008- | C14: Comune di Borgovelino | D14: =IFERROR(IF(VLOOKUP(C14,Soggetti_proprietari!C:K,2,0)=0,"",VLOOKUP(C14,Soggetti_proprietari!C:K,2,0)),"") -> Comune | E14: =IFERROR(IF(VLOOKUP(C14,Soggetti_proprietari!C:K,3,0)=0,"",VLOOKUP(C14,Soggetti_proprietari!C:K,3,0)),"") -> 00109190579 | F14: =IFERROR(IF(VLOOKUP(C14,Soggetti_proprietari!C:K,4,0)=0,"",VLOOKUP(C14,Soggetti_proprietari!C:K,4,0)),"") -> 057008 | G14: 2019 | H14: 0 | I14: 0 | O14: 0 | P14: 0 | R14: 0 | S14: 0 | U14: FALSE
A15: 8 | B15: =IFERROR(IF(VLOOKUP(C15,Soggetti_proprietari!C:K,9,0)=0,"",VLOOKUP(C15,Soggetti_proprietari!C:K,9,0)),"") -> 1203_25320-057009- | C15: Comune di Cantalice | D15: =IFERROR(IF(VLOOKUP(C15,Soggetti_proprietari!C:K,2,0)=0,"",VLOOKUP(C15,Soggetti_proprietari!C:K,2,0)),"") -> Comune | E15: =IFERROR(IF(VLOOKUP(C15,Soggetti_proprietari!C:K,3,0)=0,"",VLOOKUP(C15,Soggetti_proprietari!C:K,3,0)),"") -> 00093840577 | F15: =IFERROR(IF(VLOOKUP(C15,Soggetti_proprietari!C:K,4,0)=0,"",VLOOKUP(C15,Soggetti_proprietari!C:K,4,0)),"") -> 057009 | G15: 2019 | H15: 0 | I15: 0 | O15: 0 | P15: 0 | R15: 0 | S15: 0 | U15: FALSE
A16: 9 | B16: =IFERROR(IF(VLOOKUP(C16,Soggetti_proprietari!C:K,9,0)=0,"",VLOOKUP(C16,Soggetti_proprietari!C:K,9,0)),"") -> 1203_25320-057011- | C16: Comune di Casaprota | D16: =IFERROR(IF(VLOOKUP(C16,Soggetti_proprietari!C:K,2,0)=0,"",VLOOKUP(C16,Soggetti_proprietari!C:K,2,0)),"") -> Comune | E16: =IFERROR(IF(VLOOKUP(C16,Soggetti_proprietari!C:K,3,0)=0,"",VLOOKUP(C16,Soggetti_proprietari!C:K,3,0)),"") -> 00123140576 | F16: =IFERROR(IF(VLOOKUP(C16,Soggetti_proprietari!C:K,4,0)=0,"",VLOOKUP(C16,Soggetti_proprietari!C:K,4,0)),"") -> 057011 | G16: 2019 | H16: 0 | I16: 0 | O16: 0 | P16: 0 | R16: 0 | S16: 0 | U16: FALSE
A17: 10 | B17: =IFERROR(IF(VLOOKUP(C17,Soggetti_proprietari!C:K,9,0)=0,"",VLOOKUP(C17,Soggetti_proprietari!C:K,9,0)),"") -> 1203_25320-057013- | C17: Comune di Castel di Tora | D17: =IFERROR(IF(VLOOKUP(C17,Soggetti_proprietari!C:K,2,0)=0,"",VLOOKUP(C17,Soggetti_proprietari!C:K,2,0)),"") -> Comune | E17: =IFERROR(IF(VLOOKUP(C17,Soggetti_proprietari!C:K,3,0)=0,"",VLOOKUP(C17,Soggetti_proprietari!C:K,3,0)),"") -> 00113520571 | F17: =IFERROR(IF(VLOOKUP(C17,Soggetti_proprietari!C:K,4,0)=0,"",VLOOKUP(C17,Soggetti_proprietari!C:K,4,0)),"") -> 057013 | G17: 2019 | H17: 3255.32 | I17: 3255.32 | O17: 3255.32 | P17: 3255.32 | R17: 0 | S17: 0 | U17: FALSE
A18: 11 | B18: =IFERROR(IF(VLOOKUP(C18,Soggetti_proprietari!C:K,9,0)=0,"",VLOOKUP(C18,Soggetti_proprietari!C:K,9,0)),"") -> 1203_25320-057015- | C18: Comune di Castel Sant'Angelo | D18: =IFERROR(IF(VLOOKUP(C18,Soggetti_proprietari!C:K,2,0)=0,"",VLOOKUP(C18,Soggetti_proprietari!C:K,2,0)),"") -> Comune | E18: =IFERROR(IF(VLOOKUP(C18,Soggetti_proprietari!C:K,3,0)=0,"",VLOOKUP(C18,Soggetti_proprietari!C:K,3,0)),"") -> 00109350579 | F18: =IFERROR(IF(VLOOKUP(C18,Soggetti_proprietari!C:K,4,0)=0,"",VLOOKUP(C18,Soggetti_proprietari!C:K,4,0)),"") -> 057015 | G18: 2019 | H18: 0 | I18: 0 | O18: 0 | P18: 0 | R18: 0 | S18: 0 | U18: FALSE
A19: 12 | B19: =IFERROR(IF(VLOOKUP(C19,Soggetti_proprietari!C:K,9,0)=0,"",VLOOKUP(C19,Soggetti_proprietari!C:K,9,0)),"") -> 1203_25320-057014- | C19: Comune di Castelnuovo di Farfa | D19: =IFERROR(IF(VLOOKUP(C19,Soggetti_proprietari!C:K,2,0)=0,"",VLOOKUP(C19,Soggetti_proprietari!C:K,2,0)),"") -> Comune | E19: =IFERROR(IF(VLOOKUP(C19,Soggetti_proprietari!C:K,3,0)=0,"",VLOOKUP(C19,Soggetti_proprietari!C:K,3,0)),"") -> 00122190572 | F19: =IFERROR(IF(VLOOKUP(C19,Soggetti_proprietari!C:K,4,0)=0,"",VLOOKUP(C19,Soggetti_proprietari!C:K,4,0)),"") -> 057014 | G19: 2019 | H19: 0 | I19: 0 | O19: 0 | P19: 0 | R19: 0 | S19: 0 | U19: FALSE
A20: 13 | B20: =IFERROR(IF(VLOOKUP(C20,Soggetti_proprietari!C:K,9,0)=0,"",VLOOKUP(C20,Soggetti_proprietari!C:K,9,0)),"") -> 1203_25320-057016- | C20: Comune di Cittaducale | D20: =IFERROR(IF(VLOOKUP(C20,Soggetti_proprietari!C:K,2,0)=0,"",VLOOKUP(C20,Soggetti_proprietari!C:K,2,0)),"") -> Comune | E20: =IFERROR(IF(VLOOKUP(C20,Soggetti_proprietari!C:K,3,0)=0,"",VLOOKUP(C20,Soggetti_proprietari!C:K,3,0)),"") -> 00113040570 | F20: =IFERROR(IF(VLOOKUP(C20,Soggetti_proprietari!C:K,4,0)=0,"",VLOOKUP(C20,Soggetti_proprietari!C:K,4,0)),"") -> 057016 | G20: 2019 | H20: 38331.04 | I20: 38331.04 | O20: 38331.04 | P20: 38331.04 | R20: 0 | S20: 0 | U20: FALSE
A21: 14 | B21: =IFERROR(IF(VLOOKUP(C21,Soggetti_proprietari!C:K,9,0)=0,"",VLOOKUP(C21,Soggetti_proprietari!C:K,9,0)),"") -> 1203_25320-057018- | C21: Comune di Collalto Sabino | D21: =IFERROR(IF(VLOOKUP(C21,Soggetti_proprietari!C:K,2,0)=0,"",VLOOKUP(C21,Soggetti_proprietari!C:K,2,0)),"") -> Comune | E21: =IFERROR(IF(VLOOKUP(C21,Soggetti_proprietari!C:K,3,0)=0,"",VLOOKUP(C21,Soggetti_proprietari!C:K,3,0)),"") -> 00113140578 | F21: =IFERROR(IF(VLOOKUP(C21,Soggetti_proprietari!C:K,4,0)=0,"",VLOOKUP(C21,Soggetti_proprietari!C:K,4,0)),"") -> 057018 | G21: 2019 | H21: 4210.98 | I21: 4210.98 | O21: 4210.98 | P21: 4210.98 | R21: 0 | S21: 0 | U21: FALSE
A22: 15 | B22: =IFERROR(IF(VLOOKUP(C22,Soggetti_proprietari!C:K,9,0)=0,"",VLOOKUP(C22,Soggetti_proprietari!C:K,9,0)),"") -> 1203_25320-057020- | C22: Comune di Collegiove | D22: =IFERROR(IF(VLOOKUP(C22,Soggetti_proprietari!C:K,2,0)=0,"",VLOOKUP(C22,Soggetti_proprietari!C:K,2,0)),"") -> Comune | E22: =IFERROR(IF(VLOOKUP(C22,Soggetti_proprietari!C:K,3,0)=0,"",VLOOKUP(C22,Soggetti_proprietari!C:K,3,0)),"") -> 00113130579 | F22: =IFERROR(IF(VLOOKUP(C22,Soggetti_proprietari!C:K,4,0)=0,"",VLOOKUP(C22,Soggetti_proprietari!C:K,4,0)),"") -> 057020 | G22: 2019 | H22: 0 | I22: 0 | O22: 0 | P22: 0 | R22: 0 | S22: 0 | U22: FALSE
A23: 16 | B23: =IFERROR(IF(VLOOKUP(C23,Soggetti_proprietari!C:K,9,0)=0,"",VLOOKUP(C23,Soggetti_proprietari!C:K,9,0)),"") -> 1203_25320-057021- | C23: Comune di Collevecchio | D23: =IFERROR(IF(VLOOKUP(C23,Soggetti_proprietari!C:K,2,0)=0,"",VLOOKUP(C23,Soggetti_proprietari!C:K,2,0)),"") -> Comune | E23: =IFERROR(IF(VLOOKUP(C23,Soggetti_proprietari!C:K,3,0)=0,"",VLOOKUP(C23,Soggetti_proprietari!C:K,3,0)),"") -> 00109440578 | F23: =IFERROR(IF(VLOOKUP(C23,Soggetti_proprietari!C:K,4,0)=0,"",VLOOKUP(C23,Soggetti_proprietari!C:K,4,0)),"") -> 057021 | G23: 2019 | H23: 0 | I23: 0 | O23: 0 | P23: 0 | R23: 0 | S23: 0 | U23: FALSE
A24: 17 | B24: =IFERROR(IF(VLOOKUP(C24,Soggetti_proprietari!C:K,9,0)=0,"",VLOOKUP(C24,Soggetti_proprietari!C:K,9,0)),"") -> 1203_25320-057022- | C24: Comune di Colli sul Velino | D24: =IFERROR(IF(VLOOKUP(C24,Soggetti_proprietari!C:K,2,0)=0,"",VLOOKUP(C24,Soggetti_proprietari!C:K,2,0)),"") -> Comune | E24: =IFERROR(IF(VLOOKUP(C24,Soggetti_proprietari!C:K,3,0)=0,"",VLOOKUP(C24,Soggetti_proprietari!C:K,3,0)),"") -> 00108930579 | F24: =IFERROR(IF(VLOOKUP(C24,Soggetti_proprietari!C:K,4,0)=0,"",VLOOKUP(C24,Soggetti_proprietari!C:K,4,0)),"") -> 057022 | G24: 2019 | H24: 0 | I24: 0 | O24: 0 | P24: 0 | R24: 0 | S24: 0 | U24: FALSE
A25: 18 | B25: =IFERROR(IF(VLOOKUP(C25,Soggetti_proprietari!C:K,9,0)=0,"",VLOOKUP(C25,Soggetti_proprietari!C:K,9,0)),"") -> 1203_25320-057025- | C25: Comune di Contigliano | D25: =IFERROR(IF(VLOOKUP(C25,Soggetti_proprietari!C:K,2,0)=0,"",VLOOKUP(C25,Soggetti_proprietari!C:K,2,0)),"") -> Comune | E25: =IFERROR(IF(VLOOKUP(C25,Soggetti_proprietari!C:K,3,0)=0,"",VLOOKUP(C25,Soggetti_proprietari!C:K,3,0)),"") -> 00109090571 | F25: =IFERROR(IF(VLOOKUP(C25,Soggetti_proprietari!C:K,4,0)=0,"",VLOOKUP(C25,Soggetti_proprietari!C:K,4,0)),"") -> 057025 | G25: 2019 | H25: 31818.44 | I25: 31818.44 | O25: 31818.44 | P25: 31818.44 | R25: 0 | S25: 0 | U25: FALSE
A26: 19 | B26: =IFERROR(IF(VLOOKUP(C26,Soggetti_proprietari!C:K,9,0)=0,"",VLOOKUP(C26,Soggetti_proprietari!C:K,9,0)),"") -> 1203_25320-057027- | C26: Comune di Fara in Sabina | D26: =IFERROR(IF(VLOOKUP(C26,Soggetti_proprietari!C:K,2,0)=0,"",VLOOKUP(C26,Soggetti_proprietari!C:K,2,0)),"") -> Comune | E26: =IFERROR(IF(VLOOKUP(C26,Soggetti_proprietari!C:K,3,0)=0,"",VLOOKUP(C26,Soggetti_proprietari!C:K,3,0)),"") -> 00102420577 | F26: =IFERROR(IF(VLOOKUP(C26,Soggetti_proprietari!C:K,4,0)=0,"",VLOOKUP(C26,Soggetti_proprietari!C:K,4,0)),"") -> 057027 | G26: 2019 | H26: 29077.68 | I26: 29077.68 | O26: 29077.68 | P26: 29077.68 | R26: 0 | S26: 0 | U26: FALSE
A27: 20 | B27: =IFERROR(IF(VLOOKUP(C27,Soggetti_proprietari!C:K,9,0)=0,"",VLOOKUP(C27,Soggetti_proprietari!C:K,9,0)),"") -> 1203_25320-057028- | C27: Comune di Fiamignano | D27: =IFERROR(IF(VLOOKUP(C27,Soggetti_proprietari!C:K,2,0)=0,"",VLOOKUP(C27,Soggetti_proprietari!C:K,2,0)),"") -> Comune | E27: =IFERROR(IF(VLOOKUP(C27,Soggetti_proprietari!C:K,3,0)=0,"",VLOOKUP(C27,Soggetti_proprietari!C:K,3,0)),"") -> 00121280572 | F27: =IFERROR(IF(VLOOKUP(C27,Soggetti_proprietari!C:K,4,0)=0,"",VLOOKUP(C27,Soggetti_proprietari!C:K,4,0)),"") -> 057028 | G27: 2019 | H27: 0 | I27: 0 | O27: 0 | P27: 0 | R27: 0 | S27: 0 | U27: FALSE
A28: 21 | B28: =IFERROR(IF(VLOOKUP(C28,Soggetti_proprietari!C:K,9,0)=0,"",VLOOKUP(C28,Soggetti_proprietari!C:K,9,0)),"") -> 1203_25320-057029- | C28: Comune di Forano | D28: =IFERROR(IF(VLOOKUP(C28,Soggetti_proprietari!C:K,2,0)=0,"",VLOOKUP(C28,Soggetti_proprietari!C:K,2,0)),"") -> Comune | E28: =IFERROR(IF(VLOOKUP(C28,Soggetti_proprietari!C:K,3,0)=0,"",VLOOKUP(C28,Soggetti_proprietari!C:K,3,0)),"") -> 00109320572 | F28: =IFERROR(IF(VLOOKUP(C28,Soggetti_proprietari!C:K,4,0)=0,"",VLOOKUP(C28,Soggetti_proprietari!C:K,4,0)),"") -> 057029 | G28: 2019 | H28: 10125.12 | I28: 10125.12 | O28: 10125.12 | P28: 10125.12 | R28: 0 | S28: 0 | U28: FALSE
A29: 22 | B29: =IFERROR(IF(VLOOKUP(C29,Soggetti_proprietari!C:K,9,0)=0,"",VLOOKUP(C29,Soggetti_proprietari!C:K,9,0)),"") -> 1203_25320-057030- | C29: Comune di Frasso Sabino | D29: =IFERROR(IF(VLOOKUP(C29,Soggetti_proprietari!C:K,2,0)=0,"",VLOOKUP(C29,Soggetti_proprietari!C:K,2,0)),"") -> Comune | E29: =IFERROR(IF(VLOOKUP(C29,Soggetti_proprietari!C:K,3,0)=0,"",VLOOKUP(C29,Soggetti_proprietari!C:K,3,0)),"") -> 00122400575 | F29: =IFERROR(IF(VLOOKUP(C29,Soggetti_proprietari!C:K,4,0)=0,"",VLOOKUP(C29,Soggetti_proprietari!C:K,4,0)),"") -> 057030 | G29: 2019 | H29: 0 | I29: 0 | O29: 0 | P29: 0 | R29: 0 | S29: 0 | U29: FALSE
A30: 23 | B30: =IFERROR(IF(VLOOKUP(C30,Soggetti_proprietari!C:K,9,0)=0,"",VLOOKUP(C30,Soggetti_proprietari!C:K,9,0)),"") -> 1203_25320-057031- | C30: Comune di Greccio | D30: =IFERROR(IF(VLOOKUP(C30,Soggetti_proprietari!C:K,2,0)=0,"",VLOOKUP(C30,Soggetti_proprietari!C:K,2,0)),"") -> Comune | E30: =IFERROR(IF(VLOOKUP(C30,Soggetti_proprietari!C:K,3,0)=0,"",VLOOKUP(C30,Soggetti_proprietari!C:K,3,0)),"") -> 00109830570 | F30: =IFERROR(IF(VLOOKUP(C30,Soggetti_proprietari!C:K,4,0)=0,"",VLOOKUP(C30,Soggetti_proprietari!C:K,4,0)),"") -> 057031 | G30: 2019 | H30: 4015.86 | I30: 4015.86 | O30: 4015.86 | P30: 4015.86 | R30: 0 | S30: 0 | U30: FALSE
A31: 24 | B31: =IFERROR(IF(VLOOKUP(C31,Soggetti_proprietari!C:K,9,0)=0,"",VLOOKUP(C31,Soggetti_proprietari!C:K,9,0)),"") -> 1203_25320-057032- | C31: Comune di Labro | D31: =IFERROR(IF(VLOOKUP(C31,Soggetti_proprietari!C:K,2,0)=0,"",VLOOKUP(C31,Soggetti_proprietari!C:K,2,0)),"") -> Comune | E31: =IFERROR(IF(VLOOKUP(C31,Soggetti_proprietari!C:K,3,0)=0,"",VLOOKUP(C31,Soggetti_proprietari!C:K,3,0)),"") -> 00108300575 | F31: =IFERROR(IF(VLOOKUP(C31,Soggetti_proprietari!C:K,4,0)=0,"",VLOOKUP(C31,Soggetti_proprietari!C:K,4,0)),"") -> 057032 | G31: 2019 | H31: 0 | I31: 0 | O31: 0 | P31: 0 | R31: 0 | S31: 0 | U31: FALSE
A32: 25 | B32: =IFERROR(IF(VLOOKUP(C32,Soggetti_proprietari!C:K,9,0)=0,"",VLOOKUP(C32,Soggetti_proprietari!C:K,9,0)),"") -> 1203_25320-057033- | C32: Comune di Leonessa | D32: =IFERROR(IF(VLOOKUP(C32,Soggetti_proprietari!C:K,2,0)=0,"",VLOOKUP(C32,Soggetti_proprietari!C:K,2,0)),"") -> Comune | E32: =IFERROR(IF(VLOOKUP(C32,Soggetti_proprietari!C:K,3,0)=0,"",VLOOKUP(C32,Soggetti_proprietari!C:K,3,0)),"") -> 00111040572 | F32: =IFERROR(IF(VLOOKUP(C32,Soggetti_proprietari!C:K,4,0)=0,"",VLOOKUP(C32,Soggetti_proprietari!C:K,4,0)),"") -> 057033 | G32: 2019 | H32: 0 | I32: 0 | O32: 0 | P32: 0 | R32: 0 | S32: 0 | U32: FALSE
A33: 26 | B33: =IFERROR(IF(VLOOKUP(C33,Soggetti_proprietari!C:K,9,0)=0,"",VLOOKUP(C33,Soggetti_proprietari!C:K,9,0)),"") -> 1203_25320-057035- | C33: Comune di Magliano Sabina | D33: =IFERROR(IF(VLOOKUP(C33,Soggetti_proprietari!C:K,2,0)=0,"",VLOOKUP(C33,Soggetti_proprietari!C:K,2,0)),"") -> Comune | E33: =IFERROR(IF(VLOOKUP(C33,Soggetti_proprietari!C:K,3,0)=0,"",VLOOKUP(C33,Soggetti_proprietari!C:K,3,0)),"") -> 00108350570 | F33: =IFERROR(IF(VLOOKUP(C33,Soggetti_proprietari!C:K,4,0)=0,"",VLOOKUP(C33,Soggetti_proprietari!C:K,4,0)),"") -> 057035 | G33: 2019 | H33: 72718.02 | I33: 72718.02 | O33: 72718.02 | P33: 72718.02 | R33: 0 | S33: 0 | U33: FALSE
A34: 27 | B34: =IFERROR(IF(VLOOKUP(C34,Soggetti_proprietari!C:K,9,0)=0,"",VLOOKUP(C34,Soggetti_proprietari!C:K,9,0)),"") -> 1203_25320-057038- | C34: Comune di Mompeo | D34: =IFERROR(IF(VLOOKUP(C34,Soggetti_proprietari!C:K,2,0)=0,"",VLOOKUP(C34,Soggetti_proprietari!C:K,2,0)),"") -> Comune | E34: =IFERROR(IF(VLOOKUP(C34,Soggetti_proprietari!C:K,3,0)=0,"",VLOOKUP(C34,Soggetti_proprietari!C:K,3,0)),"") -> 00121720577 | F34: =IFERROR(IF(VLOOKUP(C34,Soggetti_proprietari!C:K,4,0)=0,"",VLOOKUP(C34,Soggetti_proprietari!C:K,4,0)),"") -> 057038 | G34: 2019 | H34: 0 | I34: 0 | O34: 0 | P34: 0 | R34: 0 | S34: 0 | U34: FALSE
A35: 28 | B35: =IFERROR(IF(VLOOKUP(C35,Soggetti_proprietari!C:K,9,0)=0,"",VLOOKUP(C35,Soggetti_proprietari!C:K,9,0)),"") -> 1203_25320-058061- | C35: Comune di Monteflavio | D35: =IFERROR(IF(VLOOKUP(C35,Soggetti_proprietari!C:K,2,0)=0,"",VLOOKUP(C35,Soggetti_proprietari!C:K,2,0)),"") -> Comune | E35: =IFERROR(IF(VLOOKUP(C35,Soggetti_proprietari!C:K,3,0)=0,"",VLOOKUP(C35,Soggetti_proprietari!C:K,3,0)),"") -> 86001870582 | F35: =IFERROR(IF(VLOOKUP(C35,Soggetti_proprietari!C:K,4,0)=0,"",VLOOKUP(C35,Soggetti_proprietari!C:K,4,0)),"") -> 058061 | G35: 2019 | H35: 19179.92 | I35: 19179.92 | O35: 19179.92 | P35: 19179.92 | R35: 0 | S35: 0 | U35: FALSE
A36: 29 | B36: =IFERROR(IF(VLOOKUP(C36,Soggetti_proprietari!C:K,9,0)=0,"",VLOOKUP(C36,Soggetti_proprietari!C:K,9,0)),"") -> 1203_25320-057041- | C36: Comune di Monteleone Sabino | D36: =IFERROR(IF(VLOOKUP(C36,Soggetti_proprietari!C:K,2,0)=0,"",VLOOKUP(C36,Soggetti_proprietari!C:K,2,0)),"") -> Comune | E36: =IFERROR(IF(VLOOKUP(C36,Soggetti_proprietari!C:K,3,0)=0,"",VLOOKUP(C36,Soggetti_proprietari!C:K,3,0)),"") -> 00113390579 | F36: =IFERROR(IF(VLOOKUP(C36,Soggetti_proprietari!C:K,4,0)=0,"",VLOOKUP(C36,Soggetti_proprietari!C:K,4,0)),"") -> 057041 | G36: 2019 | H36: 0 | I36: 0 | O36: 0 | P36: 0 | R36: 0 | S36: 0 | U36: FALSE
A37: 30 | B37: =IFERROR(IF(VLOOKUP(C37,Soggetti_proprietari!C:K,9,0)=0,"",VLOOKUP(C37,Soggetti_proprietari!C:K,9,0)),"") -> 1203_25320-058063- | C37: Comune di Montelibretti | D37: =IFERROR(IF(VLOOKUP(C37,Soggetti_proprietari!C:K,2,0)=0,"",VLOOKUP(C37,Soggetti_proprietari!C:K,2,0)),"") -> Comune | E37: =IFERROR(IF(VLOOKUP(C37,Soggetti_proprietari!C:K,3,0)=0,"",VLOOKUP(C37,Soggetti_proprietari!C:K,3,0)),"") -> 02457650584 | F37: =IFERROR(IF(VLOOKUP(C37,Soggetti_proprietari!C:K,4,0)=0,"",VLOOKUP(C37,Soggetti_proprietari!C:K,4,0)),"") -> 058063 | G37: 2019 | H37: 0 | I37: 0 | O37: 0 | P37: 0 | R37: 0 | S37: 0 | U37: FALSE
A38: 31 | B38: =IFERROR(IF(VLOOKUP(C38,Soggetti_proprietari!C:K,9,0)=0,"",VLOOKUP(C38,Soggetti_proprietari!C:K,9,0)),"") -> 1203_25320-057042- | C38: Comune di Montenero Sabino | D38: =IFERROR(IF(VLOOKUP(C38,Soggetti_proprietari!C:K,2,0)=0,"",VLOOKUP(C38,Soggetti_proprietari!C:K,2,0)),"") -> Comune | E38: =IFERROR(IF(VLOOKUP(C38,Soggetti_proprietari!C:K,3,0)=0,"",VLOOKUP(C38,Soggetti_proprietari!C:K,3,0)),"") -> 00121390579 | F38: =IFERROR(IF(VLOOKUP(C38,Soggetti_proprietari!C:K,4,0)=0,"",VLOOKUP(C38,Soggetti_proprietari!C:K,4,0)),"") -> 057042 | G38: 2019 | H38: 0 | I38: 0 | O38: 0 | P38: 0 | R38: 0 | S38: 0 | U38: FALSE
A39: 32 | B39: =IFERROR(IF(VLOOKUP(C39,Soggetti_proprietari!C:K,9,0)=0,"",VLOOKUP(C39,Soggetti_proprietari!C:K,9,0)),"") -> 1203_25320-057044- | C39: Comune di Montopoli In Sabina | D39: =IFERROR(IF(VLOOKUP(C39,Soggetti_proprietari!C:K,2,0)=0,"",VLOOKUP(C39,Soggetti_proprietari!C:K,2,0)),"") -> Comune | E39: =IFERROR(IF(VLOOKUP(C39,Soggetti_proprietari!C:K,3,0)=0,"",VLOOKUP(C39,Soggetti_proprietari!C:K,3,0)),"") -> 00094140571 | F39: =IFERROR(IF(VLOOKUP(C39,Soggetti_proprietari!C:K,4,0)=0,"",VLOOKUP(C39,Soggetti_proprietari!C:K,4,0)),"") -> 057044 | G39: 2019 | H39: 22080.5 | I39: 22080.5 | O39: 22080.5 | P39: 22080.5 | R39: 0 | S39: 0 | U39: FALSE
A40: 33 | B40: =IFERROR(IF(VLOOKUP(C40,Soggetti_proprietari!C:K,9,0)=0,"",VLOOKUP(C40,Soggetti_proprietari!C:K,9,0)),"") -> 1203_25320-058066- | C40: Comune di Montorio Romano | D40: =IFERROR(IF(VLOOKUP(C40,Soggetti_proprietari!C:K,2,0)=0,"",VLOOKUP(C40,Soggetti_proprietari!C:K,2,0)),"") -> Comune | E40: =IFERROR(IF(VLOOKUP(C40,Soggetti_proprietari!C:K,3,0)=0,"",VLOOKUP(C40,Soggetti_proprietari!C:K,3,0)),"") -> 02146191008 | F40: =IFERROR(IF(VLOOKUP(C40,Soggetti_proprietari!C:K,4,0)=0,"",VLOOKUP(C40,Soggetti_proprietari!C:K,4,0)),"") -> 058066 | G40: 2019 | H40: 0 | I40: 0 | O40: 0 | P40: 0 | R40: 0 | S40: 0 | U40: FALSE
A41: 34 | B41: =IFERROR(IF(VLOOKUP(C41,Soggetti_proprietari!C:K,9,0)=0,"",VLOOKUP(C41,Soggetti_proprietari!C:K,9,0)),"") -> 1203_25320-058067- | C41: Comune di Moricone | D41: =IFERROR(IF(VLOOKUP(C41,Soggetti_proprietari!C:K,2,0)=0,"",VLOOKUP(C41,Soggetti_proprietari!C:K,2,0)),"") -> Comune | E41: =IFERROR(IF(VLOOKUP(C41,Soggetti_proprietari!C:K,3,0)=0,"",VLOOKUP(C41,Soggetti_proprietari!C:K,3,0)),"") -> 86000380583 | F41: =IFERROR(IF(VLOOKUP(C41,Soggetti_proprietari!C:K,4,0)=0,"",VLOOKUP(C41,Soggetti_proprietari!C:K,4,0)),"") -> 058067 | G41: 2019 | H41: 0 | I41: 0 | O41: 0 | P41: 0 | R41: 0 | S41: 0 | U41: FALSE
A42: 35 | B42: =IFERROR(IF(VLOOKUP(C42,Soggetti_proprietari!C:K,9,0)=0,"",VLOOKUP(C42,Soggetti_proprietari!C:K,9,0)),"") -> 1203_25320-057045- | C42: Comune di Morro Reatino | D42: =IFERROR(IF(VLOOKUP(C42,Soggetti_proprietari!C:K,2,0)=0,"",VLOOKUP(C42,Soggetti_proprietari!C:K,2,0)),"") -> Comune | E42: =IFERROR(IF(VLOOKUP(C42,Soggetti_proprietari!C:K,3,0)=0,"",VLOOKUP(C42,Soggetti_proprietari!C:K,3,0)),"") -> 00108310574 | F42: =IFERROR(IF(VLOOKUP(C42,Soggetti_proprietari!C:K,4,0)=0,"",VLOOKUP(C42,Soggetti_proprietari!C:K,4,0)),"") -> 057045 | G42: 2019 | H42: 20836.24 | I42: 20836.24 | O42: 20836.24 | P42: 20836.24 | R42: 0 | S42: 0 | U42: FALSE
A43: 36 | B43: =IFERROR(IF(VLOOKUP(C43,Soggetti_proprietari!C:K,9,0)=0,"",VLOOKUP(C43,Soggetti_proprietari!C:K,9,0)),"") -> 1203_25320-058071- | C43: Comune di Nerola | D43: =IFERROR(IF(VLOOKUP(C43,Soggetti_proprietari!C:K,2,0)=0,"",VLOOKUP(C43,Soggetti_proprietari!C:K,2,0)),"") -> Comune | E43: =IFERROR(IF(VLOOKUP(C43,Soggetti_proprietari!C:K,3,0)=0,"",VLOOKUP(C43,Soggetti_proprietari!C:K,3,0)),"") -> 02457750582 | F43: =IFERROR(IF(VLOOKUP(C43,Soggetti_proprietari!C:K,4,0)=0,"",VLOOKUP(C43,Soggetti_proprietari!C:K,4,0)),"") -> 058071 | G43: 2019 | H43: 8769.66 | I43: 8769.66 | O43: 8769.66 | P43: 8769.66 | R43: 0 | S43: 0 | U43: FALSE
A44: 37 | B44: =IFERROR(IF(VLOOKUP(C44,Soggetti_proprietari!C:K,9,0)=0,"",VLOOKUP(C44,Soggetti_proprietari!C:K,9,0)),"") -> 1203_25320-057046- | C44: Comune di Nespolo | D44: =IFERROR(IF(VLOOKUP(C44,Soggetti_proprietari!C:K,2,0)=0,"",VLOOKUP(C44,Soggetti_proprietari!C:K,2,0)),"") -> Comune | E44: =IFERROR(IF(VLOOKUP(C44,Soggetti_proprietari!C:K,3,0)=0,"",VLOOKUP(C44,Soggetti_proprietari!C:K,3,0)),"") -> 00113150577 | F44: =IFERROR(IF(VLOOKUP(C44,Soggetti_proprietari!C:K,4,0)=0,"",VLOOKUP(C44,Soggetti_proprietari!C:K,4,0)),"") -> 057046 | G44: 2019 | H44: 7521.76 | I44: 7521.76 | O44: 7521.76 | P44: 7521.76 | R44: 0 | S44: 0 | U44: FALSE
A45: 38 | B45: =IFERROR(IF(VLOOKUP(C45,Soggetti_proprietari!C:K,9,0)=0,"",VLOOKUP(C45,Soggetti_proprietari!C:K,9,0)),"") -> 1203_25320-057048- | C45: Comune di Paganico Sabino | D45: =IFERROR(IF(VLOOKUP(C45,Soggetti_proprietari!C:K,2,0)=0,"",VLOOKUP(C45,Soggetti_proprietari!C:K,2,0)),"") -> Comune | E45: =IFERROR(IF(VLOOKUP(C45,Soggetti_proprietari!C:K,3,0)=0,"",VLOOKUP(C45,Soggetti_proprietari!C:K,3,0)),"") -> 00113470579 | F45: =IFERROR(IF(VLOOKUP(C45,Soggetti_proprietari!C:K,4,0)=0,"",VLOOKUP(C45,Soggetti_proprietari!C:K,4,0)),"") -> 057048 | G45: 2019 | H45: 7251.92 | I45: 7251.92 | O45: 7251.92 | P45: 7251.92 | R45: 0 | S45: 0 | U45: FALSE
A46: 39 | B46: =IFERROR(IF(VLOOKUP(C46,Soggetti_proprietari!C:K,9,0)=0,"",VLOOKUP(C46,Soggetti_proprietari!C:K,9,0)),"") -> 1203_25320-058075- | C46: Comune di Palombara Sabina | D46: =IFERROR(IF(VLOOKUP(C46,Soggetti_proprietari!C:K,2,0)=0,"",VLOOKUP(C46,Soggetti_proprietari!C:K,2,0)),"") -> Comune | E46: =IFERROR(IF(VLOOKUP(C46,Soggetti_proprietari!C:K,3,0)=0,"",VLOOKUP(C46,Soggetti_proprietari!C:K,3,0)),"") -> 00998690580 | F46: =IFERROR(IF(VLOOKUP(C46,Soggetti_proprietari!C:K,4,0)=0,"",VLOOKUP(C46,Soggetti_proprietari!C:K,4,0)),"") -> 058075 | G46: 2019 | H46: 12101.28 | I46: 12101.28 | O46: 12101.28 | P46: 12101.28 | R46: 0 | S46: 0 | U46: FALSE
A47: 40 | B47: =IFERROR(IF(VLOOKUP(C47,Soggetti_proprietari!C:K,9,0)=0,"",VLOOKUP(C47,Soggetti_proprietari!C:K,9,0)),"") -> 1203_25320-057049- | C47: Comune di Pescorocchiano | D47: =IFERROR(IF(VLOOKUP(C47,Soggetti_proprietari!C:K,2,0)=0,"",VLOOKUP(C47,Soggetti_proprietari!C:K,2,0)),"") -> Comune | E47: =IFERROR(IF(VLOOKUP(C47,Soggetti_proprietari!C:K,3,0)=0,"",VLOOKUP(C47,Soggetti_proprietari!C:K,3,0)),"") -> 00122710577 | F47: =IFERROR(IF(VLOOKUP(C47,Soggetti_proprietari!C:K,4,0)=0,"",VLOOKUP(C47,Soggetti_proprietari!C:K,4,0)),"") -> 057049 | G47: 2019 | H47: 47029.3 | I47: 47029.3 | O47: 47029.3 | P47: 47029.3 | R47: 0 | S47: 0 | U47: FALSE
A48: 41 | B48: =IFERROR(IF(VLOOKUP(C48,Soggetti_proprietari!C:K,9,0)=0,"",VLOOKUP(C48,Soggetti_proprietari!C:K,9,0)),"") -> 1203_25320-057050- | C48: Comune di Petrella Salto | D48: =IFERROR(IF(VLOOKUP(C48,Soggetti_proprietari!C:K,2,0)=0,"",VLOOKUP(C48,Soggetti_proprietari!C:K,2,0)),"") -> Comune | E48: =IFERROR(IF(VLOOKUP(C48,Soggetti_proprietari!C:K,3,0)=0,"",VLOOKUP(C48,Soggetti_proprietari!C:K,3,0)),"") -> 00097310577 | F48: =IFERROR(IF(VLOOKUP(C48,Soggetti_proprietari!C:K,4,0)=0,"",VLOOKUP(C48,Soggetti_proprietari!C:K,4,0)),"") -> 057050 | G48: 2019 | H48: 0 | I48: 0 | O48: 0 | P48: 0 | R48: 0 | S48: 0 | U48: FALSE
A49: 42 | B49: =IFERROR(IF(VLOOKUP(C49,Soggetti_proprietari!C:K,9,0)=0,"",VLOOKUP(C49,Soggetti_proprietari!C:K,9,0)),"") -> 1203_25320-057053- | C49: Comune di Poggio Mirteto | D49: =IFERROR(IF(VLOOKUP(C49,Soggetti_proprietari!C:K,2,0)=0,"",VLOOKUP(C49,Soggetti_proprietari!C:K,2,0)),"") -> Comune | E49: =IFERROR(IF(VLOOKUP(C49,Soggetti_proprietari!C:K,3,0)=0,"",VLOOKUP(C49,Soggetti_proprietari!C:K,3,0)),"") -> 00094100575 | F49: =IFERROR(IF(VLOOKUP(C49,Soggetti_proprietari!C:K,4,0)=0,"",VLOOKUP(C49,Soggetti_proprietari!C:K,4,0)),"") -> 057053 | G49: 2019 | H49: 2524.58 | I49: 2524.58 | O49: 2524.58 | P49: 2524.58 | R49: 0 | S49: 0 | U49: FALSE
A50: 43 | B50: =IFERROR(IF(VLOOKUP(C50,Soggetti_proprietari!C:K,9,0)=0,"",VLOOKUP(C50,Soggetti_proprietari!C:K,9,0)),"") -> 1203_25320-057055- | C50: Comune di Poggio Nativo | D50: =IFERROR(IF(VLOOKUP(C50,Soggetti_proprietari!C:K,2,0)=0,"",VLOOKUP(C50,Soggetti_proprietari!C:K,2,0)),"") -> Comune | E50: =IFERROR(IF(VLOOKUP(C50,Soggetti_proprietari!C:K,3,0)=0,"",VLOOKUP(C50,Soggetti_proprietari!C:K,3,0)),"") -> 00122390578 | F50: =IFERROR(IF(VLOOKUP(C50,Soggetti_proprietari!C:K,4,0)=0,"",VLOOKUP(C50,Soggetti_proprietari!C:K,4,0)),"") -> 057055 | G50: 2019 | H50: 13892.56 | I50: 13892.56 | O50: 13892.56 | P50: 13892.56 | R50: 0 | S50: 0 | U50: FALSE
A51: 44 | B51: =IFERROR(IF(VLOOKUP(C51,Soggetti_proprietari!C:K,9,0)=0,"",VLOOKUP(C51,Soggetti_proprietari!C:K,9,0)),"") -> 1203_25320-057059- | C51: Comune di Rieti | D51: =IFERROR(IF(VLOOKUP(C51,Soggetti_proprietari!C:K,2,0)=0,"",VLOOKUP(C51,Soggetti_proprietari!C:K,2,0)),"") -> Comune | E51: =IFERROR(IF(VLOOKUP(C51,Soggetti_proprietari!C:K,3,0)=0,"",VLOOKUP(C51,Soggetti_proprietari!C:K,3,0)),"") -> 00100700574 | F51: =IFERROR(IF(VLOOKUP(C51,Soggetti_proprietari!C:K,4,0)=0,"",VLOOKUP(C51,Soggetti_proprietari!C:K,4,0)),"") -> 057059 | G51: 2019 | H51: 135482.82 | I51: 135482.82 | O51: 135482.82 | P51: 135482.82 | R51: 0 | S51: 0 | U51: FALSE
A52: 45 | B52: =IFERROR(IF(VLOOKUP(C52,Soggetti_proprietari!C:K,9,0)=0,"",VLOOKUP(C52,Soggetti_proprietari!C:K,9,0)),"") -> 1203_25320-057060- | C52: Comune di Rivodutri | D52: =IFERROR(IF(VLOOKUP(C52,Soggetti_proprietari!C:K,2,0)=0,"",VLOOKUP(C52,Soggetti_proprietari!C:K,2,0)),"") -> Comune | E52: =IFERROR(IF(VLOOKUP(C52,Soggetti_proprietari!C:K,3,0)=0,"",VLOOKUP(C52,Soggetti_proprietari!C:K,3,0)),"") -> 00108820572 | F52: =IFERROR(IF(VLOOKUP(C52,Soggetti_proprietari!C:K,4,0)=0,"",VLOOKUP(C52,Soggetti_proprietari!C:K,4,0)),"") -> 057060 | G52: 2019 | H52: 18760.42 | I52: 18760.42 | O52: 18760.42 | P52: 18760.42 | R52: 0 | S52: 0 | U52: FALSE
A53: 46 | B53: =IFERROR(IF(VLOOKUP(C53,Soggetti_proprietari!C:K,9,0)=0,"",VLOOKUP(C53,Soggetti_proprietari!C:K,9,0)),"") -> 1203_25320-057062- | C53: Comune di Rocca Sinibalda | D53: =IFERROR(IF(VLOOKUP(C53,Soggetti_proprietari!C:K,2,0)=0,"",VLOOKUP(C53,Soggetti_proprietari!C:K,2,0)),"") -> Comune | E53: =IFERROR(IF(VLOOKUP(C53,Soggetti_proprietari!C:K,3,0)=0,"",VLOOKUP(C53,Soggetti_proprietari!C:K,3,0)),"") -> 00082300575 | F53: =IFERROR(IF(VLOOKUP(C53,Soggetti_proprietari!C:K,4,0)=0,"",VLOOKUP(C53,Soggetti_proprietari!C:K,4,0)),"") -> 057062 | G53: 2019 | H53: 0 | I53: 0 | O53: 0 | P53: 0 | R53: 0 | S53: 0 | U53: FALSE
A54: 47 | B54: =IFERROR(IF(VLOOKUP(C54,Soggetti_proprietari!C:K,9,0)=0,"",VLOOKUP(C54,Soggetti_proprietari!C:K,9,0)),"") -> 1203_25320-057063- | C54: Comune di Salisano | D54: =IFERROR(IF(VLOOKUP(C54,Soggetti_proprietari!C:K,2,0)=0,"",VLOOKUP(C54,Soggetti_proprietari!C:K,2,0)),"") -> Comune | E54: =IFERROR(IF(VLOOKUP(C54,Soggetti_proprietari!C:K,3,0)=0,"",VLOOKUP(C54,Soggetti_proprietari!C:K,3,0)),"") -> 00142660570 | F54: =IFERROR(IF(VLOOKUP(C54,Soggetti_proprietari!C:K,4,0)=0,"",VLOOKUP(C54,Soggetti_proprietari!C:K,4,0)),"") -> 057063 | G54: 2019 | H54: 0 | I54: 0 | O54: 0 | P54: 0 | R54: 0 | S54: 0 | U54: FALSE
A55: 48 | B55: =IFERROR(IF(VLOOKUP(C55,Soggetti_proprietari!C:K,9,0)=0,"",VLOOKUP(C55,Soggetti_proprietari!C:K,9,0)),"") -> 1203_25320-057064- | C55: Comune di Scandriglia | D55: =IFERROR(IF(VLOOKUP(C55,Soggetti_proprietari!C:K,2,0)=0,"",VLOOKUP(C55,Soggetti_proprietari!C:K,2,0)),"") -> Comune | E55: =IFERROR(IF(VLOOKUP(C55,Soggetti_proprietari!C:K,3,0)=0,"",VLOOKUP(C55,Soggetti_proprietari!C:K,3,0)),"") -> 00122200579 | F55: =IFERROR(IF(VLOOKUP(C55,Soggetti_proprietari!C:K,4,0)=0,"",VLOOKUP(C55,Soggetti_proprietari!C:K,4,0)),"") -> 057064 | G55: 2019 | H55: 22306.20971 | I55: 22306.20971 | O55: 22306.20971 | P55: 22306.20971 | R55: 0 | S55: 0 | U55: FALSE
A56: 49 | B56: =IFERROR(IF(VLOOKUP(C56,Soggetti_proprietari!C:K,9,0)=0,"",VLOOKUP(C56,Soggetti_proprietari!C:K,9,0)),"") -> 1203_25320-057068- | C56: Comune di Toffia | D56: =IFERROR(IF(VLOOKUP(C56,Soggetti_proprietari!C:K,2,0)=0,"",VLOOKUP(C56,Soggetti_proprietari!C:K,2,0)),"") -> Comune | E56: =IFERROR(IF(VLOOKUP(C56,Soggetti_proprietari!C:K,3,0)=0,"",VLOOKUP(C56,Soggetti_proprietari!C:K,3,0)),"") -> 00109970574 | F56: =IFERROR(IF(VLOOKUP(C56,Soggetti_proprietari!C:K,4,0)=0,"",VLOOKUP(C56,Soggetti_proprietari!C:K,4,0)),"") -> 057068 | G56: 2019 | H56: 0 | I56: 0 | O56: 0 | P56: 0 | R56: 0 | S56: 0 | U56: FALSE
A57: 50 | B57: =IFERROR(IF(VLOOKUP(C57,Soggetti_proprietari!C:K,9,0)=0,"",VLOOKUP(C57,Soggetti_proprietari!C:K,9,0)),"") -> 1203_25320-057069- | C57: Comune di Torricella | D57: =IFERROR(IF(VLOOKUP(C57,Soggetti_proprietari!C:K,2,0)=0,"",VLOOKUP(C57,Soggetti_proprietari!C:K,2,0)),"") -> Comune | E57: =IFERROR(IF(VLOOKUP(C57,Soggetti_proprietari!C:K,3,0)=0,"",VLOOKUP(C57,Soggetti_proprietari!C:K,3,0)),"") -> 00082310574 | F57: =IFERROR(IF(VLOOKUP(C57,Soggetti_proprietari!C:K,4,0)=0,"",VLOOKUP(C57,Soggetti_proprietari!C:K,4,0)),"") -> 057069 | G57: 2019 | H57: 11248 | I57: 11248 | O57: 11248 | P57: 11248 | R57: 0 | S57: 0 | U57: FALSE
A58: 51 | B58: =IFERROR(IF(VLOOKUP(C58,Soggetti_proprietari!C:K,9,0)=0,"",VLOOKUP(C58,Soggetti_proprietari!C:K,9,0)),"") -> 1203_25320-058109- | C58: Comune di Vallinfreda | D58: =IFERROR(IF(VLOOKUP(C58,Soggetti_proprietari!C:K,2,0)=0,"",VLOOKUP(C58,Soggetti_proprietari!C:K,2,0)),"") -> Comune | E58: =IFERROR(IF(VLOOKUP(C58,Soggetti_proprietari!C:K,3,0)=0,"",VLOOKUP(C58,Soggetti_proprietari!C:K,3,0)),"") -> 86001150589 | F58: =IFERROR(IF(VLOOKUP(C58,Soggetti_proprietari!C:K,4,0)=0,"",VLOOKUP(C58,Soggetti_proprietari!C:K,4,0)),"") -> 058109 | G58: 2019 | H58: 0 | I58: 0 | O58: 0 | P58: 0 | R58: 0 | S58: 0 | U58: FALSE
A59: 52 | B59: =IFERROR(IF(VLOOKUP(C59,Soggetti_proprietari!C:K,9,0)=0,"",VLOOKUP(C59,Soggetti_proprietari!C:K,9,0)),"") -> 1203_25320-- | C59: Comuni non noti | D59: =IFERROR(IF(VLOOKUP(C59,Soggetti_proprietari!C:K,2,0)=0,"",VLOOKUP(C59,Soggetti_proprietari!C:K,2,0)),"") -> Comune | E59: =IFERROR(IF(VLOOKUP(C59,Soggetti_proprietari!C:K,3,0)=0,"",VLOOKUP(C59,Soggetti_proprietari!C:K,3,0)),"") ->  | F59: =IFERROR(IF(VLOOKUP(C59,Soggetti_proprietari!C:K,4,0)=0,"",VLOOKUP(C59,Soggetti_proprietari!C:K,4,0)),"") ->  | G59: 2019 | H59: 70445.00717 | I59: 70445.00717 | O59: 70445.00717 | P59: 70445.00717 | R59: 0 | S59: 0 | U59: FALSE

Sheet Soggetti_Scambio
B1: SCAMBI ALL'INGROSSO
Q2: Sono presenti errori
B3: per ciascun soggetto indicare almeno l'ID gestore oppure la Partita IVA | Q3: =+OR(INDEX(Soggetti_Elenco,0,13)) -> TRUE
B5: 1. Soggetti con cui si hanno scambi di Servizi all'ingrosso (Vendita e/o Acquisto)
B7: IDGestore | C7: Nome soggetto | D7: Partita Iva | H7: nome_soggetto | I7: id_gestore | J7: P.IVA | K7: errore idgestore | L7: errore P.IVA | M7: errore idgestore o Partita Iva
A8: =+ROW(A8)-7 -> 1 | B8: 13989 | C8: ACEA ATO 2 SPA | D8: 5848061007 | H8: =+IFERROR(VLOOKUP(I8,TT_Gestori!A:C,3,FALSE),IFERROR(VLOOKUP(D8,TT_Gestori!B:C,2,FALSE),+C8)) -> ACEA ATO2 S.P.A. | I8: =IFERROR(VLOOKUP(B8,TT_Gestori!A:C,1,FALSE),IFERROR(VLOOKUP(D8,TT_Gestori!B:D,3,FALSE),B8)) -> 13989 | J8: =IFERROR(VLOOKUP(D8,TT_Gestori!C:C,1,FALSE),IFERROR(VLOOKUP(I8,TT_Gestori!A:C,2,FALSE),D8)) -> 05848061007 | K8: =+OR(I8="",I8=0) -> FALSE | L8: =+OR(J8="",J8=0) -> FALSE | M8: =+IF(AND(B8="",C8="",D8="",ROW(B8)=8),FALSE,IF(OR(H8="",H8=0,K8=TRUE,L8=TRUE),TRUE,FALSE)) -> FALSE
A9: =+ROW(A9)-7 -> 2 | C9: Comune di Sant'Angelo Romano | D9: 86002210580 | H9: =+IFERROR(VLOOKUP(I9,TT_Gestori!A:C,3,FALSE),IFERROR(VLOOKUP(D9,TT_Gestori!B:C,2,FALSE),+C9)) -> Comune di Sant'Angelo Romano | I9: =IFERROR(VLOOKUP(B9,TT_Gestori!A:C,1,FALSE),IFERROR(VLOOKUP(D9,TT_Gestori!B:D,3,FALSE),B9)) -> 0 | J9: =IFERROR(VLOOKUP(D9,TT_Gestori!C:C,1,FALSE),IFERROR(VLOOKUP(I9,TT_Gestori!A:C,2,FALSE),D9)) -> 86002210580 | K9: =+OR(I9="",I9=0) -> TRUE | L9: =+OR(J9="",J9=0) -> FALSE | M9: =+IF(AND(B9="",C9="",D9="",ROW(B9)=8),FALSE,IF(OR(H9="",H9=0,K9=TRUE,L9=TRUE),TRUE,FALSE)) -> TRUE
A10: 3 | C10: Comune di Camerata Nuova | D10: 02145901001 | H10: =+IFERROR(VLOOKUP(I10,TT_Gestori!A:C,3,FALSE),IFERROR(VLOOKUP(D10,TT_Gestori!B:C,2,FALSE),+C10)) -> COMUNE DI CAMERATA NUOVA | I10: =IFERROR(VLOOKUP(B10,TT_Gestori!A:C,1,FALSE),IFERROR(VLOOKUP(D10,TT_Gestori!B:D,3,FALSE),B10)) -> 28453 | J10: =IFERROR(VLOOKUP(D10,TT_Gestori!C:C,1,FALSE),IFERROR(VLOOKUP(I10,TT_Gestori!A:C,2,FALSE),D10)) -> 02145901001 | K10: FALSE | L10: FALSE | M10: FALSE
A11: 4 | B11: 9369 | C11: Gran Sasso Acqua S.P.A. | D11: 00083520668 | H11: =+IFERROR(VLOOKUP(I11,TT_Gestori!A:C,3,FALSE),IFERROR(VLOOKUP(D11,TT_Gestori!B:C,2,FALSE),+C11)) -> GRAN SASSO ACQUA S.P.A. | I11: =IFERROR(VLOOKUP(B11,TT_Gestori!A:C,1,FALSE),IFERROR(VLOOKUP(D11,TT_Gestori!B:D,3,FALSE),B11)) -> 9369 | J11: =IFERROR(VLOOKUP(D11,TT_Gestori!C:C,1,FALSE),IFERROR(VLOOKUP(I11,TT_Gestori!A:C,2,FALSE),D11)) -> 00083520668 | K11: FALSE | L11: FALSE | M11: FALSE
A12: 5 | B12: 8051 | C12: CONSORZIO ACQUEDOTTISTICO MARSICANO SPA | D12: 01270510660 | H12: =+IFERROR(VLOOKUP(I12,TT_Gestori!A:C,3,FALSE),IFERROR(VLOOKUP(D12,TT_Gestori!B:C,2,FALSE),+C12)) -> CONSORZIO ACQUEDOTTISTICO MARSICANO SPA | I12: =IFERROR(VLOOKUP(B12,TT_Gestori!A:C,1,FALSE),IFERROR(VLOOKUP(D12,TT_Gestori!B:D,3,FALSE),B12)) -> 8051 | J12: =IFERROR(VLOOKUP(D12,TT_Gestori!C:C,1,FALSE),IFERROR(VLOOKUP(I12,TT_Gestori!A:C,2,FALSE),D12)) -> 01270510660 | K12: FALSE | L12: FALSE | M12: FALSE
A13: 6 | B13: 23865 | C13: CONSORZIO COMUNI DELLA MEDIA SABINA | D13: 00086470572 | H13: =+IFERROR(VLOOKUP(I13,TT_Gestori!A:C,3,FALSE),IFERROR(VLOOKUP(D13,TT_Gestori!B:C,2,FALSE),+C13)) -> CONSORZIO COMUNI DELLA MEDIA SABINA | I13: =IFERROR(VLOOKUP(B13,TT_Gestori!A:C,1,FALSE),IFERROR(VLOOKUP(D13,TT_Gestori!B:D,3,FALSE),B13)) -> 23865 | J13: =IFERROR(VLOOKUP(D13,TT_Gestori!C:C,1,FALSE),IFERROR(VLOOKUP(I13,TT_Gestori!A:C,2,FALSE),D13)) -> 00086470572 | K13: FALSE | L13: FALSE | M13: FALSE
A14: 7 | C14: Comune di Cittaducale | D14: 00113040570 | H14: =+IFERROR(VLOOKUP(I14,TT_Gestori!A:C,3,FALSE),IFERROR(VLOOKUP(D14,TT_Gestori!B:C,2,FALSE),+C14)) -> Comune di Cittaducale | I14: =IFERROR(VLOOKUP(B14,TT_Gestori!A:C,1,FALSE),IFERROR(VLOOKUP(D14,TT_Gestori!B:D,3,FALSE),B14)) -> 0 | J14: =IFERROR(VLOOKUP(D14,TT_Gestori!C:C,1,FALSE),IFERROR(VLOOKUP(I14,TT_Gestori!A:C,2,FALSE),D14)) -> 00113040570 | K14: TRUE | L14: FALSE | M14: TRUE
A15: 8 | C15: Comune di Frasso Sabino | D15: 00122400575 | H15: =+IFERROR(VLOOKUP(I15,TT_Gestori!A:C,3,FALSE),IFERROR(VLOOKUP(D15,TT_Gestori!B:C,2,FALSE),+C15)) -> Comune di Frasso Sabino | I15: =IFERROR(VLOOKUP(B15,TT_Gestori!A:C,1,FALSE),IFERROR(VLOOKUP(D15,TT_Gestori!B:D,3,FALSE),B15)) -> 0 | J15: =IFERROR(VLOOKUP(D15,TT_Gestori!C:C,1,FALSE),IFERROR(VLOOKUP(I15,TT_Gestori!A:C,2,FALSE),D15)) -> 00122400575 | K15: TRUE | L15: FALSE | M15: TRUE

Sheet Vendita_Servizi_ingrosso
B1: SCAMBI ALL'INGROSSO
B3: 2. Ricavi da tariffe applicate nella Vendita all'ingrosso
F4: ANNO 2019 | L4: ANNO 2020 | R4: ANNO 2021 | Z4: J ANNO 2020 | AE4: J ANNO 2021
A5: N_riga | B5: Idgestore | C5: Soggetto a cui si vende | D5: ATO | E5: Servizio | F5: Volumi erogati / trattati (m3/anno) | G5: QV (Euro/m3) | H5: - | I5: Utenze (numero) | J5: QF (Euro/utente/anno) | K5: Importo (Euro/anno) | L5: Volumi erogati / trattati (m3/anno) | M5: QV (Euro/m3) | N5: - | O5: Utenze (numero) | P5: QF (Euro/utente/anno) | Q5: Importo (Euro/anno) | R5: Volumi erogati / trattati (m3/anno) | S5: QV (Euro/m3) | T5: - | U5: Utenze (numero) | V5: QF (Euro/utente/anno) | W5: Importo (Euro/anno) | X5: Le tariffe riportate per il 2020 includono l'applicazione del Teta? | Y5: Teta medio applicato nella fatturazione dell'anno 2020 | Z5: Teta approvato dal soggetto competente per l'anno 2020 | AA5: Teta approvato dall'Autorità per l'anno 2020 | AB5: delibera Autorità | AC5: Le tariffe riportate per il 2021 includono l'applicazione del Teta? | AD5: Teta medio applicato nella fatturazione dell'anno 2021 | AE5: Teta approvato dal soggetto competente per l'anno 2021 | AF5: Teta approvato dall'Autorità per l'anno 2021 | AG5: delibera Autorità | AI5: tar2019*vol2020 | AJ5: tar2019*vol2021 | AK5: tar2020*vol2020 | AL5: tar2021*vol2021
A6: =+ROW(A6)-5 -> 1 | B6: =+IF(ISNA(VLOOKUP(C6,soggetto_j,2,FALSE)),0,VLOOKUP(C6,soggetto_j,2,FALSE)) -> 13989 | C6: ACEA ATO2 S.P.A. | D6: ATO 2 - LAZIO CENTRALE ROMA | E6: Adduzione | F6: 624412.8 | G6: 0.2692 | K6: =+F6*G6+I6*J6 -> 168091.9258 | L6: 624412.8 | M6: 0.274584 | Q6: =+L6*M6+O6*P6 -> 171453.7643 | R6: 398022.76 | S6: 0.288044 | W6: =+U6*V6+R6*S6 -> 114648.0679 | X6: SI | Y6: 1.02 | AA6: =+Dati_Anni_precedenti!$E$5 -> 1.02 | AB6: =+Dati_Anni_precedenti!$G$4 -> 0 | AC6: SI | AD6: 1.07 | AF6: =+Dati_Anni_precedenti!$F$5 -> 1.070185964 | AG6: =+Dati_Anni_precedenti!$G$4 -> 0 | AI6: =+O6*$J6+L6*$G6 -> 168091.9258 | AJ6: =+U6*$J6+R6*$G6 -> 107147.727 | AK6: =+Q6 -> 171453.7643 | AL6: =+W6 -> 114648.0679
A7: =+ROW(A7)-5 -> 2 | B7: =+IF(ISNA(VLOOKUP(C7,soggetto_j,2,FALSE)),0,VLOOKUP(C7,soggetto_j,2,FALSE)) -> 0 | C7: Comune di Sant'Angelo Romano | D7: ATO 2 - LAZIO CENTRALE ROMA | E7: Adduzione | F7: 378432 | G7: 0.2692 | K7: =+F7*G7+I7*J7 -> 101873.8944 | L7: 378432 | M7: 0.274584 | Q7: =+L7*M7+O7*P7 -> 103911.3723 | R7: 378432 | S7: 0.288044 | W7: =+U7*V7+R7*S7 -> 109005.067 | X7: SI | Y7: 1.02 | AA7: =+Dati_Anni_precedenti!$E$5 -> 1.02 | AB7: =+Dati_Anni_precedenti!$G$4 -> 0 | AC7: SI | AD7: 1.07 | AF7: =+Dati_Anni_precedenti!$F$5 -> 1.070185964 | AG7: =+Dati_Anni_precedenti!$G$4 -> 0 | AI7: =+O7*$J7+L7*$G7 -> 101873.8944 | AJ7: =+U7*$J7+R7*$G7 -> 101873.8944 | AK7: =+Q7 -> 103911.3723 | AL7: =+W7 -> 109005.067
A8: 3 | B8: =+IF(ISNA(VLOOKUP(C8,soggetto_j,2,FALSE)),0,VLOOKUP(C8,soggetto_j,2,FALSE)) -> 28453 | C8: COMUNE DI CAMERATA NUOVA | D8: ATO 2 - LAZIO CENTRALE ROMA | E8: Adduzione | K8: 0 | L8: 37691.48 | M8: 0.274584 | Q8: 10349.47734 | R8: 9656 | S8: 0.288044 | W8: 2781.352864 | X8: SI | Y8: 1.02 | AA8: =+Dati_Anni_precedenti!$E$5 -> 1.02 | AB8: =+Dati_Anni_precedenti!$G$4 -> 0 | AC8: SI | AD8: 1.07 | AF8: =+Dati_Anni_precedenti!$F$5 -> 1.070185964 | AG8: =+Dati_Anni_precedenti!$G$4 -> 0 | AI8: 0 | AJ8: 0 | AK8: 10349.47734 | AL8: 2781.352864
A9: 4 | B9: =+IF(ISNA(VLOOKUP(C9,soggetto_j,2,FALSE)),0,VLOOKUP(C9,soggetto_j,2,FALSE)) -> 9369 | C9: GRAN SASSO ACQUA S.P.A. | D9: ATO 1 - AQUILANO | E9: Adduzione | K9: 0 | L9: 165076.82 | M9: 0.274584 | Q9: 45327.45354 | R9: 162705.27 | S9: 0.288044 | W9: 46866.27679 | X9: SI | Y9: 1.02 | AA9: =+Dati_Anni_precedenti!$E$5 -> 1.02 | AB9: =+Dati_Anni_precedenti!$G$4 -> 0 | AC9: SI | AD9: 1.07 | AF9: =+Dati_Anni_precedenti!$F$5 -> 1.070185964 | AG9: =+Dati_Anni_precedenti!$G$4 -> 0 | AI9: 0 | AJ9: 0 | AK9: 45327.45354 | AL9: 46866.27679

Sheet Acquisto_Servizi_ingrosso
B1: SCAMBI ALL'INGROSSO
B3: 3. Costi per acquisto all'ingrosso | F3: costi sostenuti di fornitura all'ingrosso, criterio di competenza | Q3: costi a seguito dell'applicazione del J al grossista | W3: costi sostenuti di fornitura all'ingrosso, criterio di competenza | AH3: costi a seguito dell'applicazione del J al grossista
F4: ANNO 2020 - COeffettivo,2020 ai fini del COws comma 21.1 MTI-3 | L4: informazione sui J ANNO 2020 | Q4: ANNO 2020 - COeffettivo,2020 ai fini del RCws comma 27.1 MTI-3 | W4: ANNO 2021 - COeffettivo,2021 ai fini del COws comma 21.1 MTI-3 | AC4: informazione sui J ANNO 2021 | AH4: ANNO 2021 - COeffettivo,2021 ai fini del RCws comma 27.1 MTI-3
A5: N_riga | B5: Idgestore | C5: Soggetto da cui si acquista | D5: ATO | E5: Servizio | F5: Volumi erogati / trattati (m3/anno) | G5: QV (Euro/m3) | H5: - | I5: Utenze (numero) | J5: QF (Euro/utente/anno) | K5: Importo (Euro/anno) | L5: Le tariffe applicate per la fatturazione 2020 includono l'applicazione del Teta? | M5: Teta medio applicato dal grossista nella fatturazione dell'anno 2020 | N5: Teta approvato dal soggetto competente per l'anno 2020 | O5: Teta approvato dall'Autorità per l'anno 2020 | P5: delibera Autorità | Q5: Volumi erogati / trattati (m3/anno) | R5: QV (Euro/m3) | S5: - | T5: Utenze (numero) | U5: QF (Euro/utente/anno) | V5: Importo (Euro/anno) | W5: Volumi erogati / trattati (m3/anno) | X5: QV (Euro/m3) | Y5: - | Z5: Utenze (numero) | AA5: QF (Euro/utente/anno) | AB5: Importo (Euro/anno) | AC5: Le tariffe applicate per la fatturazione 2021 includono l'applicazione del Teta? | AD5: Teta medio applicato dal grossista nella fatturazione dell'anno 2021 | AE5: Teta approvato dal soggetto competente per l'anno 2021 | AF5: Teta approvato dall'Autorità per l'anno 2021 | AG5: delibera Autorità | AH5: Volumi erogati / trattati (m3/anno) | AI5: QV (Euro/m3) | AJ5: - | AK5: Utenze (numero) | AL5: QF (Euro/utente/anno) | AM5: Importo (Euro/anno) | AP5: check per RCws 2020 | AQ5: check per RCws 2021
A6: =+ROW(A6)-5 -> 1 | B6: =+IFERROR(VLOOKUP(C6,soggetto_j,2,FALSE),"") -> 13989 | C6: ACEA ATO2 S.P.A. | D6: ATO 2 - LAZIO CENTRALE ROMA | E6: Adduzione | F6: 6658130 | G6: 0.1643 | I6: 1 | J6: 398.59 | K6: =+F6*G6+I6*J6 -> 1094329.349 | Q6: 6658130 | R6: 0.1643 | T6: 1 | U6: 398.59 | V6: =+Q6*R6+T6*U6 -> 1094329.349 | W6: 5491235 | X6: 0.1737 | Z6: 1 | AA6: 314.79 | AB6: =+W6*X6+Z6*AA6 -> 954142.3095 | AH6: 5491235 | AI6: 0.1737 | AK6: 1 | AL6: 314.79 | AM6: =+AH6*AI6+AK6*AL6 -> 954142.3095 | AP6: =IF(OR(K6=0,V6=0),0,1) -> 1 | AQ6: =IF(OR(AB6=0,AM6=0),0,1) -> 1
A7: =+ROW(A7)-5 -> 2 | B7: 13989 | C7: ACEA ATO2 S.P.A. | D7: ATO 2 - LAZIO CENTRALE ROMA | E7: Adduzione | F7: 569201 | G7: 0 | J7: 0 | K7: =+F7*G7+I7*J7 -> 0 | Q7: 569201 | R7: 0 | U7: 0 | V7: =+Q7*R7+T7*U7 -> 0 | W7: 426124 | X7: 0 | AA7: 0 | AB7: =+W7*X7+Z7*AA7 -> 0 | AH7: 426124 | AI7: 0 | AL7: 0 | AM7: =+AH7*AI7+AK7*AL7 -> 0 | AP7: =IF(OR(K7=0,V7=0),0,1) -> 0 | AQ7: =IF(OR(AB7=0,AM7=0),0,1) -> 0
A8: 3 | B8: 8051 | C8: CONSORZIO ACQUEDOTTISTICO MARSICANO SPA | D8: ATO 2 - MARSICANO | E8: Adduzione | F8: 994941 | G8: 0.623256 | J8: 0 | K8: 620102.9479 | Q8: 994941 | R8: 0.623256 | U8: 0 | V8: 620102.9479 | AB8: 0 | AM8: 0 | AP8: 1 | AQ8: 0
A9: 4 | B9: 8051 | C9: CONSORZIO ACQUEDOTTISTICO MARSICANO SPA | D9: ATO 2 - MARSICANO | E9: Adduzione | F9: 1367105 | G9: 0.623256 | J9: 0 | K9: 852056.3939 | Q9: 1367105 | R9: 0.623256 | U9: 0 | V9: 852056.3939 | W9: 2392732 | X9: 0.669315 | AA9: 0 | AB9: 1601491.419 | AH9: 2392732 | AI9: 0.669315 | AL9: 0 | AM9: 1601491.419 | AP9: 1 | AQ9: 1
A10: 5 | B10: 23865 | C10: CONSORZIO COMUNI DELLA MEDIA SABINA | D10: ATO 3 - LAZIO CENTRALE RIETI | E10: Adduzione | F10: 60063 | G10: 0.8226252 | J10: 0 | K10: 49409.33739 | Q10: 60063 | R10: 0.8226252 | U10: 0 | V10: 49409.33739 | W10: 60063 | X10: 0.840441 | AA10: 0 | AB10: 50479.40778 | AH10: 60063 | AI10: 0.840441 | AL10: 0 | AM10: 50479.40778 | AP10: 1 | AQ10: 1
A11: 6 | B11: 0 | C11: Comune di Cittaducale | D11: ATO 3 - LAZIO CENTRALE RIETI | E11: Adduzione | F11: 2362293 | G11: 0.06572 | J11: 0 | K11: 155249.896 | Q11: 2362293 | R11: 0.06572 | U11: 0 | V11: 155249.896 | W11: 1816593 | X11: 0.06948 | AA11: 0 | AB11: 126216.8816 | AH11: 1816593 | AI11: 0.06948 | AL11: 0 | AM11: 126216.8816 | AP11: 1 | AQ11: 1
A12: =+ROW(A12)-5 -> 7 | B12: 0 | C12: Comune di Frasso Sabino | D12: ATO 3 - LAZIO CENTRALE RIETI | E12: Adduzione | F12: 126489 | G12: 0.06572 | J12: 0 | K12: =+F12*G12+I12*J12 -> 8312.85708 | Q12: 126489 | R12: 0.06572 | U12: 0 | V12: =+Q12*R12+T12*U12 -> 8312.85708 | W12: 94694 | X12: 0.06948 | AA12: 0 | AB12: =+W12*X12+Z12*AA12 -> 6579.33912 | AH12: 94694 | AI12: 0.06948 | AL12: 0 | AM12: =+AH12*AI12+AK12*AL12 -> 6579.33912 | AP12: =IF(OR(K12=0,V12=0),0,1) -> 1 | AQ12: =IF(OR(AB12=0,AM12=0),0,1) -> 1

Sheet Nuovi_Investimenti
B1: IMMOBILIZZAZIONI DEL GESTORE | G1: Tutti i valori si intendono a moneta dell'anno del cespite (2020-2021)
A2: 1. LAVORI IN CORSO | M2: errori_compilazione | N2: errore_PdI | O2: Sono_presenti_errori
D3: 2020 | E3: 2021 | M3: =+OR(INDEX(Nuovi_Investimenti,0,29)) -> FALSE | N3: =+(D10+E10-'PdI-riepilogo'!F4-'PdI-riepilogo'!G4)<>0 -> TRUE | O3: =++OR(M3:N3) -> TRUE
C4: Saldo LICord (al netto dei saldi che risultino invariati da più di 4 anni) | D4: 722306.85 | E4: 1672580.035
C5: Saldo LICpos (al netto dei saldi che risultino invariati da più di 5 anni) | D5: 0 | E5: 0
A7: 2. NUOVI INVESTIMENTI (2020-2021)
D8: 2020 | E8: 2021 | AA8: =+IF(OR(D8="Acquedotto",D8="Fognatura",D8="Depurazione",D8="Comune"),D8,"") -> 
C9: FoNIa-2 da riportare a CFP | D9: =Altri_dati_eco_fin!E57 -> 0 | E9: =Altri_dati_eco_fin!F57 -> 0
C10: Totale nuovi investimenti | D10: =+SUMIF($T:$T,D$8,$U:$U) -> 8848118.76 | E10: =+SUMIF($T:$T,E$8,$U:$U) -> 7832591.49 | K10: Valore | L10: Spazio per eventuale compilazione manuale del valore di incidenza
C11: incidenza ENV (%) | D11: =IF(K11="",IFERROR((SUMIFS($U:$U,$Z:$Z,"Env",$T:$T,D$8))/D10,0),K11) -> 0 | E11: =IF(K11="",IFERROR((SUMIFS($U:$U,$Z:$Z,"Env",$T:$T,E$8))/E10,0),K11) -> 0 | L11: incidenza ENV (%)
C12: incidenza RES (%) | D12: =IF(K12="",IFERROR((SUMIFS($U:$U,$Z:$Z,"Res",$T:$T,D$8))/D10,0),K12) -> 0 | E12: =IF(K12="",IFERROR((SUMIFS($U:$U,$Z:$Z,"Res",$T:$T,E$8))/E10,0),K12) -> 0 | L12: incidenza RES (%)
C13: incidenza FoNI (%) | D13: =IFERROR(D9/D10,0) -> 0 | E13: =IFERROR(E9/E10,0) -> 0
A15: N_riga | B15: Categoria del cespite | C15: Categoria di Immobilizzazione | D15: Attività | E15: Tipologia di costo sotteso ("Env", "Res", "Non ERC") | F15: Anno cespite | G15: IP (Euro) | H15: CFP (Euro) | I15: CFP da FoNI | J15: CFP Totale | K15: IDATO | L15: IDGestore | M15: Gestore_Proprietario | N15: N_prop | O15: Fonte | P15: ID_Categoria_Cespite | Q15: CategoriaCespite | R15: ID_Immobilizzazione | S15: IMMOBILIZZAZIONE | T15: AnnoCespite | U15: IP | V15: FAIP | W15: CFP | X15: FACP | Y15: - | Z15: ERC | AA15: Attività | AB15: foglio di origine | AC15: controllo_errori
A16: =+ROW(A16)-15 -> 1 | B16: Condotte di acquedotto | C16: Servizio idrico integrato | D16: =+IFERROR(VLOOKUP(B16,TT_Tabelle_Riferimento!$G$125:$I$160,3,FALSE),"") -> Acquedotto | E16: Non ERC | F16: 2020 | G16: 2472896.87 | H16: 2472896.87 | I16: =+IFERROR(HLOOKUP(F16,$D$8:$E$13,6,FALSE)*G16,0) -> 0 | J16: =+I16+H16 -> 2472896.87 | K16: =idato -> 1203 | L16: =idgestore -> 25320 | M16: Gestore | N16: 0 | O16: IP | P16: =+IFERROR(VLOOKUP(Q16,TT_Tabelle_Riferimento!$G$125:$K$160,5,0),0) -> 2 | Q16: =+IFERROR(VLOOKUP(B16,TT_Tabelle_Riferimento!$G$125:$K$160,1,0),0) -> Condotte di acquedotto | R16: =+IFERROR(VLOOKUP(S16,cat_imm_new,2,0),0) -> 1 | S16: =+IFERROR(VLOOKUP(C16,cat_imm_new,1,0),0) -> Servizio idrico integrato | T16: =F16 -> 2020 | U16: =G16 -> 2472896.87 | V16: 0 | W16: =J16 -> 2472896.87 | X16: 0 | Z16: =+IF(OR(E16="Res",E16="Env",E16="Non ERC"),E16,"") -> Non ERC | AA16: =+IF(OR(D16="Acquedotto",D16="Fognatura",D16="Depurazione",D16="Comune"),D16,"") -> Acquedotto | AB16: Nuovi_Investimenti | AC16: =+IF(OR(K16:L16=0,P16=0,R16=0),TRUE,FALSE) -> FALSE
A17: =+ROW(A17)-15 -> 2 | B17: Opere idrauliche fisse di acquedotto | C17: Servizio idrico integrato | D17: =+IFERROR(VLOOKUP(B17,TT_Tabelle_Riferimento!$G$125:$I$160,3,FALSE),"") -> Acquedotto | E17: Non ERC | F17: 2020 | G17: 24200 | H17: 0 | I17: =+IFERROR(HLOOKUP(F17,$D$8:$E$13,6,FALSE)*G17,0) -> 0 | J17: =+I17+H17 -> 0 | K17: 1203 | L17: 25320 | M17: Gestore | N17: 0 | O17: IP | P17: =+IFERROR(VLOOKUP(Q17,TT_Tabelle_Riferimento!$G$125:$K$160,5,0),0) -> 3 | Q17: =+IFERROR(VLOOKUP(B17,TT_Tabelle_Riferimento!$G$125:$K$160,1,0),0) -> Opere idrauliche fisse di acquedotto | R17: 1 | S17: Servizio idrico integrato | T17: =F17 -> 2020 | U17: =G17 -> 24200 | V17: 0 | W17: =J17 -> 0 | X17: 0 | Z17: =+IF(OR(E17="Res",E17="Env",E17="Non ERC"),E17,"") -> Non ERC | AA17: =+IF(OR(D17="Acquedotto",D17="Fognatura",D17="Depurazione",D17="Comune"),D17,"") -> Acquedotto | AB17: Nuovi_Investimenti | AC17: =+IF(OR(K17:L17=0,P17=0,R17=0),TRUE,FALSE) -> FALSE
A18: 3 | B18: Impianti di sollevamento e pompaggio di acquedotto | C18: Servizio idrico integrato | D18: =+IFERROR(VLOOKUP(B18,TT_Tabelle_Riferimento!$G$125:$I$160,3,FALSE),"") -> Acquedotto | E18: Non ERC | F18: 2020 | G18: 123090.87 | H18: 66228.02333 | I18: 0 | J18: 66228.02333 | K18: 1203 | L18: 25320 | M18: Gestore | N18: 0 | O18: IP | P18: =+IFERROR(VLOOKUP(Q18,TT_Tabelle_Riferimento!$G$125:$K$160,5,0),0) -> 5 | Q18: =+IFERROR(VLOOKUP(B18,TT_Tabelle_Riferimento!$G$125:$K$160,1,0),0) -> Impianti di sollevamento e pompaggio di acquedotto | R18: 1 | S18: Servizio idrico integrato | T18: 2020 | U18: 123090.87 | V18: 0 | W18: 66228.02333 | X18: 0 | Z18: Non ERC | AA18: Acquedotto | AB18: Nuovi_Investimenti | AC18: =+IF(OR(K18:L18=0,P18=0,R18=0),TRUE,FALSE) -> FALSE
A19: 4 | B19: Gruppi di misura - altre attrezzature di acquedotto | C19: Servizio idrico integrato | D19: =+IFERROR(VLOOKUP(B19,TT_Tabelle_Riferimento!$G$125:$I$160,3,FALSE),"") -> Acquedotto | E19: Non ERC | F19: 2020 | G19: 40093.2 | H19: 0 | I19: 0 | J19: 0 | K19: 1203 | L19: 25320 | M19: Gestore | N19: 0 | O19: IP | P19: =+IFERROR(VLOOKUP(Q19,TT_Tabelle_Riferimento!$G$125:$K$160,5,0),0) -> 8 | Q19: =+IFERROR(VLOOKUP(B19,TT_Tabelle_Riferimento!$G$125:$K$160,1,0),0) -> Gruppi di misura - altre attrezzature di acquedotto | R19: 1 | S19: Servizio idrico integrato | T19: 2020 | U19: 40093.2 | V19: 0 | W19: 0 | X19: 0 | Z19: Non ERC | AA19: Acquedotto | AB19: Nuovi_Investimenti | AC19: =+IF(OR(K19:L19=0,P19=0,R19=0),TRUE,FALSE) -> FALSE
A20: 5 | B20: Condotte fognarie | C20: Servizio idrico integrato | D20: =+IFERROR(VLOOKUP(B20,TT_Tabelle_Riferimento!$G$125:$I$160,3,FALSE),"") -> Fognatura | E20: Non ERC | F20: 2020 | G20: 335056 | H20: 7254 | I20: 0 | J20: 7254 | K20: 1203 | L20: 25320 | M20: Gestore | N20: 0 | O20: IP | P20: =+IFERROR(VLOOKUP(Q20,TT_Tabelle_Riferimento!$G$125:$K$160,5,0),0) -> 11 | Q20: =+IFERROR(VLOOKUP(B20,TT_Tabelle_Riferimento!$G$125:$K$160,1,0),0) -> Condotte fognarie | R20: 1 | S20: Servizio idrico integrato | T20: 2020 | U20: 335056 | V20: 0 | W20: 7254 | X20: 0 | Z20: Non ERC | AA20: Fognatura | AB20: Nuovi_Investimenti | AC20: =+IF(OR(K20:L20=0,P20=0,R20=0),TRUE,FALSE) -> FALSE
A21: 6 | B21: Impianti di sollevamento e pompaggio di fognatura | C21: Servizio idrico integrato | D21: =+IFERROR(VLOOKUP(B21,TT_Tabelle_Riferimento!$G$125:$I$160,3,FALSE),"") -> Fognatura | E21: Non ERC | F21: 2020 | G21: 799651.37 | H21: 742788.5233 | I21: 0 | J21: 742788.5233 | K21: 1203 | L21: 25320 | M21: Gestore | N21: 0 | O21: IP | P21: =+IFERROR(VLOOKUP(Q21,TT_Tabelle_Riferimento!$G$125:$K$160,5,0),0) -> 14 | Q21: =+IFERROR(VLOOKUP(B21,TT_Tabelle_Riferimento!$G$125:$K$160,1,0),0) -> Impianti di sollevamento e pompaggio di fognatura | R21: 1 | S21: Servizio idrico integrato | T21: 2020 | U21: 799651.37 | V21: 0 | W21: 742788.5233 | X21: 0 | Z21: Non ERC | AA21: Fognatura | AB21: Nuovi_Investimenti | AC21: =+IF(OR(K21:L21=0,P21=0,R21=0),TRUE,FALSE) -> FALSE
A22: 7 | B22: Impianti di sollevamento e pompaggio di depurazione | C22: Servizio idrico integrato | D22: =+IFERROR(VLOOKUP(B22,TT_Tabelle_Riferimento!$G$125:$I$160,3,FALSE),"") -> Depurazione | E22: Non ERC | F22: 2020 | G22: 123090.87 | H22: 66228.02333 | I22: 0 | J22: 66228.02333 | K22: 1203 | L22: 25320 | M22: Gestore | N22: 0 | O22: IP | P22: =+IFERROR(VLOOKUP(Q22,TT_Tabelle_Riferimento!$G$125:$K$160,5,0),0) -> 19 | Q22: =+IFERROR(VLOOKUP(B22,TT_Tabelle_Riferimento!$G$125:$K$160,1,0),0) -> Impianti di sollevamento e pompaggio di depurazione | R22: 1 | S22: Servizio idrico integrato | T22: 2020 | U22: 123090.87 | V22: 0 | W22: 66228.02333 | X22: 0 | Z22: Non ERC | AA22: Depurazione | AB22: Nuovi_Investimenti | AC22: =+IF(OR(K22:L22=0,P22=0,R22=0),TRUE,FALSE) -> FALSE
A23: 8 | B23: Impianti di depurazione – trattamenti sino al secondario | C23: Servizio idrico integrato | D23: =+IFERROR(VLOOKUP(B23,TT_Tabelle_Riferimento!$G$125:$I$160,3,FALSE),"") -> Depurazione | E23: Non ERC | F23: 2020 | G23: 3024246 | H23: 3024246 | I23: 0 | J23: 3024246 | K23: 1203 | L23: 25320 | M23: Gestore | N23: 0 | O23: IP | P23: =+IFERROR(VLOOKUP(Q23,TT_Tabelle_Riferimento!$G$125:$K$160,5,0),0) -> 22 | Q23: =+IFERROR(VLOOKUP(B23,TT_Tabelle_Riferimento!$G$125:$K$160,1,0),0) -> Impianti di depurazione – trattamenti sino al secondario | R23: 1 | S23: Servizio idrico integrato | T23: 2020 | U23: 3024246 | V23: 0 | W23: 3024246 | X23: 0 | Z23: Non ERC | AA23: Depurazione | AB23: Nuovi_Investimenti | AC23: =+IF(OR(K23:L23=0,P23=0,R23=0),TRUE,FALSE) -> FALSE
A24: 9 | B24: Impianti di depurazione – trattamenti sino al terziario e terziario avanzato | C24: Servizio idrico integrato | D24: =+IFERROR(VLOOKUP(B24,TT_Tabelle_Riferimento!$G$125:$I$160,3,FALSE),"") -> Depurazione | E24: Non ERC | F24: 2020 | G24: 1326004 | H24: 0 | I24: 0 | J24: 0 | K24: 1203 | L24: 25320 | M24: Gestore | N24: 0 | O24: IP | P24: =+IFERROR(VLOOKUP(Q24,TT_Tabelle_Riferimento!$G$125:$K$160,5,0),0) -> 23 | Q24: =+IFERROR(VLOOKUP(B24,TT_Tabelle_Riferimento!$G$125:$K$160,1,0),0) -> Impianti di depurazione – trattamenti sino al terziario e terziario avanzato | R24: 1 | S24: Servizio idrico integrato | T24: 2020 | U24: 1326004 | V24: 0 | W24: 0 | X24: 0 | Z24: Non ERC | AA24: Depurazione | AB24: Nuovi_Investimenti | AC24: =+IF(OR(K24:L24=0,P24=0,R24=0),TRUE,FALSE) -> FALSE
A25: 10 | B25: Autoveicoli - automezzi | C25: Servizio idrico integrato | D25: =+IFERROR(VLOOKUP(B25,TT_Tabelle_Riferimento!$G$125:$I$160,3,FALSE),"") -> Comune | E25: Non ERC | F25: 2020 | G25: 56853.33 | H25: 0 | I25: 0 | J25: 0 | K25: 1203 | L25: 25320 | M25: Gestore | N25: 0 | O25: IP | P25: =+IFERROR(VLOOKUP(Q25,TT_Tabelle_Riferimento!$G$125:$K$160,5,0),0) -> 32 | Q25: =+IFERROR(VLOOKUP(B25,TT_Tabelle_Riferimento!$G$125:$K$160,1,0),0) -> Autoveicoli - automezzi | R25: 1 | S25: Servizio idrico integrato | T25: 2020 | U25: 56853.33 | V25: 0 | W25: 0 | X25: 0 | Z25: Non ERC | AA25: Comune | AB25: Nuovi_Investimenti | AC25: =+IF(OR(K25:L25=0,P25=0,R25=0),TRUE,FALSE) -> FALSE
A26: 11 | B26: Fabbricati industriali | C26: Servizio idrico integrato | D26: =+IFERROR(VLOOKUP(B26,TT_Tabelle_Riferimento!$G$125:$I$160,3,FALSE),"") -> Comune | E26: Non ERC | F26: 2020 | G26: 300000 | H26: 0 | I26: 0 | J26: 0 | K26: 1203 | L26: 25320 | M26: Gestore | N26: 0 | O26: IP | P26: =+IFERROR(VLOOKUP(Q26,TT_Tabelle_Riferimento!$G$125:$K$160,5,0),0) -> 34 | Q26: =+IFERROR(VLOOKUP(B26,TT_Tabelle_Riferimento!$G$125:$K$160,1,0),0) -> Fabbricati industriali | R26: 1 | S26: Servizio idrico integrato | T26: 2020 | U26: 300000 | V26: 0 | W26: 0 | X26: 0 | Z26: Non ERC | AA26: Comune | AB26: Nuovi_Investimenti | AC26: =+IF(OR(K26:L26=0,P26=0,R26=0),TRUE,FALSE) -> FALSE
A27: 12 | B27: Altre immobilizzazioni materiali e immateriali | C27: Servizio idrico integrato | D27: =+IFERROR(VLOOKUP(B27,TT_Tabelle_Riferimento!$G$125:$I$160,3,FALSE),"") -> Comune | E27: Non ERC | F27: 2020 | G27: 222936.25 | H27: 52515 | I27: 0 | J27: 52515 | K27: 1203 | L27: 25320 | M27: Gestore | N27: 0 | O27: IP | P27: =+IFERROR(VLOOKUP(Q27,TT_Tabelle_Riferimento!$G$125:$K$160,5,0),0) -> 37 | Q27: =+IFERROR(VLOOKUP(B27,TT_Tabelle_Riferimento!$G$125:$K$160,1,0),0) -> Altre immobilizzazioni materiali e immateriali | R27: 1 | S27: Servizio idrico integrato | T27: 2020 | U27: 222936.25 | V27: 0 | W27: 52515 | X27: 0 | Z27: Non ERC | AA27: Comune | AB27: Nuovi_Investimenti | AC27: =+IF(OR(K27:L27=0,P27=0,R27=0),TRUE,FALSE) -> FALSE
A28: 13 | B28: Condotte di acquedotto | C28: Servizio idrico integrato | D28: =+IFERROR(VLOOKUP(B28,TT_Tabelle_Riferimento!$G$125:$I$160,3,FALSE),"") -> Acquedotto | E28: Non ERC | F28: 2021 | G28: 1119284.96 | H28: 961346.265 | I28: 0 | J28: 961346.265 | K28: 1203 | L28: 25320 | M28: Gestore | N28: 0 | O28: IP | P28: =+IFERROR(VLOOKUP(Q28,TT_Tabelle_Riferimento!$G$125:$K$160,5,0),0) -> 2 | Q28: =+IFERROR(VLOOKUP(B28,TT_Tabelle_Riferimento!$G$125:$K$160,1,0),0) -> Condotte di acquedotto | R28: 1 | S28: Servizio idrico integrato | T28: 2021 | U28: 1119284.96 | V28: 0 | W28: 961346.265 | X28: 0 | Z28: Non ERC | AA28: Acquedotto | AB28: Nuovi_Investimenti | AC28: =+IF(OR(K28:L28=0,P28=0,R28=0),TRUE,FALSE) -> FALSE
A29: 14 | B29: Opere idrauliche fisse di acquedotto | C29: Servizio idrico integrato | D29: =+IFERROR(VLOOKUP(B29,TT_Tabelle_Riferimento!$G$125:$I$160,3,FALSE),"") -> Acquedotto | E29: Non ERC | F29: 2021 | G29: 807921.08 | H29: 479090.97 | I29: 0 | J29: 479090.97 | K29: 1203 | L29: 25320 | M29: Gestore | N29: 0 | O29: IP | P29: =+IFERROR(VLOOKUP(Q29,TT_Tabelle_Riferimento!$G$125:$K$160,5,0),0) -> 3 | Q29: =+IFERROR(VLOOKUP(B29,TT_Tabelle_Riferimento!$G$125:$K$160,1,0),0) -> Opere idrauliche fisse di acquedotto | R29: 1 | S29: Servizio idrico integrato | T29: 2021 | U29: 807921.08 | V29: 0 | W29: 479090.97 | X29: 0 | Z29: Non ERC | AA29: Acquedotto | AB29: Nuovi_Investimenti | AC29: =+IF(OR(K29:L29=0,P29=0,R29=0),TRUE,FALSE) -> FALSE
A30: 15 | B30: Impianti di sollevamento e pompaggio di acquedotto | C30: Servizio idrico integrato | D30: =+IFERROR(VLOOKUP(B30,TT_Tabelle_Riferimento!$G$125:$I$160,3,FALSE),"") -> Acquedotto | E30: Non ERC | F30: 2021 | G30: 172621.48 | H30: 72869.41333 | I30: 0 | J30: 72869.41333 | K30: 1203 | L30: 25320 | M30: Gestore | N30: 0 | O30: IP | P30: =+IFERROR(VLOOKUP(Q30,TT_Tabelle_Riferimento!$G$125:$K$160,5,0),0) -> 5 | Q30: =+IFERROR(VLOOKUP(B30,TT_Tabelle_Riferimento!$G$125:$K$160,1,0),0) -> Impianti di sollevamento e pompaggio di acquedotto | R30: 1 | S30: Servizio idrico integrato | T30: 2021 | U30: 172621.48 | V30: 0 | W30: 72869.41333 | X30: 0 | Z30: Non ERC | AA30: Acquedotto | AB30: Nuovi_Investimenti | AC30: =+IF(OR(K30:L30=0,P30=0,R30=0),TRUE,FALSE) -> FALSE
A31: 16 | B31: Impianti di potabilizzazione | C31: Servizio idrico integrato | D31: =+IFERROR(VLOOKUP(B31,TT_Tabelle_Riferimento!$G$125:$I$160,3,FALSE),"") -> Acquedotto | E31: Non ERC | F31: 2021 | G31: 149000 | H31: 0 | I31: 0 | J31: 0 | K31: 1203 | L31: 25320 | M31: Gestore | N31: 0 | O31: IP | P31: =+IFERROR(VLOOKUP(Q31,TT_Tabelle_Riferimento!$G$125:$K$160,5,0),0) -> 6 | Q31: =+IFERROR(VLOOKUP(B31,TT_Tabelle_Riferimento!$G$125:$K$160,1,0),0) -> Impianti di potabilizzazione | R31: 1 | S31: Servizio idrico integrato | T31: 2021 | U31: 149000 | V31: 0 | W31: 0 | X31: 0 | Z31: Non ERC | AA31: Acquedotto | AB31: Nuovi_Investimenti | AC31: =+IF(OR(K31:L31=0,P31=0,R31=0),TRUE,FALSE) -> FALSE
A32: 17 | B32: Gruppi di misura - altre attrezzature di acquedotto | C32: Servizio idrico integrato | D32: =+IFERROR(VLOOKUP(B32,TT_Tabelle_Riferimento!$G$125:$I$160,3,FALSE),"") -> Acquedotto | E32: Non ERC | F32: 2021 | G32: 39298 | H32: 0 | I32: 0 | J32: 0 | K32: 1203 | L32: 25320 | M32: Gestore | N32: 0 | O32: IP | P32: =+IFERROR(VLOOKUP(Q32,TT_Tabelle_Riferimento!$G$125:$K$160,5,0),0) -> 8 | Q32: =+IFERROR(VLOOKUP(B32,TT_Tabelle_Riferimento!$G$125:$K$160,1,0),0) -> Gruppi di misura - altre attrezzature di acquedotto | R32: 1 | S32: Servizio idrico integrato | T32: 2021 | U32: 39298 | V32: 0 | W32: 0 | X32: 0 | Z32: Non ERC | AA32: Acquedotto | AB32: Nuovi_Investimenti | AC32: =+IF(OR(K32:L32=0,P32=0,R32=0),TRUE,FALSE) -> FALSE
A33: 18 | B33: Condotte fognarie | C33: Servizio idrico integrato | D33: =+IFERROR(VLOOKUP(B33,TT_Tabelle_Riferimento!$G$125:$I$160,3,FALSE),"") -> Fognatura | E33: Non ERC | F33: 2021 | G33: 1902844.7 | H33: 927303.765 | I33: 0 | J33: 927303.765 | K33: 1203 | L33: 25320 | M33: Gestore | N33: 0 | O33: IP | P33: =+IFERROR(VLOOKUP(Q33,TT_Tabelle_Riferimento!$G$125:$K$160,5,0),0) -> 11 | Q33: =+IFERROR(VLOOKUP(B33,TT_Tabelle_Riferimento!$G$125:$K$160,1,0),0) -> Condotte fognarie | R33: 1 | S33: Servizio idrico integrato | T33: 2021 | U33: 1902844.7 | V33: 0 | W33: 927303.765 | X33: 0 | Z33: Non ERC | AA33: Fognatura | AB33: Nuovi_Investimenti | AC33: =+IF(OR(K33:L33=0,P33=0,R33=0),TRUE,FALSE) -> FALSE
A34: 19 | B34: Impianti di sollevamento e pompaggio di fognatura | C34: Servizio idrico integrato | D34: =+IFERROR(VLOOKUP(B34,TT_Tabelle_Riferimento!$G$125:$I$160,3,FALSE),"") -> Fognatura | E34: Non ERC | F34: 2021 | G34: 172621.48 | H34: 72869.41333 | I34: 0 | J34: 72869.41333 | K34: 1203 | L34: 25320 | M34: Gestore | N34: 0 | O34: IP | P34: =+IFERROR(VLOOKUP(Q34,TT_Tabelle_Riferimento!$G$125:$K$160,5,0),0) -> 14 | Q34: =+IFERROR(VLOOKUP(B34,TT_Tabelle_Riferimento!$G$125:$K$160,1,0),0) -> Impianti di sollevamento e pompaggio di fognatura | R34: 1 | S34: Servizio idrico integrato | T34: 2021 | U34: 172621.48 | V34: 0 | W34: 72869.41333 | X34: 0 | Z34: Non ERC | AA34: Fognatura | AB34: Nuovi_Investimenti | AC34: =+IF(OR(K34:L34=0,P34=0,R34=0),TRUE,FALSE) -> FALSE
A35: 20 | B35: Impianti di sollevamento e pompaggio di depurazione | C35: Servizio idrico integrato | D35: =+IFERROR(VLOOKUP(B35,TT_Tabelle_Riferimento!$G$125:$I$160,3,FALSE),"") -> Depurazione | E35: Non ERC | F35: 2021 | G35: 172621.48 | H35: 72869.41333 | I35: 0 | J35: 72869.41333 | K35: 1203 | L35: 25320 | M35: Gestore | N35: 0 | O35: IP | P35: =+IFERROR(VLOOKUP(Q35,TT_Tabelle_Riferimento!$G$125:$K$160,5,0),0) -> 19 | Q35: =+IFERROR(VLOOKUP(B35,TT_Tabelle_Riferimento!$G$125:$K$160,1,0),0) -> Impianti di sollevamento e pompaggio di depurazione | R35: 1 | S35: Servizio idrico integrato | T35: 2021 | U35: 172621.48 | V35: 0 | W35: 72869.41333 | X35: 0 | Z35: Non ERC | AA35: Depurazione | AB35: Nuovi_Investimenti | AC35: =+IF(OR(K35:L35=0,P35=0,R35=0),TRUE,FALSE) -> FALSE
A36: 21 | B36: Impianti di depurazione – trattamenti sino al secondario | C36: Servizio idrico integrato | D36: =+IFERROR(VLOOKUP(B36,TT_Tabelle_Riferimento!$G$125:$I$160,3,FALSE),"") -> Depurazione | E36: Non ERC | F36: 2021 | G36: 147900 | H36: 147900 | I36: 0 | J36: 147900 | K36: 1203 | L36: 25320 | M36: Gestore | N36: 0 | O36: IP | P36: =+IFERROR(VLOOKUP(Q36,TT_Tabelle_Riferimento!$G$125:$K$160,5,0),0) -> 22 | Q36: =+IFERROR(VLOOKUP(B36,TT_Tabelle_Riferimento!$G$125:$K$160,1,0),0) -> Impianti di depurazione – trattamenti sino al secondario | R36: 1 | S36: Servizio idrico integrato | T36: 2021 | U36: 147900 | V36: 0 | W36: 147900 | X36: 0 | Z36: Non ERC | AA36: Depurazione | AB36: Nuovi_Investimenti | AC36: =+IF(OR(K36:L36=0,P36=0,R36=0),TRUE,FALSE) -> FALSE
A37: 22 | B37: Impianti di essiccamento fanghi e di valorizzazione dei fanghi (tra cui mono-incenerimento, pirolisi, gassificazione) | C37: Servizio idrico integrato | D37: =+IFERROR(VLOOKUP(B37,TT_Tabelle_Riferimento!$G$125:$I$160,3,FALSE),"") -> Depurazione | E37: Non ERC | F37: 2021 | G37: 149540 | H37: 149540 | I37: 0 | J37: 149540 | K37: 1203 | L37: 25320 | M37: Gestore | N37: 0 | O37: IP | P37: =+IFERROR(VLOOKUP(Q37,TT_Tabelle_Riferimento!$G$125:$K$160,5,0),0) -> 24 | Q37: =+IFERROR(VLOOKUP(B37,TT_Tabelle_Riferimento!$G$125:$K$160,1,0),0) -> Impianti di essiccamento fanghi e di valorizzazione dei fanghi (tra cui mono-incenerimento, pirolisi, gassificazione) | R37: 1 | S37: Servizio idrico integrato | T37: 2021 | U37: 149540 | V37: 0 | W37: 149540 | X37: 0 | Z37: Non ERC | AA37: Depurazione | AB37: Nuovi_Investimenti | AC37: =+IF(OR(K37:L37=0,P37=0,R37=0),TRUE,FALSE) -> FALSE
A38: 23 | B38: Fabbricati non industriali | C38: Servizio idrico integrato | D38: =+IFERROR(VLOOKUP(B38,TT_Tabelle_Riferimento!$G$125:$I$160,3,FALSE),"") -> Comune | E38: Non ERC | F38: 2021 | G38: 470536.49 | H38: 470536.49 | I38: 0 | J38: 470536.49 | K38: 1203 | L38: 25320 | M38: Gestore | N38: 0 | O38: IP | P38: =+IFERROR(VLOOKUP(Q38,TT_Tabelle_Riferimento!$G$125:$K$160,5,0),0) -> 33 | Q38: =+IFERROR(VLOOKUP(B38,TT_Tabelle_Riferimento!$G$125:$K$160,1,0),0) -> Fabbricati non industriali | R38: 1 | S38: Servizio idrico integrato | T38: 2021 | U38: 470536.49 | V38: 0 | W38: 470536.49 | X38: 0 | Z38: Non ERC | AA38: Comune | AB38: Nuovi_Investimenti | AC38: =+IF(OR(K38:L38=0,P38=0,R38=0),TRUE,FALSE) -> FALSE
A39: 24 | B39: Studi, ricerche, brevetti, diritti di utilizzazione | C39: Servizio idrico integrato | D39: =+IFERROR(VLOOKUP(B39,TT_Tabelle_Riferimento!$G$125:$I$160,3,FALSE),"") -> Comune | E39: Non ERC | F39: 2021 | G39: 86435.78 | H39: 36435.78 | I39: 0 | J39: 36435.78 | K39: 1203 | L39: 25320 | M39: Gestore | N39: 0 | O39: IP | P39: =+IFERROR(VLOOKUP(Q39,TT_Tabelle_Riferimento!$G$125:$K$160,5,0),0) -> 36 | Q39: =+IFERROR(VLOOKUP(B39,TT_Tabelle_Riferimento!$G$125:$K$160,1,0),0) -> Studi, ricerche, brevetti, diritti di utilizzazione | R39: 1 | S39: Servizio idrico integrato | T39: 2021 | U39: 86435.78 | V39: 0 | W39: 36435.78 | X39: 0 | Z39: Non ERC | AA39: Comune | AB39: Nuovi_Investimenti | AC39: =+IF(OR(K39:L39=0,P39=0,R39=0),TRUE,FALSE) -> FALSE
A40: 25 | B40: Altre immobilizzazioni materiali e immateriali | C40: Servizio idrico integrato | D40: =+IFERROR(VLOOKUP(B40,TT_Tabelle_Riferimento!$G$125:$I$160,3,FALSE),"") -> Comune | E40: Non ERC | F40: 2021 | G40: 2441966.04 | H40: 1463776.54 | I40: 0 | J40: 1463776.54 | K40: 1203 | L40: 25320 | M40: Gestore | N40: 0 | O40: IP | P40: =+IFERROR(VLOOKUP(Q40,TT_Tabelle_Riferimento!$G$125:$K$160,5,0),0) -> 37 | Q40: =+IFERROR(VLOOKUP(B40,TT_Tabelle_Riferimento!$G$125:$K$160,1,0),0) -> Altre immobilizzazioni materiali e immateriali | R40: 1 | S40: Servizio idrico integrato | T40: 2021 | U40: 2441966.04 | V40: 0 | W40: 1463776.54 | X40: 0 | Z40: Non ERC | AA40: Comune | AB40: Nuovi_Investimenti | AC40: =+IF(OR(K40:L40=0,P40=0,R40=0),TRUE,FALSE) -> FALSE

Sheet Dismissioni
B1: IMMOBILIZZAZIONI DEL GESTORE | G1: Tutti i valori si intendono a moneta dell'anno del cespite
A2: 3. DISMISSIONI
M3: Sono presenti errori
M4: =+OR(INDEX(Dismissioni,0,32)) -> FALSE
A7: N_riga | B7: Categoria del cespite | C7: Categoria di Immobilizzazione | D7: Attività | E7: Tipologia di costo sotteso ("Env", "Res", "Non ERC") | F7: Anno dismissione | G7: Anno cespite | H7: IP (Euro) | I7: FA (Euro) | J7: CFP (Euro) | K7: FA cfp (Euro) | M7: IDATO | N7: IDGESTORE | O7: Gestore_Proprietario | P7: N_prop | Q7: Fonte | R7: ID_Categoria_Cespite | S7: CategoriaCespite | T7: ID_Immobilizzazione | U7: IMMOBILIZZAZIONE | V7: AnnoDismissione | W7: IP | X7: FAIP | Y7: CFP | Z7: FACFP | AA7: - | AB7: ERC | AC7: Attività | AD7: foglio di origine | AE7: AnnoCespite | AF7: controllo_errori
A8: =+ROW(A8)-8 -> 0 | D8: =+IFERROR(IF(G8>=2020,VLOOKUP(B8,TT_Tabelle_Riferimento!$G$125:$I$160,3,FALSE),""),"") ->  | M8: =idato -> 1203 | N8: =idgestore -> 25320 | O8: Gestore | P8: 0 | Q8: IP | R8: =+IFERROR(IF(G8<2020,VLOOKUP(B8,id_cat_ces,2,FALSE),VLOOKUP(B8,TT_Tabelle_Riferimento!$G$125:$K$160,5,FALSE)),0) -> 0 | S8: =+IFERROR(IF(G8<2020,VLOOKUP(B8,id_cat_ces,1,FALSE),VLOOKUP(B8,TT_Tabelle_Riferimento!$G$125:$K$160,1,FALSE)),0) -> 0 | T8: =+IFERROR(VLOOKUP(U8,cat_imm_new,2,0),0) -> 0 | U8: =+IFERROR(VLOOKUP(C8,cat_imm_new,1,0),0) -> 0 | V8: =+F8 -> 0 | W8: =+IFERROR(IP(ABS($H8),$R8,$T8,$G8,V8+2,ifl),0)*-1 -> 0 | X8: =+IFERROR(FondoAmm(ABS($H8),ABS($I8),$G8,$R8,$T8,V8+2,vite_regolatorie,ifl),0)*-1 -> 0 | Y8: =+IFERROR(CFP_A(ABS($J8),$R8,$T8,$G8,V8+2,ifl),0)*-1 -> 0 | Z8: =+IFERROR(FACFP(ABS($J8),ABS($K8),$G8,$R8,$T8,V8+2,vite_regolatorie,ifl),0)*-1 -> 0 | AB8: =+IF(OR(E8="Res",E8="Env",E8="Non ERC"),E8,"") ->  | AC8: =+IF(OR(D8="Acquedotto",D8="Fognatura",D8="Depurazione",D8="Comune"),D8,"") ->  | AD8: Dismissioni | AE8: =+G8 -> 0 | AF8: =+IF(OR(M8:N8=0,R8=0,T8=0),IF(COUNTA(A:A)>3,TRUE,FALSE),FALSE) -> FALSE

Sheet Ammortamento_Finanziario
B1: IMMOBILIZZAZIONI DEL GESTORE
A2: 4. VITE UTILI PER LO SVILUPPO DELLA RAB | E2: area dati storici MTT - MTI | N2: area dati storici MTI-2 - MTI-2 aggiornamento | Z2: area MTI-3 | AK2: area MTI-3 aggiornamento
D3: Anno del Cespite | E3: ANNI 1967 - 2011 | H3: ANNO 2012 | K3: ANNO 2013 | N3: ANNO 2014 | Q3: ANNO 2015 | T3: ANNO 2016 | W3: ANNO 2017 | Z3: ANNO 2018 | AC3: ANNO 2019 | AK3: ANNO 2020 | AN3: ANNO 2021
E4: =+IF(iAF="SI","SI","NO") -> NO | H4: =+IF(OR(iAF="SI",Dati_Anni_precedenti!E110="SI"),"SI","NO") -> NO | K4: =+IF(OR(iAF="SI",Dati_Anni_precedenti!F110="SI"),"SI","NO") -> NO | N4: =+IF(OR(iAF="SI",Dati_Anni_precedenti!E102="SI"),"SI","NO") -> NO | Q4: =+IF(OR(iAF="SI",Dati_Anni_precedenti!F102="SI"),"SI","NO") -> NO | T4: =+IF(OR(iAF="SI",Dati_Anni_precedenti!E93="SI"),"SI","NO") -> NO | W4: =+IF(OR(iAF="SI",Dati_Anni_precedenti!F93="SI"),"SI","NO") -> NO | Z4: NO | AC4: NO | AK4: NO | AN4: NO
D5: Anno di calcolo | F5: 2022 | G5: 2023 | I5: 2022 | J5: 2023 | L5: 2022 | M5: 2023 | O5: 2022 | P5: 2023 | R5: 2022 | S5: 2023 | U5: 2022 | V5: 2023 | X5: 2022 | Y5: 2023 | AA5: 2022 | AB5: 2023 | AD5: 2022 | AE5: 2023 | AL5: 2022 | AM5: 2023 | AO5: 2023
E6: Periodo di ammortamento: | H6: Periodo di ammortamento: | K6: Periodo di ammortamento: | N6: Periodo di ammortamento: | Q6: Periodo di ammortamento: | T6: Periodo di ammortamento: | W6: Periodo di ammortamento: | Z6: Periodo di ammortamento: | AC6: Periodo di ammortamento: | AK6: Periodo di ammortamento: | AN6: Periodo di ammortamento:
B7: ID | C7: Categoria Cespite | E7: vite utili regolatorie (MTT) | F7: durata ammortamento finanziario | G7: durata ammortamento finanziario | H7: vite utili regolatorie (MTI) | I7: durata ammortamento finanziario | J7: durata ammortamento finanziario | K7: vite utili regolatorie (MTI) | L7: durata ammortamento finanziario | M7: durata ammortamento finanziario | N7: vite utili regolatorie (MTI-2) | O7: durata ammortamento finanziario | P7: durata ammortamento finanziario | Q7: vite utili regolatorie (MTI-2) | R7: durata ammortamento finanziario | S7: durata ammortamento finanziario | T7: vite utili regolatorie (MTI-2) | U7: durata ammortamento finanziario | V7: durata ammortamento finanziario | W7: vite utili regolatorie (MTI-2) | X7: durata ammortamento finanziario | Y7: durata ammortamento finanziario | Z7: vite utili regolatorie (MTI-3) | AA7: durata ammortamento finanziario | AB7: durata ammortamento finanziario | AC7: vite utili regolatorie (MTI-3) | AD7: durata ammortamento finanziario | AE7: durata ammortamento finanziario | AG7: ID | AH7: Categoria Cespite | AI7: Macro-indicatore di riferimento* | AJ7: Categoria di immobilizzazioni | AK7: vite utili regolatorie (MTI-3) | AL7: durata ammortamento finanziario | AM7: durata ammortamento finanziario | AN7: vite utili regolatorie (MTI-3) | AO7: durata ammortamento finanziario
B8: 1 | C8: Terreni | AG8: 1 | AH8: Terreni | AI8: - | AJ8: Comune
B9: 2 | C9: Fabbricati non industriali | E9: 40 | H9: 40 | K9: 40 | N9: 40 | Q9: 40 | T9: 40 | W9: 40 | Z9: 40 | AC9: 40 | AG9: 2 | AH9: Condotte di acquedotto | AI9: M1-M2-MC1 | AJ9: Acquedotto | AK9: 40 | AN9: 40
B10: 3 | C10: Fabbricati industriali | E10: 40 | H10: 40 | K10: 40 | N10: 40 | Q10: 40 | T10: 40 | W10: 40 | Z10: 40 | AC10: 40 | AG10: 3 | AH10: Opere idrauliche fisse di acquedotto | AI10: M1-M2-M3 | AJ10: Acquedotto | AK10: 40 | AN10: 40
B11: 4 | C11: Costruzioni leggere | E11: 40 | H11: 40 | K11: 40 | N11: 40 | Q11: 40 | T11: 40 | W11: 40 | Z11: 40 | AC11: 40 | AG11: 4 | AH11: Serbatoi | AI11: M1-M2 | AJ11: Acquedotto | AK11: 40 | AN11: 40
B12: 5 | C12: Condutture e opere idrauliche fisse | E12: 40 | H12: 40 | K12: 40 | N12: 40 | Q12: 40 | T12: 40 | W12: 40 | Z12: 40 | AC12: 40 | AG12: 5 | AH12: Impianti di sollevamento e pompaggio di acquedotto | AI12: M1-M2-M3 | AJ12: Acquedotto | AK12: 8 | AN12: 8
B13: 6 | C13: Serbatoi | E13: 50 | H13: 50 | K13: 50 | N13: 50 | Q13: 50 | T13: 50 | W13: 50 | Z13: 50 | AC13: 50 | AG13: 6 | AH13: Impianti di potabilizzazione | AI13: M3 | AJ13: Acquedotto | AK13: 20 | AN13: 20
B14: 7 | C14: Impianti di trattamento | E14: 12 | H14: 12 | K14: 12 | N14: 12 | Q14: 12 | T14: 12 | W14: 12 | Z14: 12 | AC14: 12 | AG14: 7 | AH14: Altri trattamenti di potabilizzazione (tra cui dispositivi di disinfezione, stacciatura, filtrazione, addolcimento) | AI14: M3 | AJ14: Acquedotto | AK14: 12 | AN14: 12
B15: 8 | C15: Impianti di sollevamento e pompaggio | E15: 8 | H15: 8 | K15: 8 | N15: 8 | Q15: 8 | T15: 8 | W15: 8 | Z15: 8 | AC15: 8 | AG15: 8 | AH15: Gruppi di misura - altre attrezzature di acquedotto | AI15: M1-MC1-MC2 | AJ15: Acquedotto | AK15: 10 | AN15: 10
B16: 9 | C16: Gruppi di misura meccanici | E16: 15 | H16: 15 | K16: 15 | N16: 15 | Q16: 15 | T16: 15 | W16: 15 | Z16: 15 | AC16: 15 | AG16: 9 | AH16: Sistemi informativi di acquedotto | AI16: M1-M2-M3 | AJ16: Acquedotto | AK16: 5 | AN16: 5
B17: 10 | C17: Gruppi di misura elettronici | E17: 15 | H17: 15 | K17: 15 | N17: 15 | Q17: 15 | T17: 15 | W17: 15 | Z17: 15 | AC17: 15 | AG17: 10 | AH17: Telecontrollo e teletrasmissione di acquedotto | AI17: M1-M2-M3 | AJ17: Acquedotto | AK17: 8 | AN17: 8
B18: 11 | C18: Altri impianti | E18: 20 | H18: 20 | K18: 20 | N18: 20 | Q18: 20 | T18: 20 | W18: 20 | Z18: 20 | AC18: 20 | AG18: 11 | AH18: Condotte fognarie | AI18: M4 | AJ18: Fognatura | AK18: 50 | AN18: 50
B19: 12 | C19: Laboratori | E19: 10 | H19: 10 | K19: 10 | N19: 10 | Q19: 10 | T19: 10 | W19: 10 | Z19: 10 | AC19: 10 | AG19: 12 | AH19: Sifoni e scaricatori di piena e altre opere idrauliche fisse di fognatura | AI19: M4 | AJ19: Fognatura | AK19: 40 | AN19: 40
B20: 13 | C20: Telecontrollo | E20: 8 | H20: 8 | K20: 8 | N20: 8 | Q20: 8 | T20: 8 | W20: 8 | Z20: 8 | AC20: 8 | AG20: 13 | AH20: Vasche di laminazione e vasche di prima pioggia | AI20: M4 | AJ20: Fognatura | AK20: 40 | AN20: 40
B21: 14 | C21: Autoveicoli | E21: 5 | H21: 5 | K21: 5 | N21: 5 | Q21: 5 | T21: 5 | W21: 5 | Z21: 5 | AC21: 5 | AG21: 14 | AH21: Impianti di sollevamento e pompaggio di fognatura | AI21: M4 | AJ21: Fognatura | AK21: 8 | AN21: 8
B22: 15 | C22: Studi, ricerche, brevetti, diritti di utilizzazione | E22: 5 | H22: 5 | K22: 5 | N22: 5 | Q22: 5 | T22: 5 | W22: 5 | Z22: 5 | AC22: 5 | AG22: 15 | AH22: Gruppi di misura - altre attrezzature di fognatura | AI22: M4 | AJ22: Fognatura | AK22: 10 | AN22: 10
B23: 16 | C23: Altre immobilizzazioni materiali e immateriali | E23: 7 | H23: 7 | K23: 7 | N23: 7 | Q23: 7 | T23: 7 | W23: 7 | Z23: 7 | AC23: 7 | AG23: 16 | AH23: Sistemi informativi di fognatura | AI23: M4 | AJ23: Fognatura | AK23: 5 | AN23: 5
B24: 17 | C24: Immobilizzazioni immateriali: avviamenti, capitalizzazione concessione, etc. | AG24: 18 | AH24: Telecontrollo e teletrasmissione di fognatura | AI24: M4 | AJ24: Fognatura | AK24: 8 | AN24: 8
AG25: 19 | AH25: Impianti di sollevamento e pompaggio di depurazione | AI25: M5-M6 | AJ25: Depurazione | AK25: 8 | AN25: 8
AG26: 20 | AH26: Tecniche naturali di depurazione (tra cui fitodepurazione e lagunaggio) | AI26: M6 | AJ26: Depurazione | AK26: 40 | AN26: 40
AG27: 21 | AH27: Impianti di depurazione – trattamenti sino al preliminare, integrativo, primario - fosse settiche e fosse Imhoff | AI27: M6 | AJ27: Depurazione | AK27: 20 | AN27: 20
AG28: 22 | AH28: Impianti di depurazione – trattamenti sino al secondario | AI28: M5-M6 | AJ28: Depurazione | AK28: 20 | AN28: 20
AG29: 23 | AH29: Impianti di depurazione – trattamenti sino al terziario e terziario avanzato | AI29: M5-M6 | AJ29: Depurazione | AK29: 20 | AN29: 20
AG30: 24 | AH30: Impianti di essiccamento fanghi e di valorizzazione dei fanghi (tra cui mono-incenerimento, pirolisi, gassificazione) | AI30: M5 | AJ30: Depurazione | AK30: 20 | AN30: 20
AG31: 25 | AH31: Gruppi di misura - altre attrezzature di depurazione | AI31: M5-M6 | AJ31: Depurazione | AK31: 10 | AN31: 10
AG32: 26 | AH32: Sistemi informativi di depurazione | AI32: M5-M6 | AJ32: Depurazione | AK32: 5 | AN32: 5
AG33: 27 | AH33: Telecontrollo e teletrasmissione di depurazione | AI33: M6 | AJ33: Depurazione | AK33: 8 | AN33: 8
AG34: 28 | AH34: Altri impianti | AI34: M1-M2-M3-M4-M5-M6 | AJ34: Comune | AK34: 20 | AN34: 20
AG35: 29 | AH35: Laboratori e attrezzature | AI35: M3-M6 | AJ35: Comune | AK35: 10 | AN35: 10
AG36: 30 | AH36: Sistemi informativi | AI36: MC1-MC2-M1-M2-M3-M4-M5-M6 | AJ36: Comune | AK36: 5 | AN36: 5
AG37: 31 | AH37: Telecontrollo e teletrasmissione | AI37: M1-M2-M3-M4-M5-M6 | AJ37: Comune | AK37: 8 | AN37: 8
AG38: 32 | AH38: Autoveicoli - automezzi | AI38: MC1-MC2- M1-M2-M3-M4-M5-M6 | AJ38: Comune | AK38: 5 | AN38: 5
AG39: 33 | AH39: Fabbricati non industriali | AI39: MC1-MC2 | AJ39: Comune | AK39: 40 | AN39: 40
AG40: 34 | AH40: Fabbricati industriali | AI40: M1-M2-M3-M4-M5-M6 | AJ40: Comune | AK40: 40 | AN40: 40
AG41: 35 | AH41: Costruzioni leggere | AI41: - | AJ41: Comune | AK41: 20 | AN41: 20
AG42: 36 | AH42: Studi, ricerche, brevetti, diritti di utilizzazione | AI42: M1-M2-M3-M4-M5-M6 | AJ42: Comune | AK42: 5 | AN42: 5
AG43: 37 | AH43: Altre immobilizzazioni materiali e immateriali | AI43: M3-M6-MC1-MC2 | AJ43: Comune | AK43: 7 | AN43: 7

Sheet Info_eventuali_aggregazioni
B1: AGGREGAZIONI
M2: Sono presenti errori
M3: =+OR(R:R) -> FALSE
B4: In caso di compilazione, fornire tutte le informazioni richieste
B5: 1. INFORMAZIONI SUI SOGGETTI AGGREGATI
B9: Nome del soggetto | C9: IDGestore della gestione aggregata | D9: Tipologia di gestione | E9: P. IVA | F9: Codice Istat Comune | G9: gestore esercente il servizio di Acquedotto | H9: gestore esercente il servizio di Fognatura | I9: gestore esercente il servizio di Depurazione | J9: popolazione servita (la maggiore tra i servizi forniti in origine) | K9: grado di completezza dei dati | M9: Nome soggetto | N9: idgestore | O9: popolazione | P9: Regolazione tariffaria applicabile | R9: Sono presenti errori
A10: =+ROW(A10)-9 -> 1 | M10: =+IF(B10="","-",B10) -> - | N10: =+IF(C10="","-",C10) -> - | O10: =+IF(J10="","-",J10) -> - | P10: =+IF(Input_per_calcoli_finali!$K$24="","",Input_per_calcoli_finali!$K$24) -> Matrice di schemi regolatori | R10: =+AND((COUNTA(B10:E10)+COUNTA(G10:K10))<>9,COUNTA(B10:K10)>0) -> FALSE

Sheet Elenco_Bacini_Tariffari
B1: RICAVI TARIFFARI
G2: Sono presenti errori
G3: =+OR(F:F) -> FALSE
B5: 1 - Bacini Tariffari
B7: N_Riga | C7: Bacino Tariffario | D7: N_Riga bis | F7: Errore denominazione Ambito
B8: =+ROW(A8)-7 -> 1 | C8: ATO3 | D8: =+B8 -> 1 | F8: =+C8="" -> FALSE
B9: =+ROW(A9)-7 -> 2 | C9: ATO3 SIMULAZIONE | D9: =+B9 -> 2 | F9: =+C9="" -> FALSE
B10: =+ROW(A10)-7 -> 3 | C10: ATO3 STIMA | D10: =+B10 -> 3 | F10: =+C10="" -> FALSE

Sheet Bacini_Tariffari_Comuni
B1: RICAVI TARIFFARI
H2: Sono presenti errori
H3: =+OR(F:G) -> TRUE
B5: 2 - Comuni per ciascun Bacino Tariffario
A7: N_Riga | B7: Ambito tariffario | C7: Comune | D7: Codice ISTAT | F7: Errore denominazione Ambito | G7: Errore Codice ISTAT
A8: =+ROW(A8)-7 -> 1 | B8: ATO 3 | C8: Accumoli (RI) | D8: =IFERROR(VLOOKUP(C8,TT_Comuni_ATO!X:Y,2,0),"") -> 057001 | F8: =+IF(ISNA(VLOOKUP(B8,Elenco_Bacini_Tariffari!C:C,1,FALSE)),TRUE,FALSE) -> TRUE | G8: =+IF(AND(B8="",C8="",D8=""),FALSE,IF(COUNTA(B8:D8)<>3,TRUE,FALSE)) -> FALSE
A9: =+ROW(A9)-7 -> 2 | B9: ATO 3 | C9: Amatrice (RI) | D9: =IFERROR(VLOOKUP(C9,TT_Comuni_ATO!X:Y,2,0),"") -> 057002 | F9: =+IF(ISNA(VLOOKUP(B9,Elenco_Bacini_Tariffari!C:C,1,FALSE)),TRUE,FALSE) -> TRUE | G9: =+IF(AND(B9="",C9="",D9=""),FALSE,IF(COUNTA(B9:D9)<>3,TRUE,FALSE)) -> FALSE
A10: 3 | B10: ATO 3 | C10: Antrodoco (RI) | D10: =IFERROR(VLOOKUP(C10,TT_Comuni_ATO!X:Y,2,0),"") -> 057003 | F10: =+IF(ISNA(VLOOKUP(B10,Elenco_Bacini_Tariffari!C:C,1,FALSE)),TRUE,FALSE) -> TRUE | G10: FALSE
A11: 4 | B11: ATO 3 | C11: Ascrea (RI) | D11: =IFERROR(VLOOKUP(C11,TT_Comuni_ATO!X:Y,2,0),"") -> 057004 | F11: =+IF(ISNA(VLOOKUP(B11,Elenco_Bacini_Tariffari!C:C,1,FALSE)),TRUE,FALSE) -> TRUE | G11: FALSE
A12: 5 | B12: ATO 3 | C12: Belmonte in Sabina (RI) | D12: =IFERROR(VLOOKUP(C12,TT_Comuni_ATO!X:Y,2,0),"") -> 057005 | F12: =+IF(ISNA(VLOOKUP(B12,Elenco_Bacini_Tariffari!C:C,1,FALSE)),TRUE,FALSE) -> TRUE | G12: FALSE
A13: 6 | B13: ATO 3 | C13: Borgorose (RI) | D13: =IFERROR(VLOOKUP(C13,TT_Comuni_ATO!X:Y,2,0),"") -> 057007 | F13: =+IF(ISNA(VLOOKUP(B13,Elenco_Bacini_Tariffari!C:C,1,FALSE)),TRUE,FALSE) -> TRUE | G13: FALSE
A14: 7 | B14: ATO 3 | C14: Borgo Velino (RI) | D14: =IFERROR(VLOOKUP(C14,TT_Comuni_ATO!X:Y,2,0),"") -> 057008 | F14: =+IF(ISNA(VLOOKUP(B14,Elenco_Bacini_Tariffari!C:C,1,FALSE)),TRUE,FALSE) -> TRUE | G14: FALSE
A15: 8 | B15: ATO 3 | C15: Cantalice (RI) | D15: =IFERROR(VLOOKUP(C15,TT_Comuni_ATO!X:Y,2,0),"") -> 057009 | F15: =+IF(ISNA(VLOOKUP(B15,Elenco_Bacini_Tariffari!C:C,1,FALSE)),TRUE,FALSE) -> TRUE | G15: FALSE
A16: 9 | B16: ATO 3 | C16: Casaprota (RI) | D16: =IFERROR(VLOOKUP(C16,TT_Comuni_ATO!X:Y,2,0),"") -> 057011 | F16: =+IF(ISNA(VLOOKUP(B16,Elenco_Bacini_Tariffari!C:C,1,FALSE)),TRUE,FALSE) -> TRUE | G16: FALSE
A17: 10 | B17: ATO 3 | C17: Castel di Tora (RI) | D17: =IFERROR(VLOOKUP(C17,TT_Comuni_ATO!X:Y,2,0),"") -> 057013 | F17: =+IF(ISNA(VLOOKUP(B17,Elenco_Bacini_Tariffari!C:C,1,FALSE)),TRUE,FALSE) -> TRUE | G17: FALSE
A18: 11 | B18: ATO 3 | C18: Castelnuovo di Farfa (RI) | D18: =IFERROR(VLOOKUP(C18,TT_Comuni_ATO!X:Y,2,0),"") -> 057014 | F18: =+IF(ISNA(VLOOKUP(B18,Elenco_Bacini_Tariffari!C:C,1,FALSE)),TRUE,FALSE) -> TRUE | G18: FALSE
A19: 12 | B19: ATO 3 | C19: Castel Sant'Angelo (RI) | D19: =IFERROR(VLOOKUP(C19,TT_Comuni_ATO!X:Y,2,0),"") -> 057015 | F19: =+IF(ISNA(VLOOKUP(B19,Elenco_Bacini_Tariffari!C:C,1,FALSE)),TRUE,FALSE) -> TRUE | G19: FALSE
A20: 13 | B20: ATO 3 | C20: Cittaducale (RI) | D20: =IFERROR(VLOOKUP(C20,TT_Comuni_ATO!X:Y,2,0),"") -> 057016 | F20: =+IF(ISNA(VLOOKUP(B20,Elenco_Bacini_Tariffari!C:C,1,FALSE)),TRUE,FALSE) -> TRUE | G20: FALSE
A21: 14 | B21: ATO 3 | C21: Collalto Sabino (RI) | D21: =IFERROR(VLOOKUP(C21,TT_Comuni_ATO!X:Y,2,0),"") -> 057018 | F21: =+IF(ISNA(VLOOKUP(B21,Elenco_Bacini_Tariffari!C:C,1,FALSE)),TRUE,FALSE) -> TRUE | G21: FALSE
A22: 15 | B22: ATO 3 | C22: Collegiove (RI) | D22: =IFERROR(VLOOKUP(C22,TT_Comuni_ATO!X:Y,2,0),"") -> 057020 | F22: =+IF(ISNA(VLOOKUP(B22,Elenco_Bacini_Tariffari!C:C,1,FALSE)),TRUE,FALSE) -> TRUE | G22: FALSE
A23: 16 | B23: ATO 3 | C23: Collevecchio (RI) | D23: =IFERROR(VLOOKUP(C23,TT_Comuni_ATO!X:Y,2,0),"") -> 057021 | F23: =+IF(ISNA(VLOOKUP(B23,Elenco_Bacini_Tariffari!C:C,1,FALSE)),TRUE,FALSE) -> TRUE | G23: FALSE
A24: 17 | B24: ATO 3 | C24: Colli sul Velino (RI) | D24: =IFERROR(VLOOKUP(C24,TT_Comuni_ATO!X:Y,2,0),"") -> 057022 | F24: =+IF(ISNA(VLOOKUP(B24,Elenco_Bacini_Tariffari!C:C,1,FALSE)),TRUE,FALSE) -> TRUE | G24: FALSE
A25: 18 | B25: ATO 3 | C25: Contigliano (RI) | D25: =IFERROR(VLOOKUP(C25,TT_Comuni_ATO!X:Y,2,0),"") -> 057025 | F25: =+IF(ISNA(VLOOKUP(B25,Elenco_Bacini_Tariffari!C:C,1,FALSE)),TRUE,FALSE) -> TRUE | G25: FALSE
A26: 19 | B26: ATO 3 | C26: Fara in Sabina (RI) | D26: =IFERROR(VLOOKUP(C26,TT_Comuni_ATO!X:Y,2,0),"") -> 057027 | F26: =+IF(ISNA(VLOOKUP(B26,Elenco_Bacini_Tariffari!C:C,1,FALSE)),TRUE,FALSE) -> TRUE | G26: FALSE
A27: 20 | B27: ATO 3 | C27: Fiamignano (RI) | D27: =IFERROR(VLOOKUP(C27,TT_Comuni_ATO!X:Y,2,0),"") -> 057028 | F27: =+IF(ISNA(VLOOKUP(B27,Elenco_Bacini_Tariffari!C:C,1,FALSE)),TRUE,FALSE) -> TRUE | G27: FALSE
A28: 21 | B28: ATO 3 | C28: Forano (RI) | D28: =IFERROR(VLOOKUP(C28,TT_Comuni_ATO!X:Y,2,0),"") -> 057029 | F28: =+IF(ISNA(VLOOKUP(B28,Elenco_Bacini_Tariffari!C:C,1,FALSE)),TRUE,FALSE) -> TRUE | G28: FALSE
A29: 22 | B29: ATO 3 | C29: Frasso Sabino (RI) | D29: =IFERROR(VLOOKUP(C29,TT_Comuni_ATO!X:Y,2,0),"") -> 057030 | F29: =+IF(ISNA(VLOOKUP(B29,Elenco_Bacini_Tariffari!C:C,1,FALSE)),TRUE,FALSE) -> TRUE | G29: FALSE
A30: 23 | B30: ATO 3 | C30: Greccio (RI) | D30: =IFERROR(VLOOKUP(C30,TT_Comuni_ATO!X:Y,2,0),"") -> 057031 | F30: =+IF(ISNA(VLOOKUP(B30,Elenco_Bacini_Tariffari!C:C,1,FALSE)),TRUE,FALSE) -> TRUE | G30: FALSE
A31: 24 | B31: ATO 3 | C31: Labro (RI) | D31: =IFERROR(VLOOKUP(C31,TT_Comuni_ATO!X:Y,2,0),"") -> 057032 | F31: =+IF(ISNA(VLOOKUP(B31,Elenco_Bacini_Tariffari!C:C,1,FALSE)),TRUE,FALSE) -> TRUE | G31: FALSE
A32: 25 | B32: ATO 3 | C32: Leonessa (RI) | D32: =IFERROR(VLOOKUP(C32,TT_Comuni_ATO!X:Y,2,0),"") -> 057033 | F32: =+IF(ISNA(VLOOKUP(B32,Elenco_Bacini_Tariffari!C:C,1,FALSE)),TRUE,FALSE) -> TRUE | G32: FALSE
A33: 26 | B33: ATO 3 | C33: Magliano Sabina (RI) | D33: =IFERROR(VLOOKUP(C33,TT_Comuni_ATO!X:Y,2,0),"") -> 057035 | F33: =+IF(ISNA(VLOOKUP(B33,Elenco_Bacini_Tariffari!C:C,1,FALSE)),TRUE,FALSE) -> TRUE | G33: FALSE
A34: 27 | B34: ATO 3 | C34: Mompeo (RI) | D34: =IFERROR(VLOOKUP(C34,TT_Comuni_ATO!X:Y,2,0),"") -> 057038 | F34: =+IF(ISNA(VLOOKUP(B34,Elenco_Bacini_Tariffari!C:C,1,FALSE)),TRUE,FALSE) -> TRUE | G34: FALSE
A35: 28 | B35: ATO 3 | C35: Monteleone Sabino (RI) | D35: =IFERROR(VLOOKUP(C35,TT_Comuni_ATO!X:Y,2,0),"") -> 057041 | F35: =+IF(ISNA(VLOOKUP(B35,Elenco_Bacini_Tariffari!C:C,1,FALSE)),TRUE,FALSE) -> TRUE | G35: FALSE
A36: 29 | B36: ATO 3 | C36: Montenero Sabino (RI) | D36: =IFERROR(VLOOKUP(C36,TT_Comuni_ATO!X:Y,2,0),"") -> 057042 | F36: =+IF(ISNA(VLOOKUP(B36,Elenco_Bacini_Tariffari!C:C,1,FALSE)),TRUE,FALSE) -> TRUE | G36: FALSE
A37: 30 | B37: ATO 3 | C37: Montopoli di Sabina (RI) | D37: =IFERROR(VLOOKUP(C37,TT_Comuni_ATO!X:Y,2,0),"") -> 057044 | F37: =+IF(ISNA(VLOOKUP(B37,Elenco_Bacini_Tariffari!C:C,1,FALSE)),TRUE,FALSE) -> TRUE | G37: FALSE
A38: 31 | B38: ATO 3 | C38: Morro Reatino (RI) | D38: =IFERROR(VLOOKUP(C38,TT_Comuni_ATO!X:Y,2,0),"") -> 057045 | F38: =+IF(ISNA(VLOOKUP(B38,Elenco_Bacini_Tariffari!C:C,1,FALSE)),TRUE,FALSE) -> TRUE | G38: FALSE
A39: 32 | B39: ATO 3 | C39: Nespolo (RI) | D39: =IFERROR(VLOOKUP(C39,TT_Comuni_ATO!X:Y,2,0),"") -> 057046 | F39: =+IF(ISNA(VLOOKUP(B39,Elenco_Bacini_Tariffari!C:C,1,FALSE)),TRUE,FALSE) -> TRUE | G39: FALSE
A40: 33 | B40: ATO 3 | C40: Paganico Sabino (RI) | D40: =IFERROR(VLOOKUP(C40,TT_Comuni_ATO!X:Y,2,0),"") -> 057048 | F40: =+IF(ISNA(VLOOKUP(B40,Elenco_Bacini_Tariffari!C:C,1,FALSE)),TRUE,FALSE) -> TRUE | G40: FALSE
A41: 34 | B41: ATO 3 | C41: Pescorocchiano (RI) | D41: =IFERROR(VLOOKUP(C41,TT_Comuni_ATO!X:Y,2,0),"") -> 057049 | F41: =+IF(ISNA(VLOOKUP(B41,Elenco_Bacini_Tariffari!C:C,1,FALSE)),TRUE,FALSE) -> TRUE | G41: FALSE
A42: 35 | B42: ATO 3 | C42: Petrella Salto (RI) | D42: =IFERROR(VLOOKUP(C42,TT_Comuni_ATO!X:Y,2,0),"") -> 057050 | F42: =+IF(ISNA(VLOOKUP(B42,Elenco_Bacini_Tariffari!C:C,1,FALSE)),TRUE,FALSE) -> TRUE | G42: FALSE
A43: 36 | B43: ATO 3 | C43: Poggio Mirteto (RI) | D43: =IFERROR(VLOOKUP(C43,TT_Comuni_ATO!X:Y,2,0),"") -> 057053 | F43: =+IF(ISNA(VLOOKUP(B43,Elenco_Bacini_Tariffari!C:C,1,FALSE)),TRUE,FALSE) -> TRUE | G43: FALSE
A44: 37 | B44: ATO 3 | C44: Poggio Nativo (RI) | D44: =IFERROR(VLOOKUP(C44,TT_Comuni_ATO!X:Y,2,0),"") -> 057055 | F44: =+IF(ISNA(VLOOKUP(B44,Elenco_Bacini_Tariffari!C:C,1,FALSE)),TRUE,FALSE) -> TRUE | G44: FALSE
A45: 38 | B45: ATO 3 | C45: Rieti (RI) | D45: =IFERROR(VLOOKUP(C45,TT_Comuni_ATO!X:Y,2,0),"") -> 057059 | F45: =+IF(ISNA(VLOOKUP(B45,Elenco_Bacini_Tariffari!C:C,1,FALSE)),TRUE,FALSE) -> TRUE | G45: FALSE
A46: 39 | B46: ATO 3 | C46: Rivodutri (RI) | D46: =IFERROR(VLOOKUP(C46,TT_Comuni_ATO!X:Y,2,0),"") -> 057060 | F46: =+IF(ISNA(VLOOKUP(B46,Elenco_Bacini_Tariffari!C:C,1,FALSE)),TRUE,FALSE) -> TRUE | G46: FALSE
A47: 40 | B47: ATO 3 | C47: Rocca Sinibalda (RI) | D47: =IFERROR(VLOOKUP(C47,TT_Comuni_ATO!X:Y,2,0),"") -> 057062 | F47: =+IF(ISNA(VLOOKUP(B47,Elenco_Bacini_Tariffari!C:C,1,FALSE)),TRUE,FALSE) -> TRUE | G47: FALSE
A48: 41 | B48: ATO 3 | C48: Salisano (RI) | D48: =IFERROR(VLOOKUP(C48,TT_Comuni_ATO!X:Y,2,0),"") -> 057063 | F48: =+IF(ISNA(VLOOKUP(B48,Elenco_Bacini_Tariffari!C:C,1,FALSE)),TRUE,FALSE) -> TRUE | G48: FALSE
A49: 42 | B49: ATO 3 | C49: Scandriglia (RI) | D49: =IFERROR(VLOOKUP(C49,TT_Comuni_ATO!X:Y,2,0),"") -> 057064 | F49: =+IF(ISNA(VLOOKUP(B49,Elenco_Bacini_Tariffari!C:C,1,FALSE)),TRUE,FALSE) -> TRUE | G49: FALSE
A50: 43 | B50: ATO 3 | C50: Toffia (RI) | D50: =IFERROR(VLOOKUP(C50,TT_Comuni_ATO!X:Y,2,0),"") -> 057068 | F50: =+IF(ISNA(VLOOKUP(B50,Elenco_Bacini_Tariffari!C:C,1,FALSE)),TRUE,FALSE) -> TRUE | G50: FALSE
A51: 44 | B51: ATO 3 | C51: Torricella in Sabina (RI) | D51: =IFERROR(VLOOKUP(C51,TT_Comuni_ATO!X:Y,2,0),"") -> 057069 | F51: =+IF(ISNA(VLOOKUP(B51,Elenco_Bacini_Tariffari!C:C,1,FALSE)),TRUE,FALSE) -> TRUE | G51: FALSE
A52: 45 | B52: ATO 3 | C52: Monteflavio (RM) | D52: =IFERROR(VLOOKUP(C52,TT_Comuni_ATO!X:Y,2,0),"") -> 058061 | F52: =+IF(ISNA(VLOOKUP(B52,Elenco_Bacini_Tariffari!C:C,1,FALSE)),TRUE,FALSE) -> TRUE | G52: FALSE
A53: 46 | B53: ATO 3 | C53: Montelibretti (RM) | D53: =IFERROR(VLOOKUP(C53,TT_Comuni_ATO!X:Y,2,0),"") -> 058063 | F53: =+IF(ISNA(VLOOKUP(B53,Elenco_Bacini_Tariffari!C:C,1,FALSE)),TRUE,FALSE) -> TRUE | G53: FALSE
A54: 47 | B54: ATO 3 | C54: Montorio Romano (RM) | D54: =IFERROR(VLOOKUP(C54,TT_Comuni_ATO!X:Y,2,0),"") -> 058066 | F54: =+IF(ISNA(VLOOKUP(B54,Elenco_Bacini_Tariffari!C:C,1,FALSE)),TRUE,FALSE) -> TRUE | G54: FALSE
A55: 48 | B55: ATO 3 | C55: Moricone (RM) | D55: =IFERROR(VLOOKUP(C55,TT_Comuni_ATO!X:Y,2,0),"") -> 058067 | F55: =+IF(ISNA(VLOOKUP(B55,Elenco_Bacini_Tariffari!C:C,1,FALSE)),TRUE,FALSE) -> TRUE | G55: FALSE
A56: 49 | B56: ATO 3 | C56: Nerola (RM) | D56: =IFERROR(VLOOKUP(C56,TT_Comuni_ATO!X:Y,2,0),"") -> 058071 | F56: =+IF(ISNA(VLOOKUP(B56,Elenco_Bacini_Tariffari!C:C,1,FALSE)),TRUE,FALSE) -> TRUE | G56: FALSE
A57: 50 | B57: ATO 3 | C57: Palombara Sabina (RM) | D57: =IFERROR(VLOOKUP(C57,TT_Comuni_ATO!X:Y,2,0),"") -> 058075 | F57: =+IF(ISNA(VLOOKUP(B57,Elenco_Bacini_Tariffari!C:C,1,FALSE)),TRUE,FALSE) -> TRUE | G57: FALSE
A58: 51 | B58: ATO 3 | C58: Vallinfreda (RM) | D58: =IFERROR(VLOOKUP(C58,TT_Comuni_ATO!X:Y,2,0),"") -> 058109 | F58: =+IF(ISNA(VLOOKUP(B58,Elenco_Bacini_Tariffari!C:C,1,FALSE)),TRUE,FALSE) -> TRUE | G58: FALSE
A59: 52 | B59: ATO 3 SIMULAZIONE | C59: Borbona (RI) | D59: =IFERROR(VLOOKUP(C59,TT_Comuni_ATO!X:Y,2,0),"") -> 057006 | F59: =+IF(ISNA(VLOOKUP(B59,Elenco_Bacini_Tariffari!C:C,1,FALSE)),TRUE,FALSE) -> TRUE | G59: FALSE
A60: 53 | B60: ATO 3 SIMULAZIONE | C60: Cantalupo in Sabina (RI) | D60: =IFERROR(VLOOKUP(C60,TT_Comuni_ATO!X:Y,2,0),"") -> 057010 | F60: =+IF(ISNA(VLOOKUP(B60,Elenco_Bacini_Tariffari!C:C,1,FALSE)),TRUE,FALSE) -> TRUE | G60: FALSE
A61: 54 | B61: ATO 3 SIMULAZIONE | C61: Cittareale (RI) | D61: =IFERROR(VLOOKUP(C61,TT_Comuni_ATO!X:Y,2,0),"") -> 057017 | F61: =+IF(ISNA(VLOOKUP(B61,Elenco_Bacini_Tariffari!C:C,1,FALSE)),TRUE,FALSE) -> TRUE | G61: FALSE
A62: 55 | B62: ATO 3 SIMULAZIONE | C62: Colle di Tora (RI) | D62: =IFERROR(VLOOKUP(C62,TT_Comuni_ATO!X:Y,2,0),"") -> 057019 | F62: =+IF(ISNA(VLOOKUP(B62,Elenco_Bacini_Tariffari!C:C,1,FALSE)),TRUE,FALSE) -> TRUE | G62: FALSE
A63: 56 | B63: ATO 3 SIMULAZIONE | C63: Concerviano (RI) | D63: =IFERROR(VLOOKUP(C63,TT_Comuni_ATO!X:Y,2,0),"") -> 057023 | F63: =+IF(ISNA(VLOOKUP(B63,Elenco_Bacini_Tariffari!C:C,1,FALSE)),TRUE,FALSE) -> TRUE | G63: FALSE
A64: 57 | B64: ATO 3 SIMULAZIONE | C64: Longone Sabino (RI) | D64: =IFERROR(VLOOKUP(C64,TT_Comuni_ATO!X:Y,2,0),"") -> 057034 | F64: =+IF(ISNA(VLOOKUP(B64,Elenco_Bacini_Tariffari!C:C,1,FALSE)),TRUE,FALSE) -> TRUE | G64: FALSE
A65: 58 | B65: ATO 3 SIMULAZIONE | C65: Marcetelli (RI) | D65: =IFERROR(VLOOKUP(C65,TT_Comuni_ATO!X:Y,2,0),"") -> 057036 | F65: =+IF(ISNA(VLOOKUP(B65,Elenco_Bacini_Tariffari!C:C,1,FALSE)),TRUE,FALSE) -> TRUE | G65: FALSE
A66: 59 | B66: ATO 3 SIMULAZIONE | C66: Micigliano (RI) | D66: =IFERROR(VLOOKUP(C66,TT_Comuni_ATO!X:Y,2,0),"") -> 057037 | F66: =+IF(ISNA(VLOOKUP(B66,Elenco_Bacini_Tariffari!C:C,1,FALSE)),TRUE,FALSE) -> TRUE | G66: FALSE
A67: 60 | B67: ATO 3 SIMULAZIONE | C67: Monte San Giovanni in Sabina (RI) | D67: =IFERROR(VLOOKUP(C67,TT_Comuni_ATO!X:Y,2,0),"") -> 057043 | F67: =+IF(ISNA(VLOOKUP(B67,Elenco_Bacini_Tariffari!C:C,1,FALSE)),TRUE,FALSE) -> TRUE | G67: FALSE
A68: 61 | B68: ATO 3 SIMULAZIONE | C68: Orvinio (RI) | D68: =IFERROR(VLOOKUP(C68,TT_Comuni_ATO!X:Y,2,0),"") -> 057047 | F68: =+IF(ISNA(VLOOKUP(B68,Elenco_Bacini_Tariffari!C:C,1,FALSE)),TRUE,FALSE) -> TRUE | G68: FALSE
A69: 62 | B69: ATO 3 SIMULAZIONE | C69: Poggio Bustone (RI) | D69: =IFERROR(VLOOKUP(C69,TT_Comuni_ATO!X:Y,2,0),"") -> 057051 | F69: =+IF(ISNA(VLOOKUP(B69,Elenco_Bacini_Tariffari!C:C,1,FALSE)),TRUE,FALSE) -> TRUE | G69: FALSE
A70: 63 | B70: ATO 3 SIMULAZIONE | C70: Poggio Moiano (RI) | D70: =IFERROR(VLOOKUP(C70,TT_Comuni_ATO!X:Y,2,0),"") -> 057054 | F70: =+IF(ISNA(VLOOKUP(B70,Elenco_Bacini_Tariffari!C:C,1,FALSE)),TRUE,FALSE) -> TRUE | G70: FALSE
A71: 64 | B71: ATO 3 SIMULAZIONE | C71: Poggio San Lorenzo (RI) | D71: =IFERROR(VLOOKUP(C71,TT_Comuni_ATO!X:Y,2,0),"") -> 057056 | F71: =+IF(ISNA(VLOOKUP(B71,Elenco_Bacini_Tariffari!C:C,1,FALSE)),TRUE,FALSE) -> TRUE | G71: FALSE
A72: 65 | B72: ATO 3 SIMULAZIONE | C72: Posta (RI) | D72: =IFERROR(VLOOKUP(C72,TT_Comuni_ATO!X:Y,2,0),"") -> 057057 | F72: =+IF(ISNA(VLOOKUP(B72,Elenco_Bacini_Tariffari!C:C,1,FALSE)),TRUE,FALSE) -> TRUE | G72: FALSE
A73: =+ROW(A73)-7 -> 66 | B73: ATO 3 SIMULAZIONE | C73: Stimigliano (RI) | D73: =IFERROR(VLOOKUP(C73,TT_Comuni_ATO!X:Y,2,0),"") -> 057066 | F73: =+IF(ISNA(VLOOKUP(B73,Elenco_Bacini_Tariffari!C:C,1,FALSE)),TRUE,FALSE) -> TRUE | G73: =+IF(AND(B73="",C73="",D73=""),FALSE,IF(COUNTA(B73:D73)<>3,TRUE,FALSE)) -> FALSE
A74: 67 | B74: ATO 3 SIMULAZIONE | C74: Tarano (RI) | D74: =IFERROR(VLOOKUP(C74,TT_Comuni_ATO!X:Y,2,0),"") -> 057067 | F74: =+IF(ISNA(VLOOKUP(B74,Elenco_Bacini_Tariffari!C:C,1,FALSE)),TRUE,FALSE) -> TRUE | G74: FALSE
A75: 68 | B75: ATO 3 SIMULAZIONE | C75: Turania (RI) | D75: =IFERROR(VLOOKUP(C75,TT_Comuni_ATO!X:Y,2,0),"") -> 057071 | F75: =+IF(ISNA(VLOOKUP(B75,Elenco_Bacini_Tariffari!C:C,1,FALSE)),TRUE,FALSE) -> TRUE | G75: FALSE
A76: 69 | B76: ATO 3 SIMULAZIONE | C76: Varco Sabino (RI) | D76: =IFERROR(VLOOKUP(C76,TT_Comuni_ATO!X:Y,2,0),"") -> 057073 | F76: =+IF(ISNA(VLOOKUP(B76,Elenco_Bacini_Tariffari!C:C,1,FALSE)),TRUE,FALSE) -> TRUE | G76: FALSE
A77: 70 | B77: ATO 3 SIMULAZIONE | C77: Vivaro Romano (RM) | D77: =IFERROR(VLOOKUP(C77,TT_Comuni_ATO!X:Y,2,0),"") -> 058113 | F77: =+IF(ISNA(VLOOKUP(B77,Elenco_Bacini_Tariffari!C:C,1,FALSE)),TRUE,FALSE) -> TRUE | G77: FALSE

Sheet Struttura_corrispettivi
B1: RICAVI TARIFFARI
AK2: Sono presenti errori | AL2: eorri bacino_tariffario | AM2: errori_tipologia
AK3: =+OR(AL3:AM3) -> FALSE | AL3: =+IFERROR(OR(W:W),FALSE) -> FALSE | AM3: =+IFERROR(OR(X:X),FALSE) -> FALSE
B5: 3 - Articolazione Tariffaria
I8: vigente al 31/12/2015 | K8: vigente al 31/12/2015
B9: Bacino tariffario | C9: Tipologia d'uso | D9: Sottotipologia | E9: 1° scaglione a tariffa agevolata | F9: Servizio idrico | G9: Min di scaglione (m3/2019) | H9: Max di scaglione (m3/2019) | I9: Min di scaglione (m3/2020) | J9: Max di scaglione (m3/2020) | K9: Min di scaglione (m3/2021) | L9: Max di scaglione (m3/2021) | M9: QV (Euro/m3) 2019 | N9: QV (Euro/m3) 2020 | O9: QV (Euro/m3) 2021 | P9: Volumi (m3/anno) 2020 | Q9: Volumi (m3/anno) 2021 | R9: QF (Euro/utenti/anno) 2019 | S9: QF (Euro/utenti/anno) 2020 | T9: QF (Euro/utenti/anno) 2021 | U9: Utenze (numero/anno) 2020 | V9: Utenze (numero/anno) 2021 | W9: Bacino_Tariffario | X9: Tipologia | Y9: Sottotipologia | Z9: Servizio | AA9: tar2019*vscal2020 | AB9: tar2019*vscal2021 | AC9: tar2020*vscal2020 | AD9: tar2021*vscal2021 | AE9: num_scaglione | AF9: n_riga_blocco | AG9: blocco | AH9: agevolata
I10: Min_Scaglione | J10: Max_Scaglione | K10: Min_Scaglione | L10: Max_Scaglione | W10: Ambito_Tariffario
B11: ATO3 | C11: a) uso domestico | D11: uso domestico residente (procapite standard) | E11: SI | F11: Acquedotto | G11: 0 | H11: 55 | I11: 0 | J11: 18.33 | K11: 0 | L11: 18.33 | M11: 0.593474 | N11: 0.605344 | O11: 0.635017 | P11: 2720126.26 | Q11: 2703487 | R11: 6.569046 | S11: 6.700427 | T11: 7.028879 | U11: 60402.9 | V11: 60785.34 | W11: =+IFERROR(VLOOKUP(B11,Elenco_Bacini_Tariffari!C:C,1,FALSE),TRUE) -> ATO3 | X11: =+IFERROR(VLOOKUP(C11,ticsi_tipol,1,FALSE),TRUE) -> a) uso domestico | Y11: =+D11 -> uso domestico residente (procapite standard) | Z11: Acquedotto | AA11: =+$M11*P11+$R11*U11 -> 2011113.641 | AB11: =+$M11*Q11+$R11*V11 -> 2003750.938 | AC11: =+N11*P11+S11*U11 -> 2051337.333 | AD11: =+O11*Q11+T11*V11 -> 2144013.004 | AE11: 1 | AF11: 1 | AG11: =+IF(ROW()=11,1,(ROW()+1)/12) -> 1 | AH11: =+IF(E11="SI",1,IF(E11="NO",0,"")) -> 1
G12: =+IF(H11=0,"",H11+1) -> 56 | H12: 120 | I12: =+IF(J11=0,"",J11+1) -> 19.33 | J12: 40 | K12: =+IF(L11=0,"",L11+1) -> 19.33 | L12: 40 | M12: 0.913037 | N12: 0.931298 | O12: 0.97695 | P12: 2268953.891 | Q12: 2134965 | W12: =W11 -> ATO3 | X12: =+X11 -> a) uso domestico | Y12: =+Y11 -> uso domestico residente (procapite standard) | Z12: Acquedotto | AA12: =+$M12*P12 -> 2071638.854 | AB12: =+$M12*Q12 -> 1949302.039 | AC12: =+N12*P12 -> 2113072.221 | AD12: =+O12*Q12 -> 2085754.057 | AE12: =+IF(OR(K12<>"",ISNUMBER(K12)=TRUE),AE11+1,0) -> 2 | AF12: 2 | AG12: =+AG11 -> 1 | AH12: =+AH11 -> 1
G13: =+IF(H12=0,"",H12+1) -> 121 | H13: 180 | I13: 41 | J13: 60 | K13: =+IF(L12=0,"",L12+1) -> 41 | L13: 60 | M13: 1.312784 | N13: 1.339039 | O13: 1.404679 | P13: 850372.5161 | Q13: 722005 | W13: ATO3 | X13: =+X12 -> a) uso domestico | Y13: =+Y12 -> uso domestico residente (procapite standard) | Z13: Acquedotto | AA13: =+$M13*P13 -> 1116355.433 | AB13: 947836.6119 | AC13: 1138681.964 | AD13: 1014185.261 | AE13: =+IF(OR(K13<>"",ISNUMBER(K13)=TRUE),AE12+1,0) -> 3 | AF13: 3 | AG13: =+AG12 -> 1 | AH13: 1
G14: 181 | H14: 240 | I14: 61 | J14: 80 | K14: 61 | L14: 80 | M14: 1.969176 | N14: 2.008559 | O14: 2.107018 | P14: 374778 | Q14: 320659 | W14: ATO3 | X14: a) uso domestico | Y14: uso domestico residente (procapite standard) | Z14: Acquedotto | AA14: 738003.8429 | AB14: 631434.007 | AC14: 752763.7249 | AD14: 675634.2849 | AE14: 4 | AF14: 4 | AG14: 1 | AH14: 1
G15: 241 | I15: 81 | K15: 81 | M15: 2.42865 | N15: 2.477223 | O15: 2.598655 | P15: 472150 | Q15: 379452 | W15: ATO3 | X15: a) uso domestico | Y15: uso domestico residente (procapite standard) | Z15: Acquedotto | AA15: 1146687.098 | AB15: 921556.0998 | AC15: 1169620.839 | AD15: 986064.8371 | AE15: 5 | AF15: 5 | AG15: 1 | AH15: 1
W16: ATO3 | X16: a) uso domestico | Y16: uso domestico residente (procapite standard) | Z16: Acquedotto | AA16: 0 | AB16: 0 | AC16: 0 | AD16: 0 | AE16: 0 | AF16: 6 | AG16: 1 | AH16: 1
W17: ATO3 | X17: a) uso domestico | Y17: uso domestico residente (procapite standard) | Z17: Acquedotto | AA17: 0 | AB17: 0 | AC17: 0 | AD17: 0 | AE17: 0 | AF17: 7 | AG17: 1 | AH17: 1
W18: ATO3 | X18: a) uso domestico | Y18: uso domestico residente (procapite standard) | Z18: Acquedotto | AA18: 0 | AB18: 0 | AC18: 0 | AD18: 0 | AE18: 0 | AF18: 8 | AG18: 1 | AH18: 1
W19: ATO3 | X19: a) uso domestico | Y19: uso domestico residente (procapite standard) | Z19: Acquedotto | AA19: 0 | AB19: 0 | AC19: 0 | AD19: 0 | AE19: 0 | AF19: 9 | AG19: 1 | AH19: 1
W20: ATO3 | X20: a) uso domestico | Y20: uso domestico residente (procapite standard) | Z20: Acquedotto | AA20: 0 | AB20: 0 | AC20: 0 | AD20: 0 | AE20: 0 | AF20: 10 | AG20: 1 | AH20: 1
F21: Fognatura | M21: 0.129675 | N21: 0.132269 | O21: 0.138752 | P21: 5628151.232 | Q21: 5285847 | R21: 3.602174 | S21: 3.674217 | T21: 3.854326 | U21: 52313.12 | V21: 52565.34 | W21: ATO3 | X21: a) uso domestico | Y21: uso domestico residente (procapite standard) | Z21: Fognatura | AA21: =+$M21*P21+$R21*U21 -> 918271.4718 | AB21: 874791.7108 | AC21: =+N21*P21+S21*U21 -> 936639.6902 | AD21: 936025.7996 | AE21: 1 | AF21: 11 | AG21: 1 | AH21: 1
F22: Depurazione | M22: 0.340166 | N22: 0.346969 | O22: 0.363977 | P22: 5551848.232 | Q22: 5213697 | R22: 9.537156 | S22: 9.727899 | T22: 10.204756 | U22: 51544.85 | V22: 51807.55 | W22: ATO3 | X22: a) uso domestico | Y22: uso domestico residente (procapite standard) | Z22: Depurazione | AA22: 2380141.281 | AB22: 2267619.14 | AC22: 2427742.324 | AD22: 2426349.2 | AE22: 1 | AF22: 12 | AG22: 1 | AH22: 1
B23: ATO3 | C23: a) uso domestico | D23: uso domestico non residente | E23: NO | F23: Acquedotto | G23: 0 | H23: 30 | I23: 0 | J23: 30 | K23: 0 | L23: 30 | M23: 1.121821 | N23: 1.144257 | O23: 1.200348 | P23: 512812.0096 | Q23: 538855 | R23: 62.682169 | S23: 63.935812 | T23: 67.069921 | U23: 25725.58 | V23: 25438.95 | W23: =+IFERROR(VLOOKUP(B23,Elenco_Bacini_Tariffari!C:C,1,FALSE),TRUE) -> ATO3 | X23: =+IFERROR(VLOOKUP(C23,ticsi_tipol,1,FALSE),TRUE) -> a) uso domestico | Y23: =+D23 -> uso domestico non residente | Z23: Acquedotto | AA23: 2187818.435 | AB23: 2199067.418 | AC23: 2231574.578 | AD23: 2353001.888 | AE23: 1 | AF23: 1 | AG23: =+IF(ROW()=11,1,(ROW()+1)/12) -> 2 | AH23: =+IF(E23="SI",1,IF(E23="NO",0,"")) -> 0
G24: =+IF(H23=0,"",H23+1) -> 31 | H24: 45 | I24: =+IF(J23=0,"",J23+1) -> 31 | J24: 45 | K24: =+IF(L23=0,"",L23+1) -> 31 | L24: 45 | M24: 1.612977 | N24: 1.645237 | O24: 1.725885 | P24: 144213.299 | Q24: 101268 | W24: ATO3 | X24: =+X23 -> a) uso domestico | Y24: =+Y23 -> uso domestico non residente | Z24: Acquedotto | AA24: =+$M24*P24 -> 232612.7344 | AB24: =+$M24*Q24 -> 163342.9548 | AC24: =+N24*P24 -> 237265.0555 | AD24: =+O24*Q24 -> 174776.9222 | AE24: =+IF(OR(K24<>"",ISNUMBER(K24)=TRUE),AE23+1,0) -> 2 | AF24: 2 | AG24: =+AG23 -> 2 | AH24: =+AH23 -> 0
G25: =+IF(H24=0,"",H24+1) -> 46 | H25: 60 | I25: 46 | J25: 60 | K25: =+IF(L24=0,"",L24+1) -> 46 | L25: 60 | M25: 2.419466 | N25: 2.467855 | O25: 2.588829 | P25: 59293.71061 | Q25: 45422 | W25: ATO3 | X25: =+X24 -> a) uso domestico | Y25: uso domestico non residente | Z25: Acquedotto | AA25: =+$M25*P25 -> 143459.1168 | AB25: =+$M25*Q25 -> 109896.9847 | AC25: 146328.2802 | AD25: 117589.7908 | AE25: =+IF(OR(K25<>"",ISNUMBER(K25)=TRUE),AE24+1,0) -> 3 | AF25: 3 | AG25: =+AG24 -> 2 | AH25: 0
G26: 61 | H26: 120 | I26: 61 | J26: 120 | K26: 61 | L26: 120 | M26: 2.984009 | N26: 3.043689 | O26: 3.19289 | P26: 132139.1865 | Q26: 97234 | W26: ATO3 | X26: a) uso domestico | Y26: uso domestico non residente | Z26: Acquedotto | AA26: 394304.5218 | AB26: 290147.1311 | AC26: 402190.5884 | AD26: 310457.4663 | AE26: 4 | AF26: 4 | AG26: =+AG25 -> 2 | AH26: 0
G27: 121 | I27: 121 | K27: 121 | M27: 3.749683 | N27: 3.824677 | O27: 4.012161 | P27: 135442 | Q27: 88137 | W27: ATO3 | X27: a) uso domestico | Y27: uso domestico non residente | Z27: Acquedotto | AA27: 507864.5649 | AB27: 330485.8106 | AC27: 518021.9022 | AD27: 353619.8341 | AE27: 5 | AF27: 5 | AG27: =+AG26 -> 2 | AH27: 0
W28: ATO3 | X28: a) uso domestico | Y28: uso domestico non residente | Z28: Acquedotto | AA28: 0 | AB28: 0 | AC28: 0 | AD28: 0 | AE28: 0 | AF28: 6 | AG28: =+AG27 -> 2 | AH28: 0
W29: ATO3 | X29: a) uso domestico | Y29: uso domestico non residente | Z29: Acquedotto | AA29: 0 | AB29: 0 | AC29: 0 | AD29: 0 | AE29: 0 | AF29: 7 | AG29: =+AG28 -> 2 | AH29: 0
W30: ATO3 | X30: a) uso domestico | Y30: uso domestico non residente | Z30: Acquedotto | AA30: 0 | AB30: 0 | AC30: 0 | AD30: 0 | AE30: 0 | AF30: 8 | AG30: =+AG29 -> 2 | AH30: 0
W31: ATO3 | X31: a) uso domestico | Y31: uso domestico non residente | Z31: Acquedotto | AA31: 0 | AB31: 0 | AC31: 0 | AD31: 0 | AE31: 0 | AF31: 9 | AG31: =+AG30 -> 2 | AH31: 0
W32: ATO3 | X32: a) uso domestico | Y32: uso domestico non residente | Z32: Acquedotto | AA32: 0 | AB32: 0 | AC32: 0 | AD32: 0 | AE32: 0 | AF32: 10 | AG32: =+AG31 -> 2 | AH32: 0
F33: Fognatura | M33: 0.129675 | N33: 0.132269 | O33: 0.138752 | P33: 755453.9892 | Q33: 682172 | R33: 3.602174 | S33: 3.674217 | T33: 3.854326 | U33: 21300.01 | V33: 21091.08 | W33: ATO3 | X33: a) uso domestico | Y33: uso domestico non residente | Z33: Fognatura | AA33: =+$M33*P33+$R33*U33 -> 174689.8383 | AB33: 164434.3941 | AC33: =+N33*P33+S33*U33 -> 178184.0025 | AD33: 175944.6274 | AE33: 1 | AF33: 11 | AG33: =+AG32 -> 2 | AH33: 0
F34: Depurazione | M34: 0.340166 | N34: 0.346969 | O34: 0.363977 | P34: 722603 | Q34: 651229 | R34: 9.537156 | S34: 9.727899 | T34: 10.204756 | U34: 20105.46 | V34: 19915.72 | W34: ATO3 | X34: a) uso domestico | Y34: uso domestico non residente | Z34: Depurazione | AA34: 437553.8806 | AB34: 411465.2925 | AC34: 446304.7245 | AD34: 440267.4409 | AE34: 1 | AF34: 12 | AG34: =+AG33 -> 2 | AH34: 0
B35: ATO3 | C35: d) uso agricolo e zootecnico | D35: Agricolo e zootecnico | E35: NO | F35: Acquedotto | G35: 0 | I35: 0 | K35: 0 | M35: 0.457116 | N35: 0.466258 | O35: 0.489114 | P35: 262761 | Q35: 240416 | R35: 78.35271 | S35: 79.919765 | T35: 83.837401 | U35: 917.55 | V35: 936.59 | W35: =+IFERROR(VLOOKUP(B35,Elenco_Bacini_Tariffari!C:C,1,FALSE),TRUE) -> ATO3 | X35: =+IFERROR(VLOOKUP(C35,ticsi_tipol,1,FALSE),TRUE) -> d) uso agricolo e zootecnico | Y35: =+D35 -> Agricolo e zootecnico | Z35: Acquedotto | AA35: 192004.7863 | AB35: 183282.3649 | AC35: 195844.7987 | AD35: 196112.1028 | AE35: 1 | AF35: 1 | AG35: =+IF(ROW()=11,1,(ROW()+1)/12) -> 3 | AH35: =+IF(E35="SI",1,IF(E35="NO",0,"")) -> 0
G36: =+IF(H35=0,"",H35+1) ->  | I36: =+IF(J35=0,"",J35+1) ->  | K36: =+IF(L35=0,"",L35+1) ->  | W36: ATO3 | X36: =+X35 -> d) uso agricolo e zootecnico | Y36: =+Y35 -> Agricolo e zootecnico | Z36: Acquedotto | AA36: =+$M36*P36 -> 0 | AB36: =+$M36*Q36 -> 0 | AC36: =+N36*P36 -> 0 | AD36: =+O36*Q36 -> 0 | AE36: =+IF(OR(K36<>"",ISNUMBER(K36)=TRUE),AE35+1,0) -> 0 | AF36: 2 | AG36: =+AG35 -> 3 | AH36: =+AH35 -> 0
G37: =+IF(H36=0,"",H36+1) ->  | K37: =+IF(L36=0,"",L36+1) ->  | W37: ATO3 | X37: =+X36 -> d) uso agricolo e zootecnico | Y37: Agricolo e zootecnico | Z37: Acquedotto | AA37: =+$M37*P37 -> 0 | AB37: =+$M37*Q37 -> 0 | AC37: 0 | AD37: 0 | AE37: =+IF(OR(K37<>"",ISNUMBER(K37)=TRUE),AE36+1,0) -> 0 | AF37: 3 | AG37: =+AG36 -> 3 | AH37: 0
W38: ATO3 | X38: d) uso agricolo e zootecnico | Y38: Agricolo e zootecnico | Z38: Acquedotto | AA38: 0 | AB38: 0 | AC38: 0 | AD38: 0 | AE38: 0 | AF38: 4 | AG38: =+AG37 -> 3 | AH38: 0
W39: ATO3 | X39: d) uso agricolo e zootecnico | Y39: Agricolo e zootecnico | Z39: Acquedotto | AA39: 0 | AB39: 0 | AC39: 0 | AD39: 0 | AE39: 0 | AF39: 5 | AG39: =+AG38 -> 3 | AH39: 0
W40: ATO3 | X40: d) uso agricolo e zootecnico | Y40: Agricolo e zootecnico | Z40: Acquedotto | AA40: 0 | AB40: 0 | AC40: 0 | AD40: 0 | AE40: 0 | AF40: 6 | AG40: =+AG39 -> 3 | AH40: 0
W41: ATO3 | X41: d) uso agricolo e zootecnico | Y41: Agricolo e zootecnico | Z41: Acquedotto | AA41: 0 | AB41: 0 | AC41: 0 | AD41: 0 | AE41: 0 | AF41: 7 | AG41: =+AG40 -> 3 | AH41: 0
W42: ATO3 | X42: d) uso agricolo e zootecnico | Y42: Agricolo e zootecnico | Z42: Acquedotto | AA42: 0 | AB42: 0 | AC42: 0 | AD42: 0 | AE42: 0 | AF42: 8 | AG42: =+AG41 -> 3 | AH42: 0
W43: ATO3 | X43: d) uso agricolo e zootecnico | Y43: Agricolo e zootecnico | Z43: Acquedotto | AA43: 0 | AB43: 0 | AC43: 0 | AD43: 0 | AE43: 0 | AF43: 9 | AG43: =+AG42 -> 3 | AH43: 0
W44: ATO3 | X44: d) uso agricolo e zootecnico | Y44: Agricolo e zootecnico | Z44: Acquedotto | AA44: 0 | AB44: 0 | AC44: 0 | AD44: 0 | AE44: 0 | AF44: 10 | AG44: =+AG43 -> 3 | AH44: 0
F45: Fognatura | M45: 0.129675 | N45: 0.132269 | O45: 0.138752 | P45: 24852 | Q45: 20362 | R45: 3.602174 | S45: 3.674217 | T45: 3.854326 | U45: 112.95 | V45: 113.02 | W45: ATO3 | X45: d) uso agricolo e zootecnico | Y45: Agricolo e zootecnico | Z45: Fognatura | AA45: =+$M45*P45+$R45*U45 -> 3629.548653 | AB45: 3047.560055 | AC45: =+N45*P45+S45*U45 -> 3702.151998 | AD45: 3260.884149 | AE45: 1 | AF45: 11 | AG45: =+AG44 -> 3 | AH45: 0
F46: Depurazione | M46: 0.340166 | N46: 0.346969 | O46: 0.363977 | P46: 24852 | Q46: 20362 | R46: 9.537156 | S46: 9.727899 | T46: 10.204756 | U46: 112.95 | V46: 113.02 | W46: ATO3 | X46: d) uso agricolo e zootecnico | Y46: Agricolo e zootecnico | Z46: Depurazione | AA46: 9531.027202 | AB46: 8004.349463 | AC46: 9721.63978 | AD46: 8564.641197 | AE46: 1 | AF46: 12 | AG46: =+AG45 -> 3 | AH46: 0
B47: ATO3 | C47: c) uso artigianale e commerciale | D47: Artigianale Idroesigenza minima | E47: NO | F47: Acquedotto | G47: 0 | H47: 50 | I47: 0 | J47: 50 | K47: 0 | L47: 50 | M47: 0.913037 | N47: 0.931298 | O47: 0.97695 | P47: 2944.422803 | Q47: 4627 | R47: 78.35271 | S47: 39.959882 | T47: 41.9187 | U47: 170.33 | V47: 180.48 | W47: =+IFERROR(VLOOKUP(B47,Elenco_Bacini_Tariffari!C:C,1,FALSE),TRUE) -> ATO3 | X47: =+IFERROR(VLOOKUP(C47,ticsi_tipol,1,FALSE),TRUE) -> c) uso artigianale e commerciale | Y47: =+D47 -> Artigianale Idroesigenza minima | Z47: Acquedotto | AA47: 16034.18406 | AB47: 18365.7193 | AC47: 9548.501769 | AD47: 12085.83463 | AE47: 1 | AF47: 1 | AG47: =+IF(ROW()=11,1,(ROW()+1)/12) -> 4 | AH47: =+IF(E47="SI",1,IF(E47="NO",0,"")) -> 0
G48: =+IF(H47=0,"",H47+1) -> 51 | I48: =+IF(J47=0,"",J47+1) -> 51 | K48: =+IF(L47=0,"",L47+1) -> 51 | M48: 1.920133 | N48: 1.958536 | O48: 2.054542 | P48: 3216.182898 | Q48: 5140 | W48: ATO3 | X48: =+X47 -> c) uso artigianale e commerciale | Y48: =+Y47 -> Artigianale Idroesigenza minima | Z48: Acquedotto | AA48: =+$M48*P48 -> 6175.498916 | AB48: =+$M48*Q48 -> 9869.48362 | AC48: =+N48*P48 -> 6299.009988 | AD48: =+O48*Q48 -> 10560.34588 | AE48: =+IF(OR(K48<>"",ISNUMBER(K48)=TRUE),AE47+1,0) -> 2 | AF48: 2 | AG48: =+AG47 -> 4 | AH48: =+AH47 -> 0
G49: =+IF(H48=0,"",H48+1) ->  | K49: =+IF(L48=0,"",L48+1) ->  | W49: ATO3 | X49: =+X48 -> c) uso artigianale e commerciale | Y49: Artigianale Idroesigenza minima | Z49: Acquedotto | AA49: =+$M49*P49 -> 0 | AB49: =+$M49*Q49 -> 0 | AC49: 0 | AD49: 0 | AE49: =+IF(OR(K49<>"",ISNUMBER(K49)=TRUE),AE48+1,0) -> 0 | AF49: 3 | AG49: =+AG48 -> 4 | AH49: 0
W50: ATO3 | X50: c) uso artigianale e commerciale | Y50: Artigianale Idroesigenza minima | Z50: Acquedotto | AA50: 0 | AB50: 0 | AC50: 0 | AD50: 0 | AE50: 0 | AF50: 4 | AG50: =+AG49 -> 4 | AH50: 0
W51: ATO3 | X51: c) uso artigianale e commerciale | Y51: Artigianale Idroesigenza minima | Z51: Acquedotto | AA51: 0 | AB51: 0 | AC51: 0 | AD51: 0 | AE51: 0 | AF51: 5 | AG51: =+AG50 -> 4 | AH51: 0
W52: ATO3 | X52: c) uso artigianale e commerciale | Y52: Artigianale Idroesigenza minima | Z52: Acquedotto | AA52: 0 | AB52: 0 | AC52: 0 | AD52: 0 | AE52: 0 | AF52: 6 | AG52: =+AG51 -> 4 | AH52: 0
W53: ATO3 | X53: c) uso artigianale e commerciale | Y53: Artigianale Idroesigenza minima | Z53: Acquedotto | AA53: 0 | AB53: 0 | AC53: 0 | AD53: 0 | AE53: 0 | AF53: 7 | AG53: =+AG52 -> 4 | AH53: 0
W54: ATO3 | X54: c) uso artigianale e commerciale | Y54: Artigianale Idroesigenza minima | Z54: Acquedotto | AA54: 0 | AB54: 0 | AC54: 0 | AD54: 0 | AE54: 0 | AF54: 8 | AG54: =+AG53 -> 4 | AH54: 0
W55: ATO3 | X55: c) uso artigianale e commerciale | Y55: Artigianale Idroesigenza minima | Z55: Acquedotto | AA55: 0 | AB55: 0 | AC55: 0 | AD55: 0 | AE55: 0 | AF55: 9 | AG55: =+AG54 -> 4 | AH55: 0
W56: ATO3 | X56: c) uso artigianale e commerciale | Y56: Artigianale Idroesigenza minima | Z56: Acquedotto | AA56: 0 | AB56: 0 | AC56: 0 | AD56: 0 | AE56: 0 | AF56: 10 | AG56: =+AG55 -> 4 | AH56: 0
F57: Fognatura | M57: 0.129675 | N57: 0.132269 | O57: 0.138752 | P57: 5864 | Q57: 9259 | R57: 3.602174 | S57: 3.674217 | T57: 3.854326 | U57: 152.3 | V57: 163.42 | W57: ATO3 | X57: c) uso artigianale e commerciale | Y57: Artigianale Idroesigenza minima | Z57: Fognatura | AA57: =+$M57*P57+$R57*U57 -> 1309.0253 | AB57: 1789.3281 | AC57: =+N57*P57+S57*U57 -> 1335.208665 | AD57: 1914.578723 | AE57: 1 | AF57: 11 | AG57: =+AG56 -> 4 | AH57: 0
F58: Depurazione | M58: 0.340166 | N58: 0.346969 | O58: 0.363977 | P58: 5828 | Q58: 9236 | R58: 9.537156 | S58: 9.727899 | T58: 10.204756 | U58: 151.3 | V58: 162.42 | W58: ATO3 | X58: c) uso artigianale e commerciale | Y58: Artigianale Idroesigenza minima | Z58: Depurazione | AA58: 3425.459151 | AB58: 4690.798054 | AC58: 3493.966451 | AD58: 5019.148042 | AE58: 1 | AF58: 12 | AG58: =+AG57 -> 4 | AH58: 0
B59: ATO3 | C59: c) uso artigianale e commerciale | D59: Artigianale Idroesigenza bassa | E59: NO | F59: Acquedotto | G59: 0 | H59: 50 | I59: 0 | J59: 50 | K59: 0 | L59: 50 | M59: 0.913037 | N59: 0.931298 | O59: 0.97695 | P59: 10798 | Q59: 11737 | R59: 78.35271 | S59: 79.919765 | T59: 83.837401 | U59: 252.57 | V59: 273.1 | W59: =+IFERROR(VLOOKUP(B59,Elenco_Bacini_Tariffari!C:C,1,FALSE),TRUE) -> ATO3 | X59: =+IFERROR(VLOOKUP(C59,ticsi_tipol,1,FALSE),TRUE) -> c) uso artigianale e commerciale | Y59: =+D59 -> Artigianale Idroesigenza bassa | Z59: Acquedotto | AA59: 29648.51749 | AB59: 32114.44037 | AC59: 30241.49085 | AD59: 34362.45636 | AE59: 1 | AF59: 1 | AG59: =+IF(ROW()=11,1,(ROW()+1)/12) -> 5 | AH59: =+IF(E59="SI",1,IF(E59="NO",0,"")) -> 0
G60: =+IF(H59=0,"",H59+1) -> 51 | I60: =+IF(J59=0,"",J59+1) -> 51 | K60: =+IF(L59=0,"",L59+1) -> 51 | M60: 1.920133 | N60: 1.958536 | O60: 2.054542 | P60: 6690 | Q60: 7739 | W60: ATO3 | X60: =+X59 -> c) uso artigianale e commerciale | Y60: =+Y59 -> Artigianale Idroesigenza bassa | Z60: Acquedotto | AA60: =+$M60*P60 -> 12845.68977 | AB60: =+$M60*Q60 -> 14859.90929 | AC60: =+N60*P60 -> 13102.60584 | AD60: =+O60*Q60 -> 15900.10054 | AE60: =+IF(OR(K60<>"",ISNUMBER(K60)=TRUE),AE59+1,0) -> 2 | AF60: 2 | AG60: =+AG59 -> 5 | AH60: =+AH59 -> 0
G61: =+IF(H60=0,"",H60+1) ->  | K61: =+IF(L60=0,"",L60+1) ->  | W61: ATO3 | X61: =+X60 -> c) uso artigianale e commerciale | Y61: Artigianale Idroesigenza bassa | Z61: Acquedotto | AA61: =+$M61*P61 -> 0 | AB61: =+$M61*Q61 -> 0 | AC61: 0 | AD61: 0 | AE61: =+IF(OR(K61<>"",ISNUMBER(K61)=TRUE),AE60+1,0) -> 0 | AF61: 3 | AG61: =+AG60 -> 5 | AH61: 0
W62: ATO3 | X62: c) uso artigianale e commerciale | Y62: Artigianale Idroesigenza bassa | Z62: Acquedotto | AA62: 0 | AB62: 0 | AC62: 0 | AD62: 0 | AE62: 0 | AF62: 4 | AG62: =+AG61 -> 5 | AH62: 0
W63: ATO3 | X63: c) uso artigianale e commerciale | Y63: Artigianale Idroesigenza bassa | Z63: Acquedotto | AA63: 0 | AB63: 0 | AC63: 0 | AD63: 0 | AE63: 0 | AF63: 5 | AG63: =+AG62 -> 5 | AH63: 0
W64: ATO3 | X64: c) uso artigianale e commerciale | Y64: Artigianale Idroesigenza bassa | Z64: Acquedotto | AA64: 0 | AB64: 0 | AC64: 0 | AD64: 0 | AE64: 0 | AF64: 6 | AG64: =+AG63 -> 5 | AH64: 0
W65: ATO3 | X65: c) uso artigianale e commerciale | Y65: Artigianale Idroesigenza bassa | Z65: Acquedotto | AA65: 0 | AB65: 0 | AC65: 0 | AD65: 0 | AE65: 0 | AF65: 7 | AG65: =+AG64 -> 5 | AH65: 0
W66: ATO3 | X66: c) uso artigianale e commerciale | Y66: Artigianale Idroesigenza bassa | Z66: Acquedotto | AA66: 0 | AB66: 0 | AC66: 0 | AD66: 0 | AE66: 0 | AF66: 8 | AG66: =+AG65 -> 5 | AH66: 0
W67: ATO3 | X67: c) uso artigianale e commerciale | Y67: Artigianale Idroesigenza bassa | Z67: Acquedotto | AA67: 0 | AB67: 0 | AC67: 0 | AD67: 0 | AE67: 0 | AF67: 9 | AG67: =+AG66 -> 5 | AH67: 0
W68: ATO3 | X68: c) uso artigianale e commerciale | Y68: Artigianale Idroesigenza bassa | Z68: Acquedotto | AA68: 0 | AB68: 0 | AC68: 0 | AD68: 0 | AE68: 0 | AF68: 10 | AG68: =+AG67 -> 5 | AH68: 0
F69: Fognatura | M69: 0.129675 | N69: 0.132269 | O69: 0.138752 | P69: 13317 | Q69: 15063 | R69: 3.602174 | S69: 3.674217 | T69: 3.854326 | U69: 198.71 | V69: 217.17 | W69: ATO3 | X69: c) uso artigianale e commerciale | Y69: Artigianale Idroesigenza bassa | Z69: Fognatura | AA69: =+$M69*P69+$R69*U69 -> 2442.669971 | AB69: 2735.578653 | AC69: =+N69*P69+S69*U69 -> 2491.529933 | AD69: 2927.065353 | AE69: 1 | AF69: 11 | AG69: =+AG68 -> 5 | AH69: 0
F70: Depurazione | M70: 0.340166 | N70: 0.346969 | O70: 0.363977 | P70: 13304 | Q70: 15063 | R70: 9.537156 | S70: 9.727899 | T70: 10.204756 | U70: 198.71 | V70: 217.17 | W70: ATO3 | X70: c) uso artigianale e commerciale | Y70: Artigianale Idroesigenza bassa | Z70: Depurazione | AA70: 6420.696733 | AB70: 7195.104627 | AC70: 6549.106386 | AD70: 7698.752412 | AE70: 1 | AF70: 12 | AG70: =+AG69 -> 5 | AH70: 0
B71: ATO3 | C71: c) uso artigianale e commerciale | D71: Artigianale Idroesigenza media | E71: NO | F71: Acquedotto | G71: 0 | H71: 50 | I71: 0 | J71: 50 | K71: 0 | L71: 50 | M71: 0.913037 | N71: 0.931298 | O71: 0.97695 | P71: 4083 | Q71: 4237 | R71: 78.35271 | S71: 99.899705 | T71: 104.79675 | U71: 83.58 | V71: 89.71 | W71: =+IFERROR(VLOOKUP(B71,Elenco_Bacini_Tariffari!C:C,1,FALSE),TRUE) -> ATO3 | X71: =+IFERROR(VLOOKUP(C71,ticsi_tipol,1,FALSE),TRUE) -> c) uso artigianale e commerciale | Y71: =+D71 -> Artigianale Idroesigenza media | Z71: Acquedotto | AA71: 10276.64957 | AB71: 10897.55938 | AC71: 12152.10708 | AD71: 13540.65359 | AE71: 1 | AF71: 1 | AG71: =+IF(ROW()=11,1,(ROW()+1)/12) -> 6 | AH71: =+IF(E71="SI",1,IF(E71="NO",0,"")) -> 0
G72: =+IF(H71=0,"",H71+1) -> 51 | I72: =+IF(J71=0,"",J71+1) -> 51 | K72: =+IF(L71=0,"",L71+1) -> 51 | M72: 1.920133 | N72: 1.958536 | O72: 2.054542 | P72: 7190 | Q72: 6785 | W72: ATO3 | X72: =+X71 -> c) uso artigianale e commerciale | Y72: =+Y71 -> Artigianale Idroesigenza media | Z72: Acquedotto | AA72: =+$M72*P72 -> 13805.75627 | AB72: =+$M72*Q72 -> 13028.10241 | AC72: =+N72*P72 -> 14081.87384 | AD72: =+O72*Q72 -> 13940.06747 | AE72: =+IF(OR(K72<>"",ISNUMBER(K72)=TRUE),AE71+1,0) -> 2 | AF72: 2 | AG72: =+AG71 -> 6 | AH72: =+AH71 -> 0
G73: =+IF(H72=0,"",H72+1) ->  | K73: =+IF(L72=0,"",L72+1) ->  | W73: ATO3 | X73: =+X72 -> c) uso artigianale e commerciale | Y73: Artigianale Idroesigenza media | Z73: Acquedotto | AA73: =+$M73*P73 -> 0 | AB73: =+$M73*Q73 -> 0 | AC73: 0 | AD73: 0 | AE73: =+IF(OR(K73<>"",ISNUMBER(K73)=TRUE),AE72+1,0) -> 0 | AF73: 3 | AG73: =+AG72 -> 6 | AH73: 0
W74: ATO3 | X74: c) uso artigianale e commerciale | Y74: Artigianale Idroesigenza media | Z74: Acquedotto | AA74: 0 | AB74: 0 | AC74: 0 | AD74: 0 | AE74: 0 | AF74: 4 | AG74: =+AG73 -> 6 | AH74: 0
W75: ATO3 | X75: c) uso artigianale e commerciale | Y75: Artigianale Idroesigenza media | Z75: Acquedotto | AA75: 0 | AB75: 0 | AC75: 0 | AD75: 0 | AE75: 0 | AF75: 5 | AG75: =+AG74 -> 6 | AH75: 0
W76: =W75 -> ATO3 | X76: c) uso artigianale e commerciale | Y76: Artigianale Idroesigenza media | Z76: Acquedotto | AA76: 0 | AB76: 0 | AC76: 0 | AD76: 0 | AE76: 0 | AF76: 6 | AG76: =+AG75 -> 6 | AH76: 0
W77: ATO3 | X77: c) uso artigianale e commerciale | Y77: Artigianale Idroesigenza media | Z77: Acquedotto | AA77: 0 | AB77: 0 | AC77: 0 | AD77: 0 | AE77: 0 | AF77: 7 | AG77: =+AG76 -> 6 | AH77: 0
W78: ATO3 | X78: c) uso artigianale e commerciale | Y78: Artigianale Idroesigenza media | Z78: Acquedotto | AA78: 0 | AB78: 0 | AC78: 0 | AD78: 0 | AE78: 0 | AF78: 8 | AG78: =+AG77 -> 6 | AH78: 0
W79: ATO3 | X79: c) uso artigianale e commerciale | Y79: Artigianale Idroesigenza media | Z79: Acquedotto | AA79: 0 | AB79: 0 | AC79: 0 | AD79: 0 | AE79: 0 | AF79: 9 | AG79: =+AG78 -> 6 | AH79: 0
W80: ATO3 | X80: c) uso artigianale e commerciale | Y80: Artigianale Idroesigenza media | Z80: Acquedotto | AA80: 0 | AB80: 0 | AC80: 0 | AD80: 0 | AE80: 0 | AF80: 10 | AG80: =+AG79 -> 6 | AH80: 0
F81: Fognatura | M81: 0.129675 | N81: 0.132269 | O81: 0.138752 | P81: 9815 | Q81: 9617 | R81: 3.602174 | S81: 3.674217 | T81: 3.854326 | U81: 74.58 | V81: 80.68 | W81: ATO3 | X81: c) uso artigianale e commerciale | Y81: Artigianale Idroesigenza media | Z81: Fognatura | AA81: =+$M81*P81+$R81*U81 -> 1541.410262 | AB81: 1537.707873 | AC81: =+N81*P81+S81*U81 -> 1572.243339 | AD81: 1645.345006 | AE81: 1 | AF81: 11 | AG81: =+AG80 -> 6 | AH81: 0
F82: Depurazione | M82: 0.340166 | N82: 0.346969 | O82: 0.363977 | P82: 9815 | Q82: 9617 | R82: 9.537156 | S82: 9.727899 | T82: 10.204756 | U82: 74.58 | V82: 80.68 | W82: ATO3 | X82: c) uso artigianale e commerciale | Y82: Artigianale Idroesigenza media | Z82: Depurazione | AA82: 4050.010384 | AB82: 4040.834168 | AC82: 4131.007442 | AD82: 4323.686523 | AE82: 1 | AF82: 12 | AG82: =+AG81 -> 6 | AH82: 0
B83: ATO3 | C83: c) uso artigianale e commerciale | D83: Artigianale Idroesigenza alta | E83: NO | F83: Acquedotto | G83: 0 | H83: 50 | I83: 0 | J83: 50 | K83: 0 | L83: 50 | M83: 0.913037 | N83: 0.931298 | O83: 0.97695 | P83: 3888 | Q83: 4044 | R83: 78.35271 | S83: 137.239292 | T83: 143.966709 | U83: 80.04 | V83: 87.46 | W83: =+IFERROR(VLOOKUP(B83,Elenco_Bacini_Tariffari!C:C,1,FALSE),TRUE) -> ATO3 | X83: =+IFERROR(VLOOKUP(C83,ticsi_tipol,1,FALSE),TRUE) -> c) uso artigianale e commerciale | Y83: =+D83 -> Artigianale Idroesigenza alta | Z83: Acquedotto | AA83: 9821.238764 | AB83: 10545.04964 | AC83: 14605.51956 | AD83: 16542.11417 | AE83: 1 | AF83: 1 | AG83: =+IF(ROW()=11,1,(ROW()+1)/12) -> 7 | AH83: =+IF(E83="SI",1,IF(E83="NO",0,"")) -> 0
G84: =+IF(H83=0,"",H83+1) -> 51 | I84: =+IF(J83=0,"",J83+1) -> 51 | K84: =+IF(L83=0,"",L83+1) -> 51 | M84: 1.920133 | N84: 1.958536 | O84: 2.054542 | P84: 34237 | Q84: 30173 | W84: =W83 -> ATO3 | X84: =+X83 -> c) uso artigianale e commerciale | Y84: =+Y83 -> Artigianale Idroesigenza alta | Z84: Acquedotto | AA84: =+$M84*P84 -> 65739.59352 | AB84: =+$M84*Q84 -> 57936.17301 | AC84: =+N84*P84 -> 67054.39703 | AD84: =+O84*Q84 -> 61991.69577 | AE84: =+IF(OR(K84<>"",ISNUMBER(K84)=TRUE),AE83+1,0) -> 2 | AF84: 2 | AG84: =+AG83 -> 7 | AH84: =+AH83 -> 0
G85: =+IF(H84=0,"",H84+1) ->  | K85: =+IF(L84=0,"",L84+1) ->  | W85: ATO3 | X85: =+X84 -> c) uso artigianale e commerciale | Y85: Artigianale Idroesigenza alta | Z85: Acquedotto | AA85: =+$M85*P85 -> 0 | AB85: =+$M85*Q85 -> 0 | AC85: 0 | AD85: 0 | AE85: =+IF(OR(K85<>"",ISNUMBER(K85)=TRUE),AE84+1,0) -> 0 | AF85: 3 | AG85: =+AG84 -> 7 | AH85: 0
W86: ATO3 | X86: c) uso artigianale e commerciale | Y86: Artigianale Idroesigenza alta | Z86: Acquedotto | AA86: 0 | AB86: 0 | AC86: 0 | AD86: 0 | AE86: 0 | AF86: 4 | AG86: =+AG85 -> 7 | AH86: 0
W87: ATO3 | X87: c) uso artigianale e commerciale | Y87: Artigianale Idroesigenza alta | Z87: Acquedotto | AA87: 0 | AB87: 0 | AC87: 0 | AD87: 0 | AE87: 0 | AF87: 5 | AG87: =+AG86 -> 7 | AH87: 0
W88: ATO3 | X88: c) uso artigianale e commerciale | Y88: Artigianale Idroesigenza alta | Z88: Acquedotto | AA88: 0 | AB88: 0 | AC88: 0 | AD88: 0 | AE88: 0 | AF88: 6 | AG88: =+AG87 -> 7 | AH88: 0
W89: ATO3 | X89: c) uso artigianale e commerciale | Y89: Artigianale Idroesigenza alta | Z89: Acquedotto | AA89: 0 | AB89: 0 | AC89: 0 | AD89: 0 | AE89: 0 | AF89: 7 | AG89: =+AG88 -> 7 | AH89: 0
W90: ATO3 | X90: c) uso artigianale e commerciale | Y90: Artigianale Idroesigenza alta | Z90: Acquedotto | AA90: 0 | AB90: 0 | AC90: 0 | AD90: 0 | AE90: 0 | AF90: 8 | AG90: =+AG89 -> 7 | AH90: 0
W91: ATO3 | X91: c) uso artigianale e commerciale | Y91: Artigianale Idroesigenza alta | Z91: Acquedotto | AA91: 0 | AB91: 0 | AC91: 0 | AD91: 0 | AE91: 0 | AF91: 9 | AG91: =+AG90 -> 7 | AH91: 0
W92: ATO3 | X92: c) uso artigianale e commerciale | Y92: Artigianale Idroesigenza alta | Z92: Acquedotto | AA92: 0 | AB92: 0 | AC92: 0 | AD92: 0 | AE92: 0 | AF92: 10 | AG92: =+AG91 -> 7 | AH92: 0
F93: Fognatura | M93: 0.129675 | N93: 0.132269 | O93: 0.138752 | P93: 34799 | Q93: 31756 | R93: 3.602174 | S93: 3.674217 | T93: 3.854326 | U93: 74.04 | V93: 81.44 | W93: ATO3 | X93: c) uso artigianale e commerciale | Y93: Artigianale Idroesigenza alta | Z93: Fognatura | AA93: =+$M93*P93+$R93*U93 -> 4779.265288 | AB93: 4411.320351 | AC93: =+N93*P93+S93*U93 -> 4874.867958 | AD93: 4720.104821 | AE93: 1 | AF93: 11 | AG93: =+AG92 -> 7 | AH93: 0
F94: Depurazione | M94: 0.340166 | N94: 0.346969 | O94: 0.363977 | P94: 34796 | Q94: 31756 | R94: 9.537156 | S94: 9.727899 | T94: 10.204756 | U94: 74.04 | V94: 81.44 | W94: ATO3 | X94: c) uso artigianale e commerciale | Y94: Artigianale Idroesigenza alta | Z94: Depurazione | AA94: 12542.54717 | AB94: 11579.01748 | AC94: 12793.38697 | AD94: 12389.52894 | AE94: 1 | AF94: 12 | AG94: =+AG93 -> 7 | AH94: 0
B95: ATO3 | C95: c) uso artigianale e commerciale | D95: Commerciale Idroesigenza minima | E95: NO | F95: Acquedotto | G95: 0 | H95: 50 | I95: 0 | J95: 50 | K95: 0 | L95: 50 | M95: 0.913037 | N95: 0.931298 | O95: 0.97695 | P95: 16134.971 | Q95: 25239 | R95: 78.35271 | S95: 39.959882 | T95: 41.9187 | U95: 1329.3 | V95: 1312.33 | W95: =+IFERROR(VLOOKUP(B95,Elenco_Bacini_Tariffari!C:C,1,FALSE),TRUE) -> ATO3 | X95: =+IFERROR(VLOOKUP(C95,ticsi_tipol,1,FALSE),TRUE) -> c) uso artigianale e commerciale | Y95: =+D95 -> Commerciale Idroesigenza minima | Z95: Acquedotto | AA95: 118886.0829 | AB95: 125868.7528 | AC95: 68145.13736 | AD95: 79668.40862 | AE95: 1 | AF95: 1 | AG95: =+IF(ROW()=11,1,(ROW()+1)/12) -> 8 | AH95: =+IF(E95="SI",1,IF(E95="NO",0,"")) -> 0
G96: =+IF(H95=0,"",H95+1) -> 51 | H96: 200 | I96: =+IF(J95=0,"",J95+1) -> 51 | J96: 200 | K96: =+IF(L95=0,"",L95+1) -> 51 | L96: 200 | M96: 1.195089 | N96: 1.218991 | O96: 1.278746 | P96: 4663 | Q96: 18230 | W96: =W95 -> ATO3 | X96: =+X95 -> c) uso artigianale e commerciale | Y96: =+Y95 -> Commerciale Idroesigenza minima | Z96: Acquedotto | AA96: =+$M96*P96 -> 5572.700007 | AB96: =+$M96*Q96 -> 21786.47247 | AC96: =+N96*P96 -> 5684.155033 | AD96: =+O96*Q96 -> 23311.53958 | AE96: =+IF(OR(K96<>"",ISNUMBER(K96)=TRUE),AE95+1,0) -> 2 | AF96: 2 | AG96: =+AG95 -> 8 | AH96: =+AH95 -> 0
G97: =+IF(H96=0,"",H96+1) -> 201 | H97: 1000 | I97: 201 | J97: 1000 | K97: =+IF(L96=0,"",L96+1) -> 201 | L97: 1000 | M97: 1.792634 | N97: 1.828487 | O97: 1.918118 | P97: 4413 | Q97: 5995 | W97: ATO3 | X97: =+X96 -> c) uso artigianale e commerciale | Y97: Commerciale Idroesigenza minima | Z97: Acquedotto | AA97: =+$M97*P97 -> 7910.893842 | AB97: =+$M97*Q97 -> 10746.84083 | AC97: 8069.113131 | AD97: 11499.11741 | AE97: =+IF(OR(K97<>"",ISNUMBER(K97)=TRUE),AE96+1,0) -> 3 | AF97: 3 | AG97: =+AG96 -> 8 | AH97: 0
G98: 1001 | I98: 1001 | K98: 1001 | M98: 2.868214 | N98: 2.925579 | O98: 3.068989 | P98: 1875 | Q98: 2430 | W98: ATO3 | X98: c) uso artigianale e commerciale | Y98: Commerciale Idroesigenza minima | Z98: Acquedotto | AA98: 5377.90125 | AB98: 6969.76002 | AC98: 5485.460625 | AD98: 7457.64327 | AE98: 4 | AF98: 4 | AG98: =+AG97 -> 8 | AH98: 0
W99: ATO3 | X99: c) uso artigianale e commerciale | Y99: Commerciale Idroesigenza minima | Z99: Acquedotto | AA99: 0 | AB99: 0 | AC99: 0 | AD99: 0 | AE99: 0 | AF99: 5 | AG99: =+AG98 -> 8 | AH99: 0
W100: ATO3 | X100: c) uso artigianale e commerciale | Y100: Commerciale Idroesigenza minima | Z100: Acquedotto | AA100: 0 | AB100: 0 | AC100: 0 | AD100: 0 | AE100: 0 | AF100: 6 | AG100: =+AG99 -> 8 | AH100: 0
W101: ATO3 | X101: c) uso artigianale e commerciale | Y101: Commerciale Idroesigenza minima | Z101: Acquedotto | AA101: 0 | AB101: 0 | AC101: 0 | AD101: 0 | AE101: 0 | AF101: 7 | AG101: =+AG100 -> 8 | AH101: 0
W102: ATO3 | X102: c) uso artigianale e commerciale | Y102: Commerciale Idroesigenza minima | Z102: Acquedotto | AA102: 0 | AB102: 0 | AC102: 0 | AD102: 0 | AE102: 0 | AF102: 8 | AG102: =+AG101 -> 8 | AH102: 0
W103: ATO3 | X103: c) uso artigianale e commerciale | Y103: Commerciale Idroesigenza minima | Z103: Acquedotto | AA103: 0 | AB103: 0 | AC103: 0 | AD103: 0 | AE103: 0 | AF103: 9 | AG103: =+AG102 -> 8 | AH103: 0
W104: ATO3 | X104: c) uso artigianale e commerciale | Y104: Commerciale Idroesigenza minima | Z104: Acquedotto | AA104: 0 | AB104: 0 | AC104: 0 | AD104: 0 | AE104: 0 | AF104: 10 | AG104: =+AG103 -> 8 | AH104: 0
F105: Fognatura | M105: 0.129675 | N105: 0.132269 | O105: 0.138752 | P105: 26111.51186 | Q105: 47506 | R105: 3.602174 | S105: 3.674217 | T105: 3.854326 | U105: 1262.71 | V105: 1246.08 | W105: ATO3 | X105: c) uso artigianale e commerciale | Y105: Commerciale Idroesigenza minima | Z105: Fognatura | AA105: =+$M105*P105+$R105*U105 -> 7934.511431 | AB105: 10648.93753 | AC105: =+N105*P105+S105*U105 -> 8093.21411 | AD105: 11394.35105 | AE105: 1 | AF105: 11 | AG105: =+AG104 -> 8 | AH105: 0
F106: Depurazione | M106: 0.340166 | N106: 0.346969 | O106: 0.363977 | P106: 26054.89163 | Q106: 47417 | R106: 9.537156 | S106: 9.727899 | T106: 10.204756 | U106: 1258.25 | V106: 1242.07 | W106: ATO3 | X106: c) uso artigianale e commerciale | Y106: Commerciale Idroesigenza minima | Z106: Depurazione | AA106: 20863.1148 | AB106: 27975.46657 | AC106: 21280.36861 | AD106: 29933.71869 | AE106: 1 | AF106: 12 | AG106: =+AG105 -> 8 | AH106: 0
B107: ATO3 | C107: c) uso artigianale e commerciale | D107: Commerciale idroesigenza bassa | E107: NO | F107: Acquedotto | G107: 0 | H107: 50 | I107: 0 | J107: 50 | K107: 0 | L107: 50 | M107: 0.913037 | N107: 0.931298 | O107: 0.97695 | P107: 26728.64429 | Q107: 28500 | R107: 78.35271 | S107: 79.919765 | T107: 83.837401 | U107: 742.71 | V107: 765.87 | W107: =+IFERROR(VLOOKUP(B107,Elenco_Bacini_Tariffari!C:C,1,FALSE),TRUE) -> ATO3 | X107: =+IFERROR(VLOOKUP(C107,ticsi_tipol,1,FALSE),TRUE) -> c) uso artigianale e commerciale | Y107: =+D107 -> Commerciale idroesigenza bassa | Z107: Acquedotto | AA107: 82597.58245 | AB107: 86029.54451 | AC107: 84249.54164 | AD107: 92051.6253 | AE107: 1 | AF107: 1 | AG107: =+IF(ROW()=11,1,(ROW()+1)/12) -> 9 | AH107: =+IF(E107="SI",1,IF(E107="NO",0,"")) -> 0
G108: =+IF(H107=0,"",H107+1) -> 51 | H108: 200 | I108: =+IF(J107=0,"",J107+1) -> 51 | J108: 200 | K108: =+IF(L107=0,"",L107+1) -> 51 | L108: 200 | M108: 1.195089 | N108: 1.218991 | O108: 1.278746 | P108: 14109 | Q108: 22979 | W108: =W107 -> ATO3 | X108: =+X107 -> c) uso artigianale e commerciale | Y108: =+Y107 -> Commerciale idroesigenza bassa | Z108: Acquedotto | AA108: =+$M108*P108 -> 16861.5107 | AB108: =+$M108*Q108 -> 27461.95013 | AC108: =+N108*P108 -> 17198.74402 | AD108: =+O108*Q108 -> 29384.30433 | AE108: =+IF(OR(K108<>"",ISNUMBER(K108)=TRUE),AE107+1,0) -> 2 | AF108: 2 | AG108: =+AG107 -> 9 | AH108: =+AH107 -> 0
G109: =+IF(H108=0,"",H108+1) -> 201 | H109: 1000 | I109: 201 | J109: 1000 | K109: =+IF(L108=0,"",L108+1) -> 201 | L109: 1000 | M109: 1.792634 | N109: 1.828487 | O109: 1.918118 | P109: 4869 | Q109: 5716 | W109: ATO3 | X109: =+X108 -> c) uso artigianale e commerciale | Y109: Commerciale idroesigenza bassa | Z109: Acquedotto | AA109: =+$M109*P109 -> 8728.334946 | AB109: =+$M109*Q109 -> 10246.69594 | AC109: 8902.903203 | AD109: 10963.96249 | AE109: =+IF(OR(K109<>"",ISNUMBER(K109)=TRUE),AE108+1,0) -> 3 | AF109: 3 | AG109: =+AG108 -> 9 | AH109: 0
G110: 1001 | I110: 1001 | K110: 1001 | M110: 2.868214 | N110: 2.925579 | O110: 3.068989 | P110: 12502 | Q110: 11 | W110: ATO3 | X110: c) uso artigianale e commerciale | Y110: Commerciale idroesigenza bassa | Z110: Acquedotto | AA110: 35858.41143 | AB110: 31.550354 | AC110: 36575.58866 | AD110: 33.758879 | AE110: 4 | AF110: 4 | AG110: =+AG109 -> 9 | AH110: 0
W111: ATO3 | X111: c) uso artigianale e commerciale | Y111: Commerciale idroesigenza bassa | Z111: Acquedotto | AA111: 0 | AB111: 0 | AC111: 0 | AD111: 0 | AE111: 0 | AF111: 5 | AG111: =+AG110 -> 9 | AH111: 0
W112: ATO3 | X112: c) uso artigianale e commerciale | Y112: Commerciale idroesigenza bassa | Z112: Acquedotto | AA112: 0 | AB112: 0 | AC112: 0 | AD112: 0 | AE112: 0 | AF112: 6 | AG112: =+AG111 -> 9 | AH112: 0
W113: ATO3 | X113: c) uso artigianale e commerciale | Y113: Commerciale idroesigenza bassa | Z113: Acquedotto | AA113: 0 | AB113: 0 | AC113: 0 | AD113: 0 | AE113: 0 | AF113: 7 | AG113: =+AG112 -> 9 | AH113: 0
W114: ATO3 | X114: c) uso artigianale e commerciale | Y114: Commerciale idroesigenza bassa | Z114: Acquedotto | AA114: 0 | AB114: 0 | AC114: 0 | AD114: 0 | AE114: 0 | AF114: 8 | AG114: =+AG113 -> 9 | AH114: 0
W115: ATO3 | X115: c) uso artigianale e commerciale | Y115: Commerciale idroesigenza bassa | Z115: Acquedotto | AA115: 0 | AB115: 0 | AC115: 0 | AD115: 0 | AE115: 0 | AF115: 9 | AG115: =+AG114 -> 9 | AH115: 0
W116: ATO3 | X116: c) uso artigianale e commerciale | Y116: Commerciale idroesigenza bassa | Z116: Acquedotto | AA116: 0 | AB116: 0 | AC116: 0 | AD116: 0 | AE116: 0 | AF116: 10 | AG116: =+AG115 -> 9 | AH116: 0
F117: Fognatura | M117: 0.129675 | N117: 0.132269 | O117: 0.138752 | P117: 40580.35571 | Q117: 51770 | R117: 3.602174 | S117: 3.674217 | T117: 3.854326 | U117: 678.88 | V117: 699.61 | W117: ATO3 | X117: c) uso artigianale e commerciale | Y117: Commerciale idroesigenza bassa | Z117: Fognatura | AA117: =+$M117*P117+$R117*U117 -> 7707.701511 | AB117: 9233.391702 | AC117: =+N117*P117+S117*U117 -> 7861.875506 | AD117: 9879.716053 | AE117: 1 | AF117: 11 | AG117: =+AG116 -> 9 | AH117: 0
F118: Depurazione | M118: 0.340166 | N118: 0.346969 | O118: 0.363977 | P118: 40322.64429 | Q118: 51281 | R118: 9.537156 | S118: 9.727899 | T118: 10.204756 | U118: 670.88 | V118: 691.58 | W118: ATO3 | X118: c) uso artigianale e commerciale | Y118: Commerciale idroesigenza bassa | Z118: Depurazione | AA118: 20114.67984 | AB118: 24039.75899 | AC118: 20516.96045 | AD118: 25722.50969 | AE118: 1 | AF118: 12 | AG118: =+AG117 -> 9 | AH118: 0
B119: ATO3 | C119: c) uso artigianale e commerciale | D119: Commerciale idroesigenza media | E119: NO | F119: Acquedotto | G119: 0 | H119: 50 | I119: 0 | J119: 50 | K119: 0 | L119: 50 | M119: 0.913037 | N119: 0.931298 | O119: 0.97695 | P119: 18518 | Q119: 18197 | R119: 78.35271 | S119: 119.879646 | T119: 125.7561 | U119: 410.98 | V119: 419.68 | W119: =+IFERROR(VLOOKUP(B119,Elenco_Bacini_Tariffari!C:C,1,FALSE),TRUE) -> ATO3 | X119: =+IFERROR(VLOOKUP(C119,ticsi_tipol,1,FALSE),TRUE) -> c) uso artigianale e commerciale | Y119: =+D119 -> Commerciale idroesigenza media | Z119: Acquedotto | AA119: 49109.01592 | AB119: 49497.59962 | AC119: 66513.91328 | AD119: 70554.8792 | AE119: 1 | AF119: 1 | AG119: =+IF(ROW()=11,1,(ROW()+1)/12) -> 10 | AH119: =+IF(E119="SI",1,IF(E119="NO",0,"")) -> 0
G120: =+IF(H119=0,"",H119+1) -> 51 | H120: 200 | I120: =+IF(J119=0,"",J119+1) -> 51 | J120: 200 | K120: =+IF(L119=0,"",L119+1) -> 51 | L120: 200 | M120: 1.195089 | N120: 1.218991 | O120: 1.278746 | P120: 30674 | Q120: 29713 | W120: =W119 -> ATO3 | X120: =+X119 -> c) uso artigianale e commerciale | Y120: =+Y119 -> Commerciale idroesigenza media | Z120: Acquedotto | AA120: =+$M120*P120 -> 36658.15999 | AB120: =+$M120*Q120 -> 35509.67946 | AC120: =+N120*P120 -> 37391.32993 | AD120: =+O120*Q120 -> 37995.3799 | AE120: =+IF(OR(K120<>"",ISNUMBER(K120)=TRUE),AE119+1,0) -> 2 | AF120: 2 | AG120: =+AG119 -> 10 | AH120: =+AH119 -> 0
G121: =+IF(H120=0,"",H120+1) -> 201 | H121: 1000 | I121: 201 | J121: 1000 | K121: =+IF(L120=0,"",L120+1) -> 201 | L121: 1000 | M121: 1.792634 | N121: 1.828487 | O121: 1.918118 | P121: 5878 | Q121: 7792 | W121: ATO3 | X121: =+X120 -> c) uso artigianale e commerciale | Y121: Commerciale idroesigenza media | Z121: Acquedotto | AA121: =+$M121*P121 -> 10537.10265 | AB121: =+$M121*Q121 -> 13968.20413 | AC121: 10747.84659 | AD121: 14945.97546 | AE121: =+IF(OR(K121<>"",ISNUMBER(K121)=TRUE),AE120+1,0) -> 3 | AF121: 3 | AG121: =+AG120 -> 10 | AH121: 0
G122: 1001 | I122: 1001 | K122: 1001 | M122: 2.868214 | N122: 2.925579 | O122: 3.068989 | P122: 1418 | Q122: 3097 | W122: ATO3 | X122: c) uso artigianale e commerciale | Y122: Commerciale idroesigenza media | Z122: Acquedotto | AA122: 4067.127452 | AB122: 8882.858758 | AC122: 4148.471022 | AD122: 9504.658933 | AE122: 4 | AF122: 4 | AG122: =+AG121 -> 10 | AH122: 0
W123: ATO3 | X123: c) uso artigianale e commerciale | Y123: Commerciale idroesigenza media | Z123: Acquedotto | AA123: 0 | AB123: 0 | AC123: 0 | AD123: 0 | AE123: 0 | AF123: 5 | AG123: =+AG122 -> 10 | AH123: 0
W124: ATO3 | X124: c) uso artigianale e commerciale | Y124: Commerciale idroesigenza media | Z124: Acquedotto | AA124: 0 | AB124: 0 | AC124: 0 | AD124: 0 | AE124: 0 | AF124: 6 | AG124: =+AG123 -> 10 | AH124: 0
W125: ATO3 | X125: c) uso artigianale e commerciale | Y125: Commerciale idroesigenza media | Z125: Acquedotto | AA125: 0 | AB125: 0 | AC125: 0 | AD125: 0 | AE125: 0 | AF125: 7 | AG125: =+AG124 -> 10 | AH125: 0
W126: ATO3 | X126: c) uso artigianale e commerciale | Y126: Commerciale idroesigenza media | Z126: Acquedotto | AA126: 0 | AB126: 0 | AC126: 0 | AD126: 0 | AE126: 0 | AF126: 8 | AG126: =+AG125 -> 10 | AH126: 0
W127: ATO3 | X127: c) uso artigianale e commerciale | Y127: Commerciale idroesigenza media | Z127: Acquedotto | AA127: 0 | AB127: 0 | AC127: 0 | AD127: 0 | AE127: 0 | AF127: 9 | AG127: =+AG126 -> 10 | AH127: 0
W128: ATO3 | X128: c) uso artigianale e commerciale | Y128: Commerciale idroesigenza media | Z128: Acquedotto | AA128: 0 | AB128: 0 | AC128: 0 | AD128: 0 | AE128: 0 | AF128: 10 | AG128: =+AG127 -> 10 | AH128: 0
F129: Fognatura | M129: 0.129675 | N129: 0.132269 | O129: 0.138752 | P129: 44817 | Q129: 48810 | R129: 3.602174 | S129: 3.674217 | T129: 3.854326 | U129: 359.89 | V129: 367.49 | W129: ATO3 | X129: c) uso artigianale e commerciale | Y129: Commerciale idroesigenza media | Z129: Fognatura | AA129: =+$M129*P129+$R129*U129 -> 7108.030876 | AB129: 7653.199673 | AC129: =+N129*P129+S129*U129 -> 7250.213729 | AD129: 8188.911382 | AE129: 1 | AF129: 11 | AG129: =+AG128 -> 10 | AH129: 0
F130: Depurazione | M130: 0.340166 | N130: 0.346969 | O130: 0.363977 | P130: 44185 | Q130: 47870 | R130: 9.537156 | S130: 9.727899 | T130: 10.204756 | U130: 353.89 | V130: 361.47 | W130: ATO3 | X130: c) uso artigianale e commerciale | Y130: Commerciale idroesigenza media | Z130: Depurazione | AA130: 18405.33885 | AB130: 19731.1422 | AC130: 18773.43144 | AD130: 21112.29214 | AE130: 1 | AF130: 12 | AG130: =+AG129 -> 10 | AH130: 0
B131: ATO3 | C131: c) uso artigianale e commerciale | D131: Commerciale idroesigenza alta | E131: NO | F131: Acquedotto | G131: 0 | H131: 50 | I131: 0 | J131: 50 | K131: 0 | L131: 50 | M131: 0.913037 | N131: 0.931298 | O131: 0.97695 | P131: 44422.8383 | Q131: 43488 | R131: 78.35271 | S131: 174.838481 | T131: 183.408994 | U131: 925.94 | V131: 948.83 | W131: =+IFERROR(VLOOKUP(B131,Elenco_Bacini_Tariffari!C:C,1,FALSE),TRUE) -> ATO3 | X131: =+IFERROR(VLOOKUP(C131,ticsi_tipol,1,FALSE),TRUE) -> c) uso artigianale e commerciale | Y131: =+D131 -> Commerciale idroesigenza alta | Z131: Acquedotto | AA131: 113109.6033 | AB131: 114049.5549 | AC131: 203260.8436 | AD131: 216509.5574 | AE131: 1 | AF131: 1 | AG131: =+IF(ROW()=11,1,(ROW()+1)/12) -> 11 | AH131: =+IF(E131="SI",1,IF(E131="NO",0,"")) -> 0
G132: =+IF(H131=0,"",H131+1) -> 51 | H132: 200 | I132: =+IF(J131=0,"",J131+1) -> 51 | J132: 200 | K132: =+IF(L131=0,"",L131+1) -> 51 | L132: 200 | M132: 1.195089 | N132: 1.218991 | O132: 1.278746 | P132: 110473.0723 | Q132: 93592 | W132: =W131 -> ATO3 | X132: =+X131 -> c) uso artigianale e commerciale | Y132: =+Y131 -> Commerciale idroesigenza alta | Z132: Acquedotto | AA132: =+$M132*P132 -> 132025.1535 | AB132: =+$M132*Q132 -> 111850.7697 | AC132: =+N132*P132 -> 134665.6809 | AD132: =+O132*Q132 -> 119680.3956 | AE132: =+IF(OR(K132<>"",ISNUMBER(K132)=TRUE),AE131+1,0) -> 2 | AF132: 2 | AG132: =+AG131 -> 11 | AH132: =+AH131 -> 0
G133: =+IF(H132=0,"",H132+1) -> 201 | H133: 1000 | I133: 201 | J133: 1000 | K133: =+IF(L132=0,"",L132+1) -> 201 | L133: 1000 | M133: 1.792634 | N133: 1.828487 | O133: 1.918118 | P133: 147211.4383 | Q133: 109381 | W133: ATO3 | X133: =+X132 -> c) uso artigianale e commerciale | Y133: Commerciale idroesigenza alta | Z133: Acquedotto | AA133: =+$M133*P133 -> 263896.2295 | AB133: =+$M133*Q133 -> 196080.0996 | AC133: 269174.2012 | AD133: 209805.665 | AE133: =+IF(OR(K133<>"",ISNUMBER(K133)=TRUE),AE132+1,0) -> 3 | AF133: 3 | AG133: =+AG132 -> 11 | AH133: 0
G134: 1001 | I134: 1001 | K134: 1001 | M134: 2.868214 | N134: 2.925579 | O134: 3.068989 | P134: 100465 | Q134: 75059 | W134: ATO3 | X134: c) uso artigianale e commerciale | Y134: Commerciale idroesigenza alta | Z134: Acquedotto | AA134: 288155.1195 | AB134: 215285.2746 | AC134: 293918.2942 | AD134: 230355.2454 | AE134: 4 | AF134: 4 | AG134: =+AG133 -> 11 | AH134: 0
W135: ATO3 | X135: c) uso artigianale e commerciale | Y135: Commerciale idroesigenza alta | Z135: Acquedotto | AA135: 0 | AB135: 0 | AC135: 0 | AD135: 0 | AE135: 0 | AF135: 5 | AG135: =+AG134 -> 11 | AH135: 0
W136: ATO3 | X136: c) uso artigianale e commerciale | Y136: Commerciale idroesigenza alta | Z136: Acquedotto | AA136: 0 | AB136: 0 | AC136: 0 | AD136: 0 | AE136: 0 | AF136: 6 | AG136: =+AG135 -> 11 | AH136: 0
W137: ATO3 | X137: c) uso artigianale e commerciale | Y137: Commerciale idroesigenza alta | Z137: Acquedotto | AA137: 0 | AB137: 0 | AC137: 0 | AD137: 0 | AE137: 0 | AF137: 7 | AG137: =+AG136 -> 11 | AH137: 0
W138: ATO3 | X138: c) uso artigianale e commerciale | Y138: Commerciale idroesigenza alta | Z138: Acquedotto | AA138: 0 | AB138: 0 | AC138: 0 | AD138: 0 | AE138: 0 | AF138: 8 | AG138: =+AG137 -> 11 | AH138: 0
W139: ATO3 | X139: c) uso artigianale e commerciale | Y139: Commerciale idroesigenza alta | Z139: Acquedotto | AA139: 0 | AB139: 0 | AC139: 0 | AD139: 0 | AE139: 0 | AF139: 9 | AG139: =+AG138 -> 11 | AH139: 0
W140: ATO3 | X140: c) uso artigianale e commerciale | Y140: Commerciale idroesigenza alta | Z140: Acquedotto | AA140: 0 | AB140: 0 | AC140: 0 | AD140: 0 | AE140: 0 | AF140: 10 | AG140: =+AG139 -> 11 | AH140: 0
F141: Fognatura | M141: 0.129675 | N141: 0.132269 | O141: 0.138752 | P141: 314835 | Q141: 265668 | R141: 3.602174 | S141: 3.674217 | T141: 3.854326 | U141: 759.36 | V141: 788.76 | W141: ATO3 | X141: c) uso artigianale e commerciale | Y141: Commerciale idroesigenza alta | Z141: Fognatura | AA141: =+$M141*P141+$R141*U141 -> 43561.57547 | AB141: 37291.74866 | AC141: =+N141*P141+S141*U141 -> 44432.96404 | AD141: 39902.10451 | AE141: 1 | AF141: 11 | AG141: =+AG140 -> 11 | AH141: 0
F142: Depurazione | M142: 0.340166 | N142: 0.346969 | O142: 0.363977 | P142: 309406 | Q142: 262584 | R142: 9.537156 | S142: 9.727899 | T142: 10.204756 | U142: 748.36 | V142: 777.72 | W142: ATO3 | X142: c) uso artigianale e commerciale | Y142: Commerciale idroesigenza alta | Z142: Depurazione | AA142: 112386.6275 | AB142: 96739.38591 | AC142: 114634.2609 | AD142: 103510.9794 | AE142: 1 | AF142: 12 | AG142: =+AG141 -> 11 | AH142: 0
B143: ATO3 | C143: b) uso industriale | D143: Idroesigenza bassa | E143: NO | F143: Acquedotto | G143: 0 | H143: 700 | I143: 0 | J143: 700 | K143: 0 | L143: 700 | M143: 0.913037 | N143: 0.931298 | O143: 0.97695 | P143: 18302 | Q143: 45826 | R143: 78.35271 | S143: 79.919765 | T143: 83.837401 | U143: 51.91 | V143: 80.09 | W143: =+IFERROR(VLOOKUP(B143,Elenco_Bacini_Tariffari!C:C,1,FALSE),TRUE) -> ATO3 | X143: =+IFERROR(VLOOKUP(C143,ticsi_tipol,1,FALSE),TRUE) -> b) uso industriale | Y143: =+D143 -> Idroesigenza bassa | Z143: Acquedotto | AA143: 20777.69235 | AB143: 48116.10211 | AC143: 21193.251 | AD143: 51484.24815 | AE143: 1 | AF143: 1 | AG143: =+IF(ROW()=11,1,(ROW()+1)/12) -> 12 | AH143: =+IF(E143="SI",1,IF(E143="NO",0,"")) -> 0
G144: =+IF(H143=0,"",H143+1) -> 701 | I144: =+IF(J143=0,"",J143+1) -> 701 | K144: =+IF(L143=0,"",L143+1) -> 701 | M144: 2.363684 | N144: 2.410958 | O144: 2.529142 | P144: 2811 | Q144: 4113 | W144: =W143 -> ATO3 | X144: =+X143 -> b) uso industriale | Y144: =+Y143 -> Idroesigenza bassa | Z144: Acquedotto | AA144: =+$M144*P144 -> 6644.315724 | AB144: =+$M144*Q144 -> 9721.832292 | AC144: =+N144*P144 -> 6777.202938 | AD144: =+O144*Q144 -> 10402.36105 | AE144: =+IF(OR(K144<>"",ISNUMBER(K144)=TRUE),AE143+1,0) -> 2 | AF144: 2 | AG144: =+AG143 -> 12 | AH144: =+AH143 -> 0
G145: =+IF(H144=0,"",H144+1) ->  | K145: =+IF(L144=0,"",L144+1) ->  | W145: ATO3 | X145: =+X144 -> b) uso industriale | Y145: Idroesigenza bassa | Z145: Acquedotto | AA145: =+$M145*P145 -> 0 | AB145: =+$M145*Q145 -> 0 | AC145: 0 | AD145: 0 | AE145: =+IF(OR(K145<>"",ISNUMBER(K145)=TRUE),AE144+1,0) -> 0 | AF145: 3 | AG145: =+AG144 -> 12 | AH145: 0
W146: ATO3 | X146: b) uso industriale | Y146: Idroesigenza bassa | Z146: Acquedotto | AA146: 0 | AB146: 0 | AC146: 0 | AD146: 0 | AE146: 0 | AF146: 4 | AG146: =+AG145 -> 12 | AH146: 0
W147: ATO3 | X147: b) uso industriale | Y147: Idroesigenza bassa | Z147: Acquedotto | AA147: 0 | AB147: 0 | AC147: 0 | AD147: 0 | AE147: 0 | AF147: 5 | AG147: =+AG146 -> 12 | AH147: 0
W148: ATO3 | X148: b) uso industriale | Y148: Idroesigenza bassa | Z148: Acquedotto | AA148: 0 | AB148: 0 | AC148: 0 | AD148: 0 | AE148: 0 | AF148: 6 | AG148: =+AG147 -> 12 | AH148: 0
W149: ATO3 | X149: b) uso industriale | Y149: Idroesigenza bassa | Z149: Acquedotto | AA149: 0 | AB149: 0 | AC149: 0 | AD149: 0 | AE149: 0 | AF149: 7 | AG149: =+AG148 -> 12 | AH149: 0
W150: ATO3 | X150: b) uso industriale | Y150: Idroesigenza bassa | Z150: Acquedotto | AA150: 0 | AB150: 0 | AC150: 0 | AD150: 0 | AE150: 0 | AF150: 8 | AG150: =+AG149 -> 12 | AH150: 0
W151: ATO3 | X151: b) uso industriale | Y151: Idroesigenza bassa | Z151: Acquedotto | AA151: 0 | AB151: 0 | AC151: 0 | AD151: 0 | AE151: 0 | AF151: 9 | AG151: =+AG150 -> 12 | AH151: 0
W152: ATO3 | X152: b) uso industriale | Y152: Idroesigenza bassa | Z152: Acquedotto | AA152: 0 | AB152: 0 | AC152: 0 | AD152: 0 | AE152: 0 | AF152: 10 | AG152: =+AG151 -> 12 | AH152: 0
F153: Fognatura | M153: 0.129675 | N153: 0.132269 | O153: 0.138752 | P153: 30055 | Q153: 43741 | R153: 3.602174 | S153: 3.674217 | T153: 3.854326 | U153: 51.67 | V153: 76.07 | W153: ATO3 | X153: b) uso industriale | Y153: Idroesigenza bassa | Z153: Fognatura | AA153: =+$M153*P153+$R153*U153 -> 4083.506456 | AB153: 5946.131551 | AC153: =+N153*P153+S153*U153 -> 4165.191587 | AD153: 6362.349811 | AE153: 1 | AF153: 11 | AG153: =+AG152 -> 12 | AH153: 0
F154: Depurazione | M154: 0.340166 | N154: 0.346969 | O154: 0.363977 | P154: 30055 | Q154: 43741 | R154: 9.537156 | S154: 9.727899 | T154: 10.204756 | U154: 51.67 | V154: 76.07 | W154: ATO3 | X154: b) uso industriale | Y154: Idroesigenza bassa | Z154: Depurazione | AA154: 10716.47398 | AB154: 15604.69246 | AC154: 10930.79384 | AD154: 16696.99375 | AE154: 1 | AF154: 12 | AG154: =+AG153 -> 12 | AH154: 0
B155: ATO3 | C155: b) uso industriale | D155: Idroesigenza media | E155: NO | F155: Acquedotto | G155: 0 | H155: 700 | I155: 0 | J155: 30000 | K155: 0 | L155: 30000 | M155: 0.913037 | N155: 0.977863 | O155: 1.025797 | P155: 79565 | Q155: 118871 | R155: 78.35271 | S155: 95.903718 | T155: 100.604881 | U155: 28.84 | V155: 40.03 | W155: =+IFERROR(VLOOKUP(B155,Elenco_Bacini_Tariffari!C:C,1,FALSE),TRUE) -> ATO3 | X155: =+IFERROR(VLOOKUP(C155,ticsi_tipol,1,FALSE),TRUE) -> b) uso industriale | Y155: =+D155 -> Idroesigenza media | Z155: Acquedotto | AA155: 74905.48106 | AB155: 111670.0802 | AC155: 80569.53282 | AD155: 125964.7286 | AE155: 1 | AF155: 1 | AG155: =+IF(ROW()=11,1,(ROW()+1)/12) -> 13 | AH155: =+IF(E155="SI",1,IF(E155="NO",0,"")) -> 0
G156: =+IF(H155=0,"",H155+1) -> 701 | I156: =+IF(J155=0,"",J155+1) -> 30001 | K156: =+IF(L155=0,"",L155+1) -> 30001 | M156: 2.363684 | N156: 2.410958 | O156: 2.529142 | P156: 26808 | Q156: 21123 | W156: =W155 -> ATO3 | X156: =+X155 -> b) uso industriale | Y156: =+Y155 -> Idroesigenza media | Z156: Acquedotto | AA156: =+$M156*P156 -> 63365.64067 | AB156: =+$M156*Q156 -> 49928.09713 | AC156: =+N156*P156 -> 64632.96206 | AD156: =+O156*Q156 -> 53423.06647 | AE156: =+IF(OR(K156<>"",ISNUMBER(K156)=TRUE),AE155+1,0) -> 2 | AF156: 2 | AG156: =+AG155 -> 13 | AH156: =+AH155 -> 0
G157: =+IF(H156=0,"",H156+1) ->  | K157: =+IF(L156=0,"",L156+1) ->  | W157: ATO3 | X157: =+X156 -> b) uso industriale | Y157: Idroesigenza media | Z157: Acquedotto | AA157: =+$M157*P157 -> 0 | AB157: =+$M157*Q157 -> 0 | AC157: 0 | AD157: 0 | AE157: =+IF(OR(K157<>"",ISNUMBER(K157)=TRUE),AE156+1,0) -> 0 | AF157: 3 | AG157: =+AG156 -> 13 | AH157: 0
W158: ATO3 | X158: b) uso industriale | Y158: Idroesigenza media | Z158: Acquedotto | AA158: 0 | AB158: 0 | AC158: 0 | AD158: 0 | AE158: 0 | AF158: 4 | AG158: =+AG157 -> 13 | AH158: 0
W159: ATO3 | X159: b) uso industriale | Y159: Idroesigenza media | Z159: Acquedotto | AA159: 0 | AB159: 0 | AC159: 0 | AD159: 0 | AE159: 0 | AF159: 5 | AG159: =+AG158 -> 13 | AH159: 0
W160: ATO3 | X160: b) uso industriale | Y160: Idroesigenza media | Z160: Acquedotto | AA160: 0 | AB160: 0 | AC160: 0 | AD160: 0 | AE160: 0 | AF160: 6 | AG160: =+AG159 -> 13 | AH160: 0
W161: ATO3 | X161: b) uso industriale | Y161: Idroesigenza media | Z161: Acquedotto | AA161: 0 | AB161: 0 | AC161: 0 | AD161: 0 | AE161: 0 | AF161: 7 | AG161: =+AG160 -> 13 | AH161: 0
W162: ATO3 | X162: b) uso industriale | Y162: Idroesigenza media | Z162: Acquedotto | AA162: 0 | AB162: 0 | AC162: 0 | AD162: 0 | AE162: 0 | AF162: 8 | AG162: =+AG161 -> 13 | AH162: 0
W163: ATO3 | X163: b) uso industriale | Y163: Idroesigenza media | Z163: Acquedotto | AA163: 0 | AB163: 0 | AC163: 0 | AD163: 0 | AE163: 0 | AF163: 9 | AG163: =+AG162 -> 13 | AH163: 0
W164: ATO3 | X164: b) uso industriale | Y164: Idroesigenza media | Z164: Acquedotto | AA164: 0 | AB164: 0 | AC164: 0 | AD164: 0 | AE164: 0 | AF164: 10 | AG164: =+AG163 -> 13 | AH164: 0
F165: Fognatura | M165: 0.129675 | N165: 0.132269 | O165: 0.138752 | P165: 109375 | Q165: 139929 | R165: 3.602174 | S165: 3.674217 | T165: 3.854326 | U165: 21.7 | V165: 32.06 | W165: ATO3 | X165: b) uso industriale | Y165: Idroesigenza media | Z165: Fognatura | AA165: =+$M165*P165+$R165*U165 -> 14261.3703 | AB165: 18260.77877 | AC165: =+N165*P165+S165*U165 -> 14546.65238 | AD165: 19538.9983 | AE165: 1 | AF165: 11 | AG165: =+AG164 -> 13 | AH165: 0
F166: Depurazione | M166: 0.340166 | N166: 0.346969 | O166: 0.363977 | P166: 109375 | Q166: 139929 | R166: 9.537156 | S166: 9.727899 | T166: 10.204756 | U166: 21.7 | V166: 32.06 | W166: ATO3 | X166: b) uso industriale | Y166: Idroesigenza media | Z166: Depurazione | AA166: 37412.61254 | AB166: 47904.84944 | AC166: 38160.82978 | AD166: 51258.10211 | AE166: 1 | AF166: 12 | AG166: =+AG165 -> 13 | AH166: 0
B167: ATO3 | C167: b) uso industriale | D167: Idroesigenza alta | E167: NO | F167: Acquedotto | G167: 0 | H167: 700 | I167: 0 | J167: 600000 | K167: 0 | L167: 600000 | M167: 0.913037 | N167: 1.026755 | O167: 1.077087 | P167: 285356 | Q167: 623477 | R167: 78.35271 | S167: 103.895694 | T167: 108.988621 | U167: 2.01 | V167: 4.01 | W167: =+IFERROR(VLOOKUP(B167,Elenco_Bacini_Tariffari!C:C,1,FALSE),TRUE) -> ATO3 | X167: =+IFERROR(VLOOKUP(C167,ticsi_tipol,1,FALSE),TRUE) -> b) uso industriale | Y167: =+D167 -> Idroesigenza alta | Z167: Acquedotto | AA167: 260698.0751 | AB167: 569571.764 | AC167: 293199.5301 | AD167: 671976.0159 | AE167: 1 | AF167: 1 | AG167: =+IF(ROW()=11,1,(ROW()+1)/12) -> 14 | AH167: =+IF(E167="SI",1,IF(E167="NO",0,"")) -> 0
G168: =+IF(H167=0,"",H167+1) -> 701 | I168: =+IF(J167=0,"",J167+1) -> 600001 | K168: =+IF(L167=0,"",L167+1) -> 600001 | M168: 2.363684 | N168: 2.410958 | O168: 2.529142 | P168: 0 | Q168: 0 | W168: =W167 -> ATO3 | X168: =+X167 -> b) uso industriale | Y168: =+Y167 -> Idroesigenza alta | Z168: Acquedotto | AA168: =+$M168*P168 -> 0 | AB168: =+$M168*Q168 -> 0 | AC168: =+N168*P168 -> 0 | AD168: =+O168*Q168 -> 0 | AE168: =+IF(OR(K168<>"",ISNUMBER(K168)=TRUE),AE167+1,0) -> 2 | AF168: 2 | AG168: =+AG167 -> 14 | AH168: =+AH167 -> 0
G169: =+IF(H168=0,"",H168+1) ->  | K169: =+IF(L168=0,"",L168+1) ->  | W169: ATO3 | X169: =+X168 -> b) uso industriale | Y169: Idroesigenza alta | Z169: Acquedotto | AA169: =+$M169*P169 -> 0 | AB169: =+$M169*Q169 -> 0 | AC169: 0 | AD169: 0 | AE169: =+IF(OR(K169<>"",ISNUMBER(K169)=TRUE),AE168+1,0) -> 0 | AF169: 3 | AG169: =+AG168 -> 14 | AH169: 0
W170: ATO3 | X170: b) uso industriale | Y170: Idroesigenza alta | Z170: Acquedotto | AA170: 0 | AB170: 0 | AC170: 0 | AD170: 0 | AE170: 0 | AF170: 4 | AG170: =+AG169 -> 14 | AH170: 0
W171: ATO3 | X171: b) uso industriale | Y171: Idroesigenza alta | Z171: Acquedotto | AA171: 0 | AB171: 0 | AC171: 0 | AD171: 0 | AE171: 0 | AF171: 5 | AG171: =+AG170 -> 14 | AH171: 0
W172: ATO3 | X172: b) uso industriale | Y172: Idroesigenza alta | Z172: Acquedotto | AA172: 0 | AB172: 0 | AC172: 0 | AD172: 0 | AE172: 0 | AF172: 6 | AG172: =+AG171 -> 14 | AH172: 0
W173: ATO3 | X173: b) uso industriale | Y173: Idroesigenza alta | Z173: Acquedotto | AA173: 0 | AB173: 0 | AC173: 0 | AD173: 0 | AE173: 0 | AF173: 7 | AG173: =+AG172 -> 14 | AH173: 0
W174: ATO3 | X174: b) uso industriale | Y174: Idroesigenza alta | Z174: Acquedotto | AA174: 0 | AB174: 0 | AC174: 0 | AD174: 0 | AE174: 0 | AF174: 8 | AG174: =+AG173 -> 14 | AH174: 0
W175: ATO3 | X175: b) uso industriale | Y175: Idroesigenza alta | Z175: Acquedotto | AA175: 0 | AB175: 0 | AC175: 0 | AD175: 0 | AE175: 0 | AF175: 9 | AG175: =+AG174 -> 14 | AH175: 0
W176: ATO3 | X176: b) uso industriale | Y176: Idroesigenza alta | Z176: Acquedotto | AA176: 0 | AB176: 0 | AC176: 0 | AD176: 0 | AE176: 0 | AF176: 10 | AG176: =+AG175 -> 14 | AH176: 0
F177: Fognatura | M177: 0.129675 | N177: 0.132269 | O177: 0.138752 | P177: 285356 | Q177: 623477 | R177: 3.602174 | S177: 3.674217 | T177: 3.854326 | U177: 2.01 | V177: 4.01 | W177: ATO3 | X177: b) uso industriale | Y177: Idroesigenza alta | Z177: Fognatura | AA177: =+$M177*P177+$R177*U177 -> 37010.77967 | AB177: 80863.82469 | AC177: =+N177*P177+S177*U177 -> 37751.13794 | AD177: 86524.13655 | AE177: 1 | AF177: 11 | AG177: =+AG176 -> 14 | AH177: 0
F178: Depurazione | M178: 0.340166 | N178: 0.346969 | O178: 0.363977 | P178: 285356 | Q178: 623477 | R178: 9.537156 | S178: 9.727899 | T178: 10.204756 | U178: 2.01 | V178: 4.01 | W178: ATO3 | X178: b) uso industriale | Y178: Idroesigenza alta | Z178: Depurazione | AA178: 97087.57878 | AB178: 212123.9212 | AC178: 99029.23904 | AD178: 226972.2091 | AE178: 1 | AF178: 12 | AG178: =+AG177 -> 14 | AH178: 0
B179: ATO3 | C179: g) altri usi (categoria residuale) | D179: Altri usi | E179: NO | F179: Acquedotto | G179: 0 | H179: 200 | I179: 0 | J179: 200 | K179: 0 | L179: 200 | M179: 0.913037 | N179: 0.931298 | O179: 0.97695 | P179: 299722.6522 | Q179: 254710 | R179: 78.35271 | S179: 79.919765 | T179: 83.837401 | U179: 3740.51 | V179: 3663.09 | W179: =+IFERROR(VLOOKUP(B179,Elenco_Bacini_Tariffari!C:C,1,FALSE),TRUE) -> ATO3 | X179: =+IFERROR(VLOOKUP(C179,ticsi_tipol,1,FALSE),TRUE) -> g) altri usi (categoria residuale) | Y179: =+D179 -> Altri usi | Z179: Acquedotto | AA179: 566736.9665 | AB179: 519572.6827 | AC179: 578071.7867 | AD179: 555942.8797 | AE179: 1 | AF179: 1 | AG179: =+IF(ROW()=11,1,(ROW()+1)/12) -> 15 | AH179: =+IF(E179="SI",1,IF(E179="NO",0,"")) -> 0
G180: =+IF(H179=0,"",H179+1) -> 201 | I180: =+IF(J179=0,"",J179+1) -> 201 | K180: =+IF(L179=0,"",L179+1) -> 201 | M180: 1.509565 | N180: 1.539757 | O180: 1.615235 | P180: 163780 | Q180: 117028 | W180: =W179 -> ATO3 | X180: =+X179 -> g) altri usi (categoria residuale) | Y180: =+Y179 -> Altri usi | Z180: Acquedotto | AA180: =+$M180*P180 -> 247236.5557 | AB180: =+$M180*Q180 -> 176661.3728 | AC180: =+N180*P180 -> 252181.4015 | AD180: =+O180*Q180 -> 189027.7216 | AE180: =+IF(OR(K180<>"",ISNUMBER(K180)=TRUE),AE179+1,0) -> 2 | AF180: 2 | AG180: =+AG179 -> 15 | AH180: =+AH179 -> 0
G181: =+IF(H180=0,"",H180+1) ->  | K181: =+IF(L180=0,"",L180+1) ->  | W181: ATO3 | X181: =+X180 -> g) altri usi (categoria residuale) | Y181: Altri usi | Z181: Acquedotto | AA181: =+$M181*P181 -> 0 | AB181: =+$M181*Q181 -> 0 | AC181: 0 | AD181: 0 | AE181: =+IF(OR(K181<>"",ISNUMBER(K181)=TRUE),AE180+1,0) -> 0 | AF181: 3 | AG181: =+AG180 -> 15 | AH181: 0
W182: ATO3 | X182: g) altri usi (categoria residuale) | Y182: Altri usi | Z182: Acquedotto | AA182: 0 | AB182: 0 | AC182: 0 | AD182: 0 | AE182: 0 | AF182: 4 | AG182: =+AG181 -> 15 | AH182: 0
W183: ATO3 | X183: g) altri usi (categoria residuale) | Y183: Altri usi | Z183: Acquedotto | AA183: 0 | AB183: 0 | AC183: 0 | AD183: 0 | AE183: 0 | AF183: 5 | AG183: =+AG182 -> 15 | AH183: 0
W184: ATO3 | X184: g) altri usi (categoria residuale) | Y184: Altri usi | Z184: Acquedotto | AA184: 0 | AB184: 0 | AC184: 0 | AD184: 0 | AE184: 0 | AF184: 6 | AG184: =+AG183 -> 15 | AH184: 0
W185: ATO3 | X185: g) altri usi (categoria residuale) | Y185: Altri usi | Z185: Acquedotto | AA185: 0 | AB185: 0 | AC185: 0 | AD185: 0 | AE185: 0 | AF185: 7 | AG185: =+AG184 -> 15 | AH185: 0
W186: ATO3 | X186: g) altri usi (categoria residuale) | Y186: Altri usi | Z186: Acquedotto | AA186: 0 | AB186: 0 | AC186: 0 | AD186: 0 | AE186: 0 | AF186: 8 | AG186: =+AG185 -> 15 | AH186: 0
W187: ATO3 | X187: g) altri usi (categoria residuale) | Y187: Altri usi | Z187: Acquedotto | AA187: 0 | AB187: 0 | AC187: 0 | AD187: 0 | AE187: 0 | AF187: 9 | AG187: =+AG186 -> 15 | AH187: 0
W188: ATO3 | X188: g) altri usi (categoria residuale) | Y188: Altri usi | Z188: Acquedotto | AA188: 0 | AB188: 0 | AC188: 0 | AD188: 0 | AE188: 0 | AF188: 10 | AG188: =+AG187 -> 15 | AH188: 0
F189: Fognatura | M189: 0.129675 | N189: 0.132269 | O189: 0.138752 | P189: 267873 | Q189: 199836 | R189: 3.602174 | S189: 3.674217 | T189: 3.854326 | U189: 1724.21 | V189: 1690.15 | W189: ATO3 | X189: g) altri usi (categoria residuale) | Y189: Altri usi | Z189: Fognatura | AA189: =+$M189*P189+$R189*U189 -> 40947.33571 | AB189: 32001.94769 | AC189: =+N189*P189+S189*U189 -> 41766.41553 | AD189: 34242.03376 | AE189: 1 | AF189: 11 | AG189: =+AG188 -> 15 | AH189: 0
F190: Depurazione | M190: 0.340166 | N190: 0.346969 | O190: 0.363977 | P190: 266254 | Q190: 78208 | R190: 9.537156 | S190: 9.727899 | T190: 10.204756 | U190: 1714.22 | V190: 1680.82 | W190: ATO3 | X190: g) altri usi (categoria residuale) | Y190: Altri usi | Z190: Depurazione | AA190: 106919.3417 | AB190: 42633.94508 | AC190: 109057.6431 | AD190: 45618.2712 | AE190: 1 | AF190: 12 | AG190: =+AG189 -> 15 | AH190: 0
B191: ATO3 | C191: g) altri usi (categoria residuale) | D191: Box-Cantine | E191: NO | F191: Acquedotto | G191: 0 | H191: 200 | I191: 0 | J191: 200 | K191: 0 | L191: 200 | M191: 0.913037 | N191: 0.931298 | O191: 0.97695 | P191: 15000 | Q191: 13765 | R191: 35.585192 | S191: 36.296896 | T191: 38.076156 | U191: 809.07 | V191: 817.53 | W191: =+IFERROR(VLOOKUP(B191,Elenco_Bacini_Tariffari!C:C,1,FALSE),TRUE) -> ATO3 | X191: =+IFERROR(VLOOKUP(C191,ticsi_tipol,1,FALSE),TRUE) -> g) altri usi (categoria residuale) | Y191: =+D191 -> Box-Cantine | Z191: Acquedotto | AA191: 42486.46629 | AB191: 41659.91632 | AC191: 43336.19965 | AD191: 44576.11656 | AE191: 1 | AF191: 1 | AG191: =+IF(ROW()=11,1,(ROW()+1)/12) -> 16 | AH191: =+IF(E191="SI",1,IF(E191="NO",0,"")) -> 0
G192: =+IF(H191=0,"",H191+1) -> 201 | I192: =+IF(J191=0,"",J191+1) -> 201 | K192: =+IF(L191=0,"",L191+1) -> 201 | M192: 2.739111 | N192: 2.793893 | O192: 2.930849 | P192: 755 | Q192: 639 | W192: =W191 -> ATO3 | X192: =+X191 -> g) altri usi (categoria residuale) | Y192: =+Y191 -> Box-Cantine | Z192: Acquedotto | AA192: =+$M192*P192 -> 2068.028805 | AB192: =+$M192*Q192 -> 1750.291929 | AC192: =+N192*P192 -> 2109.389215 | AD192: =+O192*Q192 -> 1872.812511 | AE192: =+IF(OR(K192<>"",ISNUMBER(K192)=TRUE),AE191+1,0) -> 2 | AF192: 2 | AG192: =+AG191 -> 16 | AH192: =+AH191 -> 0
G193: =+IF(H192=0,"",H192+1) ->  | K193: =+IF(L192=0,"",L192+1) ->  | W193: ATO3 | X193: =+X192 -> g) altri usi (categoria residuale) | Y193: Box-Cantine | Z193: Acquedotto | AA193: =+$M193*P193 -> 0 | AB193: =+$M193*Q193 -> 0 | AC193: 0 | AD193: 0 | AE193: =+IF(OR(K193<>"",ISNUMBER(K193)=TRUE),AE192+1,0) -> 0 | AF193: 3 | AG193: =+AG192 -> 16 | AH193: 0
W194: ATO3 | X194: g) altri usi (categoria residuale) | Y194: Box-Cantine | Z194: Acquedotto | AA194: 0 | AB194: 0 | AC194: 0 | AD194: 0 | AE194: 0 | AF194: 4 | AG194: =+AG193 -> 16 | AH194: 0
W195: ATO3 | X195: g) altri usi (categoria residuale) | Y195: Box-Cantine | Z195: Acquedotto | AA195: 0 | AB195: 0 | AC195: 0 | AD195: 0 | AE195: 0 | AF195: 5 | AG195: =+AG194 -> 16 | AH195: 0
W196: ATO3 | X196: g) altri usi (categoria residuale) | Y196: Box-Cantine | Z196: Acquedotto | AA196: 0 | AB196: 0 | AC196: 0 | AD196: 0 | AE196: 0 | AF196: 6 | AG196: =+AG195 -> 16 | AH196: 0
W197: ATO3 | X197: g) altri usi (categoria residuale) | Y197: Box-Cantine | Z197: Acquedotto | AA197: 0 | AB197: 0 | AC197: 0 | AD197: 0 | AE197: 0 | AF197: 7 | AG197: =+AG196 -> 16 | AH197: 0
W198: ATO3 | X198: g) altri usi (categoria residuale) | Y198: Box-Cantine | Z198: Acquedotto | AA198: 0 | AB198: 0 | AC198: 0 | AD198: 0 | AE198: 0 | AF198: 8 | AG198: =+AG197 -> 16 | AH198: 0
W199: ATO3 | X199: g) altri usi (categoria residuale) | Y199: Box-Cantine | Z199: Acquedotto | AA199: 0 | AB199: 0 | AC199: 0 | AD199: 0 | AE199: 0 | AF199: 9 | AG199: =+AG198 -> 16 | AH199: 0
W200: ATO3 | X200: g) altri usi (categoria residuale) | Y200: Box-Cantine | Z200: Acquedotto | AA200: 0 | AB200: 0 | AC200: 0 | AD200: 0 | AE200: 0 | AF200: 10 | AG200: =+AG199 -> 16 | AH200: 0
F201: Fognatura | M201: 0.129675 | N201: 0.132269 | O201: 0.138752 | P201: 8436 | Q201: 8150 | R201: 3.602174 | S201: 3.674217 | T201: 3.854326 | U201: 558.54 | V201: 566.24 | W201: ATO3 | X201: g) altri usi (categoria residuale) | Y201: Box-Cantine | Z201: Fognatura | AA201: =+$M201*P201+$R201*U201 -> 3105.896566 | AB201: 3096.546256 | AC201: =+N201*P201+S201*U201 -> 3168.018447 | AD201: 3313.302354 | AE201: 1 | AF201: 11 | AG201: =+AG200 -> 16 | AH201: 0
F202: Depurazione | M202: 0.340166 | N202: 0.346969 | O202: 0.363977 | P202: 8088 | Q202: 128136 | R202: 9.537156 | S202: 9.727899 | T202: 10.204756 | U202: 548.54 | V202: 556.2 | W202: ATO3 | X202: g) altri usi (categoria residuale) | Y202: Box-Cantine | Z202: Depurazione | AA202: 7982.77416 | AB202: 48892.07674 | AC202: 8142.426989 | AD202: 52314.44216 | AE202: 1 | AF202: 12 | AG202: =+AG201 -> 16 | AH202: 0
B203: ATO3 | C203: f) uso pubblico disalimentabile | D203: Pubblico | E203: NO | F203: Acquedotto | G203: 0 | H203: 2000 | I203: 0 | J203: 2000 | K203: 0 | L203: 2000 | M203: 0.913037 | N203: 0.931298 | O203: 0.97695 | P203: 226882 | Q203: 215813 | R203: 3.558519 | S203: 3.629689 | T203: 3.807615 | U203: 612.44 | V203: 624.08 | W203: =+IFERROR(VLOOKUP(B203,Elenco_Bacini_Tariffari!C:C,1,FALSE),TRUE) -> ATO3 | X203: =+IFERROR(VLOOKUP(C203,ticsi_tipol,1,FALSE),TRUE) -> f) uso pubblico disalimentabile | Y203: =+D203 -> Pubblico | Z203: Acquedotto | AA203: 209331.04 | AB203: 199266.0546 | AC203: 213517.7196 | AD203: 213214.7667 | AE203: 1 | AF203: 1 | AG203: =+IF(ROW()=11,1,(ROW()+1)/12) -> 17 | AH203: =+IF(E203="SI",1,IF(E203="NO",0,"")) -> 0
... 287 more rows

Sheet Ricavi_Coll_Dep
B1: RICAVI TARIFFARI
B5: 4 - Totale ricavi da Tariffe Industriali
B9: Ricavi Tariffe Industriali articolazione previgente | G9: Variabili di scala
B10: Notazione dato | C10: Descrizione dato | D10: tarifind2018 * (vscalind2016)T | E10: tarifind2019 * (vscalind2017)T | G10: Descrizione dato | H10: ΣVp (m3) Anno 2020 | I10: ΣVp (m3) Anno 2021
B11: [tarifaind,FOG * (vscala-2ind,FOG)T] | C11: Ricavo fognatura da articolazione previgente per reflui industriali (co. 18.1 TICSI) | G11: Fognatura
B12: [tarifaind,DEP * (vscala-2ind,DEP)T] | C12: Ricavo depurazione da articolazione previgente per reflui industriali (co. 19.1 TICSI) | G12: Depurazione
B13: [tarifaind,FOG * (vscala-2ind,FOG)T + tarifaind,DEP * (vscala-2ind,DEP)T] | C13: Ricavo fognatura e depurazione per reflui industriali da articolazione previgente
B17: Ricavi Tariffe Industriali da formula TICSI
B18: Notazione dato | C18: Descrizione dato | D18: tarifindnew,2018 * (vscalindnew,2016)T | E18: tarifindnew,2019 * (vscalindnew,2017)T | F18: tarifindnew,2020 * (vscalindnew,2020)T | G18: tarifindnew,2019 * (vscalindnew,2020)T | H18: tarifindnew,2019 * (vscalindnew,2021)T | I18: tarifindnew,2021 * (vscalindnew,2021)T
B19: ∑p Tp | C19: Ricavi complessivi da nuova struttura dei corrispettivi per collettamento e depurazione dei reflui industriali
B20: ∑p Tp cap 10% annuo | C20: Ricavi complessivi da nuova struttura dei corrispettivi per collettamento e trattamento dei reflui industriali - post applicazione condizione di sostenibilità su singolo utente p-esimo ex comma 21.2 TICSI
B25: Ricavi Tariffe Industriali per componente RCvol
B26: Notazione dato | C26: Descrizione dato | D26: J2018*tarifind2015 * (vscalind2016)T | E26: J2019*tarifind2015 * (vscalind2017)T | F26: tarifindnew,2020 * (vscalindnew,2020)T | G26: tarifindnew,2021 * (vscalindnew,2021)T
B27: per Rcvol,ind | C27: Ricavi per scostamento tra tariffe effettivamente applicate rispetto al VRG calcolato per l'anno (a-2) | F27: =+F20 -> 0 | G27: =+I20 -> 0
B28: Notazione dato | C28: Descrizione dato | D28: DTG,ind2018 in tariffa 2020 | E28: DTG,ind2019 in tariffa 2021 | F28: DTG,ind2020 in tariffa 2022 | G28: DTG,ind2021 in tariffa 2023
B29: DTG,indATO | C29: Variazione complessiva dei ricavi afferenti all'implementazione della nuova struttura dei corrispettivi per reflui industriali rispetto all'articolazione previgente (co. 21.3 TICSI) | D29: =Dati_Anni_precedenti!E32 -> 0 | E29: =Dati_Anni_precedenti!F32 -> 0

Sheet Ricavi_bacini_tariffari
B1: RICAVI TARIFFARI
B5: 5 - Totale ricavi per ciascun bacino tariffario
B9: N_riga | C9: Ambito_Tariffario | D9: tar2019*vscal2020 | E9: tar2019*vscal2021 | F9: tar2020*vscal2020 | G9: tar2021*vscal2021 | H9: tar2019*vscal2020 | I9: tar2019*vscal2021 | J9: tar2020*vscal2020 | K9: tar2021*vscal2021 | L9: SPIEGAZIONE EVENTUALE DIFFERENZA CON LA STRUTTURA TARIFFARIA | N9: tar2019*vscal2020 | O9: tar2019*vscal2021 | P9: tar2020*vscal2020 | Q9: tar2021*vscal2021
D10: per calcolo J 2022 | E10: per calcolo J 2023 | F10: per calcolo RCvol 2022 | G10: per calcolo RCvol2023 | H10: per calcolo J 2022 | I10: per calcolo J 2023 | J10: per calcolo RCvol 2022 | K10: per calcolo RCvol2023
B11: =+ROW(A11)-10 -> 1 | C11: ATO3 | D11: =+SUMIF(Struttura_corrispettivi!$W:$W,$C11,Struttura_corrispettivi!AA:AA) -> 19374177.92 | E11: =+SUMIF(Struttura_corrispettivi!$W:$W,$C11,Struttura_corrispettivi!AB:AB) -> 18308184.14 | F11: =+SUMIF(Struttura_corrispettivi!$W:$W,$C11,Struttura_corrispettivi!AC:AC) -> 19843776.02 | G11: =+SUMIF(Struttura_corrispettivi!$W:$W,$C11,Struttura_corrispettivi!AD:AD) -> 19715397.97 | N11: =+IF(H11=0,D11,H11) -> 19374177.92 | O11: =+IF(I11=0,E11,I11) -> 18308184.14 | P11: =+IF(J11=0,F11,J11) -> 19843776.02 | Q11: =+IF(K11=0,G11,K11) -> 19715397.97
B12: =+ROW(A12)-10 -> 2 | C12: ATO3 SIMULAZIONE | D12: =+SUMIF(Struttura_corrispettivi!$W:$W,$C12,Struttura_corrispettivi!AA:AA) -> 4415499.95 | E12: =+SUMIF(Struttura_corrispettivi!$W:$W,$C12,Struttura_corrispettivi!AB:AB) -> 5137938.457 | F12: =+SUMIF(Struttura_corrispettivi!$W:$W,$C12,Struttura_corrispettivi!AC:AC) -> 4520891.632 | G12: =+SUMIF(Struttura_corrispettivi!$W:$W,$C12,Struttura_corrispettivi!AD:AD) -> 5530931.881 | N12: =+IF(H12=0,D12,H12) -> 4415499.95 | O12: =+IF(I12=0,E12,I12) -> 5137938.457 | P12: =+IF(J12=0,F12,J12) -> 4520891.632 | Q12: =+IF(K12=0,G12,K12) -> 5530931.881
B13: 3 | C13: ATO3 STIMA | D13: =+SUMIF(Struttura_corrispettivi!$W:$W,$C13,Struttura_corrispettivi!AA:AA) -> 0 | E13: =+SUMIF(Struttura_corrispettivi!$W:$W,$C13,Struttura_corrispettivi!AB:AB) -> 0 | F13: =+SUMIF(Struttura_corrispettivi!$W:$W,$C13,Struttura_corrispettivi!AC:AC) -> 0 | G13: =+SUMIF(Struttura_corrispettivi!$W:$W,$C13,Struttura_corrispettivi!AD:AD) -> 0 | H13: 106956.52 | I13: 106956.52 | J13: 109095.6504 | K13: 114463.3665 | L13: Stima SAE non fatturate | N13: 106956.52 | O13: 106956.52 | P13: 109095.6504 | Q13: 114463.3665
B14: 4 | C14: ATO3 STIMA | D14: =+SUMIF(Struttura_corrispettivi!$W:$W,$C14,Struttura_corrispettivi!AA:AA) -> 0 | E14: =+SUMIF(Struttura_corrispettivi!$W:$W,$C14,Struttura_corrispettivi!AB:AB) -> 0 | F14: =+SUMIF(Struttura_corrispettivi!$W:$W,$C14,Struttura_corrispettivi!AC:AC) -> 0 | G14: =+SUMIF(Struttura_corrispettivi!$W:$W,$C14,Struttura_corrispettivi!AD:AD) -> 0 | H14: 242944.27 | I14: 522515.82 | J14: 247803.1554 | K14: 559189.0967 | L14: Stima conguagli TICSI reflui industriali | N14: 242944.27 | O14: 522515.82 | P14: 247803.1554 | Q14: 559189.0967

Sheet Dati_Bonus (hidden)
B1: DATI BONUS IDRICO
B5: BONUS IDRICO ANNI 2020, 2021
B7: Dati bonus sociale idrico di cui all'articolo 12, comma 3, del TIBSI
B9: a) Volumi fatturati in relazione al servizio di acquedotto (1) | C9: UdM | D9: ANNO 2020 | E9: ANNO 2021
B10: Uso Domestico | C10: m3
B11: - uso domestico residente | C11: m3
B12: di cui residente non disagiato | C12: m3
B13: - uso domestico non residente | C13: m3
B14: - uso condominiale | C14: m3
B15: - altre sotto - tiplogie | C15: m3
B16: Altri usi diversi dal domestico | C16: m3
B17: di cui uso industriale | C17: m3
B18: di cui uso artigianale e commerciale | C18: m3
B19: di cui uso agricolo e zootecnico | C19: m3
B20: di cui uso pubblico non disalimentabile | C20: m3
B21: di cui uso pubblico disalimentabile | C21: m3
B22: di cui altri usi | C22: m3
B23: Totale volumi fatturati in relazione al servizio di acquedotto | C23: m3
B24: b) Ammontare UI3 fatturata agli utenti e versata a CSEA | C24: euro
B25: c) Ammontare bonus sociale idrico erogato(2) | C25: euro
B26: d) Nuclei familiari agevolati | C26: numero
B27: e) Utenti agevolati(3) | C27: numero
B28: f) Tariffa agevolata applicata | C28: euro/mc
B29: (1) Indicare i volumi fatturati all'utenza dal 1 gennaio 2018 al 31 dicembre 2018 e dal 1 gennaio 2019 al 31 dicembre 2019
B30: (2) Riportare il totale della compensazione effettivamente erogata all'utenza dal 1 gennaio 2018 al 31 dicembre 2018 e dal 1 gennaio 2019 al 31 dicembre 2019 (in base al criterio di cassa)
B31: (3) Indicare il numero complessivo delle persone fisiche componenti i nuclei familiari agevolati
B34: Dati bonus idrico integrativo di cui all'articolo 12, comma 4, del TIBSI
C35: UdM | D35: ANNO 2020 | E35: ANNO 2021
B36: a) Ammontare bonus idrico integrativo erogato(4) | C36: euro
B37: b) Nuclei familiari agevolati | C37: numero
B38: c) Utenti agevolati(5) | C38: numero
B39: (4) Utilizzare il criterio di cassa per la quantificazione dell'importo totale erogato nell'anno
B40: (5) Indicare il numero complessivo delle persone fisiche componenti i nuclei familiari agevolati

Sheet Dati_Anni_precedenti
K2: sono presenti errori | L2: controllo compilazione | M2: controllo valori non negativi | V2: controlli di compilazione
B3: n_riga | C3: Sezione | D3: Voce | E3: 2020 | F3: 2021 | G3: 2020-2023 | K3: =+AND(L3=TRUE,M3=TRUE) -> FALSE | L3: =+OR(V:W) -> FALSE | M3: =+OR(Y:Z) -> FALSE
B4: 1 | C4: Delibera Autorità | D4: Delibera
B5: 2 | C5: Delibera Autorità | D5: J deliberato | E5: 1.02 | F5: 1.070185964 | V5: =+OR(E5<0,E5="") -> FALSE | W5: =+OR(F5<0,F5="") -> FALSE | Y5: =+E5=0 -> FALSE | Z5: =+F5=0 -> FALSE
B6: 3 | C6: Delibera Autorità | D6: J medio
B7: 4 | C7: Delibera Autorità | D7: RC post | G7: 2534346.545
B8: 5 | C8: Schema regolatorio | D8: (∑2020-2023 Ipaexp + CFPaexp ) | G8: 59374881.79
B9: 6 | C9: Schema regolatorio | D9: ψ | G9: 0.4
B10: 7 | C10: Schema regolatorio | D10: RAB MTI-2 | G10: 433714.4353
B11: 8 | C11: Schema regolatorio | D11: Schema regolatorio | G11: VI
B12: 9 | C12: Totale investimenti pianificati | D12: Iptexp + CFPexp | E12: 11547820.51 | F12: 15983947.08
B13: 10 | C13: Totale investimenti pianificati | D13: CFPexp | E13: 8460535.1 | F13: 13367661.2
B14: 11 | C14: Totale investimenti pianificati | D14: Iptexp | E14: 3087285.409 | F14: 2616285.877
B15: 12 | C15: Moltiplicatore | D15: VRG approvato | E15: 27531641.44 | F15: 29274967.33 | V15: =+OR(E15<0,E15="") -> FALSE | W15: =+OR(F15<0,F15="") -> FALSE | Y15: =+E15=0 -> FALSE | Z15: =+F15=0 -> FALSE
B16: 13 | C16: Moltiplicatore | D16: ∑tarif2019 * vscala-2 | E16: 26414857.36 | F16: 26201132.34 | V16: FALSE | W16: FALSE | Y16: =+E16=0 -> FALSE | Z16: =+F16=0 -> FALSE
B17: 14 | C17: Moltiplicatore | D17: di cui: Ricavi ws | E17: 209581 | F17: 209581 | V17: FALSE | W17: FALSE
B18: 15 | C18: Moltiplicatore | D18: di cui: tarif*vscal | E18: 26205277 | F18: 25781354 | V18: FALSE | W18: FALSE
B19: 16 | C19: Moltiplicatore | D19: di cui: tarifindnew,2019vscalindnew,a-2 | E19: 0 | F19: 0 | V19: FALSE | W19: FALSE
B20: 17 | C20: Moltiplicatore | D20: Rba-2 | E20: 576947.975 | F20: 1153895.95 | V20: FALSE | W20: FALSE
B21: 18 | C21: Moltiplicatore | D21: Cba-2 | E21: 475126.52 | F21: 950253.04 | V21: FALSE | W21: FALSE
B22: 19 | C22: Costi delle immobilizzazioni | D22: AMM | E22: 110871.371 | F22: 178047.5187 | V22: FALSE | W22: FALSE
B23: 20 | C23: Costi delle immobilizzazioni | D23: OF | E23: 112963.924 | F23: 169995.0703 | V23: FALSE | W23: FALSE
B24: 21 | C24: Costi delle immobilizzazioni | D24: OFisc | E24: 41470.51329 | F24: 61090.86365 | V24: FALSE | W24: FALSE
B25: 22 | C25: Costi delle immobilizzazioni | D25: ΔCUITcapex | E25: 0 | F25: 0 | V25: FALSE | W25: FALSE
B26: 23 | C26: Immobilizzazioni | D26: IML | E26: 1678814.464 | F26: 3457031.114 | V26: FALSE | W26: FALSE
B27: 24 | C27: Immobilizzazioni | D27: IMN | E27: 1677223.332 | F27: 3301468.605 | V27: FALSE | W27: FALSE
B28: 25 | C28: Immobilizzazioni | D28: FA | E28: 1591.131743 | F28: 155562.5088 | V28: FALSE | W28: FALSE
B29: 26 | C29: Fondo Nuovi Investimenti | D29: AMMfoni | E29: 0 | F29: 0 | V29: FALSE | W29: FALSE
B30: 27 | C30: Fondo Nuovi Investimenti | D30: ΔCUITfoni | E30: 0 | F30: 0 | V30: FALSE | W30: FALSE
B31: 28 | C31: Fondo Nuovi Investimenti | D31: FNIfoni | E31: 1.722946763e-08 | F31: 1.164153218e-10 | V31: FALSE | W31: FALSE
B32: 29 | C32: Fondo Nuovi Investimenti | D32: DTATOG,ind | E32: 0 | F32: 0
B33: 30 | C33: Fondo Nuovi Investimenti | D33: DTG,tot | E33: 0 | F33: 0
B34: 31 | C34: Costi Operativi | D34: Opnew,a | E34: 815530.02 | F34: 1631060.04 | V34: =+OR(E34<0,E34="") -> FALSE | W34: FALSE
B35: 32 | C35: Costi Operativi | D35: OpexQT | E35: 1060000 | F35: 1060000 | V35: FALSE | W35: FALSE
B36: 33 | C36: Costi Operativi | D36: Opexqc | E36: 1050000 | F36: 1050000 | V36: FALSE | W36: FALSE
B37: 34 | C37: Costi Operativi | D37: Opsocial | E37: 51190.75 | F37: 63983.95 | V37: FALSE | W37: FALSE
B38: 35 | C38: Costi Operativi | D38: Opmis | E38: 0 | F38: 2000 | V38: FALSE | W38: FALSE
B39: 36 | C39: Costi Operativi | D39: OpCOVID | E39: 18843.33 | V39: =+E39="" -> FALSE
B40: 37 | C40: Costi Operativi | D40: COee | E40: 4463527.002 | F40: 4701704.79 | V40: =+OR(E40<0,E40="") -> FALSE | W40: FALSE
B41: 38 | C41: Costi Operativi | D41: Cows | E41: 2355474.038 | F41: 2331545.824 | V41: FALSE | W41: FALSE
B42: 39 | C42: Costi Operativi | D42: CoΔfanghi | E42: 0 | F42: 0 | V42: FALSE | W42: FALSE
B43: 40 | C43: Costi Operativi | D43: MT | E43: 681193.7836 | F43: 671265.4155 | V43: FALSE | W43: FALSE
B44: 41 | C44: Costi Operativi | D44: AC | E44: 0 | F44: 0 | V44: FALSE | W44: FALSE
B45: 42 | C45: Costi Operativi | D45: COato | E45: 377036.7697 | F45: 377036.7697 | V45: FALSE | W45: FALSE
B46: 43 | C46: Costi Operativi | D46: COARERA | E46: 6933.689223 | F46: 7503.479418 | V46: FALSE | W46: FALSE
B47: 44 | C47: Costi Operativi | D47: COmor | E47: 832201.2874 | F47: 901521.9415 | V47: FALSE | W47: FALSE
B48: 45 | C48: Costi Operativi | D48: COres | E48: 92813.6387 | F48: 153084.3803 | V48: =+E48="" -> FALSE | W48: =+F48="" -> FALSE
B49: 46 | C49: Costi Operativi | D49: Contributi c/e | E49: 0 | F49: 15166.18077 | V49: =+OR(E49<0,E49="") -> FALSE | W49: =+OR(F49<0,F49="") -> FALSE
B50: 47 | C50: Costi Operativi | D50: Opexend | E50: 16026010 | F50: 16026010 | V50: =+OR(E84<0,E84="") -> FALSE
B51: 48 | C51: Costi ambientali e della risorsa | D51: ENVcapex | E51: 0 | F51: 0
B52: 49 | C52: Costi ambientali e della risorsa | D52: REScapex | E52: 0 | F52: 0
B53: 50 | C53: Costi ambientali e della risorsa | D53: ERCend | E53: 0 | F53: 0 | V53: =+OR(E53<0,E53="") -> FALSE | W53: FALSE
B54: 51 | C54: Costi ambientali e della risorsa | D54: ERCal | E54: 0 | F54: 0 | V54: FALSE | W54: FALSE
B55: 52 | C55: Costi ambientali e della risorsa | D55: ERCtel | E55: 0 | F55: 0 | V55: FALSE | W55: FALSE
B56: 53 | C56: Sezione Conguagli (include inflazione) | D56: RcVOL | E56: 114154.7438 | F56: 602276.5746
B57: 54 | C57: Sezione Conguagli (include inflazione) | D57: RcEE | E57: -334093.1836 | F57: -606386.8139
B58: 55 | C58: Sezione Conguagli (include inflazione) | D58: RcWS | E58: -186936.2145 | F58: -209460.2192
B59: 56 | C59: Sezione Conguagli (include inflazione) | D59: RcERCa | E59: 0 | F59: 0
B60: 57 | C60: Sezione Conguagli (include inflazione) | D60: RcaAttiv b | E60: 51933.98221 | F60: 102941.491
B61: 58 | C61: Sezione Conguagli (include inflazione) | D61: Rcares | E61: 2570.240118 | F61: 78814.0428
B62: 59 | C62: Sezione Conguagli (include inflazione) | D62: RcaARERA | E62: 1119.640709 | F62: 1109.653824
B63: 60 | C63: Sezione Conguagli (include inflazione) | D63: Costo forniture all’ingrosso transfrontaliere | E63: 0 | F63: 0
B64: 61 | C64: Sezione Conguagli (include inflazione) | D64: RcIP (valori a moneta a-2, include eventuale FoNInoninv) | E64: 0 | F64: -6776.842291
B65: 62 | C65: Sezione Conguagli (include inflazione) | D65: Costi per variazioni sistemiche / eventi eccezionali | E65: 0 | F65: 0
B66: 63 | C66: Sezione Conguagli (include inflazione) | D66: Rimb335a | E66: 0 | F66: 0
B67: 64 | C67: Sezione Conguagli (include inflazione) | D67: Rcaappr | E67: 1194000.012 | F67: 1743671.269
B68: 65 | C68: Sezione Conguagli (include inflazione) | D68: DOpexQC | E68: 0 | F68: 0 | V68: =+E68>0 -> FALSE | W68: =+F68>0 -> FALSE
B69: 66 | C69: Sezione Conguagli (include inflazione) | D69: DOpexQT | E69: 0 | F69: 0
B70: 67 | C70: Sezione Conguagli (include inflazione) | D70: DOpsocial | E70: 0 | F70: 0
B71: 68 | C71: Sezione Conguagli (include inflazione) | D71: DOpmis
B72: 69 | C72: Sezione Conguagli (include inflazione) | D72: recupero volumi 2017 | F72: 0
B73: 70 | C73: Sezione Conguagli (include inflazione) | D73: recupero energia elettrica 2017 | F73: 0
B74: 71 | C74: Sezione Conguagli (include inflazione) | D74: Rinvio di quota parte degli oneri ammissibili a riconoscimento tariffario nel 2020 | E74: -796976.2216
B75: 72 | C75: Sezione Conguagli (include inflazione) | D75: Rcappr2020,COVID | F75: 0
B76: 73 | C76: Sezione Conguagli (include inflazione) | D76: Rctot | E76: -796976.2216 | F76: 0
B77: 74 | C77: Ammortamento finanziario MTI | D77: AF MTI-3 | G77: NO
B78: 75 | C78: Costi Operativi | D78: COdil | E78: 166440.2575
B79: 76 | C79: Altri dati | D79: FoNInoninv | E79: 0 | F79: 0
E83: 2018 | F83: 2019 | G83: 2016-2019
C84: Sezione altri dati | D84: Opexend (inclusivo di ERC) | E84: 15710249.69 | Y84: =+E84=0 -> FALSE
C85: Sezione altri dati | D85: OpexaQC lett. a) co. 18.9 MTI-3 | F85: 1050000
C86: Sezione altri dati | D86: OpexQT (al netto della componente ERCQT) | F86: 1060000
C87: Sezione altri dati | D87: ERCQT | F87: 0
C88: Sezione altri dati | D88: KWh | E88: 28357780.52 | F88: 29420176.63
C89: Sezione altri dati | D89: COrealiEE (altre gruppo - SII) | F89: 0
C90: Sezione altri dati | D90: COrealiEE (altre imprese - SII) | F90: 4650548.754
C91: Sezione altri dati | D91: COrealiEE (altre gruppo - AAI) | F91: 0
C92: Sezione altri dati | D92: COrealiEE (altre imprese - AAI) | F92: 0
C93: Ammortamento finanziario | D93: AF MTI-2 agg. | E93: NO | F93: NO
C94: Sezione dati qualità tecnica | D94: WLTOT | E94: 12608833.95
C95: Sezione dati qualità tecnica | D95: Lp | E95: 1185.757
C96: Sezione dati qualità tecnica | D96: Ld | E96: 908.148
C97: Conguagli rinviati MTI-2 aggiornamento (2016-2019) | D97: RCappr MTI-2 agg. | G97: 2895174.216
E99: 2016 | F99: 2017 | G99: anno base
C100: Sezione altri dati | D100: KWh | E100: 0 | F100: 32894895.9
C101: Sezione altri dati | D101: CO𝑓𝑎𝑛𝑔ℎ𝑖𝑒𝑓𝑓𝑒𝑡𝑡𝑖𝑣𝑜 | F101: 0
C102: Ammortamento finanziario | D102: AF MTI-2 | E102: NO | F102: NO
C103: Sezione dati qualità tecnica | D103: WLTOT (compilato per anno base)
C104: Sezione dati qualità tecnica | D104: Lp (compilato per anno base)
C105: Sezione dati qualità tecnica | D105: Ld (compilato per anno base)
E109: 2014 | F109: 2015
C110: Ammortamento finanziario | D110: AF MTI | E110: NO | F110: NO
E114: 2013
C115: Sezione altri dati | D115: PopATO | E115: 177258

Sheet Vite_utili_precedenti
D3: Anno del Cespite | E3: ANNI 1967 - 2011 | P3: ANNO 2012 | Y3: ANNO 2013 | AG3: ANNO 2014 | AN3: ANNO 2015 | AT3: ANNO 2016 | AY3: ANNO 2017 | BC3: ANNO 2018 | BF3: ANNO 2019
E4: =+IF(iAF="SI","SI","NO") -> NO | P4: =+IF(OR(iAF="SI",Dati_Anni_precedenti!E110="SI"),"SI","NO") -> NO | Y4: =+IF(OR(iAF="SI",Dati_Anni_precedenti!F110="SI"),"SI","NO") -> NO | AG4: =+IF(OR(iAF="SI",Dati_Anni_precedenti!E102="SI"),"SI","NO") -> NO | AN4: =+IF(OR(iAF="SI",Dati_Anni_precedenti!F102="SI"),"SI","NO") -> NO | AT4: =+IF(OR(iAF="SI",Dati_Anni_precedenti!E93="SI"),"SI","NO") -> NO | AY4: =+IF(OR(iAF="SI",Dati_Anni_precedenti!F93="SI"),"SI","NO") -> NO | BC4: =+IF(OR(iAF="SI",Dati_Anni_precedenti!G77="SI"),"SI","NO") -> NO | BF4: =+IF(OR(iAF="SI",Dati_Anni_precedenti!G77="SI"),"SI","NO") -> NO
D5: Anno di calcolo | F5: 2012 | G5: 2013 | H5: 2014 | I5: 2015 | J5: 2016 | K5: 2017 | L5: 2018 | M5: 2019 | N5: 2020 | O5: 2021 | Q5: 2014 | R5: 2015 | S5: 2016 | T5: 2017 | U5: 2018 | V5: 2019 | W5: 2020 | X5: 2021 | Z5: 2015 | AA5: 2016 | AB5: 2017 | AC5: 2018 | AD5: 2019 | AE5: 2020 | AF5: 2021 | AH5: 2016 | AI5: 2017 | AJ5: 2018 | AK5: 2019 | AL5: 2020 | AM5: 2021 | AO5: 2017 | AP5: 2018 | AQ5: 2019 | AR5: 2020 | AS5: 2021 | AU5: 2018 | AV5: 2019 | AW5: 2020 | AX5: 2021 | AZ5: 2019 | BA5: 2020 | BB5: 2021 | BD5: 2020 | BE5: 2021 | BG5: 2021
E6: Periodo di ammortamento: | P6: Periodo di ammortamento: | Y6: Periodo di ammortamento: | AG6: Periodo di ammortamento: | AN6: Periodo di ammortamento: | AT6: Periodo di ammortamento: | AY6: Periodo di ammortamento:
B7: ID | C7: Categoria Cespite | E7: vite utili regolatorie (MTT) | F7: durata ammortamento finanziario | G7: durata ammortamento finanziario | H7: durata ammortamento finanziario | I7: durata ammortamento finanziario | J7: durata ammortamento finanziario | K7: durata ammortamento finanziario | L7: durata ammortamento finanziario | M7: durata ammortamento finanziario | N7: durata ammortamento finanziario | O7: durata ammortamento finanziario | P7: vite utili regolatorie (MTI) | Q7: durata ammortamento finanziario | R7: durata ammortamento finanziario | S7: durata ammortamento finanziario | T7: durata ammortamento finanziario | U7: durata ammortamento finanziario | V7: durata ammortamento finanziario | W7: durata ammortamento finanziario | X7: durata ammortamento finanziario | Y7: vite utili regolatorie (MTI) | Z7: durata ammortamento finanziario | AA7: durata ammortamento finanziario | AB7: durata ammortamento finanziario | AC7: durata ammortamento finanziario | AD7: durata ammortamento finanziario | AE7: durata ammortamento finanziario | AF7: durata ammortamento finanziario | AG7: vite utili regolatorie (MTI-2) | AH7: durata ammortamento finanziario | AI7: durata ammortamento finanziario | AJ7: durata ammortamento finanziario | AK7: durata ammortamento finanziario | AL7: durata ammortamento finanziario | AM7: durata ammortamento finanziario | AN7: vite utili regolatorie (MTI-2) | AO7: durata ammortamento finanziario | AP7: durata ammortamento finanziario | AQ7: durata ammortamento finanziario | AR7: durata ammortamento finanziario | AS7: durata ammortamento finanziario | AT7: vite utili regolatorie (MTI-2) | AU7: durata ammortamento finanziario | AV7: durata ammortamento finanziario | AW7: durata ammortamento finanziario | AX7: durata ammortamento finanziario | AY7: vite utili regolatorie (MTI-2) | AZ7: durata ammortamento finanziario | BA7: durata ammortamento finanziario | BB7: durata ammortamento finanziario | BC7: vite utili regolatorie (MTI-2) | BD7: durata ammortamento finanziario | BE7: durata ammortamento finanziario | BF7: vite utili regolatorie (MTI-2) | BG7: durata ammortamento finanziario
B8: 1 | C8: Terreni
B9: 2 | C9: Fabbricati non industriali | E9: 40 | P9: 40 | Y9: 40 | AG9: 40 | AN9: 40 | AT9: 40 | AY9: 40
B10: 3 | C10: Fabbricati industriali | E10: 40 | P10: 40 | Y10: 40 | AG10: 40 | AN10: 40 | AT10: 40 | AY10: 40
B11: 4 | C11: Costruzioni leggere | E11: 40 | P11: 40 | Y11: 40 | AG11: 40 | AN11: 40 | AT11: 40 | AY11: 40
B12: 5 | C12: Condutture e opere idrauliche fisse | E12: 40 | P12: 40 | Y12: 40 | AG12: 40 | AN12: 40 | AT12: 40 | AY12: 40
B13: 6 | C13: Serbatoi | E13: 50 | P13: 50 | Y13: 50 | AG13: 50 | AN13: 50 | AT13: 50 | AY13: 50
B14: 7 | C14: Impianti di trattamento | E14: 12 | P14: 12 | Y14: 12 | AG14: 12 | AN14: 12 | AT14: 12 | AY14: 12
B15: 8 | C15: Impianti di sollevamento e pompaggio | E15: 8 | P15: 8 | Y15: 8 | AG15: 8 | AN15: 8 | AT15: 8 | AY15: 8
B16: 9 | C16: Gruppi di misura meccanici | E16: 15 | P16: 15 | Y16: 15 | AG16: 15 | AN16: 15 | AT16: 15 | AY16: 15
B17: 10 | C17: Gruppi di misura elettronici | E17: 15 | P17: 15 | Y17: 15 | AG17: 15 | AN17: 15 | AT17: 15 | AY17: 15
B18: 11 | C18: Altri impianti | E18: 20 | P18: 20 | Y18: 20 | AG18: 20 | AN18: 20 | AT18: 20 | AY18: 20
B19: 12 | C19: Laboratori | E19: 10 | P19: 10 | Y19: 10 | AG19: 10 | AN19: 10 | AT19: 10 | AY19: 10
B20: 13 | C20: Telecontrollo | E20: 8 | P20: 8 | Y20: 8 | AG20: 8 | AN20: 8 | AT20: 8 | AY20: 8
B21: 14 | C21: Autoveicoli | E21: 5 | P21: 5 | Y21: 5 | AG21: 5 | AN21: 5 | AT21: 5 | AY21: 5
B22: 15 | C22: Studi, ricerche, brevetti, diritti di utilizzazione | E22: 5 | P22: 5 | Y22: 5 | AG22: 5 | AN22: 5 | AT22: 5 | AY22: 5
B23: 16 | C23: Altre immobilizzazioni materiali e immateriali | E23: 7 | P23: 7 | Y23: 7 | AG23: 7 | AN23: 7 | AT23: 7 | AY23: 7
B24: 17 | C24: Immobilizzazioni immateriali: avviamenti, capitalizzazione concessione, etc.

Sheet IMN_cespiti_ante2019
L1: ATTENZIONE: verificare la correttezza dei dati presenti nell'eventuale file precompilato formito
H2: Immobilizzazioni del gestore (solo immobilizzazioni al 2018 incluso) | S2: Sono presenti errori | T2: errore id categoria cespite | U2: errore id immobilizzazione | V2: errore id anno cespite | W2: errore valori non negativi
S3: =+OR(T3:W3) -> FALSE | T3: =+OR(INDEX(IMN_ante2019,0,20)) -> FALSE | U3: =+OR(INDEX(IMN_ante2019,0,21)) -> FALSE | V3: =+OR(INDEX(IMN_ante2019,0,22)) -> FALSE | W3: =+OR(INDEX(IMN_ante2019,0,23)) -> FALSE
A4: IMN gestore ante 2019
A5: IDATO | B5: IDGestore | C5: Gestore_Proprietario | D5: N_prop | E5: Fonte | F5: ID_Categoria_Cespite | G5: CategoriaCespite | H5: ID_Immobilizzazione | I5: IMMOBILIZZAZIONE | J5: AnnoCespite | K5: IP | L5: FAIP | M5: CFP | N5: FACP | O5: - | P5: Tipologia di costo sotteso ("Env", "Res", "Non ERC") | Q5: Attività | R5: foglio di origine | S5: n_riga | T5: errore id categoria cespite | U5: errore id immobilizzazione | V5: errore id anno cespite | W5: errore valori non negativi
A6: =+idato -> 1203 | B6: =+idgestore -> 25320 | C6: Gestore | D6: 0 | E6: IP | F6: =+IFERROR(VLOOKUP(G6,id_cat_ces,2,FALSE),"") -> 4 | G6: Costruzioni leggere | H6: =+IFERROR(VLOOKUP(I6,id_cat_imm,2,FALSE),"") -> 1 | I6: Servizio idrico integrato | J6: 2017 | K6: 0 | M6: 0 | R6: =+"RAB_cespiti_ante2019" -> RAB_cespiti_ante2019 | S6: =+ROW(A6)-5 -> 1 | T6: =++IF(S6=0,FALSE,IFERROR(VLOOKUP(G6,id_cat_ces,2,FALSE),FALSE)<>F6) -> FALSE | U6: =++IF(S6=0,FALSE,IFERROR(VLOOKUP(I6,id_cat_imm,2,FALSE),FALSE)<>H6) -> FALSE | V6: =+IF(S6=0,FALSE,J6<1967) -> FALSE | W6: =+IF(S6=0,FALSE,OR(K6<0,L6<0,M6<0,N6<0)) -> FALSE
A7: 1203 | B7: 25320 | C7: Gestore | D7: 0 | E7: IP | F7: 10 | G7: Gruppi di misura elettronici | H7: 1 | I7: Servizio idrico integrato | J7: 2017 | K7: 0 | M7: 0 | R7: =+"RAB_cespiti_ante2019" -> RAB_cespiti_ante2019 | S7: =+ROW(A7)-5 -> 2 | T7: FALSE | U7: FALSE | V7: =+IF(S7=0,FALSE,J7<1967) -> FALSE | W7: =+IF(S7=0,FALSE,OR(K7<0,L7<0,M7<0,N7<0)) -> FALSE
A8: 1203 | B8: 25320 | C8: Gestore | D8: 0 | E8: IP | F8: 14 | G8: Autoveicoli | H8: 1 | I8: Servizio idrico integrato | J8: 2017 | K8: 0 | M8: 0 | R8: RAB_cespiti_ante2019 | S8: 3 | T8: FALSE | U8: FALSE | V8: FALSE | W8: FALSE
A9: 1203 | B9: 25320 | C9: Gestore | D9: 0 | E9: IP | F9: 15 | G9: Studi, ricerche, brevetti, diritti di utilizzazione | H9: 1 | I9: Servizio idrico integrato | J9: 2017 | K9: 0 | M9: 0 | R9: RAB_cespiti_ante2019 | S9: 4 | T9: FALSE | U9: FALSE | V9: FALSE | W9: FALSE
A10: 1203 | B10: 25320 | C10: Gestore | D10: 0 | E10: IP | F10: 16 | G10: Altre immobilizzazioni materiali e immateriali | H10: 1 | I10: Servizio idrico integrato | J10: 2017 | K10: 11038.51 | M10: 0 | R10: RAB_cespiti_ante2019 | S10: 5 | T10: FALSE | U10: FALSE | V10: FALSE | W10: FALSE
A11: 1203 | B11: 25320 | C11: Gestore | D11: 0 | E11: IP | F11: 4 | G11: Costruzioni leggere | H11: 1 | I11: Servizio idrico integrato | J11: 2018 | K11: 23305 | P11: Non ERC | R11: RAB_cespiti_ante2019 | S11: 6 | T11: FALSE | U11: FALSE | V11: FALSE | W11: FALSE
A12: 1203 | B12: 25320 | C12: Gestore | D12: 0 | E12: IP | F12: 9 | G12: Gruppi di misura meccanici | H12: 1 | I12: Servizio idrico integrato | J12: 2018 | K12: 200921 | P12: Non ERC | R12: RAB_cespiti_ante2019 | S12: 7 | T12: FALSE | U12: FALSE | V12: FALSE | W12: FALSE
A13: 1203 | B13: 25320 | C13: Gestore | D13: 0 | E13: IP | F13: 8 | G13: Impianti di sollevamento e pompaggio | H13: 1 | I13: Servizio idrico integrato | J13: 2018 | K13: 17763.7 | P13: Non ERC | R13: RAB_cespiti_ante2019 | S13: 8 | T13: FALSE | U13: FALSE | V13: FALSE | W13: FALSE
A14: 1203 | B14: 25320 | C14: Gestore | D14: 0 | E14: IP | F14: 6 | G14: Serbatoi | H14: 1 | I14: Servizio idrico integrato | J14: 2018 | K14: 780 | P14: Non ERC | R14: RAB_cespiti_ante2019 | S14: 9 | T14: FALSE | U14: FALSE | V14: FALSE | W14: FALSE
A15: 1203 | B15: 25320 | C15: Gestore | D15: 0 | E15: IP | F15: 12 | G15: Laboratori | H15: 1 | I15: Servizio idrico integrato | J15: 2018 | K15: 164060.72 | P15: Non ERC | R15: RAB_cespiti_ante2019 | S15: 10 | T15: FALSE | U15: FALSE | V15: FALSE | W15: FALSE
A16: 1203 | B16: 25320 | C16: Gestore | D16: 0 | E16: IP | F16: 14 | G16: Autoveicoli | H16: 1 | I16: Servizio idrico integrato | J16: 2018 | K16: 139048.05 | P16: Non ERC | R16: RAB_cespiti_ante2019 | S16: 11 | T16: FALSE | U16: FALSE | V16: FALSE | W16: FALSE
A17: 1203 | B17: 25320 | C17: Gestore | D17: 0 | E17: IP | F17: 16 | G17: Altre immobilizzazioni materiali e immateriali | H17: 1 | I17: Servizio idrico integrato | J17: 2018 | K17: 382617.65 | P17: Non ERC | R17: RAB_cespiti_ante2019 | S17: 12 | T17: FALSE | U17: FALSE | V17: FALSE | W17: FALSE
A18: 1203 | B18: 25320 | C18: Gestore | D18: 0 | E18: IP | F18: 15 | G18: Studi, ricerche, brevetti, diritti di utilizzazione | H18: 1 | I18: Servizio idrico integrato | J18: 2018 | K18: 100597.78 | P18: Non ERC | R18: RAB_cespiti_ante2019 | S18: 13 | T18: FALSE | U18: FALSE | V18: FALSE | W18: FALSE
A19: 1203 | B19: 25320 | C19: Gestore | D19: 0 | E19: IP | F19: 5 | G19: Condutture e opere idrauliche fisse | H19: 1 | I19: Servizio idrico integrato | J19: 2018 | K19: 620392.11 | M19: 279779.95 | P19: Non ERC | R19: RAB_cespiti_ante2019 | S19: 14 | T19: FALSE | U19: FALSE | V19: FALSE | W19: FALSE

Sheet Conferma_investimenti_2019
R1: sono presenti errori | U1: errore id categoria cespite | W1: errore id immobilizzazione | Z1: errore valori non negativi | AC1: check PdI
R2: =+OR(U2,W2,Z2,AC2) -> TRUE | U2: =+OR(VALUE(INDEX(Investimenti2019,0,21)))=0 -> FALSE | W2: =+OR(INDEX(Investimenti2019,0,23))=0 -> FALSE | Z2: =+OR(VALUE(INDEX(Investimenti2019,0,26)))<0 -> FALSE | AC2: =+SUM(Z:Z)-'PdI-riepilogo'!F4<>0 -> TRUE
D3: Investimenti 2019 Le colonne da D a M devono mostrare gli investimenti relativi al 2019 come da predisposizione tariffaria MTI-3. Indicare nelle colonne N e O eventuali variazioni motivandole in relazione di accompagnamento, altrimenti ricopiare i valori dalle adiacenti colonne. La mancata compilazione delle colonne N e O escluderà tali cespiti dal calcolo. | N3: spazio per la compilazione manuale nessuna rivalutazione monetaria va effettuata
N4: Investimenti EFFETTIVI del 2019 (non lasciare campi vuoti) | AH4: zona per il calcolo RcIP2021
A6: N_riga | B6: IDATO | C6: IDGESTORE | D6: ID_Categoria_Cespite | E6: CategoriaCespite | F6: ID_Immobilizzazione | G6: IMMOBILIZZAZIONE | H6: Tipologia di costo sotteso ("Env", "Res", "Non ERC") | I6: Attività | J6: AnnoCespite | K6: IP (come da approvazione tariffaria) | L6: CFP (come da approvazione tariffaria) | M6: di cui, CFP da FoNI (come da approvazione tariffaria) | N6: IP | O6: CFP | P6: IDATO | Q6: Idgestore | R6: Gestore_Proprietario | S6: N_prop | T6: Fonte | U6: ID_Categoria_Cespite | V6: CategoriaCespite | W6: ID_Immobilizzazione | X6: IMMOBILIZZAZIONE | Y6: AnnoCespite | Z6: IP | AB6: CFP | AD6: - | AE6: ERC | AF6: Attività | AG6: foglio di origine | AH6: ΔIP | AI6: ΔFA | AJ6: ΔAMM | AK6: ΔCFP | AL6: ΔFACFP | AM6: ΔAMM CFP | AO6: ΔIMN2019 | AP6: ΔCINcfp2019 | AQ6: 1 - CINfp / CIN | AR6: Km + α (ex del. 580/2019) | AS6: Rai rate (ex del. 580/2019) | AU6: ΔAMM - ΔAMM CFP | AV6: ΔOF | AW6: ΔOFisc | AY6: DRCIP
A7: =+ROW(A7)-ROW(A6) -> 1 | B7: =+idato -> 1203 | C7: =+idgestore -> 25320 | D7: =+IFERROR(VLOOKUP(E7,id_cat_ces,2,FALSE),0) -> 4 | E7: Costruzioni leggere | F7: =+IFERROR(VLOOKUP(G7,id_cat_imm,2,FALSE),0) -> 1 | G7: Servizio idrico integrato | H7: Non ERC | J7: 2019 | K7: 30000 | L7: 9343.912061 | M7: 0 | N7: 0 | O7: 0 | P7: =idato -> 1203 | Q7: =idgestore -> 25320 | R7: Gestore | S7: 0 | T7: IP | U7: =IFERROR(VLOOKUP(V7,TT_Tabelle_Riferimento!$G$32:$H$48,2,0),0) -> 4 | V7: =IFERROR(VLOOKUP(E7,TT_Tabelle_Riferimento!$G$32:$H$48,1,0),0) -> Costruzioni leggere | W7: =+IFERROR(VLOOKUP(X7,TT_Tabelle_Riferimento!$G$2:$H$6,2,0),0) -> 1 | X7: =+IFERROR(VLOOKUP(G7,TT_Tabelle_Riferimento!$G$2:$H$6,1,0),0) -> Servizio idrico integrato | Y7: =J7 -> 2019 | Z7: =N7 -> 0 | AB7: =IFERROR(O7+(SUM(M:M)/SUM(Z:Z))*Z7,0) -> 0 | AE7: =+H7 -> Non ERC | AF7: =+I7 -> 0 | AG7: Conferma_investimenti_2019 | AH7: =+IFERROR(IP(Z7,U7,W7,2019,2021,ifl)-IP(K7,U7,W7,2019,2021,ifl),0) -> -30361.05 | AI7: =+IFERROR(FondoAmm(Z7,0,2019,U7,W7,2021,vite_regolatorie,ifl)-FondoAmm(K7,0,2019,U7,W7,2021,vite_regolatorie,ifl),0) -> 0 | AJ7: =+IFERROR(QA(Z7,0,2019,U7,W7,2021,vite_regolatorie,ifl)-QA(K7,0,2019,U7,W7,2021,vite_regolatorie,ifl),0) -> -759.02625 | AK7: =+IFERROR(CFP_A(AB7,U7,W7,2019,2021,ifl)-CFP_A(L7,U7,W7,2019,2021,ifl),0) -> 0 | AL7: =+IFERROR(FACFP(AB7,0,2019,U7,W7,2021,vite_regolatorie,ifl)-FACFP(L7,0,2019,U7,W7,2021,vite_regolatorie,ifl),0) -> 0 | AM7: =+IFERROR(QA_CFP(AB7,0,2019,W7,U7,2021,vite_regolatorie,ifl)-QA_CFP(L7,0,2019,W7,U7,2021,vite_regolatorie,ifl),0) -> 0 | AO7: =+IFERROR(IP(Z7,U7,W7,2019,2021,ifl)-FondoAmm(Z7,0,2019,U7,W7,2021,vite_regolatorie,ifl)-(IP(K7,U7,W7,2019,2021,ifl)-FondoAmm(K7,0,2019,U7,W7,2021,vite_regolatorie,ifl)),0) -> -30361.05 | AP7: =+IFERROR(CFP_A(AB7,U7,W7,2019,2021,ifl)-FACFP(AB7,0,2019,U7,W7,2021,vite_regolatorie,ifl)-(CFP_A(L7,U7,W7,2019,2021,ifl)-FACFP(L7,0,2019,U7,W7,2021,vite_regolatorie,ifl)),0) -> 0 | AQ7: =IFERROR(1-AP7/AO7,0) -> 1 | AR7: =+Capex!$C$59+Capex!$C$60 -> 0.037326 | AS7: =+Capex!$C$72 -> 0.06264074897 | AU7: =+AJ7-AM7 -> -759.02625 | AV7: =+AR7*AQ7*AO7 -> -1133.256552 | AW7: =+AS7*0.275*AQ7*AO7 -> -523.0057007 | AY7: =+AU7+AV7+AW7 -> -2415.288503
A8: =+ROW(A8)-ROW(A7) -> 1 | B8: 1203 | C8: 25320 | D8: 5 | E8: Condutture e opere idrauliche fisse | F8: 1 | G8: Servizio idrico integrato | H8: Non ERC | J8: 2019 | K8: 1092633.35 | L8: 620095.6146 | M8: 0 | N8: 1092633.35 | O8: 279779.95 | P8: 1203 | Q8: 25320 | R8: Gestore | S8: 0 | T8: IP | U8: =IFERROR(VLOOKUP(V8,TT_Tabelle_Riferimento!$G$32:$H$48,2,0),0) -> 5 | V8: =IFERROR(VLOOKUP(E8,TT_Tabelle_Riferimento!$G$32:$H$48,1,0),0) -> Condutture e opere idrauliche fisse | W8: =+IFERROR(VLOOKUP(X8,TT_Tabelle_Riferimento!$G$2:$H$6,2,0),0) -> 1 | X8: =+IFERROR(VLOOKUP(G8,TT_Tabelle_Riferimento!$G$2:$H$6,1,0),0) -> Servizio idrico integrato | Y8: =J8 -> 2019 | Z8: =N8 -> 1092633.35 | AB8: =IFERROR(O8+(SUM(M:M)/SUM(Z:Z))*Z8,0) -> 279779.95 | AE8: =+H8 -> Non ERC | AF8: =+I8 -> 0 | AG8: Conferma_investimenti_2019 | AH8: =+IFERROR(IP(Z8,U8,W8,2019,2021,ifl)-IP(K8,U8,W8,2019,2021,ifl),0) -> 0 | AI8: =+IFERROR(FondoAmm(Z8,0,2019,U8,W8,2021,vite_regolatorie,ifl)-FondoAmm(K8,0,2019,U8,W8,2021,vite_regolatorie,ifl),0) -> 0 | AJ8: =+IFERROR(QA(Z8,0,2019,U8,W8,2021,vite_regolatorie,ifl)-QA(K8,0,2019,U8,W8,2021,vite_regolatorie,ifl),0) -> 0 | AK8: =+IFERROR(CFP_A(AB8,U8,W8,2019,2021,ifl)-CFP_A(L8,U8,W8,2019,2021,ifl),0) -> 0 | AL8: =+IFERROR(FACFP(AB8,0,2019,U8,W8,2021,vite_regolatorie,ifl)-FACFP(L8,0,2019,U8,W8,2021,vite_regolatorie,ifl),0) -> 0 | AM8: =+IFERROR(QA_CFP(AB8,0,2019,W8,U8,2021,vite_regolatorie,ifl)-QA_CFP(L8,0,2019,W8,U8,2021,vite_regolatorie,ifl),0) -> 0 | AO8: =+IFERROR(IP(Z8,U8,W8,2019,2021,ifl)-FondoAmm(Z8,0,2019,U8,W8,2021,vite_regolatorie,ifl)-(IP(K8,U8,W8,2019,2021,ifl)-FondoAmm(K8,0,2019,U8,W8,2021,vite_regolatorie,ifl)),0) -> 0 | AP8: =+IFERROR(CFP_A(AB8,U8,W8,2019,2021,ifl)-FACFP(AB8,0,2019,U8,W8,2021,vite_regolatorie,ifl)-(CFP_A(L8,U8,W8,2019,2021,ifl)-FACFP(L8,0,2019,U8,W8,2021,vite_regolatorie,ifl)),0) -> 0 | AQ8: =IFERROR(1-AP8/AO8,0) -> 0 | AR8: =+Capex!$C$59+Capex!$C$60 -> 0.037326 | AS8: =+Capex!$C$72 -> 0.06264074897 | AU8: =+AJ8-AM8 -> 0 | AV8: =+AR8*AQ8*AO8 -> 0 | AW8: =+AS8*0.275*AQ8*AO8 -> 0 | AY8: =+AU8+AV8+AW8 -> 0
A9: 1 | B9: 1203 | C9: 25320 | D9: 9 | E9: Gruppi di misura meccanici | F9: 1 | G9: Servizio idrico integrato | H9: Non ERC | J9: 2019 | K9: 45945 | L9: 14310.20132 | M9: 0 | N9: 45945 | O9: 0 | P9: 1203 | Q9: 25320 | R9: Gestore | S9: 0 | T9: IP | U9: =IFERROR(VLOOKUP(V9,TT_Tabelle_Riferimento!$G$32:$H$48,2,0),0) -> 9 | V9: =IFERROR(VLOOKUP(E9,TT_Tabelle_Riferimento!$G$32:$H$48,1,0),0) -> Gruppi di misura meccanici | W9: =+IFERROR(VLOOKUP(X9,TT_Tabelle_Riferimento!$G$2:$H$6,2,0),0) -> 1 | X9: =+IFERROR(VLOOKUP(G9,TT_Tabelle_Riferimento!$G$2:$H$6,1,0),0) -> Servizio idrico integrato | Y9: 2019 | Z9: 45945 | AB9: 0 | AE9: Non ERC | AF9: 0 | AG9: Conferma_investimenti_2019 | AH9: =+IFERROR(IP(Z9,U9,W9,2019,2021,ifl)-IP(K9,U9,W9,2019,2021,ifl),0) -> 0 | AI9: =+IFERROR(FondoAmm(Z9,0,2019,U9,W9,2021,vite_regolatorie,ifl)-FondoAmm(K9,0,2019,U9,W9,2021,vite_regolatorie,ifl),0) -> 0 | AJ9: =+IFERROR(QA(Z9,0,2019,U9,W9,2021,vite_regolatorie,ifl)-QA(K9,0,2019,U9,W9,2021,vite_regolatorie,ifl),0) -> 0 | AK9: =+IFERROR(CFP_A(AB9,U9,W9,2019,2021,ifl)-CFP_A(L9,U9,W9,2019,2021,ifl),0) -> 0 | AL9: =+IFERROR(FACFP(AB9,0,2019,U9,W9,2021,vite_regolatorie,ifl)-FACFP(L9,0,2019,U9,W9,2021,vite_regolatorie,ifl),0) -> 0 | AM9: =+IFERROR(QA_CFP(AB9,0,2019,W9,U9,2021,vite_regolatorie,ifl)-QA_CFP(L9,0,2019,W9,U9,2021,vite_regolatorie,ifl),0) -> 0 | AO9: =+IFERROR(IP(Z9,U9,W9,2019,2021,ifl)-FondoAmm(Z9,0,2019,U9,W9,2021,vite_regolatorie,ifl)-(IP(K9,U9,W9,2019,2021,ifl)-FondoAmm(K9,0,2019,U9,W9,2021,vite_regolatorie,ifl)),0) -> 0 | AP9: =+IFERROR(CFP_A(AB9,U9,W9,2019,2021,ifl)-FACFP(AB9,0,2019,U9,W9,2021,vite_regolatorie,ifl)-(CFP_A(L9,U9,W9,2019,2021,ifl)-FACFP(L9,0,2019,U9,W9,2021,vite_regolatorie,ifl)),0) -> 0 | AQ9: 0 | AR9: =+Capex!$C$59+Capex!$C$60 -> 0.037326 | AS9: =+Capex!$C$72 -> 0.06264074897 | AU9: 0 | AV9: 0 | AW9: 0 | AY9: 0
A10: 1 | B10: 1203 | C10: 25320 | D10: 6 | E10: Serbatoi | F10: 1 | G10: Servizio idrico integrato | H10: Non ERC | J10: 2019 | K10: 2537 | L10: 790.1834967 | M10: 0 | N10: 2537 | O10: 0 | P10: 1203 | Q10: 25320 | R10: Gestore | S10: 0 | T10: IP | U10: =IFERROR(VLOOKUP(V10,TT_Tabelle_Riferimento!$G$32:$H$48,2,0),0) -> 6 | V10: =IFERROR(VLOOKUP(E10,TT_Tabelle_Riferimento!$G$32:$H$48,1,0),0) -> Serbatoi | W10: =+IFERROR(VLOOKUP(X10,TT_Tabelle_Riferimento!$G$2:$H$6,2,0),0) -> 1 | X10: =+IFERROR(VLOOKUP(G10,TT_Tabelle_Riferimento!$G$2:$H$6,1,0),0) -> Servizio idrico integrato | Y10: 2019 | Z10: 2537 | AB10: 0 | AE10: Non ERC | AF10: 0 | AG10: Conferma_investimenti_2019 | AH10: =+IFERROR(IP(Z10,U10,W10,2019,2021,ifl)-IP(K10,U10,W10,2019,2021,ifl),0) -> 0 | AI10: =+IFERROR(FondoAmm(Z10,0,2019,U10,W10,2021,vite_regolatorie,ifl)-FondoAmm(K10,0,2019,U10,W10,2021,vite_regolatorie,ifl),0) -> 0 | AJ10: =+IFERROR(QA(Z10,0,2019,U10,W10,2021,vite_regolatorie,ifl)-QA(K10,0,2019,U10,W10,2021,vite_regolatorie,ifl),0) -> 0 | AK10: =+IFERROR(CFP_A(AB10,U10,W10,2019,2021,ifl)-CFP_A(L10,U10,W10,2019,2021,ifl),0) -> 0 | AL10: =+IFERROR(FACFP(AB10,0,2019,U10,W10,2021,vite_regolatorie,ifl)-FACFP(L10,0,2019,U10,W10,2021,vite_regolatorie,ifl),0) -> 0 | AM10: =+IFERROR(QA_CFP(AB10,0,2019,W10,U10,2021,vite_regolatorie,ifl)-QA_CFP(L10,0,2019,W10,U10,2021,vite_regolatorie,ifl),0) -> 0 | AO10: =+IFERROR(IP(Z10,U10,W10,2019,2021,ifl)-FondoAmm(Z10,0,2019,U10,W10,2021,vite_regolatorie,ifl)-(IP(K10,U10,W10,2019,2021,ifl)-FondoAmm(K10,0,2019,U10,W10,2021,vite_regolatorie,ifl)),0) -> 0 | AP10: =+IFERROR(CFP_A(AB10,U10,W10,2019,2021,ifl)-FACFP(AB10,0,2019,U10,W10,2021,vite_regolatorie,ifl)-(CFP_A(L10,U10,W10,2019,2021,ifl)-FACFP(L10,0,2019,U10,W10,2021,vite_regolatorie,ifl)),0) -> 0 | AQ10: 0 | AR10: =+Capex!$C$59+Capex!$C$60 -> 0.037326 | AS10: =+Capex!$C$72 -> 0.06264074897 | AU10: 0 | AV10: 0 | AW10: 0 | AY10: 0
A11: 1 | B11: 1203 | C11: 25320 | D11: 12 | E11: Laboratori | F11: 1 | G11: Servizio idrico integrato | H11: Non ERC | J11: 2019 | K11: 295297.54 | L11: 91974.47486 | M11: 0 | N11: 0 | O11: 0 | P11: 1203 | Q11: 25320 | R11: Gestore | S11: 0 | T11: IP | U11: =IFERROR(VLOOKUP(V11,TT_Tabelle_Riferimento!$G$32:$H$48,2,0),0) -> 12 | V11: =IFERROR(VLOOKUP(E11,TT_Tabelle_Riferimento!$G$32:$H$48,1,0),0) -> Laboratori | W11: =+IFERROR(VLOOKUP(X11,TT_Tabelle_Riferimento!$G$2:$H$6,2,0),0) -> 1 | X11: =+IFERROR(VLOOKUP(G11,TT_Tabelle_Riferimento!$G$2:$H$6,1,0),0) -> Servizio idrico integrato | Y11: 2019 | Z11: 0 | AB11: 0 | AE11: Non ERC | AF11: 0 | AG11: Conferma_investimenti_2019 | AH11: =+IFERROR(IP(Z11,U11,W11,2019,2021,ifl)-IP(K11,U11,W11,2019,2021,ifl),0) -> -298851.4459 | AI11: =+IFERROR(FondoAmm(Z11,0,2019,U11,W11,2021,vite_regolatorie,ifl)-FondoAmm(K11,0,2019,U11,W11,2021,vite_regolatorie,ifl),0) -> 0 | AJ11: =+IFERROR(QA(Z11,0,2019,U11,W11,2021,vite_regolatorie,ifl)-QA(K11,0,2019,U11,W11,2021,vite_regolatorie,ifl),0) -> -29885.14459 | AK11: =+IFERROR(CFP_A(AB11,U11,W11,2019,2021,ifl)-CFP_A(L11,U11,W11,2019,2021,ifl),0) -> 0 | AL11: =+IFERROR(FACFP(AB11,0,2019,U11,W11,2021,vite_regolatorie,ifl)-FACFP(L11,0,2019,U11,W11,2021,vite_regolatorie,ifl),0) -> 0 | AM11: =+IFERROR(QA_CFP(AB11,0,2019,W11,U11,2021,vite_regolatorie,ifl)-QA_CFP(L11,0,2019,W11,U11,2021,vite_regolatorie,ifl),0) -> 0 | AO11: =+IFERROR(IP(Z11,U11,W11,2019,2021,ifl)-FondoAmm(Z11,0,2019,U11,W11,2021,vite_regolatorie,ifl)-(IP(K11,U11,W11,2019,2021,ifl)-FondoAmm(K11,0,2019,U11,W11,2021,vite_regolatorie,ifl)),0) -> -298851.4459 | AP11: =+IFERROR(CFP_A(AB11,U11,W11,2019,2021,ifl)-FACFP(AB11,0,2019,U11,W11,2021,vite_regolatorie,ifl)-(CFP_A(L11,U11,W11,2019,2021,ifl)-FACFP(L11,0,2019,U11,W11,2021,vite_regolatorie,ifl)),0) -> 0 | AQ11: 1 | AR11: =+Capex!$C$59+Capex!$C$60 -> 0.037326 | AS11: =+Capex!$C$72 -> 0.06264074897 | AU11: -29885.14459 | AV11: -11154.92907 | AW11: -5148.076561 | AY11: -46188.15022
A12: 1 | B12: 1203 | C12: 25320 | D12: 16 | E12: Altre immobilizzazioni materiali e immateriali | F12: 1 | G12: Servizio idrico integrato | H12: Non ERC | J12: 2019 | K12: 237192.77 | L12: 73876.94615 | M12: 0 | N12: 219122.77 | O12: 0 | P12: 1203 | Q12: 25320 | R12: Gestore | S12: 0 | T12: IP | U12: =IFERROR(VLOOKUP(V12,TT_Tabelle_Riferimento!$G$32:$H$48,2,0),0) -> 16 | V12: =IFERROR(VLOOKUP(E12,TT_Tabelle_Riferimento!$G$32:$H$48,1,0),0) -> Altre immobilizzazioni materiali e immateriali | W12: =+IFERROR(VLOOKUP(X12,TT_Tabelle_Riferimento!$G$2:$H$6,2,0),0) -> 1 | X12: =+IFERROR(VLOOKUP(G12,TT_Tabelle_Riferimento!$G$2:$H$6,1,0),0) -> Servizio idrico integrato | Y12: 2019 | Z12: 219122.77 | AB12: 0 | AE12: Non ERC | AF12: 0 | AG12: Conferma_investimenti_2019 | AH12: =+IFERROR(IP(Z12,U12,W12,2019,2021,ifl)-IP(K12,U12,W12,2019,2021,ifl),0) -> -18287.47245 | AI12: =+IFERROR(FondoAmm(Z12,0,2019,U12,W12,2021,vite_regolatorie,ifl)-FondoAmm(K12,0,2019,U12,W12,2021,vite_regolatorie,ifl),0) -> 0 | AJ12: =+IFERROR(QA(Z12,0,2019,U12,W12,2021,vite_regolatorie,ifl)-QA(K12,0,2019,U12,W12,2021,vite_regolatorie,ifl),0) -> -2612.496064 | AK12: =+IFERROR(CFP_A(AB12,U12,W12,2019,2021,ifl)-CFP_A(L12,U12,W12,2019,2021,ifl),0) -> 0 | AL12: =+IFERROR(FACFP(AB12,0,2019,U12,W12,2021,vite_regolatorie,ifl)-FACFP(L12,0,2019,U12,W12,2021,vite_regolatorie,ifl),0) -> 0 | AM12: =+IFERROR(QA_CFP(AB12,0,2019,W12,U12,2021,vite_regolatorie,ifl)-QA_CFP(L12,0,2019,W12,U12,2021,vite_regolatorie,ifl),0) -> 0 | AO12: =+IFERROR(IP(Z12,U12,W12,2019,2021,ifl)-FondoAmm(Z12,0,2019,U12,W12,2021,vite_regolatorie,ifl)-(IP(K12,U12,W12,2019,2021,ifl)-FondoAmm(K12,0,2019,U12,W12,2021,vite_regolatorie,ifl)),0) -> -18287.47245 | AP12: =+IFERROR(CFP_A(AB12,U12,W12,2019,2021,ifl)-FACFP(AB12,0,2019,U12,W12,2021,vite_regolatorie,ifl)-(CFP_A(L12,U12,W12,2019,2021,ifl)-FACFP(L12,0,2019,U12,W12,2021,vite_regolatorie,ifl)),0) -> 0 | AQ12: 1 | AR12: =+Capex!$C$59+Capex!$C$60 -> 0.037326 | AS12: =+Capex!$C$72 -> 0.06264074897 | AU12: -2612.496064 | AV12: -682.5981967 | AW12: -315.023767 | AY12: -3610.118028
A13: 1 | B13: 1203 | C13: 25320 | D13: 15 | E13: Studi, ricerche, brevetti, diritti di utilizzazione | F13: 1 | G13: Servizio idrico integrato | H13: Non ERC | J13: 2019 | K13: 62250 | L13: 19388.61753 | M13: 0 | N13: 0 | O13: 0 | P13: 1203 | Q13: 25320 | R13: Gestore | S13: 0 | T13: IP | U13: =IFERROR(VLOOKUP(V13,TT_Tabelle_Riferimento!$G$32:$H$48,2,0),0) -> 15 | V13: =IFERROR(VLOOKUP(E13,TT_Tabelle_Riferimento!$G$32:$H$48,1,0),0) -> Studi, ricerche, brevetti, diritti di utilizzazione | W13: =+IFERROR(VLOOKUP(X13,TT_Tabelle_Riferimento!$G$2:$H$6,2,0),0) -> 1 | X13: =+IFERROR(VLOOKUP(G13,TT_Tabelle_Riferimento!$G$2:$H$6,1,0),0) -> Servizio idrico integrato | Y13: 2019 | Z13: 0 | AB13: 0 | AE13: Non ERC | AF13: 0 | AG13: Conferma_investimenti_2019 | AH13: =+IFERROR(IP(Z13,U13,W13,2019,2021,ifl)-IP(K13,U13,W13,2019,2021,ifl),0) -> -62999.17875 | AI13: =+IFERROR(FondoAmm(Z13,0,2019,U13,W13,2021,vite_regolatorie,ifl)-FondoAmm(K13,0,2019,U13,W13,2021,vite_regolatorie,ifl),0) -> 0 | AJ13: =+IFERROR(QA(Z13,0,2019,U13,W13,2021,vite_regolatorie,ifl)-QA(K13,0,2019,U13,W13,2021,vite_regolatorie,ifl),0) -> -12599.83575 | AK13: =+IFERROR(CFP_A(AB13,U13,W13,2019,2021,ifl)-CFP_A(L13,U13,W13,2019,2021,ifl),0) -> 0 | AL13: =+IFERROR(FACFP(AB13,0,2019,U13,W13,2021,vite_regolatorie,ifl)-FACFP(L13,0,2019,U13,W13,2021,vite_regolatorie,ifl),0) -> 0 | AM13: =+IFERROR(QA_CFP(AB13,0,2019,W13,U13,2021,vite_regolatorie,ifl)-QA_CFP(L13,0,2019,W13,U13,2021,vite_regolatorie,ifl),0) -> 0 | AO13: =+IFERROR(IP(Z13,U13,W13,2019,2021,ifl)-FondoAmm(Z13,0,2019,U13,W13,2021,vite_regolatorie,ifl)-(IP(K13,U13,W13,2019,2021,ifl)-FondoAmm(K13,0,2019,U13,W13,2021,vite_regolatorie,ifl)),0) -> -62999.17875 | AP13: =+IFERROR(CFP_A(AB13,U13,W13,2019,2021,ifl)-FACFP(AB13,0,2019,U13,W13,2021,vite_regolatorie,ifl)-(CFP_A(L13,U13,W13,2019,2021,ifl)-FACFP(L13,0,2019,U13,W13,2021,vite_regolatorie,ifl)),0) -> 0 | AQ13: 1 | AR13: =+Capex!$C$59+Capex!$C$60 -> 0.037326 | AS13: =+Capex!$C$72 -> 0.06264074897 | AU13: -12599.83575 | AV13: -2351.507346 | AW13: -1085.236829 | AY13: -16036.57992
A14: 1 | B14: 1203 | C14: 25320 | D14: 2 | E14: Fabbricati non industriali | F14: 1 | G14: Servizio idrico integrato | H14: Non ERC | J14: 2019 | K14: 0 | L14: 0 | M14: 0 | N14: 8730 | O14: 0 | P14: 1203 | Q14: 25320 | R14: Gestore | S14: 0 | T14: IP | U14: =IFERROR(VLOOKUP(V14,TT_Tabelle_Riferimento!$G$32:$H$48,2,0),0) -> 2 | V14: =IFERROR(VLOOKUP(E14,TT_Tabelle_Riferimento!$G$32:$H$48,1,0),0) -> Fabbricati non industriali | W14: =+IFERROR(VLOOKUP(X14,TT_Tabelle_Riferimento!$G$2:$H$6,2,0),0) -> 1 | X14: =+IFERROR(VLOOKUP(G14,TT_Tabelle_Riferimento!$G$2:$H$6,1,0),0) -> Servizio idrico integrato | Y14: 2019 | Z14: 8730 | AB14: 0 | AE14: Non ERC | AF14: 0 | AG14: Conferma_investimenti_2019 | AH14: =+IFERROR(IP(Z14,U14,W14,2019,2021,ifl)-IP(K14,U14,W14,2019,2021,ifl),0) -> 8835.06555 | AI14: =+IFERROR(FondoAmm(Z14,0,2019,U14,W14,2021,vite_regolatorie,ifl)-FondoAmm(K14,0,2019,U14,W14,2021,vite_regolatorie,ifl),0) -> 0 | AJ14: =+IFERROR(QA(Z14,0,2019,U14,W14,2021,vite_regolatorie,ifl)-QA(K14,0,2019,U14,W14,2021,vite_regolatorie,ifl),0) -> 220.8766387 | AK14: =+IFERROR(CFP_A(AB14,U14,W14,2019,2021,ifl)-CFP_A(L14,U14,W14,2019,2021,ifl),0) -> 0 | AL14: =+IFERROR(FACFP(AB14,0,2019,U14,W14,2021,vite_regolatorie,ifl)-FACFP(L14,0,2019,U14,W14,2021,vite_regolatorie,ifl),0) -> 0 | AM14: =+IFERROR(QA_CFP(AB14,0,2019,W14,U14,2021,vite_regolatorie,ifl)-QA_CFP(L14,0,2019,W14,U14,2021,vite_regolatorie,ifl),0) -> 0 | AO14: =+IFERROR(IP(Z14,U14,W14,2019,2021,ifl)-FondoAmm(Z14,0,2019,U14,W14,2021,vite_regolatorie,ifl)-(IP(K14,U14,W14,2019,2021,ifl)-FondoAmm(K14,0,2019,U14,W14,2021,vite_regolatorie,ifl)),0) -> 8835.06555 | AP14: =+IFERROR(CFP_A(AB14,U14,W14,2019,2021,ifl)-FACFP(AB14,0,2019,U14,W14,2021,vite_regolatorie,ifl)-(CFP_A(L14,U14,W14,2019,2021,ifl)-FACFP(L14,0,2019,U14,W14,2021,vite_regolatorie,ifl)),0) -> 0 | AQ14: 1 | AR14: =+Capex!$C$59+Capex!$C$60 -> 0.037326 | AS14: =+Capex!$C$72 -> 0.06264074897 | AU14: 220.8766387 | AV14: 329.7776567 | AW14: 152.1946589 | AY14: 702.8489544
A15: 1 | B15: 1203 | C15: 25320 | D15: 7 | E15: Impianti di trattamento | F15: 1 | G15: Servizio idrico integrato | H15: Non ERC | J15: 2019 | K15: 0 | L15: 0 | M15: 0 | N15: 81250 | O15: 0 | P15: 1203 | Q15: 25320 | R15: Gestore | S15: 0 | T15: IP | U15: =IFERROR(VLOOKUP(V15,TT_Tabelle_Riferimento!$G$32:$H$48,2,0),0) -> 7 | V15: =IFERROR(VLOOKUP(E15,TT_Tabelle_Riferimento!$G$32:$H$48,1,0),0) -> Impianti di trattamento | W15: =+IFERROR(VLOOKUP(X15,TT_Tabelle_Riferimento!$G$2:$H$6,2,0),0) -> 1 | X15: =+IFERROR(VLOOKUP(G15,TT_Tabelle_Riferimento!$G$2:$H$6,1,0),0) -> Servizio idrico integrato | Y15: 2019 | Z15: 81250 | AB15: 0 | AE15: Non ERC | AF15: 0 | AG15: Conferma_investimenti_2019 | AH15: =+IFERROR(IP(Z15,U15,W15,2019,2021,ifl)-IP(K15,U15,W15,2019,2021,ifl),0) -> 82227.84375 | AI15: =+IFERROR(FondoAmm(Z15,0,2019,U15,W15,2021,vite_regolatorie,ifl)-FondoAmm(K15,0,2019,U15,W15,2021,vite_regolatorie,ifl),0) -> 0 | AJ15: =+IFERROR(QA(Z15,0,2019,U15,W15,2021,vite_regolatorie,ifl)-QA(K15,0,2019,U15,W15,2021,vite_regolatorie,ifl),0) -> 6852.320312 | AK15: =+IFERROR(CFP_A(AB15,U15,W15,2019,2021,ifl)-CFP_A(L15,U15,W15,2019,2021,ifl),0) -> 0 | AL15: =+IFERROR(FACFP(AB15,0,2019,U15,W15,2021,vite_regolatorie,ifl)-FACFP(L15,0,2019,U15,W15,2021,vite_regolatorie,ifl),0) -> 0 | AM15: =+IFERROR(QA_CFP(AB15,0,2019,W15,U15,2021,vite_regolatorie,ifl)-QA_CFP(L15,0,2019,W15,U15,2021,vite_regolatorie,ifl),0) -> 0 | AO15: =+IFERROR(IP(Z15,U15,W15,2019,2021,ifl)-FondoAmm(Z15,0,2019,U15,W15,2021,vite_regolatorie,ifl)-(IP(K15,U15,W15,2019,2021,ifl)-FondoAmm(K15,0,2019,U15,W15,2021,vite_regolatorie,ifl)),0) -> 82227.84375 | AP15: =+IFERROR(CFP_A(AB15,U15,W15,2019,2021,ifl)-FACFP(AB15,0,2019,U15,W15,2021,vite_regolatorie,ifl)-(CFP_A(L15,U15,W15,2019,2021,ifl)-FACFP(L15,0,2019,U15,W15,2021,vite_regolatorie,ifl)),0) -> 0 | AQ15: 1 | AR15: =+Capex!$C$59+Capex!$C$60 -> 0.037326 | AS15: =+Capex!$C$72 -> 0.06264074897 | AU15: 6852.320312 | AV15: 3069.236496 | AW15: 1416.473773 | AY15: 11338.03058
A16: 1 | B16: 1203 | C16: 25320 | D16: 8 | E16: Impianti di sollevamento e pompaggio | F16: 1 | G16: Servizio idrico integrato | H16: Non ERC | J16: 2019 | K16: 0 | L16: 0 | M16: 0 | N16: 299246.03 | O16: 3948.49 | P16: 1203 | Q16: 25320 | R16: Gestore | S16: 0 | T16: IP | U16: =IFERROR(VLOOKUP(V16,TT_Tabelle_Riferimento!$G$32:$H$48,2,0),0) -> 8 | V16: =IFERROR(VLOOKUP(E16,TT_Tabelle_Riferimento!$G$32:$H$48,1,0),0) -> Impianti di sollevamento e pompaggio | W16: =+IFERROR(VLOOKUP(X16,TT_Tabelle_Riferimento!$G$2:$H$6,2,0),0) -> 1 | X16: =+IFERROR(VLOOKUP(G16,TT_Tabelle_Riferimento!$G$2:$H$6,1,0),0) -> Servizio idrico integrato | Y16: 2019 | Z16: 299246.03 | AB16: 3948.49 | AE16: Non ERC | AF16: 0 | AG16: Conferma_investimenti_2019 | AH16: =+IFERROR(IP(Z16,U16,W16,2019,2021,ifl)-IP(K16,U16,W16,2019,2021,ifl),0) -> 302847.456 | AI16: =+IFERROR(FondoAmm(Z16,0,2019,U16,W16,2021,vite_regolatorie,ifl)-FondoAmm(K16,0,2019,U16,W16,2021,vite_regolatorie,ifl),0) -> 0 | AJ16: =+IFERROR(QA(Z16,0,2019,U16,W16,2021,vite_regolatorie,ifl)-QA(K16,0,2019,U16,W16,2021,vite_regolatorie,ifl),0) -> 37855.932 | AK16: =+IFERROR(CFP_A(AB16,U16,W16,2019,2021,ifl)-CFP_A(L16,U16,W16,2019,2021,ifl),0) -> 0 | AL16: =+IFERROR(FACFP(AB16,0,2019,U16,W16,2021,vite_regolatorie,ifl)-FACFP(L16,0,2019,U16,W16,2021,vite_regolatorie,ifl),0) -> 0 | AM16: =+IFERROR(QA_CFP(AB16,0,2019,W16,U16,2021,vite_regolatorie,ifl)-QA_CFP(L16,0,2019,W16,U16,2021,vite_regolatorie,ifl),0) -> 0 | AO16: =+IFERROR(IP(Z16,U16,W16,2019,2021,ifl)-FondoAmm(Z16,0,2019,U16,W16,2021,vite_regolatorie,ifl)-(IP(K16,U16,W16,2019,2021,ifl)-FondoAmm(K16,0,2019,U16,W16,2021,vite_regolatorie,ifl)),0) -> 302847.456 | AP16: =+IFERROR(CFP_A(AB16,U16,W16,2019,2021,ifl)-FACFP(AB16,0,2019,U16,W16,2021,vite_regolatorie,ifl)-(CFP_A(L16,U16,W16,2019,2021,ifl)-FACFP(L16,0,2019,U16,W16,2021,vite_regolatorie,ifl)),0) -> 0 | AQ16: 1 | AR16: =+Capex!$C$59+Capex!$C$60 -> 0.037326 | AS16: =+Capex!$C$72 -> 0.06264074897 | AU16: 37855.932 | AV16: 11304.08414 | AW16: 5216.912653 | AY16: 54376.92879

Sheet IMN_Proprietari
C1: IMNProprietari - Sviluppo dei costi di capitale associati alle infrastrutture di terzi | H1: ATTENZIONE: verificare la correttezza dei dati presenti nell'eventuale file precompilato fornito
A2: scarico dati
A3: IMN P.
A5: idato associato al gestore | B5: idarera associato al gestore | C5: Tipologia di Proprietario | D5: Key_Prop | E5: ID_Categoria_Cespite | F5: CategoriaCespite | G5: ID_Immobilizzazione | H5: IMMOBILIZZAZIONE | I5: AnnoCespite | J5: IP | K5: FAIP | L5: CFP | M5: FACP | N5: New_Key_prop | O5: dati da non valorizzare | P5: VU 2020 | Q5: IP 2020 | R5: FAIP 2020 | S5: IP netto 2020 | T5: AMM 2020 | U5: CFP 2020 | V5: FA CFP 2020 | W5: CFP netto 2020 | X5: AMM CFP 2020 | Y5: Nriga | Z5: VU 2021 | AA5: IP 2021 | AB5: FAIP 2021 | AC5: IP netto 2021 | AD5: AMM 2021 | AE5: CFP 2021 | AF5: FA CFP 2021 | AG5: CFP netto 2021 | AH5: AMM CFP 2021 | AI5: aaa | AJ5: VU 2022 | AK5: IP 2022 | AL5: FAIP 2022 | AM5: IP netto 2022 | AN5: AMM 2022 | AO5: CFP 2022 | AP5: FA CFP 2022 | AQ5: CFP netto 2022 | AR5: AMM CFP 2022 | AS5: aaaa | AT5: VU 2023 | AU5: IP 2023 | AV5: FAIP 2023 | AW5: IP netto 2023 | AX5: AMM 2023 | AY5: CFP 2023 | AZ5: FA CFP 2023 | BA5: CFP netto 2023 | BB5: AMM CFP 2023
A6: =+idato -> 1203 | B6: =+idgestore -> 25320 | E6: =+IFERROR(VLOOKUP(F6,id_cat_ces,2,FALSE),"") ->  | G6: =+IFERROR(VLOOKUP(H6,id_cat_imm,2,FALSE),"") ->  | N6: =+IF(D6="","",IFERROR(VLOOKUP(D6,Soggetti_proprietari!K:L,2,0),"")) ->  | O6: =IF(ISNA(VLOOKUP(N6,Soggetti_proprietari!N:N,1,FALSE)),IF(OR(I6=1961,I6=1962),TRUE,FALSE),TRUE) -> FALSE | P6: =+IF(OR($O6,$E6=""),0,VLOOKUP($E6,ViteRegolatorieProp,VALUE(RIGHT(P$5,4))-2011)) -> 0 | Q6: =IF(OR($O6,$E6=""),0,IFERROR(IP_PROP($J6,R6,T6,$E6,$G6,$I6,$P6,VALUE(RIGHT(Q$5,4)),ifl),0)) -> 0 | R6: =IF(OR($O6,$E6=""),0,IFERROR(FondoAmm_prop($J6,$K6,$I6,$E6,$G6,VALUE(RIGHT(R$5,4)),ViteRegolatorieProp,ifl),0)) -> 0 | S6: =+Q6-R6 -> 0 | T6: =IF(OR($O6,$E6=""),0,IFERROR(QA_PROP($J6,$K6,$I6,$E6,$G6,VALUE(RIGHT(T$5,4)),ViteRegolatorieProp,ifl),0)) -> 0 | U6: =IF(OR($O6,$E6=""),0,IFERROR(IP_PROP($L6,V6,X6,$E6,$G6,$I6,$P6,VALUE(RIGHT(U$5,4)),ifl),0)) -> 0 | V6: =IF(OR($O6,$E6=""),0,IFERROR(FondoAmm_prop($L6,$M6,$I6,$E6,$G6,VALUE(RIGHT(V$5,4)),ViteRegolatorieProp,ifl),0)) -> 0 | W6: =+U6-V6 -> 0 | X6: =IF(OR($O6,$E6=""),0,IFERROR(QA_PROP($L6,$M6,$I6,$E6,$G6,VALUE(RIGHT(X$5,4)),ViteRegolatorieProp,ifl),0)) -> 0 | Y6: =+ROW(A6)-5 -> 1 | Z6: =+IF(OR($O6,$E6=""),0,VLOOKUP($E6,ViteRegolatorieProp,VALUE(RIGHT(Z$5,4))-2011)) -> 0 | AA6: =IF(OR($O6,$E6=""),0,IFERROR(IP_PROP($J6,AB6,AD6,$E6,$G6,$I6,$P6,VALUE(RIGHT(AA$5,4)),ifl),0)) -> 0 | AB6: =IF(OR($O6,$E6=""),0,IFERROR(FondoAmm_prop($J6,$K6,$I6,$E6,$G6,VALUE(RIGHT(AB$5,4)),ViteRegolatorieProp,ifl),0)) -> 0 | AC6: =+AA6-AB6 -> 0 | AD6: =IF(OR($O6,$E6=""),0,IFERROR(QA_PROP($J6,$K6,$I6,$E6,$G6,VALUE(RIGHT(AD$5,4)),ViteRegolatorieProp,ifl),0)) -> 0 | AE6: =IF(OR($O6,$E6=""),0,IFERROR(IP_PROP($L6,AF6,AH6,$E6,$G6,$I6,$P6,VALUE(RIGHT(AE$5,4)),ifl),0)) -> 0 | AF6: =IF(OR($O6,$E6=""),0,IFERROR(FondoAmm_prop($L6,$M6,$I6,$E6,$G6,VALUE(RIGHT(AF$5,4)),ViteRegolatorieProp,ifl),0)) -> 0 | AG6: =+AE6-AF6 -> 0 | AH6: =IF(OR($O6,$E6=""),0,IFERROR(QA_PROP($L6,$M6,$I6,$E6,$G6,VALUE(RIGHT(AH$5,4)),ViteRegolatorieProp,ifl),0)) -> 0 | AJ6: =+IF(OR($O6,$E6=""),0,VLOOKUP($E6,ViteRegolatorieProp,VALUE(RIGHT(AJ$5,4))-2011)) -> 0 | AK6: =IF(OR($O6,$E6=""),0,IFERROR(IP_PROP($J6,AL6,AN6,$E6,$G6,$I6,$P6,VALUE(RIGHT(AK$5,4)),ifl),0)) -> 0 | AL6: =IF(OR($O6,$E6=""),0,IFERROR(FondoAmm_prop($J6,$K6,$I6,$E6,$G6,VALUE(RIGHT(AL$5,4)),ViteRegolatorieProp,ifl),0)) -> 0 | AM6: =+AK6-AL6 -> 0 | AN6: =IF(OR($O6,$E6=""),0,IFERROR(QA_PROP($J6,$K6,$I6,$E6,$G6,VALUE(RIGHT(AN$5,4)),ViteRegolatorieProp,ifl),0)) -> 0 | AO6: =IF(OR($O6,$E6=""),0,IFERROR(IP_PROP($L6,AP6,AR6,$E6,$G6,$I6,$P6,VALUE(RIGHT(AO$5,4)),ifl),0)) -> 0 | AP6: =IF(OR($O6,$E6=""),0,IFERROR(FondoAmm_prop($L6,$M6,$I6,$E6,$G6,VALUE(RIGHT(AP$5,4)),ViteRegolatorieProp,ifl),0)) -> 0 | AQ6: =+AO6-AP6 -> 0 | AR6: =IF(OR($O6,$E6=""),0,IFERROR(QA_PROP($L6,$M6,$I6,$E6,$G6,VALUE(RIGHT(AR$5,4)),ViteRegolatorieProp,ifl),0)) -> 0 | AT6: =+IF(OR($O6,$E6=""),0,VLOOKUP($E6,ViteRegolatorieProp,VALUE(RIGHT(AT$5,4))-2011)) -> 0 | AU6: =IF(OR($O6,$E6=""),0,IFERROR(IP_PROP($J6,AV6,AX6,$E6,$G6,$I6,$P6,VALUE(RIGHT(AU$5,4)),ifl),0)) -> 0 | AV6: =IF(OR($O6,$E6=""),0,IFERROR(FondoAmm_prop($J6,$K6,$I6,$E6,$G6,VALUE(RIGHT(AV$5,4)),ViteRegolatorieProp,ifl),0)) -> 0 | AW6: =+AU6-AV6 -> 0 | AX6: =IF(OR($O6,$E6=""),0,IFERROR(QA_PROP($J6,$K6,$I6,$E6,$G6,VALUE(RIGHT(AX$5,4)),ViteRegolatorieProp,ifl),0)) -> 0 | AY6: =IF(OR($O6,$E6=""),0,IFERROR(IP_PROP($L6,AZ6,BB6,$E6,$G6,$I6,$P6,VALUE(RIGHT(AY$5,4)),ifl),0)) -> 0 | AZ6: =IF(OR($O6,$E6=""),0,IFERROR(FondoAmm_prop($L6,$M6,$I6,$E6,$G6,VALUE(RIGHT(AZ$5,4)),ViteRegolatorieProp,ifl),0)) -> 0 | BA6: =+AY6-AZ6 -> 0 | BB6: =IF(OR($O6,$E6=""),0,IFERROR(QA_PROP($L6,$M6,$I6,$E6,$G6,VALUE(RIGHT(BB$5,4)),ViteRegolatorieProp,ifl),0)) -> 0

Sheet DCUIT
A2: comma 15.4 All. A MTI-3 | C2: ΔCUIT - Immobilizzazioni di terzi
T5: 2020 | U5: 2021 | V5: 2022 | W5: 2023 | AB5: 2020 | AC5: 2021 | AD5: 2022 | AE5: 2023 | AF5: 2020 | AG5: 2021 | AH5: 2022 | AI5: 2023 | AJ5: 2020 | AK5: 2021 | AL5: 2022 | AM5: 2023 | AN5: 2020 | AO5: 2021 | AP5: 2022 | AQ5: 2023 | AR5: 2020 | AS5: 2021 | AT5: 2022 | AU5: 2023 | AV5: 2020 | AW5: 2021 | AX5: 2022 | AY5: 2023 | AZ5: 2020 | BA5: 2021 | BB5: 2022 | BC5: 2023 | BD5: 2020 | BE5: 2021 | BF5: 2022 | BG5: 2023
A6: New_Key_prop | B6: IMN 2020 | C6: IMN 2021 | D6: IMN 2022 | E6: IMN 2023 | F6: AMM 2020 | G6: AMM 2021 | H6: AMM 2022 | I6: AMM 2023 | J6: CFP netto 2020 | K6: CFP netto 2021 | L6: CFP netto 2022 | M6: CFP netto 2023 | N6: AMM CFP 2020 | O6: AMM CFP 2021 | P6: AMM CFP 2022 | Q6: AMM CFP 2023 | T6: ΔCUIT | U6: ΔCUIT | V6: ΔCUIT | W6: ΔCUIT | AB6: CINp | AC6: CINp | AD6: CINp | AE6: CINp | AF6: CINfp,p / CIN | AG6: CINfp,p / CIN | AH6: CINfp,p / CIN | AI6: CINfp,p / CIN | AJ6: Rai | AK6: Rai | AL6: Rai | AM6: Rai | AN6: OFp | AO6: OFp | AP6: OFp | AQ6: OFp | AR6: OFiscp | AS6: OFiscp | AT6: OFiscp | AU6: OFiscp | AV6: AMMp | AW6: AMMp | AX6: AMMp | AY6: AMMp | AZ6: MT | BA6: MT | BB6: MT | BC6: MT | BD6: AC | BE6: AC | BF6: AC | BG6: AC
B7: 0 | C7: 0 | D7: 0 | E7: 0 | F7: 0 | G7: 0 | H7: 0 | I7: 0 | J7: 0 | K7: 0 | L7: 0 | M7: 0 | N7: 0 | O7: 0 | P7: 0 | Q7: 0 | V7: =MAX(0,((AX7+AP7+AT7)-(BB7+BF7))) -> 0 | W7: =MAX(0,((AY7+AQ7+AU7)-(BC7+BG7))) -> 0 | AB7: =+IFERROR(B7*1,0) -> 0 | AC7: =+IFERROR(C7*1,0) -> 0 | AD7: =+IFERROR(D7*1,0) -> 0 | AE7: =+IFERROR(E7*1,0) -> 0 | AF7: =IFERROR(J7/AB7,0) -> 0 | AG7: =IFERROR(K7/AC7,0) -> 0 | AH7: =IFERROR(L7/AD7,0) -> 0 | AI7: =IFERROR(M7/AE7,0) -> 0 | AJ7: =((1+((TT_parametri!$BF$30+TT_parametri!$BF$31+1)*(1+TT_parametri!$BF$27)-1)/(1-TT_parametri!$BF$29))/(1+TT_parametri!$BF$27)-1)*(1-AF7)*AB7 -> 0 | AK7: =((1+((TT_parametri!$BF$30+TT_parametri!$BF$31+1)*(1+TT_parametri!$BF$27)-1)/(1-TT_parametri!$BF$29))/(1+TT_parametri!$BF$27)-1)*(1-AG7)*AC7 -> 0 | AL7: =((1+((TT_parametri!$BF$30+TT_parametri!$BF$31+1)*(1+TT_parametri!$BF$27)-1)/(1-TT_parametri!$BF$29))/(1+TT_parametri!$BF$27)-1)*(1-AH7)*AD7 -> 0 | AM7: =((1+((TT_parametri!$BF$30+TT_parametri!$BF$31+1)*(1+TT_parametri!$BF$27)-1)/(1-TT_parametri!$BF$29))/(1+TT_parametri!$BF$27)-1)*(1-AI7)*AE7 -> 0 | AN7: =MAX(+(TT_parametri!$BF$30+TT_parametri!$BF$31)*(1-AF7)*AB7,0) -> 0 | AO7: =MAX(+(TT_parametri!$BF$30+TT_parametri!$BF$31)*(1-AG7)*AC7,0) -> 0 | AP7: =MAX(+(TT_parametri!$BF$30+TT_parametri!$BF$31)*(1-AH7)*AD7,0) -> 0 | AQ7: =MAX(+(TT_parametri!$BF$30+TT_parametri!$BF$31)*(1-AI7)*AE7,0) -> 0 | AR7: =MAX(0.319*AJ7,0) -> 0 | AS7: =MAX(0.319*AK7,0) -> 0 | AT7: =MAX(0.319*AL7,0) -> 0 | AU7: =MAX(0.319*AM7,0) -> 0 | AV7: =+IFERROR(F7*1,0) -> 0 | AW7: =+IFERROR(G7*1,0) -> 0 | AX7: =+IFERROR(H7*1,0) -> 0 | AY7: =+IFERROR(I7*1,0) -> 0 | BB7: =+IFERROR(VLOOKUP($A7,Corrispettivi_proprietari!$B:$T,14,FALSE),0) -> 0 | BC7: =+IFERROR(VLOOKUP($A7,Corrispettivi_proprietari!$B:$T,15,FALSE),0) -> 0 | BF7: =+IFERROR(VLOOKUP($A7,Corrispettivi_proprietari!$B:$T,17,FALSE),0) -> 0 | BG7: =+IFERROR(VLOOKUP($A7,Corrispettivi_proprietari!$B:$T,18,FALSE),0) -> 0

Sheet Storico_Piano_Tariffario
C2: STORICO PIANO TARIFFARIO
C3: SCHEMI REGOLATORI
I4: Note | J4: UdM | K4: Del 580/2019/R/IDR
J5: UdM | K5: 2016 | N5: 2019 | O5: 2020 | P5: 2021 | Q5: 2022 | R5: 2023 | S5: 2024 | T5: 2025 | U5: 2026 | V5: 2027 | W5: 2028 | X5: 2029 | Y5: 2030 | Z5: 2031 | AA5: 2032 | AB5: 2033 | AC5: 2034 | AD5: 2035 | AE5: 2036 | AF5: 2037 | AG5: 2038 | AH5: 2039 | AI5: 2040 | AJ5: 2041 | AK5: 2042 | AL5: 2043 | AM5: 2044 | AN5: 2045
C6: VRG2018 | J6: euro | K6: 26388825.99
C7: Popolazione residente cui aggiungere 0,25xabitanti fluttuanti | J7: n. abitante | K7: 202251
J8: SI/NO | K8: SI
C9: Nessuna aggregazione o variazione dei processi tecnici significativa: (NO) oppure Presenza di aggregazioni o variazioni dei processi tecnici significative: (SI) | J9: SI/NO | K9: SI
J10: euro | K10: 59449381.79
C11: RABMTI-2 | J11: euro | K11: 433714.4353
J12: SI/NO | K12: NO
C13: SCHEMA REGOLATORIO (A) SCHEMA REGOLATORIO DI CONVERGENZA (B) | J13: A/B | K13: A
C14: y | J14: (0,4-0,8) | K14: 0.4
C15: SCHEMA REGOLATORIO | J15: (I, II, III, IV, V, VI) | K15: VI
C20: COMPONENTI DI COSTO Opex, Capex , FNInew, ERC
I21: Note | J21: UdM | K21: 2020 | L21: 2021 | M21: 2022 | N21: 2023 | O21: 2024 | P21: 2025 | Q21: 2026 | R21: 2027 | S21: 2028 | T21: 2029 | U21: 2030 | V21: 2031 | W21: 2032 | X21: 2033 | Y21: 2034 | Z21: 2035 | AA21: 2036 | AB21: 2037 | AC21: 2038 | AD21: 2039 | AE21: 2040 | AF21: 2041 | AG21: 2042 | AH21: 2043 | AI21: 2044 | AJ21: 2045 | AK21: 2046 | AL21: 2047 | AM21: 2048 | AN21: 2049 | AO21: 2050 | AP21: 2051 | AQ21: 2052 | AR21: 2053 | AS21: 2054 | AT21: 2055 | AU21: 2056 | AV21: 2057 | AW21: 2058 | AX21: 2059
C22: Opexaend | J22: euro | K22: 16026010 | L22: 16026010 | M22: 16026010 | N22: 16026010 | O22: 16026010 | P22: 16026010 | Q22: 16026010 | R22: 16026010 | S22: 16026010 | T22: 16026010 | U22: 16026010 | V22: 16026010 | W22: 16026010 | X22: 16026010 | Y22: 16026010 | Z22: 16026010 | AA22: 16026010 | AB22: 16026010 | AC22: 16026010 | AD22: 16026010 | AE22: 16026010 | AF22: 16026010 | AG22: 16026010 | AH22: 16026010 | AI22: 16026010 | AJ22: 16026010
C23: Opexaal | J23: euro | K23: 9041737.755 | L23: 9032779.891 | M23: 9152836.887 | N23: 9150777.151 | O23: 9072932.31 | P23: 9048078.362 | Q23: 9047072.447 | R23: 9031181.284 | S23: 9031181.284 | T23: 9006223.944 | U23: 8989024.61 | V23: 8894331.536 | W23: 8824213.989 | X23: 8656783.265 | Y23: 8656783.265 | Z23: 8552303.356 | AA23: 8505560.59 | AB23: 8505560.59 | AC23: 8500966.542 | AD23: 8500966.542 | AE23: 8500966.542 | AF23: 8456668.9 | AG23: 8456668.9 | AH23: 8456668.9 | AI23: 8456668.9 | AJ23: 8421241.149
C24: Opnew,a | J24: euro | K24: 815530.02 | L24: 1631060.04 | M24: 1631060.04 | N24: 1631060.04 | O24: 1631060.04 | P24: 1631060.04 | Q24: 1631060.04 | R24: 1631060.04 | S24: 1631060.04 | T24: 1631060.04 | U24: 1631060.04 | V24: 1631060.04 | W24: 1631060.04 | X24: 1631060.04 | Y24: 1631060.04 | Z24: 1631060.04 | AA24: 1631060.04 | AB24: 1631060.04 | AC24: 1631060.04 | AD24: 1631060.04 | AE24: 1631060.04 | AF24: 1631060.04 | AG24: 1631060.04 | AH24: 1631060.04 | AI24: 1631060.04 | AJ24: 1631060.04
C25: OpexaQT | J25: euro | K25: 1060000 | L25: 1060000 | M25: 1060000 | N25: 1060000 | O25: 1060000 | P25: 1060000 | Q25: 1060000 | R25: 1060000 | S25: 1060000 | T25: 1060000 | U25: 1060000 | V25: 1060000 | W25: 1060000 | X25: 1060000 | Y25: 1060000 | Z25: 1060000 | AA25: 1060000 | AB25: 1060000 | AC25: 1060000 | AD25: 1060000 | AE25: 1060000 | AF25: 1060000 | AG25: 1060000 | AH25: 1060000 | AI25: 1060000 | AJ25: 1060000
C26: OpexaQC | J26: euro | K26: 1050000 | L26: 1050000 | M26: 1050000 | N26: 1050000 | O26: 1050000 | P26: 1050000 | Q26: 1050000 | R26: 1050000 | S26: 1050000 | T26: 1050000 | U26: 1050000 | V26: 1050000 | W26: 1050000 | X26: 1050000 | Y26: 1050000 | Z26: 1050000 | AA26: 1050000 | AB26: 1050000 | AC26: 1050000 | AD26: 1050000 | AE26: 1050000 | AF26: 1050000 | AG26: 1050000 | AH26: 1050000 | AI26: 1050000 | AJ26: 1050000
C27: Opasocial | J27: euro | K27: 51190.75 | L27: 63983.95 | M27: 89570.34 | N27: 89570.34 | O27: 89570.34 | P27: 89570.34 | Q27: 89570.34 | R27: 89570.34 | S27: 89570.34 | T27: 89570.34 | U27: 89570.34 | V27: 89570.34 | W27: 89570.34 | X27: 89570.34 | Y27: 89570.34 | Z27: 89570.34 | AA27: 89570.34 | AB27: 89570.34 | AC27: 89570.34 | AD27: 89570.34 | AE27: 89570.34 | AF27: 89570.34 | AG27: 89570.34 | AH27: 89570.34 | AI27: 89570.34 | AJ27: 89570.34
C28: Opamis | J28: euro | K28: 0 | L28: 2000 | M28: 313028.4832 | N28: 687456.2034 | O28: 687456.2034 | P28: 830477.72 | Q28: 687456.2034 | R28: 687456.2034 | S28: 687456.2034 | T28: 687456.2034 | U28: 687456.2034 | V28: 687456.2034 | W28: 687456.2034 | X28: 687456.2034 | Y28: 687456.2034 | Z28: 687456.2034 | AA28: 687456.2034 | AB28: 687456.2034 | AC28: 687456.2034 | AD28: 687456.2034 | AE28: 687456.2034 | AF28: 687456.2034 | AG28: 687456.2034 | AH28: 687456.2034 | AI28: 687456.2034 | AJ28: 687456.2034
C29: OpaCOVID | J29: euro | K29: 18843.33 | O29: 0 | P29: 0 | Q29: 0 | R29: 0 | S29: 0 | T29: 0 | U29: 0 | V29: 0 | W29: 0 | X29: 0 | Y29: 0 | Z29: 0 | AA29: 0 | AB29: 0 | AC29: 0 | AD29: 0 | AE29: 0 | AF29: 0 | AG29: 0 | AH29: 0 | AI29: 0 | AJ29: 0
C30: Opexa (al netto degli ERC) | J30: euro | K30: 28063311.85 | L30: 28865833.88 | M30: 29322505.75 | N30: 29694873.73 | O30: 29617028.89 | P30: 29735196.46 | Q30: 29591169.03 | R30: 29575277.86 | S30: 29575277.86 | T30: 29550320.52 | U30: 29533121.19 | V30: 29438428.12 | W30: 29368310.57 | X30: 29200879.85 | Y30: 29200879.85 | Z30: 29096399.94 | AA30: 29049657.17 | AB30: 29049657.17 | AC30: 29045063.12 | AD30: 29045063.12 | AE30: 29045063.12 | AF30: 29000765.48 | AG30: 29000765.48 | AH30: 29000765.48 | AI30: 29000765.48 | AJ30: 28965337.73
C31: AMMa | J31: euro | K31: 110871.371 | L31: 178047.5187 | M31: 312929.5621 | N31: 329300.8945 | O31: 451933.2768 | P31: 554597.7656 | Q31: 661983.8205 | R31: 709611.3786 | S31: 759965.9877 | T31: 823311.5779 | U31: 858216.0209 | V31: 907590.9757 | W31: 966086.8373 | X31: 1010808.653 | Y31: 1069091.781 | Z31: 1141098.412 | AA31: 1221769.448 | AB31: 1305686.623 | AC31: 1366920.012 | AD31: 1426374.159 | AE31: 1503316.364 | AF31: 1563414.921 | AG31: 1564595.842 | AH31: 1616535.947 | AI31: 1645584.93 | AJ31: 1675637.231
C32: OFa | J32: euro | K32: 112963.924 | L32: 169995.0703 | M32: 269398.2699 | N32: 248218.7988 | O32: 315076.6596 | P32: 381196.9797 | Q32: 448060.1708 | R32: 512369.3713 | S32: 578806.7907 | T32: 644502.5088 | U32: 695034.4677 | V32: 747204.0874 | W32: 798916.6232 | X32: 848956.3098 | Y32: 898706.8617 | Z32: 947178.9093 | AA32: 992243.1711 | AB32: 1033489.595 | AC32: 1070764.556 | AD32: 1105141.584 | AE32: 1137277.077 | AF32: 1165771.202 | AG32: 1191421.104 | AH32: 1217015.117 | AI32: 1240151.012 | AJ32: 1261912.135
C33: OFisca | J33: euro | K33: 41470.51329 | L33: 61090.86365 | M33: 92073.28359 | N33: 83695.79339 | O33: 105011.8444 | P33: 126015.9083 | Q33: 147255.9558 | R33: 167684.6918 | S33: 188789.4868 | T33: 209658.6699 | U33: 225710.8682 | V33: 242283.293 | W33: 258710.5184 | X33: 274606.3395 | Y33: 290410.3128 | Z33: 305808.1509 | AA33: 320123.4572 | AB33: 333225.973 | AC33: 345066.8964 | AD33: 355987.2505 | AE33: 366195.5486 | AF33: 375247.1145 | AG33: 383395.1719 | AH33: 391525.4756 | AI33: 398874.9233 | AJ33: 405787.6549
C34: DCUITaCapex | J34: euro | K34: 0 | L34: 0 | M34: 0 | N34: 0 | O34: 0 | P34: 0 | Q34: 0 | R34: 0 | S34: 0 | T34: 0 | U34: 0 | V34: 0 | W34: 0 | X34: 0 | Y34: 0 | Z34: 0 | AA34: 0 | AB34: 0 | AC34: 0 | AD34: 0 | AE34: 0 | AF34: 0 | AG34: 0 | AH34: 0 | AI34: 0 | AJ34: 0
C35: Capexa (al netto degli ERC) | J35: euro | K35: 265305.8082 | L35: 409133.4527 | M35: 674401.1156 | N35: 661215.4867 | O35: 872021.7808 | P35: 1061810.654 | Q35: 1257299.947 | R35: 1389665.442 | S35: 1527562.265 | T35: 1677472.757 | U35: 1778961.357 | V35: 1897078.356 | W35: 2023713.979 | X35: 2134371.303 | Y35: 2258208.955 | Z35: 2394085.473 | AA35: 2534136.076 | AB35: 2672402.191 | AC35: 2782751.464 | AD35: 2887502.993 | AE35: 3006788.989 | AF35: 3104433.238 | AG35: 3139412.118 | AH35: 3225076.539 | AI35: 3284610.866 | AJ35: 3343337.022
C36: IPtexp | J36: euro | K36: 3087285.409 | L36: 2616285.877 | M36: 2514464.524 | N36: 2661085.877 | O36: 3800085.877 | P36: 3748335.877 | Q36: 3785085.877 | R36: 3745085.877 | S36: 2998294.469 | T36: 3023294.469 | U36: 3023294.469 | V36: 2967600 | W36: 2967600 | X36: 3012600 | Y36: 3012600 | Z36: 3012600 | AA36: 3012600 | AB36: 3012600 | AC36: 3030000 | AD36: 3030000 | AE36: 3030000 | AF36: 3030000 | AG36: 3030000 | AH36: 3030000 | AI36: 3030000 | AJ36: 2930000
C37: Capexa | J37: euro | K37: 265305.8082 | L37: 409133.4527 | M37: 674401.1156 | N37: 661215.4867 | O37: 1378437.594 | P37: 1648262.626 | Q37: 1926291.462 | R37: 2111075.198 | S37: 2306369.052 | T37: 2518952.469 | U37: 2661849.148 | V37: 2828676.717 | W37: 3007763.927 | X37: 3163855.846 | Y37: 3338916.336 | Z37: 3531302.651 | AA37: 3729696.134 | AB37: 3925521.458 | AC37: 4081170.042 | AD37: 4228762.592 | AE37: 4397272.53 | AF37: 4534636.583 | AG37: 4569815.288 | AH37: 4660486.796 | AI37: 4745636.244 | AJ37: 4829622.607
C38: FNInew,a | J38: euro | K38: 1.722946763e-08 | L38: 1.164153218e-10 | M38: 6.973277777e-08 | N38: 8.975621313e-08 | O38: 968659.3131 | P38: 840029.3004 | Q38: 743517.766 | R38: 653604.2717 | S38: 276770.1669 | T38: 201736.8004 | U38: 144578.1284 | V38: 55569.31331 | W38: 0 | X38: 0 | Y38: 0 | Z38: 0 | AA38: 0 | AB38: 0 | AC38: 0 | AD38: 0 | AE38: 0 | AF38: 0 | AG38: 0 | AH38: 0 | AI38: 0 | AJ38: 0
O39: 0 | P39: 0 | Q39: 0 | R39: 0 | S39: 0 | T39: 0 | U39: 0 | V39: 0 | W39: 0 | X39: 0 | Y39: 0 | Z39: 0 | AA39: 0 | AB39: 0 | AC39: 0 | AD39: 0 | AE39: 0 | AF39: 0 | AG39: 0 | AH39: 0 | AI39: 0 | AJ39: 0
O40: 0 | P40: 0 | Q40: 0 | R40: 0 | S40: 0 | T40: 0 | U40: 0 | V40: 0 | W40: 0 | X40: 0 | Y40: 0 | Z40: 0 | AA40: 0 | AB40: 0 | AC40: 0 | AD40: 0 | AE40: 0 | AF40: 0 | AG40: 0 | AH40: 0 | AI40: 0 | AJ40: 0
O41: 0 | P41: 0 | Q41: 0 | R41: 0 | S41: 0 | T41: 0 | U41: 0 | V41: 0 | W41: 0 | X41: 0 | Y41: 0 | Z41: 0 | AA41: 0 | AB41: 0 | AC41: 0 | AD41: 0 | AE41: 0 | AF41: 0 | AG41: 0 | AH41: 0 | AI41: 0 | AJ41: 0
C42: ERCacapex | J42: euro | K42: 0 | L42: 0 | M42: 91401.72983 | N42: 414954.6286 | O42: 506415.8136 | P42: 586451.9725 | Q42: 668991.5149 | R42: 721409.7564 | S42: 778806.7869 | T42: 841479.712 | U42: 882887.7917 | V42: 931598.3606 | W42: 984049.9484 | X42: 1029484.544 | Y42: 1080707.381 | Z42: 1137217.179 | AA42: 1195560.058 | AB42: 1253119.266 | AC42: 1298418.578 | AD42: 1341259.599 | AE42: 1390483.541 | AF42: 1430203.345 | AG42: 1430403.17 | AH42: 1435410.257 | AI42: 1461025.379 | AJ42: 1486285.585
C43: ERCaopex | J43: euro | K43: 0 | L43: 0 | M43: 0 | N43: 0 | O43: 0 | P43: 0 | Q43: 0 | R43: 0 | S43: 0 | T43: 0 | U43: 0 | V43: 0 | W43: 0 | X43: 0 | Y43: 0 | Z43: 0 | AA43: 0 | AB43: 0 | AC43: 0 | AD43: 0 | AE43: 0 | AF43: 0 | AG43: 0 | AH43: 0 | AI43: 0 | AJ43: 0
C44: ERCa | J44: euro | K44: 0 | L44: 0 | M44: 91401.72983 | N44: 414954.6286 | O44: 506415.8136 | P44: 586451.9725 | Q44: 668991.5149 | R44: 721409.7564 | S44: 778806.7869 | T44: 841479.712 | U44: 882887.7917 | V44: 931598.3606 | W44: 984049.9484 | X44: 1029484.544 | Y44: 1080707.381 | Z44: 1137217.179 | AA44: 1195560.058 | AB44: 1253119.266 | AC44: 1298418.578 | AD44: 1341259.599 | AE44: 1390483.541 | AF44: 1430203.345 | AG44: 1430403.17 | AH44: 1435410.257 | AI44: 1461025.379 | AJ44: 1486285.585
C46: FONDO NUOVI INVESTIMENTI
I47: Note | J47: UdM | K47: 2020 | L47: 2021 | M47: 2022 | N47: 2023 | O47: 2024 | P47: 2025 | Q47: 2026 | R47: 2027 | S47: 2028 | T47: 2029 | U47: 2030 | V47: 2031 | W47: 2032 | X47: 2033 | Y47: 2034 | Z47: 2035 | AA47: 2036 | AB47: 2037 | AC47: 2038 | AD47: 2039 | AE47: 2040 | AF47: 2041 | AG47: 2042 | AH47: 2043 | AI47: 2044 | AJ47: 2045 | AK47: 2046 | AL47: 2047 | AM47: 2048 | AN47: 2049 | AO47: 2050 | AP47: 2051 | AQ47: 2052 | AR47: 2053 | AS47: 2054 | AT47: 2055 | AU47: 2056 | AV47: 2057 | AW47: 2058 | AX47: 2059
C48: FNIaFoNI | J48: euro | K48: 1.722946763e-08 | L48: 1.164153218e-10 | M48: 6.973277777e-08 | N48: 8.975621313e-08 | O48: 968659.3131 | P48: 840029.3004 | Q48: 743517.766 | R48: 653604.2717 | S48: 276770.1669 | T48: 201736.8004 | U48: 144578.1284 | V48: 55569.31331 | W48: 0 | X48: 0 | Y48: 0 | Z48: 0 | AA48: 0 | AB48: 0 | AC48: 0 | AD48: 0 | AE48: 0 | AF48: 0 | AG48: 0 | AH48: 0 | AI48: 0 | AJ48: 0
C49: AMMaFoNI | J49: euro | K49: 0 | L49: 0 | M49: 0 | N49: 0 | O49: 0 | P49: 0 | Q49: 0 | R49: 0 | S49: 0 | T49: 0 | U49: 0 | V49: 0 | W49: 0 | X49: 0 | Y49: 0 | Z49: 0 | AA49: 0 | AB49: 0 | AC49: 0 | AD49: 0 | AE49: 0 | AF49: 0 | AG49: 0 | AH49: 0 | AI49: 0 | AJ49: 0
C50: DCUITaFoNI | J50: euro | K50: 0 | L50: 0 | M50: 0 | N50: 0 | O50: 0 | P50: 0 | Q50: 0 | R50: 0 | S50: 0 | T50: 0 | U50: 0 | V50: 0 | W50: 0 | X50: 0 | Y50: 0 | Z50: 0 | AA50: 0 | AB50: 0 | AC50: 0 | AD50: 0 | AE50: 0 | AF50: 0 | AG50: 0 | AH50: 0 | AI50: 0 | AJ50: 0
C51: DTATOG,ind | J51: euro | K51: 0 | L51: 0 | M51: 0 | N51: 0 | O51: 0 | P51: 0 | Q51: 0 | R51: 0 | S51: 0 | T51: 0 | U51: 0 | V51: 0 | W51: 0 | X51: 0 | Y51: 0 | Z51: 0 | AA51: 0 | AB51: 0 | AC51: 0 | AD51: 0 | AE51: 0 | AF51: 0 | AG51: 0 | AH51: 0 | AI51: 0 | AJ51: 0
C52: DTG,tot | J52: euro | K52: 0 | L52: 0 | M52: 0 | N52: 0 | O52: 0 | P52: 0 | Q52: 0 | R52: 0 | S52: 0 | T52: 0 | U52: 0 | V52: 0 | W52: 0 | X52: 0 | Y52: 0 | Z52: 0 | AA52: 0 | AB52: 0 | AC52: 0 | AD52: 0 | AE52: 0 | AF52: 0 | AG52: 0 | AH52: 0 | AI52: 0 | AJ52: 0
C53: FoNIa | J53: euro | K53: 1.722946763e-08 | L53: 1.164153218e-10 | M53: 6.973277777e-08 | N53: 8.975621313e-08 | O53: 968659.3131 | P53: 840029.3004 | Q53: 743517.766 | R53: 653604.2717 | S53: 276770.1669 | T53: 201736.8004 | U53: 144578.1284 | V53: 55569.31331 | W53: 0 | X53: 0 | Y53: 0 | Z53: 0 | AA53: 0 | AB53: 0 | AC53: 0 | AD53: 0 | AE53: 0 | AF53: 0 | AG53: 0 | AH53: 0 | AI53: 0 | AJ53: 0
C55: SVILUPPO DEL VRG predisposto dal soggetto competente (include eventuali rimodulazioni)
I56: Note | J56: UdM | K56: 2020 | L56: 2021 | M56: 2022 | N56: 2023 | O56: 2024 | P56: 2025 | Q56: 2026 | R56: 2027 | S56: 2028 | T56: 2029 | U56: 2030 | V56: 2031 | W56: 2032 | X56: 2033 | Y56: 2034 | Z56: 2035 | AA56: 2036 | AB56: 2037 | AC56: 2038 | AD56: 2039 | AE56: 2040 | AF56: 2041 | AG56: 2042 | AH56: 2043 | AI56: 2044 | AJ56: 2045 | AK56: 2046 | AL56: 2047 | AM56: 2048 | AN56: 2049 | AO56: 2050 | AP56: 2051 | AQ56: 2052 | AR56: 2053 | AS56: 2054 | AT56: 2055 | AU56: 2056 | AV56: 2057 | AW56: 2058 | AX56: 2059
C57: Opexa | J57: euro | K57: 28063311.85 | L57: 28865833.88 | M57: 29322505.75 | N57: 29694873.73 | O57: 29617028.89 | P57: 29735196.46 | Q57: 29591169.03 | R57: 29575277.86 | S57: 29575277.86 | T57: 29550320.52 | U57: 29533121.19 | V57: 29438428.12 | W57: 29368310.57 | X57: 29200879.85 | Y57: 29200879.85 | Z57: 29096399.94 | AA57: 29049657.17 | AB57: 29049657.17 | AC57: 29045063.12 | AD57: 29045063.12 | AE57: 29045063.12 | AF57: 29000765.48 | AG57: 29000765.48 | AH57: 29000765.48 | AI57: 29000765.48 | AJ57: 28965337.73
C58: Capexa | J58: euro | K58: 265305.8082 | L58: 409133.4527 | M58: 674401.1156 | N58: 661215.4867 | O58: 872021.7808 | P58: 1061810.654 | Q58: 1257299.947 | R58: 1389665.442 | S58: 1527562.265 | T58: 1677472.757 | U58: 1778961.357 | V58: 1897078.356 | W58: 2023713.979 | X58: 2134371.303 | Y58: 2258208.955 | Z58: 2394085.473 | AA58: 2534136.076 | AB58: 2672402.191 | AC58: 2782751.464 | AD58: 2887502.993 | AE58: 3006788.989 | AF58: 3104433.238 | AG58: 3139412.118 | AH58: 3225076.539 | AI58: 3284610.866 | AJ58: 3343337.022
C59: FoNIa | J59: euro | K59: 1.722946763e-08 | L59: 1.164153218e-10 | M59: 6.973277777e-08 | N59: 8.975621313e-08 | O59: 968659.3131 | P59: 840029.3004 | Q59: 743517.766 | R59: 653604.2717 | S59: 276770.1669 | T59: 201736.8004 | U59: 144578.1284 | V59: 55569.31331 | W59: 0 | X59: 0 | Y59: 0 | Z59: 0 | AA59: 0 | AB59: 0 | AC59: 0 | AD59: 0 | AE59: 0 | AF59: 0 | AG59: 0 | AH59: 0 | AI59: 0 | AJ59: 0
C60: RCaTOT | J60: euro | K60: -796976.2216 | L60: 0 | M60: 357657.4312 | N60: 892760.8174 | O60: 200000 | P60: 255650.366 | Q60: 255650.366 | R60: 255650.366 | S60: 550000 | T60: 450000 | U60: 390000 | V60: 199552.5623 | W60: 0 | X60: 0 | Y60: 0 | Z60: 0 | AA60: 0 | AB60: 0 | AC60: 0 | AD60: 0 | AE60: 0 | AF60: 0 | AG60: 0 | AH60: 0 | AI60: 0 | AJ60: 0
C61: ERCa | J61: euro | K61: 0 | L61: 0 | M61: 91401.72983 | N61: 414954.6286 | O61: 506415.8136 | P61: 586451.9725 | Q61: 668991.5149 | R61: 721409.7564 | S61: 778806.7869 | T61: 841479.712 | U61: 882887.7917 | V61: 931598.3606 | W61: 984049.9484 | X61: 1029484.544 | Y61: 1080707.381 | Z61: 1137217.179 | AA61: 1195560.058 | AB61: 1253119.266 | AC61: 1298418.578 | AD61: 1341259.599 | AE61: 1390483.541 | AF61: 1430203.345 | AG61: 1430403.17 | AH61: 1435410.257 | AI61: 1461025.379 | AJ61: 1486285.585
C62: VRGa predisposto dal soggetto competente | J62: euro | K62: 27531641.44 | L62: 29274967.33 | M62: 30445966.02 | N62: 31663804.66 | O62: 32164125.8 | P62: 32479138.75 | Q62: 32516628.62 | R62: 32595607.7 | S62: 32708417.08 | T62: 32721009.79 | U62: 32729548.47 | V62: 32522226.71 | W62: 32376074.5 | X62: 32364735.69 | Y62: 32539796.18 | Z62: 32627702.59 | AA62: 32779353.3 | AB62: 32975178.63 | AC62: 33126233.16 | AD62: 33273825.71 | AE62: 33442335.65 | AF62: 33535402.06 | AG62: 33570580.77 | AH62: 33661252.28 | AI62: 33746401.72 | AJ62: 33794960.34
C64: SVILUPPO DEL MOLTIPLICATORE TARIFFARIO predisposto dal soggetto competente
I65: Note | J65: UdM | K65: 2020 | L65: 2021 | M65: 2022 | N65: 2023 | O65: 2024 | P65: 2025 | Q65: 2026 | R65: 2027 | S65: 2028 | T65: 2029 | U65: 2030 | V65: 2031 | W65: 2032 | X65: 2033 | Y65: 2034 | Z65: 2035 | AA65: 2036 | AB65: 2037 | AC65: 2038 | AD65: 2039 | AE65: 2040 | AF65: 2041 | AG65: 2042 | AH65: 2043 | AI65: 2044 | AJ65: 2045 | AK65: 2046 | AL65: 2047 | AM65: 2048 | AN65: 2049 | AO65: 2050 | AP65: 2051 | AQ65: 2052 | AR65: 2053 | AS65: 2054 | AT65: 2055 | AU65: 2056 | AV65: 2057 | AW65: 2058 | AX65: 2059
C66: VRGa predisposto dal soggetto competente | J66: euro | K66: 27531641.44 | L66: 29274967.33 | M66: 30445966.02 | N66: 31663804.66 | O66: 32164125.8 | P66: 32479138.75 | Q66: 32516628.62 | R66: 32595607.7 | S66: 32708417.08 | T66: 32721009.79 | U66: 32729548.47 | V66: 32522226.71 | W66: 32376074.5 | X66: 32364735.69 | Y66: 32539796.18 | Z66: 32627702.59 | AA66: 32779353.3 | AB66: 32975178.63 | AC66: 33126233.16 | AD66: 33273825.71 | AE66: 33442335.65 | AF66: 33535402.06 | AG66: 33570580.77 | AH66: 33661252.28 | AI66: 33746401.72 | AJ66: 33794960.34
C67: Ra-2b | J67: euro | K67: 576947.975 | L67: 1153895.95 | M67: 1153895.95 | N67: 1153895.95 | O67: 1153895.95 | P67: 1153895.95 | Q67: 1153895.95 | R67: 1153895.95 | S67: 1153895.95 | T67: 1153895.95 | U67: 1153895.95 | V67: 1153895.95 | W67: 1153895.95 | X67: 1153895.95 | Y67: 1153895.95 | Z67: 1153895.95 | AA67: 1153895.95 | AB67: 1153895.95 | AC67: 1153895.95 | AD67: 1153895.95 | AE67: 1153895.95 | AF67: 1153895.95 | AG67: 1153895.95 | AH67: 1153895.95 | AI67: 1153895.95 | AJ67: 1153895.95
C68: S tarif2019*vscala-2 | J68: euro | K68: 26414857.36 | L68: 26201132.34 | M68: 26201132.34 | N68: 26201132.34 | O68: 26201132.34 | P68: 26201132.34 | Q68: 26201132.34 | R68: 26201132.34 | S68: 26201132.34 | T68: 26201132.34 | U68: 26201132.34 | V68: 26201132.34 | W68: 26201132.34 | X68: 26201132.34 | Y68: 26201132.34 | Z68: 26201132.34 | AA68: 26201132.34 | AB68: 26201132.34 | AC68: 26201132.34 | AD68: 26201132.34 | AE68: 26201132.34 | AF68: 26201132.34 | AG68: 26201132.34 | AH68: 26201132.34 | AI68: 26201132.34 | AJ68: 26201132.34
C69: Ja predisposto dal soggetto competente | J69: n. (3 cifre decimali) | K69: 1.02 | L69: 1.070185964 | M69: 1.112993403 | N69: 1.157513139 | O69: 1.175803054 | P69: 1.187318778 | Q69: 1.18868927 | R69: 1.191576457 | S69: 1.195700357 | T69: 1.1961607 | U69: 1.196472843 | V69: 1.188893916 | W69: 1.183551125 | X69: 1.183136619 | Y69: 1.189536192 | Z69: 1.192749729 | AA69: 1.198293526 | AB69: 1.205452185 | AC69: 1.210974188 | AD69: 1.216369633 | AE69: 1.222529741 | AF69: 1.225931909 | AG69: 1.227217914 | AH69: 1.230532534 | AI69: 1.233645287 | AJ69: 1.235420413
C71: Rcaappr2020,COVID | J71: euro | K71: 796976.2216
C73: SVILUPPO DEL MOLTIPLICATORE TARIFFARIO applicabile (nelle more dell'approvazione ARERA)
J74: UdM | K74: 2020 | L74: 2021 | M74: 2022 | N74: 2023 | O74: 2024 | P74: 2025 | Q74: 2026 | R74: 2027 | S74: 2028 | T74: 2029 | U74: 2030 | V74: 2031 | W74: 2032 | X74: 2033 | Y74: 2034 | Z74: 2035 | AA74: 2036 | AB74: 2037 | AC74: 2038 | AD74: 2039 | AE74: 2040 | AF74: 2041 | AG74: 2042 | AH74: 2043 | AI74: 2044 | AJ74: 2045 | AK74: 2046 | AL74: 2047 | AM74: 2048 | AN74: 2049 | AO74: 2050 | AP74: 2051 | AQ74: 2052 | AR74: 2053 | AS74: 2054 | AT74: 2055 | AU74: 2056 | AV74: 2057 | AW74: 2058 | AX74: 2059
C75: Limite al moltiplicatore tariffario | J75: n. (3 cifre decimali) | K75: 1.0845 | L75: 1.10619 | M75: 1.160616678 | N75: 1.207041345 | O75: 1.255133742 | P75: 1.275158412 | Q75: 1.287647214 | R75: 1.289133514 | S75: 1.292264668 | T75: 1.296737037 | U75: 1.297236279 | V75: 1.297574798 | W75: 1.289355452 | X75: 1.283561195 | Y75: 1.283111664 | Z75: 1.290052 | AA75: 1.293537081 | AB75: 1.299549329 | AC75: 1.307312895 | AD75: 1.313301507 | AE75: 1.319152867 | AF75: 1.325833504 | AG75: 1.329523156 | AH75: 1.330917828 | AI75: 1.334512533 | AJ75: 1.337888314
C76: VRGa (coerente con J applicabile) | J76: euro | K76: 27531641.44 | L76: 29274967.33 | M76: 30445966.02 | N76: 31663804.66 | O76: 32164125.8 | P76: 32479138.75 | Q76: 32516628.62 | R76: 32595607.7 | S76: 32708417.08 | T76: 32721009.79 | U76: 32729548.47 | V76: 32522226.71 | W76: 32376074.5 | X76: 32364735.69 | Y76: 32539796.18 | Z76: 32627702.59 | AA76: 32779353.3 | AB76: 32975178.63 | AC76: 33126233.16 | AD76: 33273825.71 | AE76: 33442335.65 | AF76: 33535402.06 | AG76: 33570580.77 | AH76: 33661252.28 | AI76: 33746401.72 | AJ76: 33794960.34
C77: Ja applicabile | J77: n. (3 cifre decimali) | K77: 1.02 | L77: 1.070185964 | M77: 1.112993403 | N77: 1.157513139 | O77: 1.175803054 | P77: 1.187318778 | Q77: 1.18868927 | R77: 1.191576457 | S77: 1.195700357 | T77: 1.1961607 | U77: 1.196472843 | V77: 1.188893916 | W77: 1.183551125 | X77: 1.183136619 | Y77: 1.189536192 | Z77: 1.192749729 | AA77: 1.198293526 | AB77: 1.205452185 | AC77: 1.210974188 | AD77: 1.216369633 | AE77: 1.222529741 | AF77: 1.225931909 | AG77: 1.227217914 | AH77: 1.230532534 | AI77: 1.233645287 | AJ77: 1.235420413
C79: Meccanismi incentivanti per il miglioramento della qualità, controllo sui livelli raggiunti e modalità di copertura dei premi
J80: UdM | K80: 2020 | L80: 2021 | M80: 2022 | N80: 2023 | O80: 2024 | P80: 2025 | Q80: 2026 | R80: 2027 | S80: 2028 | T80: 2029 | U80: 2030 | V80: 2031 | W80: 2032 | X80: 2033 | Y80: 2034 | Z80: 2035 | AA80: 2036 | AB80: 2037 | AC80: 2038 | AD80: 2039 | AE80: 2040 | AF80: 2041 | AG80: 2042 | AH80: 2043 | AI80: 2044 | AJ80: 2045 | AK80: 2046 | AL80: 2047 | AM80: 2048 | AN80: 2049 | AO80: 2050 | AP80: 2051 | AQ80: 2052 | AR80: 2053 | AS80: 2054 | AT80: 2055 | AU80: 2056 | AV80: 2057 | AW80: 2058 | AX80: 2059
C81: Strumento allocativo (€/mc) | J81: €/mc | K81: 0 | L81: 0 | M81: 0 | N81: 0 | O81: 0 | P81: 0 | Q81: 0 | R81: 0 | S81: 0 | T81: 0 | U81: 0 | V81: 0 | W81: 0 | X81: 0 | Y81: 0 | Z81: 0 | AA81: 0 | AB81: 0 | AC81: 0 | AD81: 0 | AE81: 0 | AF81: 0 | AG81: 0 | AH81: 0 | AI81: 0 | AJ81: 0
C82: (1+γOPi,j)*max(0;ΔOpex) | J82: euro | K82: 0 | L82: 0 | M82: 0 | N82: 0 | O82: 0 | P82: 0 | Q82: 0 | R82: 0 | S82: 0 | T82: 0 | U82: 0 | V82: 0 | W82: 0 | X82: 0 | Y82: 0 | Z82: 0 | AA82: 0 | AB82: 0 | AC82: 0 | AD82: 0 | AE82: 0 | AF82: 0 | AG82: 0 | AH82: 0 | AI82: 0 | AJ82: 0
C84: INVESTIMENTI
I85: Note | J85: UdM | K85: 2020 | L85: 2021 | M85: 2022 | N85: 2023 | O85: 2024 | P85: 2025 | Q85: 2026 | R85: 2027 | S85: 2028 | T85: 2029 | U85: 2030 | V85: 2031 | W85: 2032 | X85: 2033 | Y85: 2034 | Z85: 2035 | AA85: 2036 | AB85: 2037 | AC85: 2038 | AD85: 2039 | AE85: 2040 | AF85: 2041 | AG85: 2042 | AH85: 2043 | AI85: 2044 | AJ85: 2045 | AK85: 2046 | AL85: 2047 | AM85: 2048 | AN85: 2049 | AO85: 2050 | AP85: 2051 | AQ85: 2052 | AR85: 2053 | AS85: 2054 | AT85: 2055 | AU85: 2056 | AV85: 2057 | AW85: 2058 | AX85: 2059
C86: Investimenti al lordo dei contributi | J86: euro | K86: 11547820.51 | L86: 15958947.08 | M86: 16382146.02 | N86: 15535968.18 | O86: 26593113.69 | P86: 26756530.36 | Q86: 20106397.99 | R86: 19950024.27 | S86: 10698286.88 | T86: 10544363.48 | U86: 10598363.48 | V86: 10605335.68 | W86: 10605335.68 | X86: 10696878.89 | Y86: 10696878.89 | Z86: 10696878.89 | AA86: 10696878.89 | AB86: 10696878.89 | AC86: 10668578.89 | AD86: 10668578.89 | AE86: 10668578.89 | AF86: 10668578.89 | AG86: 10668578.89 | AH86: 10668578.89 | AI86: 10648578.89 | AJ86: 10548578.89
C87: Contributi | J87: euro | K87: 8460535.1 | L87: 13342661.2 | M87: 13867681.5 | N87: 12874882.3 | O87: 22793027.82 | P87: 23008194.48 | Q87: 16321312.11 | R87: 16204938.39 | S87: 7699992.415 | T87: 7521069.015 | U87: 7575069.015 | V87: 7637735.681 | W87: 7637735.681 | X87: 7684278.889 | Y87: 7684278.889 | Z87: 7684278.889 | AA87: 7684278.889 | AB87: 7684278.889 | AC87: 7638578.889 | AD87: 7638578.889 | AE87: 7638578.889 | AF87: 7638578.889 | AG87: 7638578.889 | AH87: 7638578.889 | AI87: 7618578.889 | AJ87: 7618578.889
C88: Investimenti al netto dei contributi | J88: euro | K88: 3087285.409 | L88: 2616285.877 | M88: 2514464.524 | N88: 2661085.877 | O88: 3800085.877 | P88: 3748335.877 | Q88: 3785085.877 | R88: 3745085.877 | S88: 2998294.469 | T88: 3023294.469 | U88: 3023294.469 | V88: 2967600 | W88: 2967600 | X88: 3012600 | Y88: 3012600 | Z88: 3012600 | AA88: 3012600 | AB88: 3012600 | AC88: 3030000 | AD88: 3030000 | AE88: 3030000 | AF88: 3030000 | AG88: 3030000 | AH88: 3030000 | AI88: 3030000 | AJ88: 2930000
C89: CIN | J89: euro | K89: 3435655.098 | L89: 5533227.83 | M89: 16779464.54 | N89: 31880707.54 | O89: 46317594.91 | P89: 58917574.47 | Q89: 81559716.75 | R89: 102418754.9 | S89: 114807284.8 | T89: 125468247.1 | U89: 125414443.1 | V89: 124893380.2 | W89: 124887284 | X89: 125305540.3 | Y89: 126251189.5 | Z89: 127934108.7 | AA89: 129611097 | AB89: 131234696.5 | AC89: 132787801.2 | AD89: 134024464.6 | AE89: 134936387 | AF89: 135515615.5 | AG89: 135757983.6 | AH89: 135987998.5 | AI89: 136166465 | AJ89: 136289620.4
C90: CINfp | J90: euro | K90: 677166.2833 | L90: 1469654.687 | M90: 9846472.611 | N90: 22722397.17 | O90: 35136632.35 | P90: 45779025.72 | Q90: 66440991.48 | R90: 85397518.57 | S90: 95816419.5 | T90: 104530307.5 | U90: 102990550.8 | V90: 100933734.8 | W90: 99405785.23 | X90: 98353058.52 | Y90: 97836517.21 | Z90: 98096124.47 | AA90: 98453429.78 | AB90: 98873444.59 | AC90: 99343734.57 | AD90: 99585707.92 | AE90: 99571104.01 | AF90: 99334538.28 | AG90: 98847603.38 | AH90: 98338014.8 | AI90: 97821427.8 | AJ90: 97291335.9
C91: OF/CIN | J91: % | K91: 0.03287987902 | L91: 0.03072258644 | M91: 0.0160552364 | N91: 0.007785862295 | O91: 0.01094283487 | P91: 0.01017507124 | Q91: 0.008499347205 | R91: 0.007647452749 | S91: 0.007634160609 | T91: 0.007719917284 | U91: 0.00828396364 | V91: 0.008900469621 | W91: 0.009477609985 | X91: 0.01000154269 | Y91: 0.01047473964 | Z91: 0.01086346725 | AA91: 0.01120477607 | AB91: 0.0115001917 | AC91: 0.01175160248 | AD91: 0.01199440836 | AE91: 0.01223830708 | AF91: 0.01247089654 | AG91: 0.01270287145 | AH91: 0.01293877921 | AI91: 0.0131633937 | AJ91: 0.01337833627
C93: Trasferimento importi dovuti alla contabilità speciale del Commissario Unico (Del. 440/2017/R/idr)
I94: Note | J94: UdM | K94: 2020-2023
C95: Fabbisogno degli investimenti per adeguamento agglomerati oggetto di condanne UE del 19/07/2012 e 10/04/2014 | J95: euro | K95: 0
